Workbook

Sheet Start (hidden)

Sheet menu
B7: =ml("ad_bemessung_menue","Bemessung von Aufdachdämmsystemen auf Grundlage von {2} mit {3}","","ETA-22/0789","EN 1995-1-1",cv("codeCaption","B 1995-1-1")) -> Design of Thermal-Insulation-Systems based on ETA-22/0789 and EN 1995-1-1 with EVS-EN 1995-1-1
F10: =Version -> V 26.03.01
C12: =ml("tc_menü","MENÜ") -> MAIN MENU
D13: =ml("ad_standort","Standort") -> Site location
D14: =ml("ad_aufdachdaemmung","Aufdachdämmung") -> Thermal Insulation
D15: =ml("tc_zusamm2_","Zusammenfassung") -> Result summary
D16: =ml("ad_berechnung","Berechnung") -> Calculation
C17: =IF(AND(ISERR(f1_k),ISERR(f_1_k_weich_druck)), ml("ad_achtung","ACHTUNG! VBA-Funktionen vom System gesperrt. Bitte Arbeitsmappe schließen und nochmals öffnen."),"") -> 

Sheet Location
A1: =ml("ad_aufdachstandort","Aufdachdämmsystem - Standort") -> Thermal Insulation - Construction Site
A2: =ml("ad_lastannahmen","Lastannahmen für Wind und Schnee") -> Wind and Snow loads
A3: =ml("ad_grundlagen_nl","auf Grundlage von {0} und {1}","EN 1991-1-4","EN 1991-1-3") -> Based on EN 1991-1-4 and EN 1991-1-3 | F3: =Version -> V 26.03.01
A5: =ml("ad_standort","Standort") -> Site location
B6: =ml("ad_land","Land") -> Country | E6: Sweden
B7: =ml("ad_stadt","Stadt") -> City | E7: Stockholm
A9: =ml("ad_dachfo","Dachform") -> Roof shape
B10: =ml("ad_eingabe_dachgeometrie","↗ Eingabe der Dachgeometrie im Blatt Aufdachdämmung") -> ↗ Input of roof geometry in the corresp. worksheet
B12: =IF(beta=90,ml("ad_shape","Shape"),ml("ad_dachfo","Dachform")) -> Shape | E12: ='Thermal insulation'!D52 -> single pitched / flat
B13: =IF(beta=90, ml("ad_wand","Wand"), ml("ad_dachne","Dachneigung")) -> Wall | D13: β | E13: =beta -> 90 | F13: °
B14: =IF(beta=90,ml("ad_battensspacing","Battens spacing"),ml("ad_sparrenabstand","Sparrenabstand")) -> Battens spacing | D14: b e | E14: =b_e -> 0.6 | F14: m
B15: =IF(beta=90,ml("ad_batlen","Battens length"),ml("ad_sparre","Sparrenlänge ")) -> Battens length | D15: b 1 | E15: ='Thermal insulation'!D56 -> 9.8 | F15: m
B16: =IF(beta=90,ml("ad_wallen","Wall length"),ml("ad_traufl","Trauflänge")) -> Wall length | D16: b 2 | E16: ='Thermal insulation'!D57 -> 12 | F16: m
B18: =ml("ad_höhe ü","Höhe über Grund (Firsthöhe)") -> Height above ground (ridge height) | D18: z | E18: ='Thermal insulation'!D54 -> 9 | F18: m
A20: =ml("ad_lastan","LASTANNAHME SCHNEE") -> SNOW LOAD ASSUMPTION | D20: =ml("ad_europe2","European Model (EN 1991-1-3)") -> European Model (EN 1991-1-3)
B21: =ml("ad_schnee","Schneezone") -> Snow zone | E21: Zone 2 | G21: =ml("ad_informy","informativ") -> informative
B22: =ml("ad_gelaend","Geländehöhe über dem Meer") -> Terrain height above sea level | D22: A | E22: 250 | F22: m | G22: =ml("ad_informy","informativ") -> informative
B24: =ml("ad_schneelast_boden","Schneelast auf dem Boden") -> Ground snow load | D24: s k | E24: 2 | F24: kN/m² | G24: =ml("loc_asDefined","as defined in National Annex") -> as defined in National Annex
B25: =ml("ad_schnee_abrutschen","Schnee vom Abrutschen behindert") -> Snow sliding is prevented | E25: YES
B27: =ml("ad_formbeiwert_schneelast","Formbeiwert für Schneelasten") -> Shape coefficient for snow loads | D27: μ1 | E27: =IF(index_Schneegitter=1,0.8,IF(beta<=30,0.8,IF(beta>=60,0,0.8*(60-beta)/30))) -> 0.8 | F27: [-]
B28: Exposure coefficient | D28: C e | E28: 1 | G28: 5.2 (6)
B29: Thermal coefficient | D29: C t | E29: 1 | G29: 5.2 (7)
B30: =ml("ad_schneelast_dächer","Schneelast auf Dächern") -> Roof snow load | D30: s D,k | E30: =IF(ISNA(vba_sk),0,E27*E24) -> 1.6 | F30: kN/m²
A32: =ml("ad_lastann_wind","LASTANNAHME WIND") -> WIND LOAD ASSUMPTION | D32: =ml("ad_europe","European Model (EN 1991-1-4)") -> European Model (EN 1991-1-4)
B34: =ml("ad_geländekategorie","Geländekategorie") -> Terrain category | D34: I
B35: =INDEX(data_GK,index_GK,1) -> Areas at lakes or flat terrain with negligible vegetation and no obstacles
B36: =ml("loc_roughlen","Roughness Length") -> Roughness Length | D36: z 0 | E36: =INDEX(data_GK,index_GK,2) -> 0.01 | F36: m | G36: 4.3.2, Table 4.1
B37: =ml("loc_zmin","Minimum Height") -> Minimum Height | D37: z min | E37: =INDEX(data_GK,index_GK,3) -> 1 | F37: m | G37: 4.3.2, Table 4.1
B38: =ml("loc_terrfac","Terrain Factor") -> Terrain Factor | D38: k r | E38: =0.19*(E36/0.05)^0.07 -> 0.1697562218 | G38: 4.3.2, Eq. 4.5
B39: =ml("loc_turbfac","Turbulence factor") -> Turbulence factor | D39: k I | E39: 1 | G39: 4.4, Note 2
B40: =ml("loc_topof","Topography factor") -> Topography factor | D40: c 0 | E40: 1 | G40: 4.3.3
B41: =ml("loc_terrfac","Terrain Factor") -> Terrain Factor | D41: c r (z min) | E41: =E38*LN(E37/E36) -> 0.7817562914 | G41: 4.3.2, Eq. 4.5
B43: =ml("ad_basisgeschwindigkeit","Basisgeschwindigkeit") -> Basic wind velocity | D43: v b,0 | E43: 23 | F43: m/s | G43: =ml("loc_asDefined","as defined in National Annex") -> as defined in National Annex
B44: =ml("loc_qbdesc","Basic wind pressure") -> Basic wind pressure | D44: q b | E44: =1/2*1.25*E43^2/1000 -> 0.330625 | F44: kN/m²
B45: =ml("loc_meanwind","Mean wind") -> Mean wind | D45: v m (z min) | E45: =E41*wind_c_0*E43 -> 17.9803947 | F45: m/s
B46: =ml("loc_turbint","Turbulence intensity") -> Turbulence intensity | D46: I v (z min) | E46: =wind_K_I/(wind_c_0*LN(E37/E36)) -> 0.217147241
B47: =ml("ad_spigedru","Böengeschwindigkeitsdruck") -> Peak velocity pressure | D47: q p (z min) | E47: =(1+7*E46)*1/2*1.25*E45^2/1000 -> 0.5091951855 | F47: kN/m²
B49: ='Thermal insulation'!B54 -> Ridge height | D49: z | E49: =z_wind -> 9 | F49: m
B50: =ml("loc_terrfac","Terrain Factor") -> Terrain Factor | D50: c r (z) | E50: =IF(E49<E37,E41,$E$38*LN(E49/$E$36)) -> 1.154748834
B51: =ml("loc_meanwind","Mean wind") -> Mean wind | D51: v m (z) | E51: =E50*wind_c_0*$E$43 -> 26.55922318
B52: =ml("loc_turbint","Turbulence intensity") -> Turbulence intensity | D52: I v (z min) | E52: =IF(E49<E37,E46,wind_K_I/(wind_c_0*LN(E49/E36))) -> 0.1470070519
B53: =ml("ad_spigedru","Böengeschwindigkeitsdruck") -> Peak velocity pressure | D53: q p (z) | E53: =(1+7*E52)*1/2*1.25*E51^2/1000 -> 0.8945474189 | F53: kN/m²
A56: =ml("ad_außendruckbeiwerte","Außendruckbeiwerte {0}","cpe,1") -> External pressure coefficient cpe,1
B58: =ml("ad_außendruckbeiwerte_einfach","Außendruckbeiwerte nach {0}","B 1991-1-4 (vereinfachte Ermittlung)") -> External pressure coefficient acc. To B 1991-1-4 (simplified)
B59: H,I | C59: G | D59: =IF(index_Dachform=1,"J","F") -> F | E59: =IF(index_Dachform=1,"F","-") -> -
A60: =ml("ad_sog","Sog") -> Suction | B60: =IF(index_Dachform=1,fh_sverweis($E$13,data_beiwert_sattel,2),fh_sverweis($E$13,data_beiwert_pult,2)) -> -1.3 | C60: =IF(index_Dachform=1,fh_sverweis($E$13,data_beiwert_sattel,3),fh_sverweis($E$13,data_beiwert_pult,3)) -> -2 | D60: =IF(index_Dachform=1,fh_sverweis($E$13,data_beiwert_sattel,4),fh_sverweis($E$13,data_beiwert_pult,5)) -> -2 | E60: =IF(index_Dachform=1,fh_sverweis($E$13,data_beiwert_sattel,5),0) -> 0
A61: =ml("ad_druck","Druck") -> Pressure | B61: =IF(index_Dachform=1,fh_sverweis($E$13,data_beiwert_sattel,6),fh_sverweis($E$13,data_beiwert_pult,6)) -> 0.8 | C61: =IF(index_Dachform=1,fh_sverweis($E$13,data_beiwert_sattel,7),fh_sverweis($E$13,data_beiwert_pult,7)) -> 0.8 | D61: =IF(index_Dachform=1,fh_sverweis($E$13,data_beiwert_sattel,8),fh_sverweis($E$13,data_beiwert_pult,9)) -> 0.8 | E61: =IF(index_Dachform=1,fh_sverweis($E$13,data_beiwert_sattel,9),0) -> 0
A63: =ml("ad_innendruckbeiwerte","Innendruckbeiwerte {0};{cpi}") -> Internal pressure coefficient
B65: H,I | C65: G | D65: =IF(index_Dachform=1,"J","F") -> F | E65: =IF(index_Dachform=1,"F","-") -> -
A66: =ml("ad_sog","Sog") -> Suction | B66: ='Listen_Wind + Schnee'!$J$5 -> -0.3 | C66: ='Listen_Wind + Schnee'!$J$5 -> -0.3 | D66: ='Listen_Wind + Schnee'!$J$5 -> -0.3 | E66: =IF(index_Dachform=1,'Listen_Wind + Schnee'!$J$5,0) -> 0
A67: =ml("ad_druck","Druck") -> Pressure | B67: ='Listen_Wind + Schnee'!$K$5 -> 0.2 | C67: ='Listen_Wind + Schnee'!$K$5 -> 0.2 | D67: ='Listen_Wind + Schnee'!$K$5 -> 0.2 | E67: =IF(index_Dachform=1,'Listen_Wind + Schnee'!$K$5,0) -> 0
A69: =ml("ad_windsog_w","Windsog {0}","w S,k") -> Wind suction w S,k
B71: =ml("ad_windsogspitzenvordach","Windsogspitzen im Vordachbereich werden von den Sparren aufgenommen und betreffen nicht die Konterlatten / Grundlatten.") -> Peak wind suction on porch roofs act on rafters and not on counter-battens
B73: H,I | C73: G | D73: =IF(index_Dachform=1,"J","F") -> F | E73: =IF(index_Dachform=1,"F","") -> 
B74: =q_p*(B60-B67) -> -1.341821128 | C74: =q_p*(C60-C67) -> -1.968004322 | D74: =q_p*(D60-D67) -> -1.968004322 | E74: =IF(index_Dachform=1,q_p*(E60-E67),0) -> 0 | F74: kN/m²
A76: =ml("ad_winddruckw","Winddruck {0}","w Pr,k") -> Wind pressure w Pr,k
B78: H,I | C78: G | D78: =IF(index_Dachform=1,"J","F") -> F | E78: =IF(index_Dachform=1,"F","") -> 
B79: =q_p*(B61-B66) -> 0.9840021608 | C79: =q_p*(C61-C66) -> 0.9840021608 | D79: =q_p*(D61-D66) -> 0.9840021608 | E79: =IF(index_Dachform=1,q_p*(E61-E66),"") ->  | F79: kN/m²

Sheet Thermal insulation
A1: =IF(beta=90, ml("ad_fassasys","Fassadensystem"), ml("ad_aufdachsys","Aufdachdämmsystem")) &" - "& ml("ad_abmess_schrau"," - Abmessungen und Schraubenauswahl") -> Facade system - Dimensions and Screws
A2: =ml("ad_angabenvorbemssung","Angaben zur Vorbemessung") -> Input for preliminary design
A4: =ml("tc_bauvor","BAUVORHABEN:") -> PROJECT: | G4: V 26.03.01
A5: =ml("tc_pos. n","POS. NR.:") -> POS. NO.:
A6: =ml("tc_ausgef","AUSGEFÜLLT VON:") -> RESPONSIBLE:
A7: =ml("tc_händle","HÄNDLER:") -> AGENT:
A8: =ml("ad_geprüft","GEPRÜFT:") -> APPROVED: | E8: =ml("ad_datumgr","DATUM:") -> DATE: | F8: =TODAY() -> 2026-04-10
A11: =ml("tc_allgem","ALLGEMEINE ANGABEN:") -> GENERAL INFORMATION:
A33: =ml("ad_befestigunsvariante","Befestigungsvariante") -> Fixing method
A34: =MATCH(vba_daemmungTyp,Ist_Variante,0) -> 1 | B34: Method 2 - Hard Insulation / one direction of inclination of the screws
A37: =ml("tc_belast","BELASTUNG:") -> LOADS: | B37: =ml("ad_standort1","↘ Standortangabe im Blatt Standort") -> Input of site location in the corresp. worksheet
B38: =IF(beta=90,ml("ad_fassgew","Fassadengewicht"),ml("ad_dachei","Dacheindeckung")) -> Facade weight | D38: Metal
B39: =ml("tc_eigeng1_","Eigengewicht") -> Dead load | C39: g 1,k | D39: =INDEX(data_Dacheindeckung,index_Dacheindeckung,1) -> 0.3 | E39: kN/m² | F39: =IF(beta=90,ml("ad_dachei3","Deckschale inkl. Lattung"),ml("ad_dachei","Dacheindeckung inkl. Lattung")) -> Covering and lathing
B41: =ml("tc_nutzla3__","Nutzlast") -> Live load | C41: q k | D41: 1 | E41: kN/m² | F41: =ml("ad_nutzlastkategorie","Nutzlastkategorie H: Dächer lt. EN 1991-1-1") -> Live load category H: roofs acc. to EN 1991-1-1
C42: Q k | D42: 1.5 | E42: kN
B44: =ml("ad_schneelast","Schneelast") -> Snow load | C44: s D,k | D44: =s_Dk -> 1.6 | E44: kN/m²
D45: ≤ 1000 m
B47: =ml("ad_winddruck","Winddruck") -> Wind pressure | C47: w D,k | D47: =MAX(Winddruckliste) -> 0.9840021608 | E47: kN/m² | F47: =IF(wdk=MAX(Winddruckliste), ml("ad_exwwd","Extremwert Winddruck"),ml("ad_eigdef","eigene Definition")) -> Peak wind pressure
B48: =ml("ad_windsog","Windsog") -> Wind suction | C48: w S,k | D48: =MIN(Windsogliste) -> -1.968004322 | E48: kN/m² | F48: =IF(wsk=MIN(Windsogliste),ml("ad_exwws","Extremwert Windsog"),ml("ad_eigdef","eigene Definition")) -> Peak wind suction
A50: =ml("tc_system","SYSTEM:") -> SYSTEM:
A51: =IF(beta=90, ml("ad_fassa","Fassade"), ml("ad_dachfo","Dachform")) -> Facade
A52: =MATCH(vba_Dachform,Ist_Dachform_1,0) -> 2 | B52: =IF(beta=90,ml("ad_shape","Shape"),ml("ad_dachfo","Dachform")) -> Shape | D52: single pitched / flat
B53: =IF(beta=90, ml("ad_wand","Wand"), ml("ad_dachne","Dachneigung")) -> Wall | C53: β | D53: 90 | E53: °
B54: =ml("ad_firsth","Firsthöhe") -> Ridge height | C54: z | D54: 9 | E54: m
B55: =IF(beta=90,ml("ad_battensspacing","Battens spacing"),ml("ad_sparrenabstand","Sparrenabstand")) -> Battens spacing | C55: b e | D55: 0.6 | E55: m
B56: =IF(beta=90,ml("ad_wandh","Wandhöhe"),ml("ad_sparre2","Gesamtlänge Sparren")) -> Wall height | C56: b 1 | D56: 9.8 | E56: m | F56: =IF(beta=90,"", CHOOSE(position_Dachform, ml("ad_schräge1","(schräge Länge beider Sparren)"), ml("ad_schräge2","(schräge Länge eines Sparrens)"))) -> 
B57: =IF(beta=90,ml("ad_wandl","Wandlänge"),ml("ad_traufl","Trauflänge")) -> Wall length | C57: b 2 | D57: 12 | E57: m
B58: =IF(beta=90,ml("ad_wandf","Wandfläche"),ml("ad_dachfl","Dachfläche")) -> Wall area | C58: A | D58: ='summary hard'!D12 -> 117.6 | E58: m²
B60: =ml("ad_standort1","↘ Standortangabe im Blatt Standort") -> Input of site location in the corresp. worksheet
A61: =ml("ad_konter_grundl","Konterlatte / Grundlatte (GL)") -> Counter-batten
B62: =ml("ad_nutzun","Nutzungsklasse") -> Service class | D62: SC 1 | F62: =ml("ad_bautei","Bauteile in offenen, überdachten Konstruktionen") -> Roofed outdoor constructions
B63: =ml("ad_festig","Festigkeitsklasse") -> Strength class | D63: C24
C65: b | D65: 5 | E65: cm | F65: =IF(I65,"","b ≥! " & J65 &" cm für d=" & vba_Schraube_d&" mm lt. Zulassung") ->  | I65: =b_kl>=J65 -> TRUE | J65: =IF(vba_Schraube_d<=8,5,IF(vba_Schraube_d<=10,6,8)) -> 5
C66: h | D66: 3 | E66: cm | F66: =IF(I66,"","h ≥! " & J66 &" cm für d=" & vba_Schraube_d&" mm lt. Zulassung") ->  | I66: =h_kl>=J66 -> TRUE | J66: =IF(vba_Schraube_d<=8,3,IF(vba_Schraube_d<=10,4,5)) -> 3
C67: g K,k | D67: =KL_gk -> 0.00875 | E67: kN/m²
A68: =ml("ad_dämmst","Dämmstoff") -> Insulation
A69: =ml("tcf_type","Typ") -> type | B69: =IF(index_variante=1,ml("ad_dämm1","Druckfeste Dämmung"),ml("ad_dämm2","Weiche Dämmung")) -> Hard Insulation
A70: =ml("ad_produk","Produkt") -> Product | B70: Soft wood fibre insulation
A72: =ml("ad_dicke","Dicke") -> Thickness | C72: d ins | D72: 250 | E72: mm | I72: =IF(index_variante=1,D72<300,D72<400) -> TRUE
A73: =ml("ad_drucks_10","Druckspannung bei 10% Stauchung") -> Compressive stress due to a compression of 10% | C73: σ 10% | D73: =Daemm_stauch -> 0.2 | E73: N/mm2
A74: =ml("ad_wichte","Wichte der Dämmung") -> Weight density | C74: γ ins | D74: 0.3 | E74: kN/m³
A75: =ml("ad_gewich","Gewicht der Dämmung") -> Weight of the insulation | C75: g ins,k | D75: =D74*(vba_dDAE2/1000) -> 0.075 | E75: kN/m²
A76: =ml("ad_e-modu","E-Modul") -> Young´s modulus | C76: E D,c,mean | D76: =E_dä -> 2.8 | E76: N/mm2
A78: =ml("ad_schalu","Schalung") -> Formwork
C79: t s | D79: 2 | E79: cm
A80: =IF(beta=90,ml("ad_sparren_2","Traglatte (zur Kontrolle der Schraubenabmessungen)"),ml("ad_sparren_","Sparren (zur Kontrolle der Schraubenabmessungen)")) -> Batten dimensions (to check screw dim.)
C81: b | D81: 6 | E81: cm | F81: =IF(I81,"","b ≥ 6,0 cm lt. Zulassung") ->  | I81: =$D$81>=IF(d_schraube>=12,8,6) -> TRUE
C82: h | D82: 20 | E82: cm
A84: =ml("tc_verbin","VERBINDUNGSMITTEL:") -> SCREWS: | D84: =IF(vba_TypeIndex=2,J153,K121) -> TRUE | N84: =ml("ad_windso2","Windsogsicherung über Schrauben rechtwinkelig zur Dachfläche") -> Wind suction securing through screws rectangular to the roof surface
A85: =ml("tcf_type","Typ") -> type | B85: Essve CY-FT (fullthread, cylinder head) | E85: =ml(INDEX(INDIRECT("slst_screwtypes_" & index_variante & "_keys"),index_screwtype),"") ->  | O85: Essve C-PT (partial thread, countersunk head)
A86: =ml("ad_schraube","Schraube") -> Screw | B86: ESSVE CY-FT 8,0 x 450/427 | H86: =ml("ad_optimierng","Optimierung") -> Optimise | O86: Essve C-PT 8,0 x 300/100
A87: =ml("ad_anordn","Anordnung") -> Assembly | B87: =INDEX(data_Variante,Listen!$A$59,) -> one direction of inclination of the screws | O87: =ml(INDEX(INDIRECT("slst_screwtypes_" & index_variante & "_keys"),index_screwtype_2),"") -> 
B89: =ml("ad_schrau","Schraubenabstand") -> Screw distance | C89: A | D89: 175 | E89: cm | F89: =IF(I89,"","A ≤ 175 cm lt. Zulassung") ->  | I89: =abstand_a<=175 -> TRUE
C90: B | D90: 5 | E90: cm | F90: =IF(I90,"","B ≤ 5,0 cm lt. Zulassung") ->  | I90: =abstand_b<=5 -> TRUE
B92: =ml("ad_schrau_n","Schraubenneigung") -> Screw inclination | C92: α | D92: 60 | E92: ° | F92: 30° ≤ α ≤ 60°
B93: Schraubenneigung | C93: α 1 | D93: 60 | F93: 30° ≤ α1 ≤ 90° lt. Zulassung
C94: α 2 | D94: 60 | F94: 30° ≤ α2 ≤ 90° lt. Zulassung
B96: =ml("lst_sp_tit","Kopfposition") -> Head position | C96: Head not countersunk
C97: t f | D97: 0 | E97: mm
A98: =ml("ad_schrau_abm","Schraubenabmessungen") -> Screw dimensions | N98: =ml("ad_schrau_abm","Schraubenabmessungen") -> Screw dimensions
B99: =ml("tcf_gesl","Gesamtlänge") -> Total length | C99: L | D99: =L_Sch -> 450 | E99: mm | O99: =ml("tcf_gesl","Gesamtlänge") -> Total length | P99: L | Q99: =L_Sch_2 -> 400 | R99: mm
B100: =ml("ad_nenndu","Nenndurchmesser") -> Nominal diameter | C100: d | D100: =d_schraube -> 8 | E100: mm | O100: =ml("ad_nenndu","Nenndurchmesser") -> Nominal diameter | P100: d | Q100: =d_schraube_2 -> 8 | R100: mm
B101: =ml("ad_auszie","Ausziehparameter") -> Extensible parameter | C101: f 1,k | D101: =Listen!$H$44 -> 13.1 | E101: N/mm² | O101: =ml("ad_auszie","Ausziehparameter") -> Extensible parameter | P101: f 1,k | Q101: =Listen!$H$45 -> 13.1 | R101: N/mm²
B102: =ml("ad_kopfdu","Kopfdurchmesser") -> Screwhead diameter | C102: d k | D102: =dk_schraube -> 10.2 | E102: mm | O102: =ml("ad_kopfdu","Kopfdurchmesser") -> Screwhead diameter | P102: d k | Q102: =dk_schraube_2 -> 10.2 | R102: mm
B103: =ml("ad_kopfdu_","Kopfdurchziehparameter") -> Screwhead pull-through parameter | C103: f head,k | D103: =Listen!$G$44 -> 0 | E103: N/mm² | O103: =ml("ad_kopfdu_","Kopfdurchziehparameter") -> Screwhead pull-through parameter | P103: f head,k | Q103: =Listen!$G$45 -> 0 | R103: N/mm²
A104: =ml("ad_längen","Längen in der Konstruktion mit harter Dämmung") -> Lenght in the construction with hard insulation
B105: =ml("ad_länge ","Länge in Konterlatte") -> Length in counter-batten | C105: ℓ ef,L | D105: =G117 -> 34.64101615 | E105: mm
B106: =ml("ad_gewind","Gewinde in Latte") -> Screw thread in lath | C106: ℓ gew,L | D106: =MAX(0,MIN(G117,G117-$G$125-tf)) ->  | E106: mm
B107: =ml("ad_länge2","Länge in Dämmung") -> Lenght in insulation | C107: ℓ D | D107: =G118 -> 311.7691454 | E107: mm
B108: =ml("ad_länge3","Länge in Unterkonstr.") -> Length in subconstruction | C108: ℓ ef,UK | D108: =G119+tf -> 103.5898385 | E108: mm
B109: =ml("ad_gewind2","Gewinde in UK") -> Screw thread in subconstruction | C109: ℓ gew,UK | D109: =MIN(G124,D108) ->  | E109: mm
A111: =ml("ad_überp","Überprüfung der Geometrie") &" (α ="&TEXT(alpha,"0")&" ± "&TEXT(F115,"0")&"°)" -> Check of the geometry (α =60 ± 5°) | D111: =IF($K$121,"ü","û") -> ü
B112: =IF(K121, ml("ad_wenn1","Die Schrauben haben die richtige Länge."), _xlfn.TEXTJOIN(" ",TRUE,L119,L120,P119,P120)) -> 
A114: =ml("ad_konstr_mind","Konstruktiver Mindestabstand der Windsogsichernden Schrauben") -> Minimum constructive distance between screws against wind suction
B115: Geometrie für Druckfeste Dämmung | E115: =alpha -> 60 | F115: 5
E116: =E115-F115 -> 55 | G116: =E115 -> 60 | H116: =E115+F115 -> 65 | K116: erfüllt | M116: 90
B117: Länge in Konterlatte | D117: ℓ ef,L | E117: =(h_kl*10)/(SIN(E116*PI()/180)) -> 36.62323766 | F117: mm | G117: =(h_kl*10)/(SIN(G116*PI()/180)) -> 34.64101615 | H117: =(h_kl*10)/(SIN(H116*PI()/180)) -> 33.10133757 | I117: mm | M117: =(h_kl*10)/(SIN(M116*PI()/180)) -> 30
B118: Länge in Dämmung | D118: ℓ D | E118: =(vba_dDAE)/SIN(E116*PI()/180) -> 329.609139 | F118: mm | G118: =(vba_dDAE)/SIN(G116*PI()/180) -> 311.7691454 | H118: =(vba_dDAE)/SIN(H116*PI()/180) -> 297.9120381 | I118: mm | M118: =(vba_dDAE)/SIN(M116*PI()/180) -> 270
B119: Länge in Unterkonstr. | D119: ℓ ef,UK | E119: =MAX(vba_Schraube_L-E117-E118,0) -> 83.76762337 | F119: mm | G119: =MAX(vba_Schraube_L-G117-G118,0) -> 103.5898385 | H119: =MAX(vba_Schraube_L-H117-H118,0) -> 118.9866243 | I119: mm | J119: ≥! ℓ min,UK | K119: =MIN(E119:H119)>=$G$122 -> TRUE | L119: =IF(NOT(K119), ml("ad_tooshort1","Die Schrauben zur Dachschubsicherung sind um {0} mm zu kurz!",ROUND(E120,0)), "") ->  | M119: =MAX(vba_Schraube_L_2-M117-M118,0) -> 100 | N119: ≥! ℓ min,UK | O119: =M119>=$G$122 -> TRUE | P119: =IF(NOT(O119),ml("ad_tooshort2","Die Schrauben zur Windsogsicherung sind um {0} mm zu kurz!",ROUND(G122-M119,0)),"") -> 
B120: Fehllänge | E120: =G122-(vba_Schraube_L-E117-E118) -> -35.76762337 | G120: =G122-(vba_Schraube_L-G117-G118) -> -55.58983849 | H120: =G122-(vba_Schraube_L-H117-H118) -> -70.98662431 | J120: ≤! ℓ max,UK | K120: =MAX(E119:H119)<=$G$123 -> TRUE | L120: =IF(NOT(K120),ml("ad_toolong1","Die Schrauben zur Dachschubsicherung sind zu lange!"),"") ->  | N120: ≤! h_sparren | O120: =M119<=h_sparren*10 -> TRUE | P120: =IF(NOT(O120),ml("ad_toolong2","Die Schrauben zur Windsogsicherung sind zu lang"),"") -> 
K121: =AND(K119:K120,O119:O120) -> TRUE
B122: Mindestlänge in UK | D122: ℓ min,UK | G122: =MAX(0,6*vba_Schraube_d) -> 48 | H122: mm
B123: Maximallänge in UK | D123: ℓ max,UK | G123: =h_sparren/SIN(G116*PI()/180)*10 -> 230.9401077 | H123: mm
B124: Gewindelänge | G124: =l_gewinde ->  | H124: mm
B125: Gewindeanfang | G125: =L_Sch-l_gewinde ->  | H125: mm
B126: l eff, UK | G126: =MIN(G124,G119) ->  | H126: mm | M126: Gewindelänge in UK
A127: =ml("ad_length","Längen von Schraube {0} in der Konstruktion mit weicher Dämmung","1") -> Lengths of screw 1 in the construction with soft insulation
B128: =ml("ad_länge ","Länge in Konterlatte") -> Length in counter-batten | C128: ℓ ef,L | D128: =F148 -> 34.64101615 | E128: mm
B129: =ml("ad_gewind","Gewinde in Latte") -> Screw thread in lath | C129: ℓ gew,L | D129: =F149 ->  | E129: mm
B130: =ml("ad_länge2","Länge in Dämmung") -> Lenght in insulation | C130: ℓ D | D130: =F150 -> 311.7691454 | E130: mm
B131: =ml("ad_länge3","Länge in Unterkonstr.") -> Length in subconstruction | C131: ℓ ef,UK | D131: =F151 -> 103.5898385 | E131: mm
B132: =ml("ad_gewind2","Gewinde in UK") -> Screw thread in subconstruction | C132: ℓ gew,UK | D132: =MIN(D131,F155) ->  | E132: mm
A134: =ml("ad_length","Längen von Schraube {0} in der Konstruktion mit weicher Dämmung","2") -> Lengths of screw 2 in the construction with soft insulation
B135: =ml("ad_länge ","Länge in Konterlatte") -> Length in counter-batten | C135: ℓ ef,L | D135: =M148 -> 34.64101615 | E135: mm
B136: =ml("ad_gewind","Gewinde in Latte") -> Screw thread in lath | C136: ℓ gew.,L | D136: =M149 ->  | E136: mm
B137: =ml("ad_länge2","Länge in Dämmung") -> Lenght in insulation | C137: ℓ D | D137: =M150 -> 311.7691454 | E137: mm
B138: =ml("ad_länge3","Länge in Unterkonstr.") -> Length in subconstruction | C138: ℓ ef,UK | D138: =M151 -> 103.5898385 | E138: mm
B139: =ml("ad_gewind2","Gewinde in UK") -> Screw thread in subconstruction | C139: ℓ gew,UK | D139: =MIN(D138,F155) ->  | E139: mm
A141: =ml("ad_überp","Überprüfung der Geometrie") & " (α1 ="&TEXT(alpha_1_weich,"0")&" ± "&TEXT(M146,"0")&"°; α2 ="&TEXT(alpha_2_weich,"0")&" ± "&TEXT(F146,"0")&"°)" -> Check of the geometry (α1 =60 ± 5°; α2 =60 ± 5°) | D141: =IF(IF(index_variante=1,$K$121,$J$153),"ü","û") -> ü
B142: =IF(J153, ml("ad_scorlen","Schraube {0} hat die richtige Länge.","1"), IF(J149,"",ml("250425_a","Die Gewindelänge von Schraube {0} in der Konterlatte ist zu gering","1") &" (" & TEXT(MIN(E149:G149),"0") & " < " & TEXT(F153,"0") & " mm)! ") & IF(AND(J151:J152),"",IF(J151,"",ml("250425_b","Schraube {0} ist um {1} mm zu kurz!","1",TEXT(MAX(0,-(vba_Schraube_L-E148-E150)+F153),"0")))& IF(J152,"",ml("250425_c","Schraube {0} ist um {1} mm zu lang!","2", TEXT(MAX(E151:G151)-F157,"0"))))) -> 
B143: =IF(J153, ml("ad_scorlen","Schraube {0} hat die richtige Länge.","2"), IF(P149,"",ml("250425_a","Die Gewindelänge von Schraube {0} in der Konterlatte ist zu gering","2")&" (" & TEXT(MIN(L149:N149),"0") & " < " & TEXT(F153,"0") & " mm)! ") & IF(AND(P151:P152),"",IF(P151,"",ml("250425_b","Schraube {0} ist um {1} mm zu kurz!","2",TEXT(MAX(0,-(vba_Schraube_L-L148-L150)+F153),"0")))& IF(P152,"",ml("250425_c","Schraube {0} ist um {1} mm zu lang!","2", TEXT(MAX(L151:N151)-F157,"0"))))) -> 
B145: Geometrie für weiche Dämmung | E145: alpha 1 | L145: alpha 2
E146: =alpha_1_weich -> 60 | F146: 5 | L146: =alpha_2_weich -> 60 | M146: 5
E147: =E146-F146 -> 55 | F147: =E146 -> 60 | G147: =E146+F146 -> 65 | J147: erfüllt | L147: =L146-M146 -> 55 | M147: =L146 -> 60 | N147: =L146+M146 -> 65
B148: Länge in Konterlatte | D148: ℓ ef,L | E148: =(h_kl*10)/(SIN(E147*PI()/180)) -> 36.62323766 | F148: =(h_kl*10)/(SIN(F147*PI()/180)) -> 34.64101615 | G148: =(h_kl*10)/(SIN(G147*PI()/180)) -> 33.10133757 | H148: mm | L148: =(h_kl*10)/(SIN(L147*PI()/180)) -> 36.62323766 | M148: =(h_kl*10)/(SIN(M147*PI()/180)) -> 34.64101615 | N148: =(h_kl*10)/(SIN(N147*PI()/180)) -> 33.10133757
B149: Gewinde in K.Latte | D149: ℓ gew.,L | E149: =MAX(0,E148-$F156-tf) ->  | F149: =MAX(0,MIN(F148,F148-$F156-tf)) ->  | G149: =MAX(0,G148-$F156-tf) ->  | H149: mm | I149: ≥! ℓ min,KL | J149: =MIN(E149:G149)>=$F158 ->  | L149: =MAX(0,L148-$F156-tf) ->  | M149: =MAX(0,M148-$F156-tf) ->  | N149: =MAX(0,N148-$F156-tf) ->  | O149: ≥! ℓ min,KL | P149: =MIN(L149:N149)>=$F158 -> 
B150: Länge in Dämmung | D150: ℓ D | E150: =(vba_dDAE)/SIN(E147*PI()/180) -> 329.609139 | F150: =(vba_dDAE)/SIN(F147*PI()/180) -> 311.7691454 | G150: =(vba_dDAE)/SIN(G147*PI()/180) -> 297.9120381 | H150: mm | L150: =(vba_dDAE)/SIN(L147*PI()/180) -> 329.609139 | M150: =(vba_dDAE)/SIN(M147*PI()/180) -> 311.7691454 | N150: =(vba_dDAE)/SIN(N147*PI()/180) -> 297.9120381
B151: Länge in Unterkonstr. | D151: ℓ ef,UK | E151: =MAX(vba_Schraube_L-E148-E150+tf,0) -> 83.76762337 | F151: =MAX(vba_Schraube_L-F148-F150+tf,0) -> 103.5898385 | G151: =MAX(vba_Schraube_L-G148-G150+tf,0) -> 118.9866243 | H151: mm | I151: ≥! ℓ min,UK | J151: =MIN(E151:G151)>=F153 -> TRUE | L151: =MAX(vba_Schraube_L-L148-L150+tf,0) -> 83.76762337 | M151: =MAX(vba_Schraube_L-M148-M150+tf,0) -> 103.5898385 | N151: =MAX(vba_Schraube_L-N148-N150+tf,0) -> 118.9866243 | O151: ≥! ℓ min,UK | P151: =MIN(L151:N151)>=F153 -> TRUE
I152: ≤! ℓ max,UK | J152: =MAX(E151:G151)<=F154 -> TRUE | O152: ≤! ℓ max,UK | P152: =MAX(L151:N151)<=F154 -> TRUE
B153: Mindestlänge in UK | D153: ℓ min,UK | F153: =MAX(60,4*vba_Schraube_d) -> 60 | G153: mm | J153: =AND(J149,J151:J152,P149,P151:P152) -> 
B154: Maximallänge in UK | D154: ℓ max,UK | F154: =h_sparren/SIN(F147*PI()/180)*10 -> 230.9401077 | G154: mm
B155: Gewindelänge | F155: =l_gewinde ->  | G155: mm
B156: Gewindeanfang | F156: =L_Sch-l_gewinde ->  | G156: mm
B157: l eff, UK | F157: =MIN(F155,F151) ->  | G157: mm
B158: Mindesteinschraublänge | D158: ℓ min,KL | F158: =4*vba_Schraube_d -> 32 | G158: mm
C159: e max | D159: 150 | E159: cm
A160: =ml("ad_zusamm","ZUSAMMENFASSUNG:") -> SUMMARY:
B161: =CHOOSE(vba_TypeIndex,'summary hard'!D74,'summary soft'!D44) ->  | C161: =ml("ad_stk","Stk. Schrauben insgesamt") -> Number of screws
B163: =CHOOSE(vba_TypeIndex,MAX('calculation hard'!B56),MAX('calculation soft'!B48,'calculation soft'!B56,'calculation soft'!B62,'calculation soft'!B66)) ->  | C163: =ml("ad_schraube_tragf","Schraubentragfähigkeit ") -> Screw load bearing capacity
B164: =CHOOSE(vba_TypeIndex,'calculation hard'!B91,'calculation soft'!B91) -> 1.011901283 | C164: =ml("ad_bieget_konter","Biegetragfähigkeit Konterlatte") -> Bending resistance restraning lath
B165: =CHOOSE(vba_TypeIndex,'calculation hard'!B96,"-") -> 0.0805092677 | C165: =ml("ad_pressu","Pressung der Dämmung") -> Compression of the insulation
A167: =ml("ad_bedingt_text","Bedingt durch konstruktive Gegebenheiten wie z.B. die Länge der Konterlatten, Lattenstöße, Gauben, Kehlen etc. kann sich die Anzahl der Schrauben um 10% bis 20% gegenüber dem angegebenen Wert erhöhen.") -> Due to structural conditions such as the length of the counter-batten, joints, dormers, grooves etc., the number of screws can increase by 10% to 20% compared to the specified value.

Sheet summary soft (hidden)
A1: =ml("ad_aufdachdaemmung_zusammenfassung","Aufdachdämmsystem - Zusammenfassung") -> Thermal Insulation - Summary
A2: =ml("ad_zusamm_weich","Zusammenfassung für Systeme mit weicher Dämmung") -> Summary for constructions with soft insulation
H3: =Version -> V 26.03.01
A4: =ml("ad_bauvorhaben","Bauvorhaben") -> Project | B4: =IF('Thermal insulation'!B3="","",'Thermal insulation'!B3) -> 
A5: =ml("tc_pos.nr","Pos.Nr.:") -> Pos. No.: | B5: =IF('Thermal insulation'!B4="","",'Thermal insulation'!B4) -> 
A7: =IF(beta=90,ml("ad_dachge2","Geometrie",ml("ad_dachge","Dachgeometrie"))) -> Dimensions
A8: ='Thermal insulation'!B52 -> Shape | D8: ='Thermal insulation'!D52 -> single pitched / flat
A9: ='Thermal insulation'!B56 -> Wall height | C9: b 1 | D9: ='Thermal insulation'!D56 -> 9.8 | E9: m
A10: ='Thermal insulation'!B57 -> Wall length | C10: b 2 | D10: ='Thermal insulation'!D57 -> 12 | E10: m
A11: =Location!B14 -> Battens spacing | C11: b e | D11: =b_e -> 0.6 | E11: m
A12: ='Thermal insulation'!B53 -> Wall | C12: β | D12: =beta -> 90 | E12: °
A13: ='Thermal insulation'!B58 -> Wall area | D13: =D9*D10 -> 117.6 | E13: m2
A15: =ml("ad_befestigunsvariante","Befestigungsvariante") -> Fixing method | D15: =vba_daemmungTyp -> Method 2 - Hard Insulation / one direction of inclination of the screws
A17: =ml("ad_belastung","Belastung") -> Load
A18: =ml("tc_eigeng1_","Eigengewicht") -> Dead load | C18: g 1,k | D18: =gk -> 0.3 | E18: kN/m²
A19: =ml("tc_nutzla3__","Nutzlast") -> Live load | C19: q k | D19: =nk -> 1 | E19: kN/m²
C20: Q k | D20: =Q_k -> 1.5 | E20: kN
A21: =ml("ad_schneelast","Schneelast") -> Snow load | C21: s k | D21: =sk -> 1.6 | E21: kN/m²
A22: =ml("ad_winddruck","Winddruck") -> Wind pressure | C22: w D,k | D22: =wdk -> 0.9840021608 | E22: kN/m²
A23: =ml("ad_windsog","Windsog") -> Wind suction | C23: w S,k | D23: =wsk -> -1.968004322 | E23: kN/m²
A25: =ml("ad_dämmst","Dämmstoff") -> Insulation
A26: =ml("ad_produk","Produkt") -> Product | D26: =vba_daemmstoff -> Soft wood fibre insulation
A27: =ml("ad_dicke","Dicke") -> Thickness | D27: ='Thermal insulation'!D72 -> 250 | E27: mm
A29: =ml("ad_verbindmittel","Verbindungsmittel") -> Connection
A31: =ml("ad_dachsc_windsog","Schubsicherung und Windsogsicherung") -> Shear and wind suction securing
A32: =ml("ad_schrau2","Schraubentyp") -> Screw type | D32: ='Thermal insulation'!B86 -> ESSVE CY-FT 8,0 x 450/427
A33: =ml("ad_schraudim","Schraubendimension") -> Screw dimension | D33: =TEXT(vba_Schraube_d,"0,0")&" x " &TEXT(vba_Schraube_L,"0") -> 8,0 x 450 | E33: mm
A34: =ml("ad_schrau_n","Schraubenneigung") -> Screw inclination | C34: α1 | D34: =alpha_1_weich -> 60 | E34: °
C35: α2 | D35: =alpha_2_weich -> 60 | E35: °
A36: =ml("ad_schrau","Schraubenabstand") -> Screw distance | C36: A | D36: =abstand_a -> 175 | E36: cm
C37: B | D37: =abstand_b -> 5 | E37: cm
A39: =ml("ad_anzahl1","Anzahl der Sparrenachsen") -> No. of member axis | D39: =ROUNDUP(D10/D11,0) -> 20 | E39: =ml("ad_pcs","STK") -> pcs.
A40: =ml("ad_anzahl2","Anzahl der Schrauben je Sparrenachse") -> Screws per member | D40: =ROUNDUP(D9*100/D36*2,0) -> 12 | E40: =IF(beta=90,ml("ad_pcsRafter_2","STK/Traglatten"),ml("ad_pcsRafter","STK/Sparren")) -> pcs/batten
A41: =ml("ad_anzahl3","Anzahl der Schrauben je lfm Sparrenachse") -> Screws per meter member | D41: =D40/D9 -> 1.224489796 | E41: =ml("ad_pcspm","STK/m") -> pcs./m
A42: =ml("ad_anzahl4","Anzahl der Schrauben je m2 Dachfläche") -> Screws per square meter | D42: =D41/D11 -> 2.040816327 | E42: =ml("ad_pcspsm","STK/m²") -> pcs./m²
A44: =ml("ad_schrau3","Schrauben - Gesamtstückzahl") -> Total number of screws | D44: =ROUNDUP(D39*D40,0) -> 240 | E44: =ml("ad_pcs","STK") -> pcs.
A45: =ml("ad_bedingt_text","Bedingt durch konstruktive Gegebenheiten wie z.B. die Länge der Konterlatten, Lattenstöße, Gauben, Kehlen etc. kann sich die Anzahl der Schrauben um 10% bis 20% gegenüber dem angegebenen Wert erhöhen.") -> Due to structural conditions such as the length of the counter-batten, joints, dormers, grooves etc., the number of screws can increase by 10% to 20% compared to the specified value.
A47: =ml("ad_nachwe","Nachweise und Auslastungen") -> Design and utilization
A48: =ml("ad_schraube1","Schraube 1") -> Screw 1 | D48: =MAX('calculation soft'!B48,'calculation soft'!B62) -> 
A49: =ml("ad_schraube2","Schraube 2") -> Screw 2 | D49: =MAX('calculation soft'!B56,'calculation soft'!B66) -> 
A50: =ml("ad_konter_grundl","Konterlatte / Grundlatte") -> Counter-batten | D50: ='calculation soft'!B91 -> 0.1417626076
A62: Dachschub | B62: =TEXT(D42,"0,00")&" "&TEXT(E42,"0")&" "&" e= "&TEXT(D36,"0,00")&" cm" & IF(beta=90,ml("ad_entlangF","entlang der Traglatten"),ml("ad_entlang","entlang der Sparren")) -> 2,04 pcs./m² e= 175,00 cm along the battens

Sheet summary hard
A1: =ml("ad_aufdachdaemmung_zusammenfassung","Aufdachdämmsystem - Zusammenfassung") -> Thermal Insulation - Summary
H2: =Version -> V 26.03.01
A3: =ml("ad_bauvorhaben","Bauvorhaben") -> Project | C3: =IF('Thermal insulation'!B3="","",'Thermal insulation'!B3) -> 
A4: =ml("tc_pos.nr","Pos.Nr.:") -> Pos. No.: | C4: =IF('Thermal insulation'!B4="","",'Thermal insulation'!B4) -> 
A6: =IF(beta=90,ml("ad_dachge2","Geometrie",ml("ad_dachge","Dachgeometrie"))) -> Dimensions
A7: ='Thermal insulation'!B52 -> Shape | D7: ='Thermal insulation'!D52 -> single pitched / flat
A8: ='Thermal insulation'!B56 -> Wall height | C8: b 1 | D8: ='Thermal insulation'!D56 -> 9.8 | E8: m
A9: ='Thermal insulation'!B57 -> Wall length | C9: b 2 | D9: ='Thermal insulation'!D57 -> 12 | E9: m
A10: =Location!B14 -> Battens spacing | C10: b e | D10: =b_e -> 0.6 | E10: m
A11: ='Thermal insulation'!B53 -> Wall | C11: β | D11: =beta -> 90 | E11: °
A12: ='Thermal insulation'!B58 -> Wall area | D12: =D8*D9 -> 117.6 | E12: m2
A14: =ml("ad_befestigunsvariante","Befestigungsvariante") -> Fixing method | D14: =vba_daemmungTyp -> Method 2 - Hard Insulation / one direction of inclination of the screws
A16: =ml("ad_belastung","Belastung") -> Load
A17: =ml("tc_eigeng1_","Eigengewicht") -> Dead load | C17: g 1,k | D17: =gk -> 0.3 | E17: kN/m²
A18: =ml("tc_nutzla3__","Nutzlast") -> Live load | C18: q k | D18: =nk -> 1 | E18: kN/m²
C19: Q k | D19: =Q_k -> 1.5 | E19: kN
A20: =ml("ad_schneelast","Schneelast") -> Snow load | C20: s k | D20: =sk -> 1.6 | E20: kN/m²
A21: =ml("ad_winddruck","Winddruck") -> Wind pressure | C21: w D,k | D21: =wdk -> 0.9840021608 | E21: kN/m²
A22: =ml("ad_windsog","Windsog") -> Wind suction | C22: w S,k | D22: =wsk -> -1.968004322 | E22: kN/m²
A24: =ml("ad_dämmst","Dämmstoff") -> Insulation
A25: =ml("ad_produk","Produkt") -> Product | D25: =vba_daemmstoff -> Soft wood fibre insulation
A26: =ml("ad_dicke","Dicke") -> Thickness | D26: ='Thermal insulation'!D72 -> 250 | E26: mm
A28: =ml("ad_verbindmittel","Verbindungsmittel") -> Connection
A30: =ml("ad_dachsc","Dachschubsicherung") -> Shear securing
A31: =ml("ad_schrau2","Schraubentyp") -> Screw type | D31: =vba_Screw -> ESSVE CY-FT 8,0 x 450/427
A32: =ml("ad_schraudim","Schraubendimension") -> Screw dimension | D32: =TEXT(vba_Schraube_d,"0,0")&" x " &TEXT(vba_Schraube_L,"0") -> 8,0 x 450 | E32: mm
A33: =ml("ad_schrau_n","Schraubenneigung") -> Screw inclination | C33: α | D33: =alpha -> 60 | E33: °
A34: =ml("ad_schrau","Schraubenabstand") -> Screw distance | C34: A | D34: =abstand_a -> 175 | E34: cm
A36: =ml("ad_anzahl1","Anzahl der Sparrenachsen") -> No. of member axis | D36: =ROUNDUP(D9/D10,0) -> 20 | E36: =ml("ad_pcs","STK") -> pcs.
A37: =ml("ad_anzahl2","Anzahl der Schrauben je Sparrenachse") -> Screws per member | D37: =ROUNDUP(D8*100/D34,0) -> 6 | E37: =IF(beta=90,ml("ad_pcsRafter_2","STK/Traglatten"),ml("ad_pcsRafter","STK/Sparren")) -> pcs/batten
A38: =ml("ad_anzahl3","Anzahl der Schrauben je lfm Sparrenachse") -> Screws per meter member | D38: =D37/D8 -> 0.612244898 | E38: =ml("ad_pcspm","STK/m") -> pcs./m
A39: =ml("ad_anzahl4","Anzahl der Schrauben je m2 Dachfläche") -> Screws per square meter | D39: =D38/D10 -> 1.020408163 | E39: =ml("ad_pcspsm","STK/m²") -> pcs./m²
A41: =ml("ad_schrau4","Schraubenstückzahl") -> Nubmer of screws | D41: =ROUNDUP(D36*D37,0) -> 120 | E41: =ml("ad_pcs","STK") -> pcs.
A43: =ml("ad_windso","Windsogsicherung") -> Wind suction securing
A44: =ml("ad_schrau2","Schraubentyp") -> Screw type | D44: =vba_Screw_2 -> Essve C-PT 8,0 x 300/100
A45: =ml("ad_schraudim","Schraubendimension") -> Screw dimension | D45: =TEXT(vba_Schraube_d_2,"0,0")&" x " &TEXT(vba_Schraube_L_2,"0") -> 8,0 x 400 | E45: mm
A46: =ml("ad_schrau_n","Schraubenneigung") -> Screw inclination | D46: =alpha_1 -> 90 | E46: °
A48: =ml("ad_bereic1","Bereich H,I") -> Area H, I
A49: =ml("ad_schraubenabstand1","Schraubenabstand Bereich H, I") -> Screw distance area H, I | D49: =e_sog_h ->  | E49: cm | F49: =IF(e_max<D49,"→ e max = " & e_max & " cm","") -> 
A50: =ml("ad_anzahl5","Schrauben je lfm Sparren") -> Screws per meter | D50: =1/(MIN(MIN(e_max,D49)/100)) ->  | E50: =ml("ad_pcspm","STK/m") -> pcs./m
A51: =ml("ad_anzahl4.1","Schrauben je m2 Dachfläche") -> Screws per sqm [m²] | D51: =D50/$D$10 ->  | E51: =ml("ad_pcspsm","STK/m²") -> pcs./m²
A52: =ml("ad_schrau4","Schraubenstückzahl") -> Nubmer of screws | D52: =D51*Fläche_H ->  | E52: =ml("ad_pcs","STK") -> pcs.
A54: =ml("ad_bereic2","Bereich G") -> Area G
A55: =ml("ad_schraubenabstand2","Schraubenabstand Bereich G") -> Screw distance area G | D55: =e_sog_g ->  | E55: cm | F55: =IF(e_max<D55,"→ e max = " & e_max & " cm","") -> 
A56: =ml("ad_anzahl5","Schrauben je lfm Sparren") -> Screws per meter | D56: =1/(MIN(e_max,D55)/100) ->  | E56: =ml("ad_pcspm","STK/m") -> pcs./m
A57: =ml("ad_anzahl4.1","Schrauben je m2 Dachfläche") -> Screws per sqm [m²] | D57: =D56/$D$10 ->  | E57: =ml("ad_pcspsm","STK/m²") -> pcs./m²
A58: =ml("ad_schrau4","Schraubenstückzahl") -> Nubmer of screws | D58: =D57*Fläche_G ->  | E58: =ml("ad_pcs","STK") -> pcs.
A60: =ml("ad_bereic3","Bereich F") -> Area F
A61: =ml("ad_schraubenabstand3","Schraubenabstand Bereich F") -> Screw distance area F | D61: =e_sog_f ->  | E61: cm | F61: =IF(e_max<D61,"→ e max = " & e_max & " cm","") -> 
A62: =ml("ad_anzahl5","Schrauben je lfm Sparren") -> Screws per meter | D62: =1/(MIN(e_max,D61)/100) ->  | E62: =ml("ad_pcspm","STK/m") -> pcs./m
A63: =ml("ad_anzahl4.1","Schrauben je m2 Dachfläche") -> Screws per sqm [m²] | D63: =D62/$D$10 ->  | E63: =ml("ad_pcspsm","STK/m²") -> pcs./m²
A64: =ml("ad_schrau4","Schraubenstückzahl") -> Nubmer of screws | D64: =D63*Fläche_F ->  | E64: =ml("ad_pcs","STK") -> pcs.
A66: =ml("ad_bereicJ","Bereich J ( nur Satteldach)") -> Area J (double pitched only)
A67: =ml("ad_schraubenabstand4","Schraubenabstand Bereich J") -> Screw distance area J | D67: =IF(index_Dachform=1,e_sog_j,"-") -> - | E67: cm | F67: =IF(e_max<D67,"→ e max = " & e_max & " cm","") -> → e max = 150 cm
A68: =ml("ad_anzahl5","Schrauben je lfm Sparren") -> Screws per meter | D68: =IF(index_Dachform=1,1/(MIN(e_max,D67)/100),"-") -> - | E68: =ml("ad_pcspm","STK/m") -> pcs./m
A69: =ml("ad_anzahl4.1","Schrauben je m2 Dachfläche") -> Screws per sqm [m²] | D69: =IF(index_Dachform=1,D68/$D$10,"-") -> - | E69: =ml("ad_pcspsm","STK/m²") -> pcs./m²
A70: =ml("ad_schrau4","Schraubenstückzahl") -> Nubmer of screws | D70: =IF(index_Dachform=1,D69*Fläche_J,"-") -> - | E70: =ml("ad_pcs","STK") -> pcs.
A72: =ml("ad_schrau_sog2","Schraubenstückzahl Windsog") -> Number of screws wind suction | D72: =ROUNDUP(D52+D58+D64+IF(index_Dachform=1,D70,0),0) ->  | E72: =ml("ad_pcs","STK") -> pcs.
A74: =ml("ad_schrau3","Schrauben - Gesamtstückzahl") -> Total number of screws | D74: =D41+D72 ->  | E74: =ml("ad_pcs","STK") -> pcs.
A75: =ml("ad_bedingt_text","Bedingt durch konstruktive Gegebenheiten wie z.B. die Länge der Konterlatten, Lattenstöße, Gauben, Kehlen etc. kann sich die Anzahl der Schrauben um 10% bis 20% gegenüber dem angegebenen Wert erhöhen.") -> Due to structural conditions such as the length of the counter-batten, joints, dormers, grooves etc., the number of screws can increase by 10% to 20% compared to the specified value.
A77: =ml("ad_bereic1","Bereich H,I") -> Area H, I | B77: =TEXT(D51,"0,00")&" "&E51& " e=" & MIN(D49,e_max)&" cm " & IF(beta=90,ml("ad_entlangF","entlang der Traglatten"),ml("ad_entlang","entlang der Sparren")) -> 
A78: =ml("ad_bereic2","Bereich G") -> Area G | B78: =TEXT(D57,"0,00")&" "&E57& " e=" & MIN(D55,e_max)&" cm " & IF(beta=90,ml("ad_entlangF","entlang der Traglatten"),ml("ad_entlang","entlang der Sparren")) -> 
A79: =ml("ad_bereic3","Bereich F") -> Area F | B79: =TEXT(D63,"0,00")&" "&E63& " e=" & MIN(D61,e_max)&" cm " & IF(beta=90,ml("ad_entlangF","entlang der Traglatten"),ml("ad_entlang","entlang der Sparren")) -> 
A80: =ml("ad_bereic","Bereich J") -> Area J
A81: =ml("ad_dachscu","Dachschub") -> Roof shear | B81: =TEXT(D39,"0,00")&" "&TEXT(E39,"0")&" "&" e= "&TEXT(D34,"0,00")&" cm"& IF(beta=90,ml("ad_entlangF","entlang der Traglatten"),ml("ad_entlang","entlang der Sparren")) -> 1,02 pcs./m² e= 175,00 cm along the battens
A83: =ml("ad_nachwe","Nachweise und Auslastungen") -> Design and utilization
A84: =ml("ad_schrau_schub","Schrauben Dachschub") -> Screws roof shear | D84: ='calculation hard'!B56 -> 
A85: =ml("ad_schrau_sog","Schrauben Windsog") -> Screws wind suction | D85: ='calculation hard'!B70 -> 
A86: =ml("ad_konter_grundl","Konterlatte / Grundlatte") -> Counter-batten | D86: ='calculation hard'!B91 -> 1.011901283
A87: =ml("ad_dämmun","Dämmung") -> Insulation | D87: ='calculation hard'!B96 -> 0.0805092677

Sheet calculation soft (hidden)
A1: =ml("ad_aufdac","Aufdachdämmsystem: Berechnungsdetails und Nachweise") -> Thermal Insulation system: Calculation Details and Design
A2: =ml("ad_auf gr","auf Grundlage von {2} mit {3}", "Z-9.1-509","ETA-12/0373","EN 1995-1-1","B 1995-1-1") -> based on ETA-12/0373 and EN 1995-1-1 with B 1995-1-1
K3: =Version -> V 26.03.01
A4: =ml("ad_bauvorhaben","Bauvorhaben") -> Project | B4: =IF('Thermal insulation'!B4="","",'Thermal insulation'!B4) -> 
A5: =ml("tc_pos.nr","Pos.Nr.:") -> Pos. No.: | B5: =IF('Thermal insulation'!B5="","",'Thermal insulation'!B5) -> 
A7: =ml("tc_lastzu","Lastzusammenstellung - Lastfallkombinationen") -> Load combinations
A9: =ml("tc_berech","Berechnungswerte für Eigengewicht") -> Calculation values of dead loads
D11: =ml("ad_rohdic","Rohdichte") -> Bulk Density | E11: 350 | F11: kg/m3
F13: [KN/m] | G13: ​ɣ​ | H13: kmod | I13: ψ0
A14: ='Thermal insulation'!$F$39 -> Covering and lathing | E14: g1 k | F14: =gk*b_e -> 0.18
A15: =ml("ad_dämmun1","Dämmung + Konterlatte/Grundlatte") -> Insulation + Counter-Batten | E15: g2 k | F15: =(vba_g2k+vba_g3k)*b_e -> 0.05025
A16: =ml("tc_ständi2_","Ständige Lasten Gesamt") -> Total permanent loads | E16: g k | F16: =SUM(F14:F15) -> 0.23025 | G16: 1,35/ 0,9 | H16: 0.6 | I16: -
A17: =ml("ad_nutzla","Nutzlast ") -> Live load | E17: n k | F17: =nk*b_e -> 0.6 | G17: 1.5 | H17: 0.9 | I17: 0
A18: =ml("ad_schneelast","Schneelast") -> Snow load | E18: s k | F18: =sk*b_e -> 0.96 | G18: 1.5 | H18: =IF(index_sHöhe=1,0.8,0.9) -> 0.9 | I18: =IF(index_sHöhe=1,0.7,0.5) -> 0.5
A19: =ml("ad_winddruck","Winddruck") -> Wind pressure | E19: w D,k | F19: =wdk*b_e -> 0.5904012965 | G19: 1.5 | H19: 1 | I19: 0.6
A20: =ml("ad_windsog","Windsog") -> Wind suction | E20: w S,k | F20: =wsk*b_e -> -1.180802593 | G20: 1.5 | H20: 1 | I20: 0.6
A22: =ml("ad_maßgeb","maßgebende Kombination - Lasten vertikal bezogen auf die schräge Länge") -> Leading combination - loads vertical based on the oblique length
E24: =INDEX(data_lk_schräg,index_lk_schräg,1) -> g
D25: k mod | E25: =INDEX(data_lk_schräg,index_lk_schräg,6) -> 0.6
D26: q d | E26: =INDEX(data_lk_schräg,index_lk_schräg,7) -> 0.3108375 | F26: KN/m
A28: =ml("ad_maßgeb1","maßgebende Kombination - Lasten normal zur Dachfläche (Windsog)") -> Leading combination - loads normal to the roof surface (wind suction)
E30: =INDEX(data_lk_schräg_sog,index_lk_schräg_sog,1) -> g2+wS
D31: k mod | E31: =INDEX(data_lk_sog,index_lk_sog,6) -> 1
D32: q d ⏊ | E32: =INDEX(data_lk_schräg_sog,index_lk_schräg_sog,7) -> -1.771203889 | F32: KN/m
A34: =ml("ad_nachweis","NACHWEISFÜHRUNG") -> DESIGN CALCULATION
A36: =ml("ad_schrau5","Schraubenabstände") -> Screw distances
D37: A | E37: =abstand_a -> 175 | F37: cm
D38: B | E38: =abstand_b -> 5 | F38: cm
D39: =ml("ad_?? m,v","ɣ​ m,Verbindungen") -> ɣ​ m,connections | E39: =cv("tc_gamM_V",1.3,TRUE) -> 1.3 | F39: [EE]
A41: =ml("ad_schrau_","Schraubentragfähigkeit für Dachlasten") -> Screw load bearing capacity for roof loads
A43: ="Schraube 1 (" & IF(E48>=0,"Zug","Druck")&")" -> Schraube 1 (Druck)
A45: =IF(E48>0,"Schraubenzugtragfähigkeit","Schraubendrucktragfähigkeit") -> Schraubendrucktragfähigkeit
H46: =IF(E48>0,"","R ki,d") -> R ki,d | I46: =IF(E48>0, "", R_ki_d_1) ->  | J46: =IF(E48>0,"","kN") -> kN | K46: =IF(E48>0,"","Knicken der Schraube") -> Knicken der Schraube | L46: =IF(E48<0,ml("ad_bemess","Bemessungswerte der Tragfähigkeit der Schrauben aud Ausknicken Rki,d in Abhängigkeit von der freien Länge L der Schrauben zwischen den Holzteilen nach Tabelle 1 der allgmeinen bauaufsichtlichen Zulassung Z-9.1-509"),"") -> Design values of the load-bearing capacity of the screws against buckling Rki,d as a function of the free length L of the screws between the timber parts in accordance with Table 1 of the general technical approval Z-9.1-509
H47: =IF(E48>0,"","L") -> L | I47: =IF(E48>0, "", L_s_dä_druck) -> 311.7691454 | J47: =IF(E48>0,"","mm") -> mm | K47: =IF(E48>0,"","freie Länge") -> freie Länge
B48: =IF(E48<0,ABS(E48)/MIN(I46,I48),ABS(E48)/I48) ->  | D48: S 1,d | E48: =N_Schraube_1 -> -0.5595075 | F48: KN | H48: R ax,d | I48: =MIN(f_1_k_weich_druck*vba_Schraube_d*l_ef_L_druck,f_1_k_weich_druck*vba_Schraube_d*l_ef_UK_druck)/1000*kmod_schräg/1.3 ->  | J48: KN | K48: =IF(E48>0,"Ausziehen Gewinde","Eindrücken Gewinde") -> Eindrücken Gewinde
H49: f ax,α,k | I49: =f_axka(vba_Schraube_fhk,alpha_1_weich,roh_holz) ->  | J49: N/mm2 | K49: =ml("ad_auszie","Ausziehparameter") -> Extensible parameter
A51: ="Schraube 2 (" & IF(E56>=0,"Zug","Druck")&")" -> Schraube 2 (Zug)
A53: =IF(E56>0,"Schraubenzugtragfähigkeit","Schraubendrucktragfähigkeit") -> Schraubenzugtragfähigkeit
H54: =IF(E56>0,"","R ki,d") ->  | I54: =IF(E56>0, "", R_ki_d_2) ->  | J54: =IF(E56>0,"","kN") ->  | K54: =IF(E56>0,"",ml("ad_knicke","Knicken der Schraube")) ->  | L54: =IF(E56<0,"Bemessungswerte der Tragfähigkeit der Schrauben aud Ausknicken Rki,d in Abhängigkeit von der freien Länge L der Schrauben zwischen den Holzteilen nach Tabelle 1 der allgmeinen bauaufsichtlichen Zulassung Z-9.1-509","") -> 
H55: =IF(E56>0,"","L") ->  | I55: =IF(E56>0, "", L_s_dä_zug) ->  | J55: =IF(E56>0,"","mm") ->  | K55: =IF(E56>0,"",ml("ad_freie ","freie Länge")) -> 
B56: =IF(E56<0,ABS(E56)/MIN(I54,I56),ABS(E56)/I56) ->  | D56: S 2,d | E56: =N_Schraube_2 -> 0.5595075 | F56: KN | H56: R ax,d | I56: =MIN(f_1_k_weich_zug*vba_Schraube_d*l_ef_l_zug,f_1_k_weich_zug*vba_Schraube_d*l_ef_UK_zug)/1000*kmod_schräg/1.3 ->  | J56: KN | K56: =IF(E56>0,ml("ad_auszie3","Ausziehen Gewinde"),ml("ad_eindrü","Eindrücken Gewinde")) -> thread pull out
H57: f ax,α,k | I57: =f_axka(vba_Schraube_fhk,alpha_2_weich,roh_holz) ->  | J57: N/mm2 | K57: =ml("ad_auszie","Ausziehparameter") -> Extensible parameter
A59: =ml("ad_windss12","Windsogsicherung durch die Schrauben 1 und 2") -> Wind suction protection with screws 1 and 2
H60: =IF(E62>0,"","R ki,d") -> R ki,d | I60: =IF(E62>0, "", R_ki_d_1) ->  | J60: =IF(E62>0,"","kN") -> kN | K60: =IF(E62>0,"","Knicken der Schraube") -> Knicken der Schraube
A61: =ml("ad_schraun","Schraube {0}","1") -> Screw 1 | H61: =IF(E62>0,"","L") -> L | I61: =IF(E62>0, "", L_s_dä_druck) -> 311.7691454 | J61: =IF(E62>0,"","mm") -> mm | K61: =IF(E62>0,"","freie Länge") -> freie Länge
B62: =IF(E62<0,ABS(E62)/MIN(I60,I62),ABS(E62)/I62) ->  | D62: S 1,ws,d | E62: =N_Schraube_1_ws -> -0.081405 | F62: KN | H62: R ax,d | I62: =MIN(f_1_k_weich_druck*vba_Schraube_d*l_ef_L_druck,f_1_k_weich_druck*vba_Schraube_d*l_ef_UK_druck)/1000*kmod_schräg/1.3 ->  | J62: KN | K62: =IF(E62>0,ml("ad_auszie3","Ausziehen Gewinde"),ml("ad_eindrü","Eindrücken Gewinde")) -> thread press-in
H63: f ax,α,k | I63: =f_axka(vba_Schraube_fhk,alpha_1_weich,roh_holz) ->  | J63: N/mm2 | K63: =ml("ad_auszie","Ausziehparameter") -> Extensible parameter
A65: =ml("ad_schraun","Schraube {0}","2") -> Screw 2
B66: =E66/I66 ->  | D66: S 2,ws,d | E66: =N_Schraube_2_ws -> 0.081405 | F66: KN | H66: R ax,d | I66: =MIN(f_1_k_weich_zug*vba_Schraube_d*l_ef_l_zug,f_1_k_weich_zug*vba_Schraube_d*l_ef_UK_zug)/1000*kmod_schräg/1.3 ->  | J66: KN | K66: =IF(E66>0,ml("ad_auszie3","Ausziehen Gewinde"),ml("ad_eindrü","Eindrücken Gewinde")) -> thread pull out
H67: f ax,α,k | I67: =f_axka(vba_Schraube_fhk,alpha_2_weich,roh_holz) ->  | J67: N/mm2 | K67: =ml("ad_auszie","Ausziehparameter") -> Extensible parameter
A69: =ml("ad_biegeb","Biegebeanspruchung der Konterlatten / Grundlatten") -> Bending stress restraning lath
A71: =ml("ad_unendl","Unendlicher Durchlaufträger über zwei Felder") -> Infinite continuous beam over two fields
A73: =ml("ad_einwir","Einwirkung") -> Action | D73: =IF(M_max_schräg>=M_max_schräg_ws,"q d","q d ⏊") -> q d | E73: =IF(M_max_schräg>=M_max_schräg_ws,qd_schräg,qd_schräg_sog) -> 0.3108375 | F73: KN/m | L73: =ml("tc_maßgeb","maßgebende Kombination") -> Decisive combination
A75: =ml("ad_system","System") -> System | D75: B | E75: =abstand_b -> 5 | F75: cm
D76: A | E76: =abstand_a -> 175 | F76: cm
D78: α 1 | E78: =alpha_1_weich -> 60 | F78: °
D79: α 2 | E79: =alpha_2_weich -> 60 | F79: °
A81: =ml("ad_moment","Momente") -> Moments | D81: M A,d | E81: =IF(M_max_schräg>=M_max_schräg_ws,INDEX(data_M_KL,1,2),INDEX(data_M_KL_wsog,1,2)) -> 2.564598714e-18 | F81: KNm
D82: M B,d | E82: =IF(M_max_schräg>=M_max_schräg_ws,INDEX(data_M_KL,2,2),INDEX(data_M_KL_wsog,2,2)) -> -0.01177720125 | F82: KNm
D83: M C,d | E83: =IF(M_max_schräg>=M_max_schräg_ws,INDEX(data_M_KL,3,2),INDEX(data_M_KL_wsog,3,2)) -> 0.01177720125 | F83: KNm
D84: M D,d | E84: =IF(M_max_schräg>=M_max_schräg_ws,INDEX(data_M_KL,4,2),INDEX(data_M_KL_wsog,4,2)) -> 2.564598714e-18 | F84: KNm
A86: =ml("ad_konter","Konterlatten / Grundlatten") -> Counter-batten
A87: =ml("ad_festig","Festigkeitsklasse") -> Strength class | E87: =Fest_KL -> C24
D88: b/ h | E88: =TEXT(b_kl,"0") & " / " & TEXT(h_kl,"0") -> 5 / 3 | F88: cm
D89: W y | E89: =(b_kl*h_kl^2)/6 -> 7.5 | F89: cm3
B91: =E91/I91 -> 0.1417626076 | D91: σ m,d | E91: =MAX(ABS(E81),ABS(E82),ABS(E83),ABS(E84))*100/E89 -> 0.15702935 | F91: KN/cm2 | H91: f m,d | I91: =(fmk/10)*IF(M_max_schräg>=M_max_schräg_ws,kmod_schräg,E31)/1.3 -> 1.107692308 | J91: KN/cm2

Sheet calculation hard
A1: =ml("ad_aufdac","Aufdachdämmsystem: Berechnungsdetails und Nachweise") -> Thermal Insulation system: Calculation Details and Design
A2: =ml("ad_bem2","auf Grundlage von {1} und {2} mit {3}","Z-9.1-509","ETA-12/373","EN 1995-1-1","B 1995-1-1") -> based on ETA-12/373 and EN 1995-1-1 with B 1995-1-1
K3: =Version -> V 26.03.01
A4: =ml("ad_bauvorhaben","Bauvorhaben") -> Project | B4: =IF('Thermal insulation'!B4="","",'Thermal insulation'!B4) -> 
A5: =ml("tc_pos.nr","Pos.Nr.:") -> Pos. No.: | B5: =IF('Thermal insulation'!B5="","",'Thermal insulation'!B5) -> 
A7: =ml("tc_lastzu","Lastzusammenstellung - Lastfallkombinationen") -> Load combinations
A9: =ml("tc_berech","Berechnungswerte für Eigengewicht") -> Calculation values of dead loads
D11: =ml("ad_rohdic","Rohdichte") -> Bulk Density | E11: 350 | F11: kg/m3
F13: [KN/m] | G13: ​ɣ​ | H13: kmod | I13: ψ0
A14: ='Thermal insulation'!$F$39 -> Covering and lathing | E14: g1 k | F14: =gk*b_e -> 0.18
A15: =ml("ad_dämmun1","Dämmung + Konterlatte") -> Insulation + Counter-Batten | E15: g2 k | F15: =(vba_g2k+vba_g3k)*b_e -> 0.05025
A16: =ml("tc_ständi2_","Ständige Lasten Gesamt") -> Total permanent loads | E16: g k | F16: =SUM(F14:F15) -> 0.23025 | G16: 1,35/ 0,9 | H16: 0.6 | I16: - | J16: =ml("ad_schräg","schräg") -> oblique
A17: =ml("ad_nutzla","Nutzlast ") -> Live load | E17: n k | F17: =nk*b_e -> 0.6 | G17: 1.5 | H17: 0.9 | I17: 0 | J17: =ml("ad_horiz.","horiz.proj.") -> horiz. Proj.
A18: =ml("ad_schneelast","Schneelast") -> Snow load | E18: s k | F18: =sk*b_e -> 0.96 | G18: 1.5 | H18: =IF(index_sHöhe=1,0.8,0.9) -> 0.9 | I18: =IF(index_sHöhe=1,0.7,0.5) -> 0.5 | J18: =ml("ad_horiz.","horiz.proj.") -> horiz. Proj.
A19: =ml("ad_winddruck","Winddruck") -> Wind pressure | E19: w D,k | F19: =wdk*b_e -> 0.5904012965 | G19: 1.5 | H19: 1 | I19: 0.6 | J19: =ml("ad_normal","normal") -> normal
A20: =ml("ad_windsog","Windsog") -> Wind suction | E20: w S,k | F20: =wsk*b_e -> -1.180802593 | G20: 1.5 | H20: 1 | I20: 0.6 | J20: =ml("ad_normal","normal") -> normal
A22: =ml("tc_maßgeb","maßgebende Kombination") -> Decisive combination
A23: =ml("ad_lasten1","Lasten parallel zur Dachfläche (Dachschub zur Dimensionierung der geneigten Schrauben)") -> Loads parallel to the roof surface (roof shear forces for dimensioning the inclined screws) | L23: =ml("ad_last_text","Lastaufteilung für Bauteile geneigter Dachflächen nach") & " Neuhaus: Ingenieurholzbau, 3. Auflage, S.181 (Tab. 9.5)" -> Distribution of loads for inclinated roof surfaces according to Neuhaus: Ingenieurholzbau, 3. Auflage, S.181 (Tab. 9.5)
E25: =INDEX(data_lk_schub,index_lk_schub,1) -> g
D26: k mod | E26: =INDEX(data_lk_schub,index_lk_schub,6) -> 0.6 | H26: NAT
D28: q d // | E28: =INDEX(data_lk_schub,index_lk_schub,7) -> 0.3108375 | F28: KN/m
A30: =ml("tc_maßgeb","maßgebende Kombination") -> Decisive combination
A31: =ml("ad_lasten2","Lasten normal zur Dachfläche (Windsog zur Dimensionierung der rechtwinkelig zur Dachfläche angeordneten Zugschrauben)") -> Loads normal to the roof surface (wind suction for dimensioning the screws with tension force arranged with an right angle to the roof surface)
E33: =INDEX(data_lk_sog,index_lk_sog,1) -> g2+wS
D34: k mod | E34: =INDEX(data_lk_sog,index_lk_sog,6) -> 1 | H34: NAT
D36: q d ⏊ | E36: =INDEX(data_lk_sog,index_lk_sog,7) -> -1.771203889 | F36: KN/m
A38: =ml("tc_maßgeb","maßgebende Kombination") -> Decisive combination
A39: =ml("ad_lasten3"," Lasten normal zur Dachfläche (Druck zur Dimensionierung von Konterlattung und Dämmung)") -> Loads normal to the surface (Pressure for dimensioning counter-battening and insulation)
E41: =INDEX(data_lk_druck,index_lk_druck,1) -> g+wD
D42: k mod | E42: =INDEX(data_lk_druck,index_lk_druck,6) -> 1 | H42: NAT
D44: q d ⏊ | E44: =INDEX(data_lk_druck,index_lk_druck,7) -> 0.8856019447 | F44: KN/m
A47: =ml("ad_nachweis","NACHWEISFÜHRUNG") -> DESIGN CALCULATION
A49: =ml("ad_schrau","Schraubenabstand") -> Screw distance
D50: A | E50: =abstand_a -> 175 | F50: cm
D52: =ml("ad_?? m,v","ɣ​ m,Verbindungen") -> ɣ​ m,connections | E52: =cv("tc_gamM_V",1.3,TRUE) -> 1.3 | F52: [EE]
D53: ​​
A54: =ml("ad_auszie2","Ausziehwiderstand") -> Extensible resistance | H54: =vba_Screw -> ESSVE CY-FT 8,0 x 450/427
B56: =E56/I56 ->  | D56: S ax,d | E56: =qd_schub*(abstand_a/100)/COS(alpha*PI()/180) -> 1.08793125 | F56: KN | H56: R ax,d | I56: =MIN(f1_k*vba_Schraube_d*l_ef_Uk*k_1*k_2,MAX(f2_k*vba_Schraube_dk^2,f1_k*l_ef_L*vba_Schraube_d))*kmod_schub/$E$52/1000 ->  | J56: KN | K56: =ml("ad_auszie2","Ausziehwiderstand") -> Extensible resistance
H58: f ax,α,k | I58: =f_axka(vba_Schraube_fhk,alpha,roh_holz) ->  | J58: N/mm2 | K58: =ml("ad_auszie","Ausziehparameter") -> Extensible parameter
H59: f head,k | I59: =Listen!$G$44 -> 0 | J59: N/mm2 | K59: =ml("ad_kopfdu2","Kopfdurchziehfestigkeit") -> Screwhead pull-through strength
H60: k1 | I60: =MIN(1,220/(vba_dDAE)) -> 0.8148148148 | J60: [-] | K60: =ml("ad_beiwer","Beiwert ") -> additional Value
H61: k2 | I61: =MIN(1,(vba_sig10/0.12)) -> 1 | J61: [-] | K61: =ml("ad_beiwer","Beiwert ") -> additional Value
A63: =ml("ad_windso","Windsogsicherung") -> Wind suction securing
A65: =ml("ad_windso2","Windsogsicherung über Schrauben rechtwinkelig zur Dachfläche") -> Wind suction securing through screws rectangular to the roof surface | H65: =vba_Screw_2 -> Essve C-PT 8,0 x 300/100
A66: =ml("ad_erford","Erforderlicher Schraubenabstand") -> Required distance between screws
D67: =ml("ad_e sog,","e sog,erf.") -> e suc,nec. | E67: =ROUNDDOWN(R_ax_sog/qd_ws*-1*100,0) ->  | F67: cm
A68: =ml("ad_schrau_n","Schraubenneigung") -> Screw inclination | D68: α 1 | E68: 90 | F68: °
H69: f ax,α1,k | I69: =f_axka(vba_Schraube_fhk_2,alpha_1,roh_holz) ->  | J69: N/mm2
B70: =IF(R_ax_sog=0,9.99,ABS(E70/R_ax_sog)) ->  | D70: W s,d | E70: =qd_ws*e_sog/100 ->  | F70: KN | H70: R ax,d | I70: =(MIN(I69*vba_Schraube_d_2*l_ef_Uk*k_1*k_2,MAX(f2_k*vba_Schraube_dk_2^2,f1_k*l_ef_L*10*vba_Schraube_d_2)))*kmod_ws/$E$52/1000 ->  | J70: KN | K70: =CHOOSE(IF(R_ax_sog=I69*vba_Schraube_d*l_ef_Uk*k_1*k_2*kmod_ws/$E$52/1000,1, IF(R_ax_sog=f2_k*vba_Schraube_dk^2*kmod_ws/$E$52/1000,2, IF(R_ax_sog=f1_k*l_ef_L*10*vba_Schraube_d*kmod_ws/$E$52/1000,3,4))), ml("ad_ausunt","Ausziehen Unterkonstruktion"), ml("ad_kopf","Kopfdurchziehen"), ml("ad_auskon","Ausziehen Konterlatte"),"") -> 
A72: =ml("ad_bieges","Biegespannung der Konterlatten / Grundlatten") -> Flexural stress in the counter-battening and lathing
A74: =ml("ad_konter_grundl","Konterlatte / Grundlatte") -> Counter-batten
A75: =ml("ad_festig","Festigkeitsklasse") -> Strength class | E75: =Fest_KL -> C24
D76: E 0,mean | E76: =E_0_mean -> 11000 | F76: N/mm2
D77: b/ h | E77: =TEXT(b_kl,"0") & " / " & TEXT(h_kl,"0") -> 5 / 3 | F77: cm
D78: I y | E78: =(b_kl*h_kl^3)/12 -> 11.25 | F78: cm4
D79: W y | E79: =(b_kl*h_kl^2)/6 -> 7.5 | F79: cm3
A81: =ml("ad_bettun","Bettung durch den Dämmstoff") -> Bedding caused from the insulation
A82: =ml("ad_dicke","Dicke") -> Thickness | D82: d Dä | E82: =vba_dDAE2 -> 250 | F82: mm
A83: =ml("ad_e-modu","E-Modul") -> Young´s modulus | D83: E D,c,mean | E83: =vba_EDCMean -> 2.8 | F83: N/mm2
A85: =ml("ad_bettun1","Bettungsbreite") -> Bedding variety | D85: b bet | E85: =b_kl+vba_dDAE2/20 -> 17.5 | F85: cm
A86: =ml("ad_bettun2","Bettungsziffer") -> Subgrade moduli | D86: k | E86: =vba_EDCMean/vba_dDAE2 -> 0.0112 | F86: N/mm3
A87: =ml("ad_char. ","Char. Länge") -> Char. Length | D87: l char | E87: =((4*(E_KL/10)*I_y)/(k_dä*b_bet))^(1/4) -> 22.41750534 | F87: cm
D88: Q k | E88: =Q_k -> 1.5 | F88: kN
A89: =ml("ad_biegem","Biegemoment") -> Flexural moment | D89: M d | E89: =Q_k*1.5*l_char/4 -> 12.60984675 | F89: KNcm
B91: =E91/J91 -> 1.011901283 | D91: σ m,d | E91: =M_d/W_y -> 1.681312901 | F91: KN/cm2 | H91: f m,d | J91: =(fmk/10)*0.9/1.3 -> 1.661538462 | K91: KN/cm2
A93: =ml("ad_pressu","Pressung der Dämmung") -> Compression of the insulation
D94: ="q d" &ml("ad_normal2"," normal") -> q d normal | E94: =qd_wd -> 0.8856019447 | F94: KN/m
H95: =ml("ad_zuläss","zulässige Pressung") -> Allowed compression
B96: =E96/J96 -> 0.0805092677 | D96: σ c,d | E96: =(qd_wd/100)/b_kl*10 -> 0.01771203889 | F96: N/mm2 | H96: f c,d | J96: =1.1*vba_sig10 -> 0.22 | K96: N/mm2

Sheet Vokabel (hidden)
A1: Nationale Festlegungen
A2: Schlüssel | B2: AT | C2: GB | D2: IT | E2: DE | F2: EE
A3: tc_alpha_cc | B3: 1 | C3: 0.85 | D3: 0.85 | E3: 0.85 | F3: 0.85 | H3: long-term effects on the compressive strength
A4: tc_gamM_C | B4: 1.3 | C4: 1.3 | D4: 1.5 | E4: 1.3 | F4: 1.3 | H4: Partial material safety factor - Solid Timber
A5: tc_gamM_concr | B5: 1.5 | C5: 1.5 | D5: 1.5 | E5: 1.5 | F5: 1.5 | H5: Partial material safety factor - Concrete
A6: tc_gamM_GL | B6: 1.25 | C6: 1.25 | D6: 1.45 | E6: 1.25 | F6: 1.25 | H6: Partial material safety factor - Glulam
A7: tc_gamM_stahl | B7: 1.15 | C7: 1.15 | D7: 1.15 | E7: 1.15 | F7: 1.15 | H7: Partial material safety factor - Steel
A8: codeCaption | B8: ON B 1995-1-1 | C8: BS NA 1995-1-1 | D8: UNI EN 1995-1-1 | E8: DIN NA 1995-1-1 | F8: EVS-EN 1995-1-1
A9: tc_gamM_V | B9: 1.3 | C9: 1.3 | D9: 1.5 | E9: 1.3 | F9: 1.3 | H9: Material safety - Steel Connections
A11: Vokabel
F12: Estonia | G12: Poland | H12: Sweden | I12: Norway | J12: Finland | K12: Latvia | L12: Lithuania
A13: Deepl-Sprachkürzel | F13: ET
A14: Schlüssel | B14: DE | C14: EN | D14: IT | E14: FR | F14: EE | G14: PL | H14: SE | I14: NO | J14: FI | K14: LV | L14: LT | M14: CZ | N14: Foglio di ingresso
A15: 250425_a | B15: Die Gewindelänge von Schraube {0} in der Konterlatte ist zu gering | C15: The thread length of screw {0} in the counter plate is too short | F15: Kruvi {0} keermepikkus vastusplaadis on liiga lühike.
A16: 250425_b | B16: Schraube {0} ist um {1} mm zu kurz! | C16: Screw {0} is too short by {1} mm! | F16: Kruvi {0} on {1} mm võrra liiga lühike! | N16: Kommentar
A17: 250425_c | B17: Schraube {0} ist um {1} mm zu lang! | C17: Screw {0} is too long by {1} mm!
A18: ad_?? m,v | B18: ɣ​ m,Verbindungen | C18: ɣ​ m,connections | D18: ɣ​ m,giuntature | E18: ɣ​ m,assemblages | F18: ?? m,ühendused
A19: ad_abmess_schrau | B19: Abmessungen und Schraubenauswahl | C19: Dimensions and Screws | D19: misure e assortimento di viti | E19: dimensions et choix des vis | F19: Mõõtmed ja kruvide valik
A20: ad_achtung | B20: ACHTUNG! VBA-Funktionen vom System gesperrt. Bitte Arbeitsmappe schließen und nochmals öffnen. | C20: CAUTION! VBA functions blocked by the system. Please close the worksheet and open it again. | D20: ATTENZIONE! Le funzioni VBA sono state bloccate dal sistema. Si prega di chiudere e quindi riaprire la cartella di lavoro. | E20: ATTENTION ! Les fonctions VBA sont bloquées par le système. Veuillez fermer et rouvrir le classeur. | F20: TÄHELEPANU: VBA funktsioonid on süsteemi poolt lukustatud. Palun sulgege töövihik ja avage see uuesti.
A21: ad_angabenvorbemssung | B21: Angaben zur Vorbemessung | C21: Input for preliminary design | D21: indicazioni sul predimensionamento | E21: informations relatives au prédimensionnement | F21: Eelnev teave mõõtmete määramise kohta
A22: ad_anordn | B22: Anordnung | C22: Assembly | D22: disposizione | E22: répartition | F22: Kokkulepe
A23: ad_anzahl1 | B23: Anzahl der Tragachsen | C23: No. of member axis | D23: numero di assi dei puntoni | E23: nombre d’axes de chevron | F23: Parvetelgede arv
A24: ad_anzahl2 | B24: Schrauben je Tragachse | C24: Screws per member | D24: numero di viti per asse di un puntone | E24: nombre de vis par axe de chevron | F24: Kruvide arv sarvetelje kohta
A25: ad_anzahl3 | B25: Schrauben je lfm | C25: Screws per meter member | D25: numero di viti per metro lineare di asse di un puntone | E25: nombre de vis par mètre linéaire d’axe de chevron | F25: Kruvide arv ühe jooksva meetri sarvetelje kohta
A26: ad_anzahl4 | B26: Schrauben je m2 Fläche | C26: Screws per square meter | D26: numero di viti per m² di tetto | E26: nombre de vis par m² de toiture | F26: Kruvide arv katusepinna m2 kohta
A27: ad_anzahl4.1 | B27: Schrauben je m2 Fläche | C27: Screws per sqm [m²] | D27: viti per m² di tetto | E27: vis par m² de toiture | F27: Kruvid m2 katusepinna kohta
A28: ad_anzahl5 | B28: Schrauben je lfm Tragachse | C28: Screws per meter | D28: viti per metro lineare di puntone | E28: vis par mètre linéaire de chevron | F28: Kruvid ühe jooksva meetri sarika kohta
A29: ad_asukon | B29: Ausziehen Konterlatte | C29: Extraction counter-batten | D29: estrazione della vite dalla controlistellatura | E29: arrachement de la vis (contre-latte) | F29: Välja tõmmates counter batten
A30: ad_auf gr | B30: auf Grundlage von {1} und {2} mit {3} | C30: based on {1} and {2} with {3} | D30: sulla base dell {1}, {2} e {3} | E30: sur la base de {1}, {2} et {3} | F30: {1} ja {2} alusel koos {3}-ga
A31: ad_auf gr | B31: auf Grundlage von {1} und {2} mit {3} | C31: based on {1} and {2} with {3} | E31: sur la base de {1}, {2} et {3} | F31: {1} ja {2} alusel koos {3}-ga
A32: ad_aufdac | B32: Aufdachdämmsystem: Berechnungsdetails und Nachweise | C32: Thermal Insulation system: Calculation Details and Design | D32: sistema d’isolamento all’estradosso: dettagli di calcolo e verifiche | E32: système d’isolation sur toiture : calculs détaillés et vérifications | F32: Katusele paigaldatav isolatsioonisüsteem: arvutuste üksikasjad ja kontrollimine
A33: ad_aufdachdaemmung | B33: Aufdachdämmung | C33: Thermal Insulation | D33: isolamento all’estradosso | E33: isolation sur toiture | F33: Katuse isolatsioon
A34: ad_aufdachdaemmung_zusammenfassung | B34: Aufdachdämmsystem - Zusammenfassung | C34: Thermal Insulation - Summary | D34: sistema d’isolamento all’estradosso – sintesi | E34: système d’isolation sur toiture – récapitulatif | F34: Katusele paigaldatav isolatsioonisüsteem - kokkuvõte
A35: ad_aufdachstandort | B35: Aufdachdämmsystem - Standort | C35: Thermal Insulation - Construction Site | D35: sistema d’isolamento all’estradosso – ubicazione | E35: système d’isolation sur toiture – emplacement | F35: Katusele paigaldatav isolatsioonisüsteem - asukoht
A36: ad_aufdachsys | B36: Aufdachsystem | C36: Thermal Insulation System | D36: sistema all’estradosso | E36: système sur toiture | F36: Katusekatuse süsteem
A37: ad_außendruckbeiwerte | B37: Außendruckbeiwerte cpe,1 | C37: External pressure coefficient cpe,1 | D37: coefficienti di pressione esterna cpe,1 | E37: coefficients de pression extérieure cpe,1 | F37: Välissurve koefitsiendid cpe,1
A38: ad_außendruckbeiwerte_einfach | B38: Außendruckbeiwerte nach B 1991-1-4 (vereinfachte Ermittlung) | C38: External pressure coefficient acc. To B 1991-1-4 (simplified) | D38: coefficienti di pressione esterna come da B 1991-1-4 (calcolo semplificato) | E38: coefficients de pression extérieure selon B 1991-1-4 (calcul simplifié) | F38: Välissurve koefitsiendid vastavalt B 1991-1-4 (lihtsustatud määramine)
A39: ad_ausunt | B39: Ausziehen Unterkonstruktion | C39: Extraction sub construction | D39: estrazione della vite dalla sottostruttura | E39: arrachement de la vis (sous-construction) | F39: Välja tõmmatav aluskonstruktsioon
A40: ad_auszie | B40: Ausziehparameter | C40: Extensible parameter | D40: parametro di estrazione | E40: Coefficients de résistance à l’arrachement | F40: Ekstraheerimise parameetrid
A41: ad_auszie2 | B41: Ausziehwiderstand | C41: Extensible resistance | D41: resistenza all’estrazione | E41: résistance à l’arrachement | F41: Tõmbetugevus
A42: ad_auszie3 | B42: Ausziehen Gewinde | C42: thread pull out | F42: Väljavõte lõngast
A43: ad_basisgeschwindigkeit | B43: Basisgeschwindigkeit | C43: Basic wind velocity | D43: Basic wind velocity | E43: Basic wind velocity | F43: Basic wind velocity
A44: ad_batlen | B44: Traglattenlänge | C44: Battens length
A45: ad_battensspacing | B45: Traglattenabstand | C45: Battens spacing
A46: ad_bautei | B46: Bauteile in offenen, überdachten Konstruktionen | C46: Roofed outdoor constructions | D46: elementi costruttivi inseriti in strutture aperte dotate di copertura | E46: éléments utilisés dans des constructions ouvertes et abritées par un toit. | F46: Komponendid avatud, katusega konstruktsioonides
A47: ad_bauvorhaben | B47: Bauvorhaben | C47: Project | D47: progetto | E47: projet | F47: Ehitusprojekt
A48: ad_bedingt_text | B48: Bedingt durch konstruktive Gegebenheiten wie z.B. die Länge der Konterlatten, Lattenstöße, Gauben, Kehlen etc. kann sich die Anzahl der Schrauben um 10% bis 20% gegenüber dem angegebenen Wert erhöhen. | C48: Due to structural conditions such as the length of the counter-batten, joints, dormers, grooves etc., the number of screws can increase by 10% to 20% compared to the specified value. | D48: A seconda delle caratteristiche costruttive specifiche, ad es. la lunghezza dei controlistelli, i giunti fra le assi, la presenza di abbaini, compluvi, ecc., il numero di viti richiesto può aumentare del 10% - 20% rispetto al valore indicato. | E48: Le nombre de vis nécessaires peut dépasser de 10 à 20 % la quantité indiquée en fonction de la configuration de la construction, notamment de la longueur des contre-lattes, des joints entre lattes, des lucarnes, des noues, etc. | F48: Tulenevalt konstruktsioonilistest tingimustest, nagu vastuliistude pikkus, liistuühendused, pööningud, orud jne, võib kruvide arv võrreldes ettenähtud väärtusega suureneda 10% kuni 20%.
A49: ad_befestigunsvariante | B49: Befestigungsvariante | C49: Fixing method | D49: variante di fissaggio | E49: variante de fixation | F49: Kinnitusvariant
A50: ad_beiwer | B50: Beiwert | C50: additional Value | D50: coefficiente | E50: coefficient | F50: Koefitsient
A51: ad_belastung | B51: Belastung | C51: Load | D51: carico | E51: charge | F51: Koormus
A52: ad_bem2 | B52: auf Grundlage von {1} und {2} mit {3} | C52: based on {1} and {2} with {3} | D52: sulla base del {1}, {2} e {3} | E52: sur la base des {1}, {2} et {3} | F52: {1} ja {2} alusel koos {3}-ga
A53: ad_bem2 | B53: auf Grundlage von {2} mit {3} | C53: based on {1} and {2} with {3} | D53: Progettazione di sistemi di isolamento del tetto basati su {2} con {3} | E53: sur la base {1}, {2} et {3} | F53: {2} alusel koos {3}
A54: ad_bemess | B54: Bemessungswerte der Tragfähigkeit der Schrauben aud Ausknicken Rki,d in Abhängigkeit von der freien Länge L der Schrauben zwischen den Holzteilen nach Tabelle 1 der allgmeinen bauaufsichtlichen Zulassung Z-9.1-509 | C54: Design values of the load-bearing capacity of the screws against buckling Rki,d as a function of the free length L of the screws between the timber parts in accordance with Table 1 of the general technical approval Z-9.1-509 | F54: Kruvide kandevõime arvutuslikud väärtused paindumisvastase koormuse Rki,d sõltuvalt puiduosade vaheliste kruvide vabast pikkusest L vastavalt üldise tehnilise tunnustuse Z-9.1-509 tabelile 1.
A55: ad_bemessung_menue | B55: Bemessung von Aufdachdämmsystemen auf Grundlage von {1} und {2} mit {3} | C55: Design of Thermal-Insulation-Systems based on {1} and {2} with {3} | D55: dimensionamento di sistemi d’isolamento all’estradosso sulla base del {1}, {2} e {3} | E55: dimension des systèmes d’isolation sur toiture sur la base des {1}, {2} et {3} | F55: Katusel asuvate isolatsioonisüsteemide dimensioneerimine {1} ja {2} alusel koos {3}-ga
A56: ad_bemessung_menue | B56: Bemessung von Aufdachdämmsystemen auf Grundlage von {2} mit {3} | C56: Design of Thermal-Insulation-Systems based on {2} with {3} | E56: dimension des systèmes d’isolation sur toiture sur la base {1}, {2} et {3} | F56: Katusel asuvate isolatsioonisüsteemide dimensioneerimine {2} ja {3} alusel
A57: ad_berechnung | B57: Berechnung | C57: Calculation | D57: calcolo | E57: calcul | F57: Arvutus
A58: ad_bereic | B58: Bereich J | C58: Area J | D58: area J | E58: zone de toit J | F58: Piirkond J
A59: ad_bereic1 | B59: Bereich H,I | C59: Area H, I | D59: aree H, I | E59: zone de toit H, I | F59: Piirkond H,I
A60: ad_bereic2 | B60: Bereich G | C60: Area G | D60: area G | E60: zone de toit G | F60: Piirkond G
A61: ad_bereic3 | B61: Bereich F | C61: Area F | D61: area F | E61: zone de toit F | F61: Piirkond F
A62: ad_bereicJ | B62: Bereich J ( nur Satteldach) | C62: Area J (double pitched only) | F62: Piirkond J (ainult viilkatuse puhul)
A63: ad_bettun | B63: Bettung durch den Dämmstoff | C63: Bedding caused from the insulation | D63: cedimento elastico del materiale isolante | E63: encastrement dans l’isolant | F63: Vooderdus läbi isolatsioonimaterjali
A64: ad_bettun1 | B64: Bettungsbreite | C64: Bedding variety | D64: larghezza del cedimento elastico | E64: largeur d’encastrement | F64: Voodipesu laius
A65: ad_bettun2 | B65: Bettungsziffer | C65: Subgrade moduli | D65: coefficiente del cedimento elastico | E65: coefficient d’encastrement | F65: Voodipesu number
A66: ad_biegeb | B66: Biegebeanspruchung der Konterlatten / Grundlatten | C66: Bending stress restraning lath | F66: Vastulattide / põhilattide paindepinged
A67: ad_biegem | B67: Biegemoment | C67: Flexural moment | D67: momento flettente | E67: moment de flexion | F67: Paindemoment
A68: ad_bieges | B68: Biegespannung der Konterlatten / Grundlatten | C68: Flexural stress in the counter-battening and lathing | D68: sollecitazione a flessione dei controlistelli/listelli di base | E68: contrainte de flexion des contre-lattes/lattes principales | F68: Vastulattide / põhilattide paindepinged
A69: ad_bieget_konter | B69: Biegetragfähigkeit Konterlatte | C69: Bending resistance restraning lath | D69: resistenza alla flessione del controlistello | E69: résistance à la flexion de la contre-latte | F69: Paindekoormuse kandevõime vasturiiulid
A70: ad_char. | B70: Char. Länge | C70: Char. Length | D70: lunghezza caratteristica | E70: longueur caractéristique | F70: Char. Length
A71: ad_dachei | B71: Dacheindeckung inkl. Lattung | C71: Roof covering and lathing | D71: copertura (compresa listellatura) | E71: couverture, lattage compris | F71: Katusekate, sh latid
A72: ad_dachei2 | B72: Dacheindeckung | C72: Roof covering | D72: copertura | E72: couverture | F72: Katusekate
A73: ad_dachei3 | B73: Deckschale inkl. Lattung | C73: Covering and lathing
A74: ad_dachfl | B74: Dachfläche | C74: Roof area | D74: superficie del tetto | E74: surface de toiture | F74: Katuse pindala
A75: ad_dachfo | B75: Dachform | C75: Roof shape | D75: tipo di tetto | E75: forme de toiture | F75: Katusekuju
A76: ad_dachge | B76: Dachgeometrie | C76: Roof geometry | D76: geometria del tetto | E76: géométrie du toit | F76: Katusegeomeetria
A77: ad_dachge2 | B77: Abmessungen | C77: Dimensions
A78: ad_dachne | B78: Dachneigung | C78: Roof inclination | D78: pendenza del tetto | E78: pente de toit | F78: Katusekalle
A79: ad_dachsc | B79: Dachschubsicherung | C79: Shear securing | D79: sicurezza contro la forza di taglio agente sul tetto | E79: sécurité contre les forces de cisaillement sur toiture | F79: Katuse nihkekaitse
A80: ad_dachsc_windsog | B80: Dachschubsicherung und Windsogsicherung | C80: Shear and wind suction securing | D80: sicurezza contro la forza di taglio agente sul tetto e la suzione del vento | E80: sécurité contre les forces de succion du vent et les forces de cisaillement sur toiture | F80: Katuse nihke- ja tuuletõmbekaitse
A81: ad_dachscu | B81: Dachschub | C81: Roof shear | D81: forza di taglio agente sul tetto | E81: forces de cisaillement sur toiture | F81: Katusetõmbed
A82: ad_dämm1 | B82: Druckfeste Dämmung | C82: Hard Insulation | D82: isolante rigido | E82: isolant rigide | F82: Survekindel isolatsioon
A83: ad_dämm2 | B83: Weiche Dämmung | C83: Soft Insulation | D83: isolante flessibile | E83: isolant souple | F83: Pehme isolatsioon
A84: ad_dämmst | B84: Dämmstoff | C84: Insulation | D84: isolante termico | E84: matériau isolant | F84: Isolatsioonimaterjal
A85: ad_dämmun | B85: Dämmung | C85: Insulation | D85: isolamento | E85: isolation | F85: Isolatsioon
A86: ad_dämmun1 | B86: Dämmung + Konterlatte/Grundlatte | C86: Insulation + Counter-Batten | D86: isolamento + controlistello/listello di base | E86: isolant + contre-latte/latte principale | F86: Isolatsioon + vastulatt/aluselatt
A87: ad_datumgr | B87: DATUM: | C87: DATE: | D87: DATA: | E87: DATE . | F87: KUUPÄEV:
A88: ad_dicke | B88: Dicke | C88: Thickness | D88: spessore | E88: épaisseur | F88: Paksus
A89: ad_druck | B89: Druck | C89: Pressure | D89: compressione | E89: compression | F89: Surve
A90: ad_drucks_10 | B90: Druckspannung bei 10% Stauchung | C90: Compressive stress due to a compression of 10% | D90: sollecitazione a compressione con schiacciamento del 10% | E90: contrainte de compression pour un tassement de 10 % | F90: Survetugevus 10%-lise kokkusurumise korral
A91: ad_e sog, | B91: e sog,erf. | C91: e suc,nec. | D91: e sog,nec. | E91: e sog,néc. | F91: e nn,erf.
A92: ad_eigdef | B92: Eigene Definition | C92: Individual definition | D92: definizione propria | E92: définition propre | F92: Oma määratlus
A93: ad_eindrü | B93: Eindrücken Gewinde | C93: thread press-in | F93: Mulje niit
A94: ad_eingabe_dachgeometrie | B94: ↗ Eingabe der Dachgeometrie im Blatt Aufdachdämmung | C94: ↗ Input of roof geometry in the corresp. worksheet | D94: ↗ indicazione della geometria del tetto nella scheda «Isolamento all’estradosso» | E94: ↗ saisie de la géométrie de la toiture dans la fiche « Isolation sur toiture » | F94: ? Sisestage katuse geomeetria katuse isolatsioonilehel
A95: ad_einwir | B95: Einwirkung | C95: Action | F95: Mõju
A96: ad_e-modu | B96: E-Modul | C96: Young´s modulus | D96: modulo di elasticità | E96: module d’élasticité | F96: E-moodul
A97: ad_entlang | B97: entlang der Sparren | C97: along the rafters | D97: lungo i puntoni | E97: le long des chevrons | F97: mööda sarikaid
A98: ad_entlangF | B98: entlang der Traglatten | C98: along the battens
A99: ad_erford | B99: Erforderlicher Schraubenabstand | C99: Required distance between screws | D99: interasse fra le viti richiesto | E99: espacement requis entre les vis | F99: Nõutav kruvide vahekaugus
A100: ad_europe | B100: European Model (EN 1991-1-4) | C100: European Model (EN 1991-1-4)
A101: ad_europe | B101: European Model (EN 1991-1-3) | C101: European Model (EN 1991-1-3)
A102: ad_exwwd | B102: Extremwert Winddruck | C102: Peak wind pressure | D102: valore estremo (pressione del vento) | E102: valeur extrême (surcharge due au vent) | F102: Ekstreemväärtuse tuule rõhk
A103: ad_exwws | B103: Extremwert Windsog | C103: Peak wind suction | D103: valore estremo (suzione del vento) | E103: valeur extrême (succion du vent) | F103: Äärmise väärtusega tuule imemine
A104: ad_fassa | B104: Fassade | C104: Facade | D104: facciata | E104: façade | F104: Fassaad
A105: ad_fassasys | B105: Fassadensystem | C105: Facade system | D105: sistema per facciata | E105: système de façade | F105: Fassaadisüsteem
A106: ad_fassgew | B106: Fassadengewicht | C106: Facade weight | D106: peso della facciata | E106: poids de la façade | F106: Fassaadi kaal
A107: ad_fehll | B107: Fehllänge | C107: Shortlength
A108: ad_festig | B108: Festigkeitsklasse | C108: Strength class | D108: classe di resistenza | E108: classe de résistance | F108: Tugevusklass
A109: ad_firsth | B109: Firsthöhe | C109: Ridge height | D109: altezza del colmo | E109: hauteur du faîtage | F109: Harja kõrgus
A110: ad_formbeiwert_schneelast | B110: Formbeiwert für Schneelasten | C110: Shape coefficient for snow loads | D110: coefficiente di forma per i carichi di neve | E110: coefficient de forme pour les charges de neige | F110: Vormikoefitsient lumekoormuse korral
A111: ad_freie | B111: freie Länge | C111: free length | F111: Vaba pikkus
A112: ad_g1 | B112: Gebiete mit niedriger Vegetation wie Gras und einzelne Hindernisse (Bäume, Gebäude) mit Abständen von min. 20-facher Hindernishöhe | C112: Areas with low vegetation such as grass and individual obstacles (trees, buildings) with distances of at least 20 times the height of the obstacle. | D112: Zone con vegetazione bassa come l'erba e singoli ostacoli (alberi, edifici) con distanze di almeno 20 volte l'altezza dell'ostacolo. | E112: Les zones à végétation basse comme l'herbe et les obstacles individuels (arbres, bâtiments) dont la distance est au moins 20 fois la hauteur de l'obstacle. | F112: Madala taimestikuga alad, nagu muru ja üksikud takistused (puud, hooned), mille vahemaa on vähemalt 20 korda suurem kui takistuse kõrgus.
A113: ad_g2 | B113: Gebiete mit gleichmäßiger Vegetation oder Bebauung oder mit einzelnen Objekten mit Abständen von weniger als der 20-fachen Hindernishöhe (z.B. Dörfer, vorstäditsche Bebauung, Waldgebiete) | C113: Areas with uniform vegetation or buildings or with individual objects with distances of less than 20 times the obstacle height (e.g. villages, suburban development, forest areas) | D113: Aree con vegetazione o edifici uniformi o con singoli oggetti con distanze inferiori a 20 volte l'altezza dell'ostacolo (ad esempio villaggi, sviluppo suburbano, aree boschive) | E113: Les zones avec une végétation ou des bâtiments uniformes ou avec des objets isolés dont la distance est inférieure à 20 fois la hauteur de l'obstacle (par exemple, les villages, le développement suburbain, les zones boisées) | F113: ühtlase taimestikuga või hoonestusega alad või üksikud objektid, mille kaugus on väiksem kui 20 korda takistuse kõrgus (nt külad, linnalähedane hoonestus, metsased alad).
A114: ad_g3 | B114: Gebiete, in denen mindestens 15% der Oberfläche mit Gebäuden mit einer mittleren Höhe größer als 15 m bebaut sind | C114: Areas where at least 15% of the surface area is covered with buildings with an average height greater than 15 m | D114: Aree in cui almeno il 15% della superficie è coperto da edifici con un'altezza media superiore a 15 m. | E114: Les zones dont au moins 15 % de la surface est couverte de bâtiments d'une hauteur moyenne supérieure à 15 m. | F114: Piirkonnad, kus vähemalt 15% pindalast on kaetud hoonetega, mille keskmine kõrgus on üle 15 meetri.
A115: ad_gelaend | B115: Geländehöhe über dem Meer | C115: Terrain height above sea level | F115: Maastiku kõrgus merepinnast
A116: ad_geländefkator | B116: Geländefaktor | C116: Terrain coefficient | D116: fattore di terreno | E116: facteur de terrain | F116: Maastiku tegur
A117: ad_geländekategorie | B117: Geländekategorie | C117: Terrain category | D117: categoria di esposizione | E117: catégorie d’exposition | F117: Maastiku kategooria
A118: ad_geprüft | B118: GEPRÜFT: | C118: APPROVED: | D118: VERIFICATO: | E118: TESTÉ : | F118: TESTITUD:
A119: ad_gewich | B119: Gewicht der Dämmung | C119: Weight of the insulation | D119: peso del pacchetto isolante | E119: poids de l’isolation | F119: Isolatsiooni kaal
A120: ad_gewind | B120: Gewinde in Latte | C120: Screw thread in lath | D120: filetto nel listello | E120: filetage dans la latte | F120: Lõng lattides
A121: ad_gewind2 | B121: Gewinde in UK | C121: Screw thread in subconstruction | D121: filetto nella sottostruttura | E121: filetage dans la sous-construction | F121: Lõng Ühendkuningriigis
A122: ad_grundlagen_nl | B122: auf Grundlage von {0} und {1} | C122: Based on {0} and {1} | D122: in base a {0} e{1} | E122: sur la base de {0} et {1} | F122: {0} ja {1} alusel.
A123: ad_höhe ü | B123: Höhe über Grund (Firsthöhe) | C123: Height above ground (ridge height) | D123: altezza rispetto al livello del suolo (altezza del colmo) | E123: hauteur au-dessus du sol (hauteur du faîtage) | F123: Kõrgus maapinnast (harja kõrgus)
A124: ad_horiz. | B124: horiz.proj. | C124: horiz. Proj. | D124: proiezione orizzontale | E124: projection horizontale | F124: horiz.proj.
A125: ad_innendruckbeiwerte | B125: Innendruckbeiwerte cpi | C125: Internal pressure coefficient | D125: coefficienti di pressione interna cpi | E125: coefficients de pression intérieure cpi | F125: Siserõhu koefitsiendid cpi
A126: ad_knicke | B126: Knicken der Schraube | C126: screw buckling | F126: Kruvi painutamine
A127: ad_konstr_mind | B127: Konstruktiver Mindestabstand der Windsogsichernden Schrauben | C127: Minimum constructive distance between screws against wind suction | D127: distanza costruttiva minima fra le viti di sicurezza contro la suzione del vento | E127: espacement constructif minimum entre les vis résistantes aux forces de succion du vent | F127: Tuuletõmbe kinnituskruvide konstruktiivne miinimumkaugus
A128: ad_konter | B128: Konterlatten / Grundlatten | C128: Counter-batten | F128: Vastulattad / aluslatid
A129: ad_konter_grundl | B129: Konterlatte / Grundlatte (GL) | C129: Counter-batten | D129: controlistello/listello di base | E129: contre-latte/latte principale | F129: Vastulatt / aluslatt (GL)
A130: ad_kopf | B130: Kopfdurchziehen | C130: Srewhead pull-through | D130: rifollamento | E130: Résistance de la tête | F130: Pea pühkimine
A131: ad_kopfdu | B131: Kopfdurchmesser | C131: Screwhead diameter | D131: diametro della testa | E131: diamètre de la tête | F131: Pea läbimõõt
A132: ad_kopfdu_ | B132: Kopfdurchziehparameter | C132: Screwhead pull-through parameter | D132: parametro di rifollamento | E132: Coefficient de résistance de la tête | F132: Pea läbitõmbeparameetrid
A133: ad_informy | B133: informativ | C133: informative
A134: ad_kopfdu2 | B134: Kopfdurchziehfestigkeit | C134: Screwhead pull-through strength | D134: resistenza al rifollamento | E134: Résistance de la tête | F134: Pea läbitõmbetugevus
A135: ad_lakes | B135: Areas at lakes or flat terrain with negligible vegetation and no obstacles
A136: ad_land | B136: Land | C136: Country | D136: paese | E136: pays | F136: Riik
A137: ad_länge | B137: Länge in Konterlatte | C137: Length in counter-batten | D137: lunghezza nel controlistello | E137: longueur dans la contre-latte | F137: Pikkus vastulattidel
A138: ad_länge2 | B138: Länge in Dämmung | C138: Lenght in insulation | D138: lunghezza nell’isolamento | E138: longueur dans l’isolation | F138: Pikkus isolatsioonis
A139: ad_länge3 | B139: Länge in Unterkonstr. | C139: Length in subconstruction | D139: lunghezza nella sottostruttura | E139: longueur dans la sous-construction | F139: Pikkus all-str.
A140: ad_längen | B140: Längen in der Konstruktion mit harter Dämmung | C140: Lenght in the construction with hard insulation | D140: lunghezza nella sottostruttura con isolamento rigido | E140: longueurs dans la construction avec isolant rigide | F140: Pikkused kõva isolatsiooniga konstruktsioonis
A141: ad_last_text | B141: Lastaufteilung für Bauteile geneigter Dachflächen nach | C141: Distribution of loads for inclinated roof surfaces according to | D141: distribuzione del carico sugli elementi costruttivi di tetti inclinati secondo | E141: répartition de la charge pour les éléments de toiture inclinée selon | F141: Kaldkatuse pindade komponentide koormusjaotus vastavalt
A142: ad_lastan | B142: LASTANNAHME SCHNEE | C142: SNOW LOAD ASSUMPTION | D142: CARICO STRUTTURALE (NEVE) | E142: CALCUL DES CHARGES (NEIGE) | F142: KOORMUSE VASTUVÕTMINE LUMI
A143: ad_lastann_wind | B143: LASTANNAHME WIND | C143: WIND LOAD ASSUMPTION | D143: CARICO STRUTTURALE (VENTO) | E143: CALCUL DES CHARGES (VENT) | F143: KOORMUSE VASTUVÕTMISE TUUL
A144: ad_lastannahmen | B144: Lastannahmen für Wind und Schnee | C144: Wind and Snow loads | D144: carichi strutturali relativi a vento e neve | E144: calcul des charges pour le vent et la neige | F144: Tuule ja lume koormuse eeldused
A145: ad_lasten1 | B145: Lasten parallel zur Dachfläche (Dachschub zur Dimensionierung der geneigten Schrauben) | C145: Loads parallel to the roof surface (roof shear forces for dimensioning the inclined screws) | D145: carichi paralleli alla superficie del tetto (forza di taglio agente sul tetto per il dimensionamento delle viti inclinate) | E145: charges parallèles à la surface de la toiture (forces de cisaillement sur la toiture pour le dimensionnement des vis inclinées) | F145: Katuse pinnaga paralleelsed koormused (katuse nihkejõud kaldus kruvide dimensioneerimiseks)
A146: ad_lasten2 | B146: Lasten normal zur Dachfläche (Windsog zur Dimensionierung der rechtwinkelig zur Dachfläche angeordneten Zugschrauben) | C146: Loads normal to the roof surface (wind suction for dimensioning the screws with tension force arranged with an right angle to the roof surface) | D146: carichi perpendicolari alla superficie del tetto (suzione del vento per il dimensionamento delle viti di trazione fissate ad angolo retto rispetto alla superficie del tetto) | E146: charges perpendiculaires à la surface de la toiture (forces de succion du vent pour le dimensionnement des vis de traction placées perpendiculairement à la surface de la toiture) | F146: Katusekatte pinna suhtes normaalsed koormused (tuuletõmme katusekatte pinna suhtes täisnurga all paigutatud pingutuspoltide dimensioneerimiseks).
A147: ad_lasten3 | B147: Lasten normal zur Dachfläche (Druck zur Dimensionierung von Konterlattung und Dämmung) | C147: Loads normal to the surface (Pressure for dimensioning counter-battening and insulation) | D147: carichi perpendicolari alla superficie del tetto (pressione per il dimensionamento della controlistellatura e dell’isolamento) | E147: charges perpendiculaires à la surface de la toiture (pression pour le dimensionnement du contre-lattage et de l’isolation) | F147: Katusekatuse pinna suhtes normaalsed koormused (surve vastuliistude ja isolatsiooni dimensioneerimiseks)
A148: ad_length | B148: Längen von Schraube {0} in der Konstruktion mit weicher Dämmung | C148: Lengths of screw {0} in the construction with soft insulation | F148: Kruvi pikkus {0} pehme isolatsiooniga konstruktsioonis
A149: ad_locationInfo | B149: Derzeit sind die Standortdaten auf AT und DE eingeschränkt. Sie können Schnee- und Windlasten direkt im nächsten Eingabeformular definieren. | C149: Currently, location data is limited to AT and DE. You can define snow and wind loads directly in the next input form.
A150: ad_maßgeb | B150: maßgebende Kombination - Lasten vertikal bezogen auf die schräge Länge | C150: Leading combination - loads vertical based on the oblique length | D150: combinazione di riferimento – carichi verticali riferiti alla lunghezza inclinata | E150: combinaison de référence – charges verticales et longueur du ou des pans de toiture | F150: otsustav kombinatsioon - koormused on vertikaalselt seotud kallakpikkusega
A151: ad_maßgeb1 | B151: maßgebende Kombination - Lasten normal zur Dachfläche (Windsog) | C151: Leading combination - loads normal to the roof surface (wind suction) | D151: combinazione di riferimento – carichi perpendicolari alla superficie del tetto (suzione del vento) | E151: combinaison de référence – charges perpendiculaires à la surface de la toiture (forces de succion du vent) | F151: Asjakohane kombinatsioon - koormused normaalselt katusepinnale (tuule imemine)
A152: ad_maxlen | B152: Maximallänge in UK | C152: max length in subconstr.
A153: ad_mineinslng | B153: Mindesteinschraublänge | C153: minimum screw-in length
A154: ad_minlen | B154: Mindestlänge in UK | C154: min length in subconstr.
A155: ad_moment | B155: Momente | C155: Moments | F155: Hetked
A156: ad_nachwe | B156: Nachweise und Auslastungen | C156: Design and utilization | D156: verifiche e carichi effettivi | E156: vérifications et charges effectives | F156: Tõendid ja suutlikkuse kasutamine
A157: ad_nachweis | B157: NACHWEISFÜHRUNG | C157: DESIGN CALCULATION | D157: PROCEDIMENTO DI VERIFICA | E157: CALCULS ET VÉRIFICATIONS | F157: KONTROLLIMINE
A158: ad_nenndu | B158: Nenndurchmesser | C158: Nominal diameter | D158: diametro nominale | E158: diamètre nominal | F158: Nominaalne läbimõõt
A159: ad_normal | B159: normal | C159: normal | D159: Normale | E159: Normal | F159: tavaline
A160: ad_normal2 | B160: normal | C160: normal | D160: normale | E160: normal | F160: tavaline
A161: ad_nutzla | B161: Nutzlast | C161: Live load | D161: carico utile | E161: charge utile | F161: Kaskoormus
A162: ad_nutzlastkategorie | B162: Nutzlastkategorie H: Dächer lt. EN 1991-1-1 | C162: Live load category H: roofs acc. to EN 1991-1-1 | D162: classe d’impiego H: tetti ai sensi della norma EN 1991-1-1 | E162: classe d’utilisation H : toitures selon EN 1991-1-1 | F162: H-kategooria: katused vastavalt standardile EN 1991-1-1.
A163: ad_nutzun | B163: Nutzungsklasse | C163: Service class | D163: classe d’utilizzo | E163: classe d’utilisation | F163: Kasutusklass
A164: ad_optimierng | B164: Optimierung | C164: Optimise
A165: ad_pcs | B165: STK | C165: pcs. | F165: STK
A166: ad_pcspm | B166: STK/m | C166: pcs./m | F166: STK/m
A167: ad_pcspsm | B167: STK/m² | C167: pcs./m² | F167: STK/m²
A168: ad_pcsRafter | B168: STK/Sparren | C168: pcs/rafter | F168: STK/rafter
A169: ad_pcsRafter_2 | B169: STK/Traglatten | C169: pcs/batten
A170: ad_pressu | B170: Pressung der Dämmung | C170: Compression of the insulation | D170: compressione esercitata dal pacchetto isolante | E170: pression de l’isolation | F170: Isolatsiooni vajutamine
A171: ad_produk | B171: Produkt | C171: Product | D171: prodotto | E171: produit | F171: Toode
A172: ad_pultdach | B172: Pultdach / Flach | C172: single pitched / flat | D172: tetto ad una falda | E172: toiture à une pente | F172: Varikatusega katus
A173: ad_rohdic | B173: Rohdichte | C173: Bulk Density | D173: massa volumica | E173: masse volumique | F173: Toortihedus
A174: ad_satteldach | B174: Satteldach | C174: double pitched | D174: tetto a due falde | E174: toiture à deux versants | F174: Katusekatus
A175: ad_schalu | B175: Schalung | C175: Formwork | D175: tavolato | E175: voligeage | F175: Sulgemine
A176: ad_schnee | B176: Schneezone | C176: Snow zone | F176: Lumevöönd
A177: ad_schnee_abrutschen | B177: Schnee vom Abrutschen behindert | C177: Snow sliding is prevented | D177: Si previene lo scivolamento della neve dal tetto. | E177: La neige est retenue sur la toiture. | F177: Lumi takistab alla libisemist
A178: ad_schneelast | B178: Schneelast | C178: Snow load | D178: carico di neve | E178: charge de neige | F178: Lumekoormus
A179: ad_schneelast_boden | B179: Schneelast auf dem Boden | C179: Ground snow load | D179: carico di neve a terra | E179: charge de neige au sol | F179: Lumekoormus maapinnale
A180: ad_schneelast_dächer | B180: Schneelast auf Dächern | C180: Roof snow load | D180: carico di neve sui tetti | E180: charge de neige sur les toits | F180: Lumekoormus katustel
A181: ad_schräg | B181: schräg | C181: oblique | D181: inclinato | E181: En biais | F181: kallutatud
A182: ad_schräge1 | B182: (schräge Länge beider Sparren) | C182: (oblique length from both rafters) | D182: (lunghezza inclinata dei due puntoni) | E182: (longueur des deux chevrons) | F182: (mõlema sarika kallutatud pikkus)
A183: ad_schräge2 | B183: (schräge Länge eines Sparrens) | C183: (oblique length from one rafter) | D183: (lunghezza inclinata di un puntone) | E183: (longueur d’un chevron) | F183: (parve diagonaalpikkus)
A184: ad_schrau | B184: Schraubenabstand | C184: Screw distance | D184: interasse fra le viti | E184: espacement entre les vis | F184: Kruvide vahekaugus
A185: ad_schrau_ | B185: Schraubentragfähigkeit für Dachlasten | C185: Screw load bearing capacity for roof loads | D185: capacità di carico delle viti per i carichi agenti sul tetto | E185: capacité de charge des vis pour les charges supportées par le toit | F185: Kruvi kandevõime katuse koormuste puhul
A186: ad_schrau_abm | B186: Schraubenabmessungen | C186: Screw dimensions | D186: dimensioni delle viti | E186: dimensions des vis | F186: Kruvi mõõtmed
A187: ad_schrau_n | B187: Schraubenneigung | C187: Screw inclination | D187: angolo d’inserimento delle viti | E187: inclinaison des vis | F187: Kruvi kalle
A188: ad_schrau_schub | B188: Schrauben Dachschub | C188: Screws roof shear | D188: viti (forza di taglio agente sul tetto) | E188: vis (forces de cisaillement sur toiture) | F188: Katusekruvid
A189: ad_schrau_sog | B189: Schrauben Windsog | C189: Screws wind suction | D189: viti (suzione del vento) | E189: vis (succion du vent) | F189: Kruvid Tuule imemine
A190: ad_schrau_sog2 | B190: Schraubenstückzahl Windsog | C190: Number of screws wind suction | D190: numero di viti (suzione del vento) | E190: nombre de vis (succion du vent) | F190: Kruvide arv Tuule imemine
A191: ad_schrau2 | B191: Schraubentyp | C191: Screw type | D191: tipo di vite | E191: type de vis | F191: Kruvi tüüp
A192: ad_schrau3 | B192: Schrauben - Gesamtstückzahl | C192: Total number of screws | D192: viti – numero totale di viti | E192: nombre total de vis | F192: Kruvid - üldkogus
A193: ad_schrau4 | B193: Schraubenstückzahl | C193: Nubmer of screws | D193: numero di viti | E193: nombre de vis | F193: Kruvide arv
A194: ad_schrau5 | B194: Schraubenabstände | C194: Screw distances | D194: interasse fra le viti | E194: espacements entre les vis | F194: Kruvide vahekaugus
A195: ad_schrau6 | B195: Schraubenabst. hor. | C195: Screw distance hor. | D195: interasse fra le viti (piano orizzontale) | E195: espacements entre les vis (horizontal) | F195: Kruvide vahekaugus hor.
A196: ad_schraube | B196: Schraube | C196: Screw | D196: vite | E196: vis | F196: Kruvi
A197: ad_schraube_tragf | B197: Schraubentragfähigkeit | C197: Screw load bearing capacity | D197: capacità di carico delle viti | E197: capacité de charge des vis | F197: Poldi kandevõime
A198: ad_schraube1 | B198: Schraube 1 | C198: Screw 1 | D198: vite 1 | E198: vis 1 | F198: Kruvi 1
A199: ad_schraube2 | B199: Schraube 2 | C199: Screw 2 | D199: vite 2 | E199: vis 2 | F199: Kruvi 2
A200: ad_schraubenabstand1 | B200: Schraubenabstand Bereich H, I | C200: Screw distance area H, I | D200: interasse fra le viti (aree H, I) | E200: espacement entre les vis (zone de toit H, I) | F200: Kruvide vahekaugus Vahemik H, I
A201: ad_schraubenabstand2 | B201: Schraubenabstand Bereich G | C201: Screw distance area G | D201: interasse fra le viti (area G) | E201: espacement entre les vis (zone de toit G) | F201: Kruvide vahekaugus Vahemik G
... 671 more rows

Sheet Listen (hidden)
A1: Listen für das Modul Aufdachdämmung
B4: lst_DaemmTyp | R4: KONTERLATTE
A5: =MATCH('Thermal insulation'!B69,lst_DaemmTyp) -> 1 | B5: =ml("ad_dämm1","Druckfeste Dämmung") -> Hard Insulation | R5: gk2 [KN/m2] | S5: fm,k [N/mm2] | U5: E0,mean [N/mm2]
B6: =ml("ad_dämm2","Weiche Dämmung") -> Soft Insulation | R6: =(b_kl*h_kl/100^2)/b_e*3.5 -> 0.00875 | S6: =INDEX(data_KL,index_KL,1) -> 24 | U6: =INDEX(data_KL,index_KL,2) -> 11000
B8: DÄMMUNG
B9: Produkt | C9: γ [KN/m³] | D9: σ10% [N/mm2] | E9: d_Dä [mm] | G9: E-Modul [N/mm2] | H9: Stauchung 10% [mm] | J9: gkfl [kN/m³] | K9: gk2 [KN/m2]
B10: =INDEX(CHOOSE(index_DaemmTyp,lst_DaemmHart,lst_DaemmWeich),CHOOSE(index_DaemmTyp,A15,A34),1) -> Soft wood fibre insulation | C10: =INDEX(CHOOSE(index_DaemmTyp,data_DaemmHart,data_DaemmWeich),CHOOSE(index_DaemmTyp,$A$15,$A$34),1) -> 3 | D10: =INDEX(CHOOSE(index_DaemmTyp,data_DaemmHart,data_DaemmWeich),CHOOSE(index_DaemmTyp,$A$15,$A$34),2) -> 0.2 | E10: =INDEX(CHOOSE(index_DaemmTyp,data_DaemmHart,data_DaemmWeich),CHOOSE(index_DaemmTyp,$A$15,$A$34),3) -> 60 | G10: =INDEX(CHOOSE(index_DaemmTyp,data_DaemmHart,data_DaemmWeich),CHOOSE(index_DaemmTyp,$A$15,$A$34),5) -> 2.8 | H10: =INDEX(CHOOSE(index_DaemmTyp,data_DaemmHart,data_DaemmWeich),CHOOSE(index_DaemmTyp,$A$15,$A$34),5) -> 2.8
C13: data_DaemmHart
B14: lst_DaemmHart | C14: gk2 [KN/m2] | D14: σ10% [N/mm2] | E14: d_Dä [mm] | G14: E-Modul [N/mm2] | H14: Stauchung 10% [mm]
A15: =MATCH('Thermal insulation'!$B$70,lst_DaemmHart,0) -> 1 | B15: =ml("lst_holzwung", "Holzweichfaserdämmung") -> Soft wood fibre insulation | C15: 3 | D15: 0.2 | E15: 60 | G15: 2.8 | H15: =E15*0.1 -> 6 | J15: 3 | K15: 0.18
B16: =ml("lst_baudelus", "Bauder PIR Plus") -> Bauder PIR Plus | C16: 0.3 | D16: 0.12 | E16: 100 | G16: 1.2 | H16: =E16*0.1 -> 10 | J16: 0.3 | K16: 0.03
B17: =ml("lst_baude sf", "Bauder PIR SF") -> Bauder PIR SF | C17: 0.3 | D17: 0.12 | E17: 100 | G17: 1.2 | H17: =E17*0.1 -> 10 | J17: 0.3 | K17: 0.03
B18: =ml("lst_steicsal", "Steico universal") -> Steico universal | C18: 4.5 | D18: 0.2 | E18: 60 | G18: =D18*10 -> 2 | H18: =E18*0.1 -> 6 | J18: 4.5 | K18: 0.27
B19: =ml("lst_steicdry", "Steico universal dry") -> Steico universal dry | C19: 2.1 | D19: 0.18 | E19: 35 | G19: 1 | H19: 3.5 | J19: 2.1 | K19: 0.075
B20: =ml("lst_steicdry14", "Steico universal dry") -> Steico universal dry | C20: 1.8 | D20: 0.18 | E20: 100 | G20: 1 | H20: 10 | J20: 1.8 | K20: 0.18
B21: =ml("lst_steicdry15", "Steico spezial dry") -> Steico special dry | C21: 1.166666667 | D21: 0.1 | E21: 120 | G21: 2 | H21: 12 | J21: 1.166666667 | K21: 0.14
B22: =ml("lst_steicerm", "Steico therm") -> Steico therm | C22: 1.333333333 | D22: 0.05 | E22: 120 | G22: =D22*10 -> 0.5 | H22: 12 | J22: 1.333333333 | K22: 0.16
B23: =ml("lst_pavatlus", "Pavatherm plus") -> Pavatherm plus | C23: 1.8 | D23: 0.1 | E23: 100 | G23: 1 | H23: 10 | J23: 1.8 | K23: 0.18
B24: =ml("lst_pavatair", "Pavatherm isolair") -> Pavatherm isolair | C24: 3.6 | D24: 0.25 | E24: 50 | G24: 2.5 | H24: 5 | J24: 3.6 | K24: 0.18
B25: =ml("lst_purenlus", "puren PLUS") -> puren PLUS | C25: 0.3 | D25: 0.12 | E25: 100 | G25: 1.2 | H25: 10 | J25: 0.3 | K25: 0.03
B26: =ml("lst_klöbeerm", "Klöber PermoTherm") -> Klöber PermoTherm | C26: 0.4 | D26: 0.12 | E26: 100 | G26: 1.2 | H26: 10 | J26: 0.4 | K26: 0.04
B27: =ml("lst_braasort", "Braas Clima Comfort") -> Braas Clima Comfort | C27: 0.4 | D27: 0.12 | E27: 100 | G27: 1.2 | H27: =E27*0.1 -> 10 | J27: 0.4 | K27: 0.04
B28: =ml("lst_rockwert", "Rockwool Masterrock NB Kaschiert") -> Rockwool Masterrock NB laminated | C28: 2 | D28: 0.05 | E28: 100 | G28: 0.5 | H28: =E28*0.1 -> 10 | J28: 2 | K28: 0.2
B29: =ml("lst_gutexerm", "Gutex Ultratherm") -> Gutex Ultratherm | C29: 2.25 | D29: 0.05 | E29: 80 | G29: 0.5 | H29: =E29*0.1 -> 8 | J29: 2.25 | K29: 0.18
B30: =ml("lst_freieabe", "freie Eingabe") -> free input
C32: data_DaemmWeich
B33: lst_DaemmWeich | C33: gk2 [KN/m2] | D33: σ10% [N/mm2] | E33: d_Dä [mm] | G33: E-Modul [N/mm2] | H33: Stauchung 10% [mm]
A34: =MATCH('Thermal insulation'!$B$70,lst_DaemmWeich,0) ->  | B34: =ml("lst_sft_weichung", "Weiche Dämmung") -> Soft insulation | C34: 0.13 | D34: 0.05 | E34: 120 | G34: 0.5 | H34: =E34*0.1 -> 12
B35: =ml("lst_sft_steicerm", "Steico therm") -> Steico therm | C35: 0.16 | D35: 0.05 | E35: 120 | G35: 0.5 | H35: =E35*0.1 -> 12
B36: =ml("lst_sft_gutexafe", "Gutex Theromsafe") -> Gutex Theromsafe | C36: 0.11 | D36: 0.05 | E36: 120 | G36: 0.5 | H36: =E36*0.1 -> 12
B37: =ml("lst_sft_freieabe", "freie Eingabe") -> free input
B39: SCHRAUBEN
B40: 8 | C40: 20 | D40: 23 | E40: 19 | F40: 22 | G40: 13 | H40: 12
I41: Druckfeste Dämmung | L41: weiche Dämmung
I42: schräge Schrauben | L42: Schraube_2 (Zug) | P42: Schraube_1 (Druck)
B43: Produkt | C43: d [mm] | D43: dk [mm] | E43: L_Gesamt [mm] | F43: L_Gewinde | G43: Kopfdurchzieh | H43: Ausziehp. | I43: l ef,L [mm] | J43: l ef,UK [mm] | K43: L D[mm] | L43: l ef,L [mm] | M43: l ef,UK [mm] | N43: L D [mm] | O43: R ki,d [KN] | P43: l ef,L [mm] | Q43: l ef,UK [mm] | R43: L D [mm] | S43: R ki,d [KN]
B44: =INDEX(dat_schrauben,index_schraube,B40) -> ESSVE CY-FT 8,0 x 450/427 | C44: =INDEX(dat_schrauben,index_schraube,C40) -> 8 | D44: =IF(ISNUMBER(INDEX(dat_schrauben,index_schraube,D40)),INDEX(dat_schrauben,index_schraube,D40),0) -> 10.2 | E44: =INDEX(dat_schrauben,index_schraube,E40) -> 450 | F44: =WM_ZAHLENWERT(TRIM(SUBSTITUTE(INDEX(dat_schrauben,index_schraube,F40),"/",""))) ->  | G44: =IF(ISNUMBER(INDEX(dat_schrauben,index_schraube,G40)),INDEX(dat_schrauben,index_schraube,G40),0) -> 0 | H44: =INDEX(dat_schrauben,index_schraube,H40) -> 13.1 | I44: ='Thermal insulation'!$D$106 ->  | J44: ='Thermal insulation'!$D$109 ->  | K44: ='Thermal insulation'!$D$107 -> 311.7691454 | L44: ='Thermal insulation'!$D$135 -> 34.64101615 | M44: ='Thermal insulation'!$D$139 ->  | N44: ='Thermal insulation'!$D$137 -> 311.7691454 | O44: =fh_sverweis(L_s_dä_zug,data_ausknicken, IF(vba_Schraube_d=6,2, IF(vba_Schraube_d=8,3, IF(vba_Schraube_d>=10,4,0)))) ->  | P44: ='Thermal insulation'!$D$128 -> 34.64101615 | Q44: ='Thermal insulation'!$D$132 ->  | R44: ='Thermal insulation'!$D$130 -> 311.7691454 | S44: =fh_sverweis(L_s_dä_druck,data_ausknicken, IF(vba_Schraube_d=6,2, IF(vba_Schraube_d=8,3, IF(vba_Schraube_d>=10,4,0)))) -> 
A45: Index 2 | B45: =INDEX(dat_schrauben,index_schraube_2,B40) -> ESSVE CY-FT 8,0X400/390 | C45: =INDEX(dat_schrauben,index_schraube_2,C40) -> 8 | D45: =IF(ISNUMBER(INDEX(dat_schrauben,index_schraube_2,D40)),INDEX(dat_schrauben,index_schraube_2,D40),0) -> 10.2 | E45: =INDEX(dat_schrauben,index_schraube_2,E40) -> 400 | F45: =WM_ZAHLENWERT(TRIM(SUBSTITUTE(INDEX(dat_schrauben,index_schraube_2,F40),"/",""))) ->  | G45: =IF(ISNUMBER(INDEX(dat_schrauben,index_schraube,G40)),INDEX(dat_schrauben,index_schraube_2,G40),0) -> 0 | H45: =INDEX(dat_schrauben,index_schraube_2,H40) -> 13.1 | I45: =l_ef_L ->  | J45: =l_ef_Uk ->  | K45: =L_s_dä -> 311.7691454 | L45: =l_ef_l_zug -> 34.64101615 | M45: =l_ef_UK_zug ->  | N45: =L_s_dä_zug -> 311.7691454 | O45: =R_k ->  | P45: =l_ef_L_druck -> 34.64101615 | Q45: =l_ef_UK_druck ->  | R45: =L_s_dä_druck -> 311.7691454 | S45: =R_ki_d_1 -> 
C47: data_Dacheindeckung | G47: vba_screwTypeTemp
B48: Ist_Dacheindeckung | C48: gk1 | G48: =slst_screwtypes -> 
A49: =MATCH('Thermal insulation'!D38,Ist_Dacheindeckung,0) -> 1 | B49: =ml("lst_metal", "Metalldach") -> Metal | C49: 0.3
B50: =ml("lst_schin", "Schindeldach") -> Shingles | C50: 0.3
B51: =ml("lst_dachz", "Dachziegel") -> tiles | C51: 0.5
B52: =ml("lst_dachs", "Dachsteine") -> tiles | C52: 0.5
B53: =ml("lst_schie", "Schiefer") -> Slate | C53: 0.5
B54: =ml("lst_biber", "Biberdoppeldeckung") -> Beaver double roofing | C54: 0.75
B55: =ml("lst_freie", "freie Eingabe") -> free input
C57: data_Variante
B58: Ist_Variante
A59: =MATCH('Thermal insulation'!B34,Ist_Variante,0) -> 1 | B59: =ml("ad_varian2","Variante 2 - Druckfeste Dämmung/ nur eine Neigungsrichtung der Schrauben") -> Method 2 - Hard Insulation / one direction of inclination of the screws | C59: =ml("ad_varian3","nur eine Neigungsrichtung der Schrauben") -> one direction of inclination of the screws
B60: =ml("ad_varian1","Variante 1 - Weiche Dämmung/ Abwechselnde Neigung der Schrauben") -> Method 1 - Soft Insulation / changing direction of inclination of the screws | C60: =ml("ad_varian4","abwechselnde Neigung der Schrauben") -> changing direction of inclination of the screws
B62: Ist_sHöhe
A63: =MATCH('Thermal insulation'!$D$45,ist_sHöhe,0) -> 2 | B63: > 1000 m
B64: ≤ 1000 m
C65: data_SchraubHart
C66: 1 | D66: 2 | E66: 3 | G66: 4 | H66: 5 | I66: 6
B67: Ist_SchraubHart | C67: d [mm] | D67: dk [mm] | E67: di [mm] | G67: L_Gesamt [mm] | I67: L_Gewinde [mm]
A68: =MATCH('Thermal insulation'!B86,Ist_SchraubHart,0) ->  | B68: STAR DRIVE VG ZYLK.VD 8,0X140/130 | C68: 8 | D68: 0 | G68: 140 | I68: / 130 | K68: TRUE | L68: StarDrive Voll Gew. | M68: 1131740801400001 | N68: 080x140/130 | O68: L0L 1A1 A0E | P68: E | Q68: T40/GELB (Essve-package) | R68: 24.1 | S68: 20.3 | T68: 13.1 | U68: kein Kopfdurchzug | V68: 950 | W68: 25.8 | X68: 8.7 | Y68: 8,0 x 140 | Z68: kein kopfdurchzug | AB68: TX 40 | AC68: StarDrive VOLLGEWINDE | AD68: cylinderkopf | AF68: EG-Vollgewinde + VD | AG68: gelb verzinkt | AI68: ETA | AJ68: ETA 12/0373 | AK68: 14 | AL68: LE 009 | AM68: 1359-CPD-0519 | AN68: SSH_ETA.lab | AO68: D10
B69: STAR DRIVE VG ZYLK.VD 8,0X160/150 | C69: 8 | D69: 0 | G69: 160 | I69: / 150 | K69: TRUE | L69: StarDrive Voll Gew. | M69: 1131740801600001 | N69: 080x160/150 | O69: L0L 1A1 A0E | P69: E | Q69: T40/GELB (Essve-package) | R69: 24.1 | S69: 20.3 | T69: 13.1 | U69: kein Kopfdurchzug | V69: 950 | W69: 25.8 | X69: 8.7 | Y69: 8,0 x 160 | Z69: kein kopfdurchzug | AB69: TX 40 | AC69: StarDrive VOLLGEWINDE | AD69: cylinderkopf | AF69: EG-Vollgewinde + VD | AG69: gelb verzinkt | AI69: ETA | AJ69: ETA 12/0373 | AK69: 14 | AL69: LE 009 | AM69: 1359-CPD-0519 | AN69: SSH_ETA.lab | AO69: D10
B70: STAR DRIVE VG ZYLK.VD 8,0X180/170 | C70: 8 | D70: 0 | G70: 180 | I70: / 170 | K70: TRUE | L70: StarDrive Voll Gew. | M70: 1131740801800001 | N70: 080x180/170 | O70: L0L 1A1 A0E | P70: E | Q70: T40/GELB (Essve-package) | R70: 24.1 | S70: 20.3 | T70: 13.1 | U70: kein Kopfdurchzug | V70: 950 | W70: 25.8 | X70: 8.7 | Y70: 8,0 x 180 | Z70: kein kopfdurchzug | AB70: TX 40 | AC70: StarDrive VOLLGEWINDE | AD70: cylinderkopf | AF70: EG-Vollgewinde + VD | AG70: gelb verzinkt | AI70: ETA | AJ70: ETA 12/0373 | AK70: 14 | AL70: LE 009 | AM70: 1359-CPD-0519 | AN70: SSH_ETA.lab | AO70: D10
B71: STAR DRIVE VG ZYLK.VD 8,0X200/190 | C71: 8 | D71: 0 | G71: 200 | I71: / 190 | K71: TRUE | L71: StarDrive Voll Gew. | M71: 1131740802000001 | N71: 080x200/190 | O71: L0L 1A1 A0E | P71: E | Q71: T40/GELB (Essve-package) | R71: 24.1 | S71: 20.3 | T71: 13.1 | U71: kein Kopfdurchzug | V71: 950 | W71: 25.8 | X71: 8.7 | Y71: 8,0 x 200 | Z71: kein kopfdurchzug | AB71: TX 40 | AC71: StarDrive VOLLGEWINDE | AD71: cylinderkopf | AF71: EG-Vollgewinde + VD | AG71: gelb verzinkt | AI71: ETA | AJ71: ETA 12/0373 | AK71: 14 | AL71: LE 009 | AM71: 1359-CPD-0519 | AN71: SSH_ETA.lab | AO71: D10
B72: STAR DRIVE VG ZYLK.VD 8,0X220/210 | C72: 8 | D72: 0 | G72: 220 | I72: / 210 | K72: TRUE | L72: StarDrive Voll Gew. | M72: 1131740802200001 | N72: 080x220/210 | O72: L0L 1A1 A0E | P72: E | Q72: T40/GELB (Essve-package) | R72: 24.1 | S72: 20.3 | T72: 13.1 | U72: kein Kopfdurchzug | V72: 950 | W72: 25.8 | X72: 8.7 | Y72: 8,0 x 220 | Z72: kein kopfdurchzug | AB72: TX 40 | AC72: StarDrive VOLLGEWINDE | AD72: cylinderkopf | AF72: EG-Vollgewinde + VD | AG72: gelb verzinkt | AI72: ETA | AJ72: ETA 12/0373 | AK72: 14 | AL72: LE 009 | AM72: 1359-CPD-0519 | AN72: SSH_ETA.lab | AO72: D10
B73: STAR DRIVE VG ZYLK.VD 8,0X240/230 | C73: 8 | D73: 0 | G73: 240 | I73: / 230 | K73: TRUE | L73: StarDrive Voll Gew. | M73: 1131740802400001 | N73: 080x240/230 | O73: L0L 1A1 A0E | P73: E | Q73: T40/GELB (Essve-package) | R73: 24.1 | S73: 20.3 | T73: 13.1 | U73: kein Kopfdurchzug | V73: 950 | W73: 25.8 | X73: 8.7 | Y73: 8,0 x 240 | Z73: kein kopfdurchzug | AB73: TX 40 | AC73: StarDrive VOLLGEWINDE | AD73: cylinderkopf | AF73: EG-Vollgewinde + VD | AG73: gelb verzinkt | AI73: ETA | AJ73: ETA 12/0373 | AK73: 14 | AL73: LE 009 | AM73: 1359-CPD-0519 | AN73: SSH_ETA.lab | AO73: D10
B74: STAR DRIVE VG ZYLK.VD 8,0X260/250 | C74: 8 | D74: 0 | G74: 260 | I74: / 250 | K74: TRUE | L74: StarDrive Voll Gew. | M74: 1131740802600001 | N74: 080x260/250 | O74: L0L 1A1 A0E | P74: E | Q74: T40/GELB (Essve-package) | R74: 24.1 | S74: 20.3 | T74: 13.1 | U74: kein Kopfdurchzug | V74: 950 | W74: 25.8 | X74: 8.7 | Y74: 8,0 x 260 | Z74: kein kopfdurchzug | AB74: TX 40 | AC74: StarDrive VOLLGEWINDE | AD74: cylinderkopf | AF74: EG-Vollgewinde + VD | AG74: gelb verzinkt | AI74: ETA | AJ74: ETA 12/0373 | AK74: 14 | AL74: LE 009 | AM74: 1359-CPD-0519 | AN74: SSH_ETA.lab | AO74: D10
B75: STAR DRIVE VG ZYLK.VD 8,0X280/270 | C75: 8 | D75: 0 | G75: 280 | I75: / 270 | K75: TRUE | L75: StarDrive Voll Gew. | M75: 1131740802800001 | N75: 080x280/270 | O75: L0L 1A1 A0E | P75: E | Q75: T40/GELB (Essve-package) | R75: 24.1 | S75: 20.3 | T75: 13.1 | U75: kein Kopfdurchzug | V75: 950 | W75: 25.8 | X75: 8.7 | Y75: 8,0 x 280 | Z75: kein kopfdurchzug | AB75: TX 40 | AC75: StarDrive VOLLGEWINDE | AD75: cylinderkopf | AF75: EG-Vollgewinde + VD | AG75: gelb verzinkt | AI75: ETA | AJ75: ETA 12/0373 | AK75: 14 | AL75: LE 009 | AM75: 1359-CPD-0519 | AN75: SSH_ETA.lab | AO75: D10
B76: STAR DRIVE VG ZYLK.VD 8,0X300/290 | C76: 8 | D76: 0 | G76: 300 | I76: / 290 | K76: TRUE | L76: StarDrive Voll Gew. | M76: 1131740803000001 | N76: 080x300/290 | O76: L0L 1A1 A0E | P76: E | Q76: T40/GELB (Essve-package) | R76: 24.1 | S76: 20.3 | T76: 13.1 | U76: kein Kopfdurchzug | V76: 950 | W76: 25.8 | X76: 8.7 | Y76: 8,0 x 300 | Z76: kein kopfdurchzug | AB76: TX 40 | AC76: StarDrive VOLLGEWINDE | AD76: cylinderkopf | AF76: EG-Vollgewinde + VD | AG76: gelb verzinkt | AI76: ETA | AJ76: ETA 12/0373 | AK76: 14 | AL76: LE 009 | AM76: 1359-CPD-0519 | AN76: SSH_ETA.lab | AO76: D10
B77: STAR DRIVE VG ZYLK.VD 8,0X350/340 | C77: 8 | D77: 0 | G77: 350 | I77: / 340 | K77: TRUE | L77: StarDrive Voll Gew. | M77: 1131740803500001 | N77: 080x350/340 | O77: L0L 1A1 A0E | P77: E | Q77: T40/GELB (Essve-package) | R77: 24.1 | S77: 20.3 | T77: 13.1 | U77: kein Kopfdurchzug | V77: 950 | W77: 25.8 | X77: 8.7 | Y77: 8,0 x 350 | Z77: kein kopfdurchzug | AB77: TX 40 | AC77: StarDrive VOLLGEWINDE | AD77: cylinderkopf | AF77: EG-Vollgewinde + VD | AG77: gelb verzinkt | AI77: ETA | AJ77: ETA 12/0373 | AK77: 14 | AL77: LE 009 | AM77: 1359-CPD-0519 | AN77: SSH_ETA.lab | AO77: D10
B78: STAR DRIVE VG ZYLK.VD 8,0X400/390 | C78: 8 | D78: 0 | G78: 400 | I78: / 390 | K78: TRUE | L78: StarDrive Voll Gew. | M78: 1131740804000001 | N78: 080x400/390 | O78: L0L 1A1 A0E | P78: E | Q78: T40/GELB (Essve-package) | R78: 24.1 | S78: 20.3 | T78: 13.1 | U78: kein Kopfdurchzug | V78: 950 | W78: 25.8 | X78: 8.7 | Y78: 8,0 x 400 | Z78: kein kopfdurchzug | AB78: TX 40 | AC78: StarDrive VOLLGEWINDE | AD78: cylinderkopf | AF78: EG-Vollgewinde + VD | AG78: gelb verzinkt | AI78: ETA | AJ78: ETA 12/0373 | AK78: 14 | AL78: LE 009 | AM78: 1359-CPD-0519 | AN78: SSH_ETA.lab | AO78: D10
B79: STAR DRIVE VG BIRNENK. 6,0 X120/112 | C79: 6 | D79: 0 | G79: 120 | I79: / 112 | K79: TRUE | L79: StarDrive Voll Gew. | M79: 1132740601200001 | N79: 060x120/112 | O79: E0E 0A0 A0D | P79: D | Q79: T30-GAL ZN GELB (Essve-package) | R79: 12.5 | S79: 10 | T79: 13.5 | U79: kein Kopfdurchzug | V79: 950 | W79: 10.4 | X79: 6.9 | Y79: 6,0 x 120 | Z79: kein kopfdurchzug | AB79: TX 30 | AC79: StarDrive VOLLGEWINDE | AD79: Birnenkopf | AF79: EG-Vollgewinde | AG79: gelb verzinkt | AH79: Z-9.1-656 | AI79: ETA | AJ79: ETA 12/0373 | AK79: 13 | AL79: LE 004 | AM79: 1359-CPD-0519 | AN79: SSH_ETA.lab | AO79: D10
B80: STAR DRIVE VG BIRNENK. 6,0 X140/132 | C80: 6 | D80: 0 | G80: 140 | I80: / 132 | K80: TRUE | L80: StarDrive Voll Gew. | M80: 1132740601400001 | N80: 060x140/132 | O80: E0E 0A0 A0D | P80: D | Q80: T30-GAL ZN GELB (Essve-package) | R80: 12.5 | S80: 10 | T80: 13.5 | U80: kein Kopfdurchzug | V80: 950 | W80: 10.4 | X80: 6.9 | Y80: 6,0 x 140 | Z80: kein kopfdurchzug | AB80: TX 30 | AC80: StarDrive VOLLGEWINDE | AD80: Birnenkopf | AF80: EG-Vollgewinde | AG80: gelb verzinkt | AH80: Z-9.1-656 | AI80: ETA | AJ80: ETA 12/0373 | AK80: 13 | AL80: LE 004 | AM80: 1359-CPD-0519 | AN80: SSH_ETA.lab | AO80: D10
B81: STAR DRIVE VG BIRNENK. 6,0 X160/152 | C81: 6 | D81: 0 | G81: 160 | I81: / 152 | K81: TRUE | L81: StarDrive Voll Gew. | M81: 1132740601600001 | N81: 060x160/152 | O81: E0E 0A0 A0D | P81: D | Q81: T30-GAL ZN GELB (Essve-package) | R81: 12.5 | S81: 10 | T81: 13.5 | U81: kein Kopfdurchzug | V81: 950 | W81: 10.4 | X81: 6.9 | Y81: 6,0 x 160 | Z81: kein kopfdurchzug | AB81: TX 30 | AC81: StarDrive VOLLGEWINDE | AD81: Birnenkopf | AF81: EG-Vollgewinde | AG81: gelb verzinkt | AH81: Z-9.1-656 | AI81: ETA | AJ81: ETA 12/0373 | AK81: 13 | AL81: LE 004 | AM81: 1359-CPD-0519 | AN81: SSH_ETA.lab | AO81: D10
B82: STAR DRIVE VG BIRNENK. 6,0 X180/172 | C82: 6 | D82: 0 | G82: 180 | I82: / 172 | K82: TRUE | L82: StarDrive Voll Gew. | M82: 1132740601800001 | N82: 060x180/172 | O82: E0E 0A0 A0D | P82: D | Q82: T30-GAL ZN GELB (Essve-package) | R82: 12.5 | S82: 10 | T82: 13.5 | U82: kein Kopfdurchzug | V82: 950 | W82: 10.4 | X82: 6.9 | Y82: 6,0 x 180 | Z82: kein kopfdurchzug | AB82: TX 30 | AC82: StarDrive VOLLGEWINDE | AD82: Birnenkopf | AF82: EG-Vollgewinde | AG82: gelb verzinkt | AH82: Z-9.1-656, Z-9.1-509 | AI82: ETA | AJ82: ETA 12/0373 | AK82: 13 | AL82: LE 004 | AM82: 1359-CPD-0519 | AN82: SSH_ETA.lab | AO82: D10
B83: STAR DRIVE VG BIRNENK. 6,0 X200/192 | C83: 6 | D83: 0 | G83: 200 | I83: / 192 | K83: TRUE | L83: StarDrive Voll Gew. | M83: 1132740602000001 | N83: 060x200/192 | O83: E0E 0A0 A0D | P83: D | Q83: T30-GAL ZN GELB (Essve-package) | R83: 12.5 | S83: 10 | T83: 13.5 | U83: kein Kopfdurchzug | V83: 950 | W83: 10.4 | X83: 6.9 | Y83: 6,0 x 200 | Z83: kein kopfdurchzug | AB83: TX 30 | AC83: StarDrive VOLLGEWINDE | AD83: Birnenkopf | AF83: EG-Vollgewinde | AG83: gelb verzinkt | AH83: Z-9.1-656, Z-9.1-509 | AI83: ETA | AJ83: ETA 12/0373 | AK83: 13 | AL83: LE 004 | AM83: 1359-CPD-0519 | AN83: SSH_ETA.lab | AO83: D10
C86: data_SchraubWeich
C87: NAV-Bez1 | D87: DM | E87: Kopfdurchmesser | G87: di | H87: Länge | J87: Gewindelänge | K87: Vorzugstypen für Aufdach+ | L87: Zugelassen für weiche Dämmung bei Aufdach+ | N87: Artikelnr | O87: ETA Code 1 | P87: ETA Code 2 | Q87: ETA- Kennbuchstabe | R87: NAV-Bez2 | S87: Zugtrag- fähigkeit [kN] | T87: Fließ- moment [Nm] | U87: Auszieh- parameter [N/mm2] | V87: Kopfdurchzieh-parameter [N/mm²] | W87: Fließ- grenze [N/mm2] | X87: Torsions- festigkeit [Nm] (Bruchdrehmoment) | Y87: Einschraub drehmoment [Nm] | Z87: Dimension | AA87: Kopf-Art [°] | AB87: Reibteil | AC87: Antrieb | AD87: Et Text 1 | AE87: Kopfgeo | AF87: Schaft | AG87: Gewinde | AH87: Oberfläche | AI87: Nummer Ü-Zeichen | AJ87: ETA oder EN | AK87: ETA-Nummer | AL87: ETA-Jahreszahl | AM87: ETA-LE-Nummer | AN87: ETA-Überwachungsstelle | AO87: Etikettengröße | AP87: Programm
A88: =MATCH('Thermal insulation'!B86,Ist_SchraubWeich,0) ->  | B88: Ist_SchraubWeich | C88: d [mm] | D88: dk [mm] | E88: di [mm] | G88: L_Gesamt [mm] | I88: L_Gewinde [mm]
B89: STAR DRIVE VG ZYLK.VD 8,0X120/110 | C89: 8 | D89: 0 | G89: 120 | I89: / 110 | K89: TRUE | L89: StarDrive Voll Gew. | M89: 1131740801200001 | N89: 080x120/110 | O89: L0L 1A1 A0E | P89: E | Q89: T40/GELB (Essve-package) | R89: 24.1 | S89: 20.3 | T89: 13.1 | U89: kein Kopfdurchzug | V89: 950 | W89: 25.8 | X89: 8.7 | Y89: 8,0 x 120 | Z89: kein kopfdurchzug | AB89: TX 40 | AC89: StarDrive VOLLGEWINDE | AD89: cylinderkopf | AF89: EG-Vollgewinde + VD | AG89: gelb verzinkt | AI89: ETA | AJ89: ETA 12/0373 | AK89: 14 | AL89: LE 009 | AM89: 1359-CPD-0519 | AN89: SSH_ETA.lab | AO89: D10
B90: STAR DRIVE VG ZYLK.VD 8,0X140/130 | C90: 8 | D90: 0 | G90: 140 | I90: / 130 | K90: TRUE | L90: StarDrive Voll Gew. | M90: 1131740801400001 | N90: 080x140/130 | O90: L0L 1A1 A0E | P90: E | Q90: T40/GELB (Essve-package) | R90: 24.1 | S90: 20.3 | T90: 13.1 | U90: kein Kopfdurchzug | V90: 950 | W90: 25.8 | X90: 8.7 | Y90: 8,0 x 140 | Z90: kein kopfdurchzug | AB90: TX 40 | AC90: StarDrive VOLLGEWINDE | AD90: cylinderkopf | AF90: EG-Vollgewinde + VD | AG90: gelb verzinkt | AI90: ETA | AJ90: ETA 12/0373 | AK90: 14 | AL90: LE 009 | AM90: 1359-CPD-0519 | AN90: SSH_ETA.lab | AO90: D10
B91: STAR DRIVE VG ZYLK.VD 8,0X160/150 | C91: 8 | D91: 0 | G91: 160 | I91: / 150 | K91: TRUE | L91: StarDrive Voll Gew. | M91: 1131740801600001 | N91: 080x160/150 | O91: L0L 1A1 A0E | P91: E | Q91: T40/GELB (Essve-package) | R91: 24.1 | S91: 20.3 | T91: 13.1 | U91: kein Kopfdurchzug | V91: 950 | W91: 25.8 | X91: 8.7 | Y91: 8,0 x 160 | Z91: kein kopfdurchzug | AB91: TX 40 | AC91: StarDrive VOLLGEWINDE | AD91: cylinderkopf | AF91: EG-Vollgewinde + VD | AG91: gelb verzinkt | AI91: ETA | AJ91: ETA 12/0373 | AK91: 14 | AL91: LE 009 | AM91: 1359-CPD-0519 | AN91: SSH_ETA.lab | AO91: D10
B92: STAR DRIVE VG ZYLK.VD 8,0X180/170 | C92: 8 | D92: 0 | G92: 180 | I92: / 170 | K92: TRUE | L92: StarDrive Voll Gew. | M92: 1131740801800001 | N92: 080x180/170 | O92: L0L 1A1 A0E | P92: E | Q92: T40/GELB (Essve-package) | R92: 24.1 | S92: 20.3 | T92: 13.1 | U92: kein Kopfdurchzug | V92: 950 | W92: 25.8 | X92: 8.7 | Y92: 8,0 x 180 | Z92: kein kopfdurchzug | AB92: TX 40 | AC92: StarDrive VOLLGEWINDE | AD92: cylinderkopf | AF92: EG-Vollgewinde + VD | AG92: gelb verzinkt | AI92: ETA | AJ92: ETA 12/0373 | AK92: 14 | AL92: LE 009 | AM92: 1359-CPD-0519 | AN92: SSH_ETA.lab | AO92: D10
B93: STAR DRIVE VG ZYLK.VD 8,0X200/190 | C93: 8 | D93: 0 | G93: 200 | I93: / 190 | K93: TRUE | L93: StarDrive Voll Gew. | M93: 1131740802000001 | N93: 080x200/190 | O93: L0L 1A1 A0E | P93: E | Q93: T40/GELB (Essve-package) | R93: 24.1 | S93: 20.3 | T93: 13.1 | U93: kein Kopfdurchzug | V93: 950 | W93: 25.8 | X93: 8.7 | Y93: 8,0 x 200 | Z93: kein kopfdurchzug | AB93: TX 40 | AC93: StarDrive VOLLGEWINDE | AD93: cylinderkopf | AF93: EG-Vollgewinde + VD | AG93: gelb verzinkt | AI93: ETA | AJ93: ETA 12/0373 | AK93: 14 | AL93: LE 009 | AM93: 1359-CPD-0519 | AN93: SSH_ETA.lab | AO93: D10
B94: STAR DRIVE VG ZYLK.VD 8,0X220/210 | C94: 8 | D94: 0 | G94: 220 | I94: / 210 | K94: TRUE | L94: StarDrive Voll Gew. | M94: 1131740802200001 | N94: 080x220/210 | O94: L0L 1A1 A0E | P94: E | Q94: T40/GELB (Essve-package) | R94: 24.1 | S94: 20.3 | T94: 13.1 | U94: kein Kopfdurchzug | V94: 950 | W94: 25.8 | X94: 8.7 | Y94: 8,0 x 220 | Z94: kein kopfdurchzug | AB94: TX 40 | AC94: StarDrive VOLLGEWINDE | AD94: cylinderkopf | AF94: EG-Vollgewinde + VD | AG94: gelb verzinkt | AI94: ETA | AJ94: ETA 12/0373 | AK94: 14 | AL94: LE 009 | AM94: 1359-CPD-0519 | AN94: SSH_ETA.lab | AO94: D10
B95: STAR DRIVE VG ZYLK.VD 8,0X240/230 | C95: 8 | D95: 0 | G95: 240 | I95: / 230 | K95: TRUE | L95: StarDrive Voll Gew. | M95: 1131740802400001 | N95: 080x240/230 | O95: L0L 1A1 A0E | P95: E | Q95: T40/GELB (Essve-package) | R95: 24.1 | S95: 20.3 | T95: 13.1 | U95: kein Kopfdurchzug | V95: 950 | W95: 25.8 | X95: 8.7 | Y95: 8,0 x 240 | Z95: kein kopfdurchzug | AB95: TX 40 | AC95: StarDrive VOLLGEWINDE | AD95: cylinderkopf | AF95: EG-Vollgewinde + VD | AG95: gelb verzinkt | AI95: ETA | AJ95: ETA 12/0373 | AK95: 14 | AL95: LE 009 | AM95: 1359-CPD-0519 | AN95: SSH_ETA.lab | AO95: D10
B96: STAR DRIVE VG ZYLK.VD 8,0X260/250 | C96: 8 | D96: 0 | G96: 260 | I96: / 250 | K96: TRUE | L96: StarDrive Voll Gew. | M96: 1131740802600001 | N96: 080x260/250 | O96: L0L 1A1 A0E | P96: E | Q96: T40/GELB (Essve-package) | R96: 24.1 | S96: 20.3 | T96: 13.1 | U96: kein Kopfdurchzug | V96: 950 | W96: 25.8 | X96: 8.7 | Y96: 8,0 x 260 | Z96: kein kopfdurchzug | AB96: TX 40 | AC96: StarDrive VOLLGEWINDE | AD96: cylinderkopf | AF96: EG-Vollgewinde + VD | AG96: gelb verzinkt | AI96: ETA | AJ96: ETA 12/0373 | AK96: 14 | AL96: LE 009 | AM96: 1359-CPD-0519 | AN96: SSH_ETA.lab | AO96: D10
B97: STAR DRIVE VG ZYLK.VD 8,0X280/270 | C97: 8 | D97: 0 | G97: 280 | I97: / 270 | K97: TRUE | L97: StarDrive Voll Gew. | M97: 1131740802800001 | N97: 080x280/270 | O97: L0L 1A1 A0E | P97: E | Q97: T40/GELB (Essve-package) | R97: 24.1 | S97: 20.3 | T97: 13.1 | U97: kein Kopfdurchzug | V97: 950 | W97: 25.8 | X97: 8.7 | Y97: 8,0 x 280 | Z97: kein kopfdurchzug | AB97: TX 40 | AC97: StarDrive VOLLGEWINDE | AD97: cylinderkopf | AF97: EG-Vollgewinde + VD | AG97: gelb verzinkt | AI97: ETA | AJ97: ETA 12/0373 | AK97: 14 | AL97: LE 009 | AM97: 1359-CPD-0519 | AN97: SSH_ETA.lab | AO97: D10
B98: STAR DRIVE VG ZYLK.VD 8,0X300/290 | C98: 8 | D98: 0 | G98: 300 | I98: / 290 | K98: TRUE | L98: StarDrive Voll Gew. | M98: 1131740803000001 | N98: 080x300/290 | O98: L0L 1A1 A0E | P98: E | Q98: T40/GELB (Essve-package) | R98: 24.1 | S98: 20.3 | T98: 13.1 | U98: kein Kopfdurchzug | V98: 950 | W98: 25.8 | X98: 8.7 | Y98: 8,0 x 300 | Z98: kein kopfdurchzug | AB98: TX 40 | AC98: StarDrive VOLLGEWINDE | AD98: cylinderkopf | AF98: EG-Vollgewinde + VD | AG98: gelb verzinkt | AI98: ETA | AJ98: ETA 12/0373 | AK98: 14 | AL98: LE 009 | AM98: 1359-CPD-0519 | AN98: SSH_ETA.lab | AO98: D10
B99: STAR DRIVE VG ZYLK.VD 8,0X350/340 | C99: 8 | D99: 0 | G99: 350 | I99: / 340 | K99: TRUE | L99: StarDrive Voll Gew. | M99: 1131740803500001 | N99: 080x350/340 | O99: L0L 1A1 A0E | P99: E | Q99: T40/GELB (Essve-package) | R99: 24.1 | S99: 20.3 | T99: 13.1 | U99: kein Kopfdurchzug | V99: 950 | W99: 25.8 | X99: 8.7 | Y99: 8,0 x 350 | Z99: kein kopfdurchzug | AB99: TX 40 | AC99: StarDrive VOLLGEWINDE | AD99: cylinderkopf | AF99: EG-Vollgewinde + VD | AG99: gelb verzinkt | AI99: ETA | AJ99: ETA 12/0373 | AK99: 14 | AL99: LE 009 | AM99: 1359-CPD-0519 | AN99: SSH_ETA.lab | AO99: D10
B100: STAR DRIVE VG ZYLK.VD 8,0X400/390 | C100: 8 | D100: 0 | G100: 400 | I100: / 390 | K100: TRUE | L100: StarDrive Voll Gew. | M100: 1131740804000001 | N100: 080x400/390 | O100: L0L 1A1 A0E | P100: E | Q100: T40/GELB (Essve-package) | R100: 24.1 | S100: 20.3 | T100: 13.1 | U100: kein Kopfdurchzug | V100: 950 | W100: 25.8 | X100: 8.7 | Y100: 8,0 x 400 | Z100: kein kopfdurchzug | AB100: TX 40 | AC100: StarDrive VOLLGEWINDE | AD100: cylinderkopf | AF100: EG-Vollgewinde + VD | AG100: gelb verzinkt | AI100: ETA | AJ100: ETA 12/0373 | AK100: 14 | AL100: LE 009 | AM100: 1359-CPD-0519 | AN100: SSH_ETA.lab | AO100: D10
B101: STAR DRIVE VG BIRNENK. 6,0 X120/112 | C101: 6 | D101: 0 | G101: 120 | I101: / 112 | K101: TRUE | L101: StarDrive Voll Gew. | M101: 1132740601200001 | N101: 060x120/112 | O101: E0E 0A0 A0D | P101: D | Q101: T30-GAL ZN GELB (Essve-package) | R101: 12.5 | S101: 10 | T101: 13.5 | U101: kein Kopfdurchzug | V101: 950 | W101: 10.4 | X101: 6.9 | Y101: 6,0 x 120 | Z101: kein kopfdurchzug | AB101: TX 30 | AC101: StarDrive VOLLGEWINDE | AD101: Birnenkopf | AF101: EG-Vollgewinde | AG101: gelb verzinkt | AH101: Z-9.1-656 | AI101: ETA | AJ101: ETA 12/0373 | AK101: 13 | AL101: LE 004 | AM101: 1359-CPD-0519 | AN101: SSH_ETA.lab | AO101: D10
B102: STAR DRIVE VG BIRNENK. 6,0 X140/132 | C102: 6 | D102: 0 | G102: 140 | I102: / 132 | K102: TRUE | L102: StarDrive Voll Gew. | M102: 1132740601400001 | N102: 060x140/132 | O102: E0E 0A0 A0D | P102: D | Q102: T30-GAL ZN GELB (Essve-package) | R102: 12.5 | S102: 10 | T102: 13.5 | U102: kein Kopfdurchzug | V102: 950 | W102: 10.4 | X102: 6.9 | Y102: 6,0 x 140 | Z102: kein kopfdurchzug | AB102: TX 30 | AC102: StarDrive VOLLGEWINDE | AD102: Birnenkopf | AF102: EG-Vollgewinde | AG102: gelb verzinkt | AH102: Z-9.1-656 | AI102: ETA | AJ102: ETA 12/0373 | AK102: 13 | AL102: LE 004 | AM102: 1359-CPD-0519 | AN102: SSH_ETA.lab | AO102: D10
B103: STAR DRIVE VG BIRNENK. 6,0 X160/152 | C103: 6 | D103: 0 | G103: 160 | I103: / 152 | K103: TRUE | L103: StarDrive Voll Gew. | M103: 1132740601600001 | N103: 060x160/152 | O103: E0E 0A0 A0D | P103: D | Q103: T30-GAL ZN GELB (Essve-package) | R103: 12.5 | S103: 10 | T103: 13.5 | U103: kein Kopfdurchzug | V103: 950 | W103: 10.4 | X103: 6.9 | Y103: 6,0 x 160 | Z103: kein kopfdurchzug | AB103: TX 30 | AC103: StarDrive VOLLGEWINDE | AD103: Birnenkopf | AF103: EG-Vollgewinde | AG103: gelb verzinkt | AH103: Z-9.1-656 | AI103: ETA | AJ103: ETA 12/0373 | AK103: 13 | AL103: LE 004 | AM103: 1359-CPD-0519 | AN103: SSH_ETA.lab | AO103: D10
B104: STAR DRIVE VG BIRNENK. 6,0 X180/172 | C104: 6 | D104: 0 | G104: 180 | I104: / 172 | K104: TRUE | L104: StarDrive Voll Gew. | M104: 1132740601800001 | N104: 060x180/172 | O104: E0E 0A0 A0D | P104: D | Q104: T30-GAL ZN GELB (Essve-package) | R104: 12.5 | S104: 10 | T104: 13.5 | U104: kein Kopfdurchzug | V104: 950 | W104: 10.4 | X104: 6.9 | Y104: 6,0 x 180 | Z104: kein kopfdurchzug | AB104: TX 30 | AC104: StarDrive VOLLGEWINDE | AD104: Birnenkopf | AF104: EG-Vollgewinde | AG104: gelb verzinkt | AH104: Z-9.1-656, Z-9.1-509 | AI104: ETA | AJ104: ETA 12/0373 | AK104: 13 | AL104: LE 004 | AM104: 1359-CPD-0519 | AN104: SSH_ETA.lab | AO104: D10
B105: STAR DRIVE VG BIRNENK. 6,0 X200/192 | C105: 6 | D105: 0 | G105: 200 | I105: / 192 | K105: TRUE | L105: StarDrive Voll Gew. | M105: 1132740602000001 | N105: 060x200/192 | O105: E0E 0A0 A0D | P105: D | Q105: T30-GAL ZN GELB (Essve-package) | R105: 12.5 | S105: 10 | T105: 13.5 | U105: kein Kopfdurchzug | V105: 950 | W105: 10.4 | X105: 6.9 | Y105: 6,0 x 200 | Z105: kein kopfdurchzug | AB105: TX 30 | AC105: StarDrive VOLLGEWINDE | AD105: Birnenkopf | AF105: EG-Vollgewinde | AG105: gelb verzinkt | AH105: Z-9.1-656, Z-9.1-509 | AI105: ETA | AJ105: ETA 12/0373 | AK105: 13 | AL105: LE 004 | AM105: 1359-CPD-0519 | AN105: SSH_ETA.lab | AO105: D10
G106: 320
C108: data_Konterlatte
B109: Ist_Konterlatte | C109: fm,k [N/mm2] | D109: E0,mean [N/mm2]
B110: C24 | C110: 24 | D110: 11000
B111: C27 | C111: 27 | D111: 11500
A112: =MATCH(Fest_KL,ist_KL,0) -> 1 | B112: C30 | C112: 30 | D112: 12000
B113: C35 | C113: 35 | D113: 13000
B118: Freie Schraubenlänge l [mm] | C118: Bemessungswert der Tragfähigkeit der Schrauben auf Ausknicken Rki,d in KN
C119: d= 6 mm | D119: d= 8 mm | E119: d= 10 mm
B120: 0 | C120: 1.52 | D120: 5.17 | E120: 9.51
B121: 80 | C121: 1.52 | D121: 5.17 | E121: 9.51
B122: 100 | C122: 1.1 | D122: 3.83 | E122: 7.2
B123: 120 | C123: 0.83 | D123: 2.93 | E123: 5.59
B124: 140 | C124: 0.65 | D124: 2.31 | E124: 4.44
B125: 160 | C125: 0.52 | D125: 1.87 | E125: 3.61
B126: 180 | C126: 0.42 | D126: 1.54 | E126: 2.98 | H126: l vorh
B127: 200 | C127: 0.35 | D127: 1.29 | E127: 2.51 | H127: 200 | I127: =fh_sverweis(H127,data_ausknicken,4) -> 2.51
B128: 220 | C128: 0.3 | D128: 1.1 | E128: 2.14
B129: 240 | C129: 0.26 | D129: 0.94 | E129: 1.84
B130: 260 | C130: 0.22 | D130: 0.82 | E130: 1.6
B131: 280 | C131: 0.19 | D131: 0.72 | E131: 1.41
B132: 300 | C132: 0.17 | D132: 0.63 | E132: 1.25
B133: 320 | D133: 0.57 | E133: 1.11
B134: 340 | D134: 0.51 | E134: 1
B135: 360 | D135: 0.46 | E135: 0.9
B136: 380 | D136: 0.41 | E136: 0.81
B137: 400 | D137: 0.38 | E137: 0.74
B138: 420 | D138: 0.34 | E138: 0.68
B139: 440 | D139: 0.32 | E139: 0.62
B140: 460 | D140: 0.29 | E140: 0.57
B141: 480 | D141: 0.27 | E141: 0.53
B142: 500 | D142: 0.25 | E142: 0.49
B143: 520 | D143: 0.23 | E143: 0.46
B144: 540 | D144: 0.22 | E144: 0.43
B148: Ist_Dachform_1
B149: =ml("ad_satteldach","Satteldach") -> double pitched
B150: =ml("ad_pultdach","Pultdach") -> single pitched / flat
B154: =ml("ad_konter_grundl","Konterlatte / Grundlatte (GL)") -> Counter-batten
B155: =ml("ad_dämm1","Druckfeste Dämmung") -> Hard Insulation | D155: =ml("ad_dämm2","Weiche Dämmung") -> Soft Insulation
B156: =ml("ad_schalu","Schalung") -> Formwork
B157: =ml("ad_unterkonstr","Unterkonstruktion") -> sub construction
B159: Ist_ScrewPos | C159: tf
A160: =MATCH(wahl_ScrewPos,Ist_ScrewPos,0) -> 2 | B160: =ml("lst_sp_1","Kopf Versenkt") -> Head sunken | C160: 0
B161: =ml("lst_sp_2","Kopf nicht Versenkt") -> Head not countersunk | C161: -12
B162: =ml("lst_sp_3","Nur bis Gewindestart eingeschraubt") -> Only screwed in up to threaded start | C162: -20
B163: =ml("lst_sp_4","Sonstige") -> Other | C163: 10
B166: vba_langindex | C166: 2
B167: vba_codeindex | C167: 5

Sheet calc soft_2 (hidden)
A1: Unendliche Konterlatte/Grundlatte mit zwei unterschiedlich geneigten Schrauben
A2: Für die Berechnung von Konterlatten mit druckweichen Dämmungen und für die Berechnung von Windsogkräften bei druckfesten Dämmungen
B3: q d | C3: =qd_schräg -> 0.3108375 | D3: KN/m
B4: beta | C4: =beta -> 90 | D4: °
A5: Einwirkungen
A6: LF 1 | B6: q _|_ | C6: =C3*COS(RADIANS(C4)) -> 1.904110414e-17 | D6: kN/m | E6: quer zur Konterlatte/Grundlatte
A7: LF 2 | B7: q // | C7: =-C3*SIN(RADIANS(C4)) -> -0.3108375 | D7: kN/m | E7: in Richtung der Konterlatte/Grundlatte | J7: =q_DLT -> 1.904110414e-17
A9: Längen an der Konterlatte/Grundlatte
B10: l1 | C10: =abstand_b/100 -> 0.05 | D10: m | E10: kurzes Feld (in Zulassung als B bezeichnet <= 50 mm)
B11: l2 | C11: =abstand_a/100 -> 1.75 | D11: m | E11: langes Feld (in Zulassung als A bezeichnet)
A12: Dämmung und Schraubenneigungen
B13: h D | C13: =vba_dDAE/10 -> 27 | D13: cm | E13: Höhe der Dämmung (und allfälliger Schalung)
B14: alpha 1 | C14: =alpha_1_weich -> 60 | D14: ° | E14: Neigung der Talschraube gegenüber dem Sparren
B15: alpha 2 | C15: =alpha_2_weich -> 60 | D15: ° | E15: Neigung der Bergschraube gegenüber dem Sparren
A17: Ergebnisse q _|_
A18: Schraubenkräfte
B19: A | C19: =N31 -> -1.978809588e-17 | D19: kN | E19: Normalkraft Talschraube
B20: B | C20: =N32 -> -1.978809588e-17 | D20: kN | E20: Normalkraft Bergschraube
A21: Momente
B22: M 1 | C22: =N34 -> 2.564598714e-18 | D22: kNm
B23: M 2 | C23: =N35 -> -4.724573965e-18 | D23: kNm | M23: Statisch unbestimmte Rechnung - Symmetrisches Teilsystem
B24: M 3 | C24: =N36 -> -4.724573965e-18 | D24: kNm
B25: M 4 | C25: =N37 -> 2.564598714e-18 | D25: kNm | M25: M X1=1 | N25: 1 | O25: kNm | P25: EI · δ 1,1 | Q25: =l1_DLT+l2_DLT -> 1.8
A27: Durchbiegung am Modell des Durchlaufträgers ohne geneigte Schrauben | M27: M 1,0 | N27: =-q_DLT*((l1_DLT+l2_DLT-C48)^2/2-C48^2/2) -> 0 | O27: kNm
B28: EI w | C28: =((l2_DLT^4+4*l1_DLT*l2_DLT^3-4*l1_DLT^2*l2_DLT^2)*q_DLT)/384 -> 5.166960425e-19 | D28: kNm³ | E28: EI-facher Wert der Durchbiegung (Durchlaufträger) | M28: M 2,0 | N28: =N27-q_DLT*(l2_DLT/2)^2/2 -> -7.28917268e-18 | O28: kNm
M29: M 3,0 | N29: =-q_DLT*(l2_DLT/2)^2/2 -> -7.28917268e-18 | O29: kNm | P29: EI · δ 1,0 | Q29: =1/2*l2_DLT/2*(N27+N28)+1/2*l1_DLT*(N28+N29)+1/2*l2_DLT/2*(N29+0)+2/3*l2_DLT*q_DLT*(l2_DLT/2)^2/8+2/3*l1_DLT*q_DLT*l1_DLT^2/8 -> -4.616277686e-18
M31: A 0 | N31: =-((COS(RADIANS(alpha_2_DLT))*l1_DLT+COS(RADIANS(alpha_2_DLT))*l2_DLT)*q_DLT)/(COS(RADIANS(alpha_1_DLT))*SIN(RADIANS(alpha_2_DLT))+SIN(RADIANS(alpha_1_DLT))*COS(RADIANS(alpha_2_DLT))) -> -1.978809588e-17 | O31: kN
M32: B 0 | N32: =-((COS(RADIANS(alpha_1_DLT))*l1_DLT+COS(RADIANS(alpha_1_DLT))*l2_DLT)*q_DLT)/(COS(RADIANS(alpha_1_DLT))*SIN(RADIANS(alpha_2_DLT))+SIN(RADIANS(alpha_1_DLT))*COS(RADIANS(alpha_2_DLT))) -> -1.978809588e-17 | O32: kN | P32: X 1 = M 4 | Q32: =-Q29/Q25 -> 2.564598714e-18 | R32: kNm
M34: M 1,endg | N34: =$N$25*$Q$32+N27 -> 2.564598714e-18 | O34: kNm
M35: M 2,endg | N35: =$N$25*$Q$32+N28 -> -4.724573965e-18 | O35: kNm
M36: M 3,endg | N36: =$N$25*$Q$32+N29 -> -4.724573965e-18 | O36: kNm
M37: M 4,endg | N37: =$N$25*$Q$32+N30 -> 2.564598714e-18 | O37: kNm
A42: Ergebnisse q //
B44: x 1 | C44: =h_D_DLT/TAN(RADIANS(alpha_1_DLT)) -> 15.58845727 | D44: cm
B45: x 2 | C45: =h_D_DLT/TAN(RADIANS(alpha_2_DLT)) -> 15.58845727 | D45: cm | M45: Statisch unbestimmte Rechnung - Antimetrisches Teilsystem
B47: e 2 | C47: =l1_DLT+(C44+C45)/100 -> 0.3617691454 | D47: m | E47: Abstand der Einschraubpunkte | M47: C X1=1 | N47: =(l2_DLT+l1_DLT-C48)/C48 -> 1 | O47: kN | P47: δ 1,1 | Q47: =1/3*l2_DLT/2*(N47*l2_DLT/2)^2+1/3*l2_DLT/2*(l2_DLT/2)^2+1/3*l1_DLT*((N47*l2_DLT/2)^2+(N47*l2_DLT/2)*(l2_DLT/2)+(l2_DLT/2)^2) -> 0.4848958333
B48: e P | C48: =l2_DLT/2+l1_DLT*SIN(RADIANS(alpha_2_DLT))*COS(RADIANS(alpha_1_DLT))/SIN(RADIANS(180-alpha_1_DLT-alpha_2_DLT)) -> 0.9 | D48: m | E48: hor. Abstand zum Schnittpunkt der Schraubenwirkungslinien | M48: B X1=1 | N48: =((l2_DLT/2+l1_DLT)-N47*l2_DLT/2)*1/C50 -> 1.154700538 | O48: kN
B49: f P | C49: =l1_DLT*SIN(RADIANS(alpha_2_DLT))*SIN(RADIANS(alpha_1_DLT))/SIN(RADIANS(180-alpha_1_DLT-alpha_2_DLT)) -> 0.04330127019 | D49: m | E49: vert. Abstand zum Schnittpunkt der Schraubenwirkungslinien | M49: A X1=1 | N49: =N48*COS(RADIANS(alpha_2_DLT))/COS(RADIANS(alpha_1_DLT)) -> 1.154700538 | O49: kN
B50: n A | C50: =l1_DLT*SIN(RADIANS(alpha_2_DLT)) -> 0.04330127019 | D50: m | E50: Normalabstand der Schraube B zu A | M50: M 2,X1=1 | N50: =N47*l2_DLT/2 -> 0.875 | O50: kNm
A51: Schraubenkräfte
B52: A | C52: =N59 -> -0.5595075 | D52: kN | E52: Normalkraft Talschraube | M52: C 0 | N52: =C7*(l1_DLT+l2_DLT)*C49/C48 -> -0.02691931714 | O52: kN | P52: δ 1,0 | Q52: =1/3*l2_DLT/2*N47*l2_DLT/2*N52*l2_DLT/2+1/6*l1_DLT*(N47*l2_DLT+l2_DLT/2)*N52*l2_DLT/2 -> -0.00652653236
B53: B | C53: =N58 -> 0.5595075 | D53: kN | E53: Normalkraft Bergschraube | M53: B 0 | N53: =-N52*l2_DLT/2/C50 -> 0.543965625 | O53: kN
A54: Momente | M54: A 0 | N54: =(C7*(l1_DLT+l2_DLT)+N53*COS(RADIANS(alpha_2_DLT)))/COS(RADIANS(alpha_1_DLT)) -> -0.575049375 | O54: kN
B55: M 1 | C55: 0 | D55: kNm | M55: M 2,0 | N55: =N52*l2_DLT/2 -> -0.0235544025 | O55: kNm
B56: M 2 | C56: =N60 -> -0.01177720125 | D56: kNm
B57: M 3 | C57: =Q57*l2_DLT/2 -> 0.01177720125 | D57: kNm | M57: C endg | N57: =N47*$Q$57+N52 -> -0.01345965857 | O57: kN | P57: X 1 = D | Q57: =-Q52/Q47 -> 0.01345965857 | R57: kN
B58: M 4 | C58: 0 | D58: kNm | M58: B endg | N58: =N48*$Q$57+N53 -> 0.5595075 | O58: kN
M59: A endg | N59: =N49*$Q$57+N54 -> -0.5595075 | O59: kN
M60: M 2,endg | N60: =N50*$Q$57+N55 -> -0.01177720125 | O60: kNm
A61: GESAMT - Summe aus q // und q _|_
A62: Design Werte
B63: A d | C63: =C19+C52 -> -0.5595075 | D63: kN | F63: geprüft, 21.3.16
B64: B d | C64: =C20+C53 -> 0.5595075 | D64: kN | F64: geprüft, 21.3.16
B66: M 1,d | C66: =C22+C55 -> 2.564598714e-18 | D66: kNm | F66: geprüft, 21.3.16
B67: M 2,d | C67: =C23+C56 -> -0.01177720125 | D67: kNm | F67: geprüft, 21.3.16
B68: M 3,d | C68: =C24+C57 -> 0.01177720125 | D68: kNm | F68: geprüft, 21.3.16
B69: M 4,d | C69: =C25+C58 -> 2.564598714e-18 | D69: kNm | F69: geprüft, 21.3.16
B71: |M max,d| | C71: =MAX(ABS(C66),ABS(C67),ABS(C68),ABS(C69)) -> 0.01177720125

Sheet calc soft_suction_2 (hidden)
A1: Unendliche Konterlatte/Grundlatte mit zwei unterschiedlich geneigten Schrauben
A2: Für die Berechnung von Konterlatten/Grundlatten mit druckweichen Dämmungen und für die Berechnung von Windsogkräften bei druckfesten Dämmungen
B3: q d | C3: =qd_schräg_sog -> -1.771203889 | D3: KN/m
B4: beta | C4: =beta -> 90 | D4: °
A5: Einwirkungen
A6: LF 1 | B6: q _|_ | C6: =C3*COS(RADIANS(C4)) -> -1.084993854e-16 | D6: kN/m | E6: quer zur Konterlatte/Grundlatte
A7: LF 2 | B7: q // | C7: =-Lastkombinationen!C45*(vba_g2k+vba_g3k)*b_e*SIN(RADIANS(C4)) -> -0.045225 | D7: kN/m | E7: in Richtung der Konterlatte/Grundlatte
A9: Längen an der Konterlatte/Grundlatte
B10: l1 | C10: =abstand_b/100 -> 0.05 | D10: m | E10: kurzes Feld (in Zulassung als B bezeichnet <= 50 mm)
B11: l2 | C11: =abstand_a/100 -> 1.75 | D11: m | E11: langes Feld (in Zulassung als A bezeichnet)
A12: Dämmung und Schraubenneigungen
B13: h D | C13: =vba_dDAE/10 -> 27 | D13: cm | E13: Höhe der Dämmung (und allfälliger Schalung)
B14: alpha 1 | C14: =alpha_1_weich -> 60 | D14: ° | E14: Neigung der Talschraube gegenüber dem Sparren
B15: alpha 2 | C15: =alpha_2_weich -> 60 | D15: ° | E15: Neigung der Bergschraube gegenüber dem Sparren
A17: Ergebnisse q _|_
A18: Schraubenkräfte
B19: A | C19: =N31 -> 1.127558689e-16 | D19: kN | E19: Normalkraft Talschraube
B20: B | C20: =N32 -> 1.127558689e-16 | D20: kN | E20: Normalkraft Bergschraube
A21: Momente
B22: M 1 | C22: =N34 -> -1.461351097e-17 | D22: kNm
B23: M 2 | C23: =N35 -> 2.692141001e-17 | D23: kNm | M23: Statisch unbestimmte Rechnung - Symmetrisches Teilsystem
B24: M 3 | C24: =N36 -> 2.692141001e-17 | D24: kNm
B25: M 4 | C25: =N37 -> -1.461351097e-17 | D25: kNm | M25: M X1=1 | N25: 1 | O25: kNm | P25: EI · δ 1,1 | Q25: =l1_DLT+l2_DLT -> 1.8
A27: Durchbiegung am Modell des Durchlaufträgers ohne geneigte Schrauben | M27: M 1,0 | N27: =-q_DLT*((l1_DLT+l2_DLT-C48)^2/2-C48^2/2) -> 0 | O27: kNm
B28: EI w | C28: =((l2_DLT^4+4*l1_DLT*l2_DLT^3-4*l1_DLT^2*l2_DLT^2)*q_DLT)/384 -> -2.94422018e-18 | D28: kNm³ | E28: EI-facher Wert der Durchbiegung (Durchlaufträger) | M28: M 2,0 | N28: =N27-q_DLT*(l2_DLT/2)^2/2 -> 4.153492098e-17 | O28: kNm
M29: M 3,0 | N29: =-q_DLT*(l2_DLT/2)^2/2 -> 4.153492098e-17 | O29: kNm | P29: EI · δ 1,0 | Q29: =1/2*l2_DLT/2*(N27+N28)+1/2*l1_DLT*(N28+N29)+1/2*l2_DLT/2*(N29+0)+2/3*l2_DLT*q_DLT*(l2_DLT/2)^2/8+2/3*l1_DLT*q_DLT*l1_DLT^2/8 -> 2.630431975e-17
M31: A 0 | N31: =-((COS(RADIANS(alpha_2_DLT))*l1_DLT+COS(RADIANS(alpha_2_DLT))*l2_DLT)*q_DLT)/(COS(RADIANS(alpha_1_DLT))*SIN(RADIANS(alpha_2_DLT))+SIN(RADIANS(alpha_1_DLT))*COS(RADIANS(alpha_2_DLT))) -> 1.127558689e-16 | O31: kN
M32: B 0 | N32: =-((COS(RADIANS(alpha_1_DLT))*l1_DLT+COS(RADIANS(alpha_1_DLT))*l2_DLT)*q_DLT)/(COS(RADIANS(alpha_1_DLT))*SIN(RADIANS(alpha_2_DLT))+SIN(RADIANS(alpha_1_DLT))*COS(RADIANS(alpha_2_DLT))) -> 1.127558689e-16 | O32: kN | P32: X 1 = M 4 | Q32: =-Q29/Q25 -> -1.461351097e-17 | R32: kNm
M34: M 1,endg | N34: =$N$25*$Q$32+N27 -> -1.461351097e-17 | O34: kNm
M35: M 2,endg | N35: =$N$25*$Q$32+N28 -> 2.692141001e-17 | O35: kNm
M36: M 3,endg | N36: =$N$25*$Q$32+N29 -> 2.692141001e-17 | O36: kNm
M37: M 4,endg | N37: =$N$25*$Q$32+N30 -> -1.461351097e-17 | O37: kNm
A42: Ergebnisse q //
B44: x 1 | C44: =h_D_DLT/TAN(RADIANS(alpha_1_DLT)) -> 15.58845727 | D44: cm
B45: x 2 | C45: =h_D_DLT/TAN(RADIANS(alpha_2_DLT)) -> 15.58845727 | D45: cm | M45: Statisch unbestimmte Rechnung - Antimetrisches Teilsystem
B47: e 2 | C47: =l1_DLT+(C44+C45)/100 -> 0.3617691454 | D47: m | E47: Abstand der Einschraubpunkte | M47: C X1=1 | N47: =(l2_DLT+l1_DLT-C48)/C48 -> 1 | O47: kN | P47: δ 1,1 | Q47: =1/3*l2_DLT/2*(N47*l2_DLT/2)^2+1/3*l2_DLT/2*(l2_DLT/2)^2+1/3*l1_DLT*((N47*l2_DLT/2)^2+(N47*l2_DLT/2)*(l2_DLT/2)+(l2_DLT/2)^2) -> 0.4848958333
B48: e P | C48: =l2_DLT/2+l1_DLT*SIN(RADIANS(alpha_2_DLT))*COS(RADIANS(alpha_1_DLT))/SIN(RADIANS(180-alpha_1_DLT-alpha_2_DLT)) -> 0.9 | D48: m | E48: hor. Abstand zum Schnittpunkt der Schraubenwirkungslinien | M48: B X1=1 | N48: =((l2_DLT/2+l1_DLT)-N47*l2_DLT/2)*1/C50 -> 1.154700538 | O48: kN
B49: f P | C49: =l1_DLT*SIN(RADIANS(alpha_2_DLT))*SIN(RADIANS(alpha_1_DLT))/SIN(RADIANS(180-alpha_1_DLT-alpha_2_DLT)) -> 0.04330127019 | D49: m | E49: vert. Abstand zum Schnittpunkt der Schraubenwirkungslinien | M49: A X1=1 | N49: =N48*COS(RADIANS(alpha_2_DLT))/COS(RADIANS(alpha_1_DLT)) -> 1.154700538 | O49: kN
B50: n A | C50: =l1_DLT*SIN(RADIANS(alpha_2_DLT)) -> 0.04330127019 | D50: m | E50: Normalabstand der Schraube B zu A | M50: M 2,X1=1 | N50: =N47*l2_DLT/2 -> 0.875 | O50: kNm
A51: Schraubenkräfte
B52: A | C52: =N59 -> -0.081405 | D52: kN | E52: Normalkraft Talschraube | M52: C 0 | N52: =C7*(l1_DLT+l2_DLT)*C49/C48 -> -0.003916599889 | O52: kN | P52: δ 1,0 | Q52: =1/3*l2_DLT/2*N47*l2_DLT/2*N52*l2_DLT/2+1/6*l1_DLT*(N47*l2_DLT+l2_DLT/2)*N52*l2_DLT/2 -> -0.0009495714834
B53: B | C53: =N58 -> 0.081405 | D53: kN | E53: Normalkraft Bergschraube | M53: B 0 | N53: =-N52*l2_DLT/2/C50 -> 0.07914375 | O53: kN
A54: Momente | M54: A 0 | N54: =(C7*(l1_DLT+l2_DLT)+N53*COS(RADIANS(alpha_2_DLT)))/COS(RADIANS(alpha_1_DLT)) -> -0.08366625 | O54: kN
B55: M 1 | C55: 0 | D55: kNm | M55: M 2,0 | N55: =N52*l2_DLT/2 -> -0.003427024903 | O55: kNm
B56: M 2 | C56: =N60 -> -0.001713512451 | D56: kNm
B57: M 3 | C57: =Q57*l2_DLT/2 -> 0.001713512451 | D57: kNm | M57: C endg | N57: =N47*$Q$57+N52 -> -0.001958299944 | O57: kN | P57: X 1 = D | Q57: =-Q52/Q47 -> 0.001958299944 | R57: kN
B58: M 4 | C58: 0 | D58: kNm | M58: B endg | N58: =N48*$Q$57+N53 -> 0.081405 | O58: kN
M59: A endg | N59: =N49*$Q$57+N54 -> -0.081405 | O59: kN
M60: M 2,endg | N60: =N50*$Q$57+N55 -> -0.001713512451 | O60: kNm
A61: GESAMT - Summe aus q // und q _|_
A62: Design Werte
B63: A d | C63: =C52+C19 -> -0.081405 | D63: KN | F63: geprüft, 21.3.16
B64: B d | C64: =C53+C20 -> 0.081405 | D64: KN | F64: geprüft, 21.3.16
B66: M 1,d | C66: =C22+C55 -> -1.461351097e-17 | D66: kNm | F66: geprüft, 21.3.16
B67: M 2,d | C67: =C23+C56 -> -0.001713512451 | D67: kNm | F67: geprüft, 21.3.16
B68: M 3,d | C68: =C24+C57 -> 0.001713512451 | D68: kNm | F68: geprüft, 21.3.16
B69: M 4,d | C69: =C25+C58 -> -1.461351097e-17 | D69: kNm | F69: geprüft, 21.3.16
B71: |M max,d| | C71: =MAX(ABS(C66),ABS(C67),ABS(C68),ABS(C69)) -> 0.001713512451 | D71: kNm

Sheet Listen_Wind + Schnee (hidden)
B2: Druckbeiwerte Satteldach (B 1991-1-4)
A3: Neigungswinkel [°] | B3: Außendruckbeiwerte cpe,1 negativ (Sog) | F3: Außendruckbeiwerte cpe,1 positiv (Druck) | J3: Innendruckbeiwerte (für alle Bereiche)
B4: H,I | C4: G | D4: J | E4: F | F4: H,I | G4: G | H4: J | I4: F | J4: cpi (Sog) | K4: cpi (Druck)
A5: 0 | B5: -1.2 | C5: -2 | D5: -0.6 | E5: -2.5 | F5: 0 | G5: 0 | H5: 0.2 | I5: 0 | J5: -0.3 | K5: 0.2
A6: 5 | B6: -1.2 | C6: -2 | D6: -0.6 | E6: -2.5 | F6: 0 | G6: 0 | H6: 0.2 | I6: 0
A7: 15 | B7: -1.2 | C7: -2 | D7: -1.5 | E7: -2 | F7: 0.2 | G7: 0.2 | H7: 0 | I7: 0.2 | M7: =(D5+D7)/2 -> -1.05
A8: 30 | B8: -1.2 | C8: -2 | D8: -0.5 | E8: -1.5 | F8: 0.4 | G8: 0.7 | H8: 0 | I8: 0.7
A9: 45 | B9: -1.2 | C9: -2 | D9: -0.3 | E9: -1.5 | F9: 0.6 | G9: 0.7 | H9: 0 | I9: 0.7
A10: 60 | B10: -1 | C10: -2 | D10: -0.3 | E10: -1.5 | F10: 0.7 | G10: 0.7 | H10: 0 | I10: 0.7
A11: 75 | B11: -1 | C11: -2 | D11: -0.3 | E11: -1.5 | F11: 0 | G11: 0.8 | H11: 0 | I11: 0.8
A12: 90 | B12: -1 | C12: -2 | D12: -0.3 | E12: -1.5 | F12: 0 | G12: 0.8 | H12: 0 | I12: 0.8
B15: Druckbeiwerte Pultdach (B 1991-1-4)
A16: Neigungswinkel [°] | B16: Außendruckbeiwerte cpe,1 negativ (Sog) | F16: Außendruckbeiwerte cpe,1 positiv (Druck) | J16: Innendruckbeiwerte (für alle Bereiche)
B17: H,I | C17: G | D17: - | E17: F | F17: H,I | G17: G | H17: - | I17: F | J17: cpi (Sog) | K17: cpi (Druck)
A18: 0 | B18: -1.2 | C18: -2 | E18: -2.6 | F18: 0 | G18: 0 | I18: 0 | J18: -0.3 | K18: 0.2
A19: 5 | B19: -1.2 | C19: -2 | E19: -2.6 | F19: 0 | G19: 0 | I19: 0
A20: 15 | B20: -1.2 | C20: -2.5 | E20: -2.9 | F20: 0.2 | G20: 0.2 | I20: 0.2
A21: 30 | B21: -1.3 | C21: -2 | E21: -2.9 | F21: 0.4 | G21: 0.7 | I21: 0.7
A22: 45 | B22: -1.3 | C22: -2 | E22: -2.4 | F22: 0.6 | G22: 0.7 | I22: 0.7
A23: 60 | B23: -1.3 | C23: -2 | E23: -2 | F23: 0.7 | G23: 0.7 | I23: 0.7
A24: 75 | B24: -1.3 | C24: -2 | E24: -2 | F24: 0.8 | G24: 0.8 | I24: 0.8
A25: 90 | B25: -1.3 | C25: -2 | E25: -2 | F25: 0.8 | G25: 0.8 | I25: 0.8
B34: lst_Dachform
A35: =MATCH(Location!E12,Ist_Dachform,0) -> 2 | B35: =ml("ad_satteldach","Satteldach") -> double pitched
B36: =ml("ad_pultdach","Pultdach") -> single pitched / flat
B40: Ist_GK | C40: data_GK | D40: z0 | E40: z min
A41: =MATCH(Location!D34,Liste_Gelaende,0) -> 2 | B41: 0 | C41: =ml("ad_seacoast","Sea or coastal area exposed to the open sea") -> Sea or coastal area exposed to the open sea | D41: 0.003 | E41: 1 | F41: =wind_K_I/(wind_c_0*LN(E41/D41)) -> 0.1721424316
B42: I | C42: =ml("ad_lakes","Areas at lakes or flat terrain with negligible vegetation and no obstacles") -> Areas at lakes or flat terrain with negligible vegetation and no obstacles | D42: 0.01 | E42: 1 | F42: =wind_K_I/(wind_c_0*LN(E42/D42)) -> 0.217147241
B43: II | C43: =ml("ad_g1","Gebiete mit niedriger Vegetation wie Gras und einzelne Hindernisse (Bäume, Gebäude) mit Abständen von min. 20-facher Hindernishöhe") -> Areas with low vegetation such as grass and individual obstacles (trees, buildings) with distances of at least 20 times the height of the obstacle. | D43: 0.05 | E43: 2 | F43: =wind_K_I/(wind_c_0*LN(E43/D43)) -> 0.2710850307
B44: III | C44: =ml("ad_g2","Gebiete mit gleichmäßiger Vegetation oder Bebauung oder mit einzelnen Objekten mit Abständen von weniger als der 20-fachen Hindernishöhe (z.B. Dörfer, vorstäditsche Bebauung, Waldgebiete") -> Areas with uniform vegetation or buildings or with individual objects with distances of less than 20 times the obstacle height (e.g. villages, suburban development, forest areas) | D44: 0.3 | E44: 5 | F44: =wind_K_I/(wind_c_0*LN(E44/D44)) -> 0.3554404602
B45: IV | C45: =ml("ad_g3","Gebiete, in denen mindestens 15% der Oberfläche mit Gebäuden mit einer mittleren Höhe größer als 15 m bebaut sind") -> Areas where at least 15% of the surface area is covered with buildings with an average height greater than 15 m | D45: 1 | E45: 10 | F45: =wind_K_I/(wind_c_0*LN(E45/D45)) -> 0.4342944819
B47: lst_Country
A48: 1 | B48: Österreich (AT)
B49: Deutschland (DE)
C51: data_Standort
B52: Ist_Standort | C52: qb [KN/m2] | D52: sk [KN/m2
A53: =MATCH(Location!E7,Ist_Standort,0) ->  | B53: Wien (1. Bezirk) | C53: 0.39 | D53: 1.35
B54: Eisenstadt | C54: 0.38 | D54: 1.1
B55: Klagenfurt | C55: 0.19 | D55: 2.65
B56: St. Pölten | C56: 0.42 | D56: 1.45
B57: Linz | C57: 0.47 | D57: 1.45
B58: Salzburg (Zentrum) | C58: 0.39 | D58: 1.75
B59: Graz (Zentrum) | C59: 0.26 | D59: 1.65
B60: Innsbruck | C60: 0.46 | D60: 2.1
B61: Bregenz | C61: 0.41 | D61: 2.1
B62: Selbstangabe | C62: -
B65: Abmessungen Satteldach + Pultdach_ WIND
B66: Sparrenlänge | C66: b 1 | D66: =Location!$E$15 -> 9.8 | E66: m
B67: Traufenlänge | C67: b 2 | D67: =Location!$E$16 -> 12 | E67: m
B68: Höhe über Grund (Firsthöhe) | C68: z | D68: =z_wind -> 9 | E68: m
B70: Wind θ=0° | C70: e 1 | D70: =MIN(D66,2*D68) -> 9.8 | E70: m
B71: Wind θ=90° | C71: e 2 | D71: =MIN(D67,2*D68) -> 12 | E71: m
B73: max(e1 /4 ; e2 / 10) | C73: e 1, satteldach | D73: =MAX(D70/4,D71/10) -> 2.45 | E73: m
B74: max(e2 /4 ; e1 / 10) | C74: e 2, satteldach | D74: =MAX(D71/4,D70/10) -> 3 | E74: m
B76: b1 - 2*e1_satteldach | D76: =D66-2*D73 -> 4.9 | E76: m
B77: b2 - 2*e2_satteldach | D77: =D67-2*D74 -> 6 | E77: m
B79: Bereich J | D79: =IF(index_Dachform=1,D71/10*2,"") ->  | E79: m
B80: Bereich H, I | D80: =IF(index_Dachform=1,D66/2-e1_satteldach-D79/2,"") ->  | E80: m
B83: Bereich F | D83: =e1_satteldach*e2_satteldach*4 -> 29.4 | E83: m2
B84: Bereich G | D84: =D76*e2_satteldach*2+D77*e1_satteldach*2 -> 58.8 | E84: m2
B85: Bereich H,I | D85: =IF(index_Dachform=1,D76*D77-D86,D76*D77) -> 29.4 | E85: m2
B86: Bereich J | D86: =D79*D77 ->  | E86: m2
B97: Ist_Schneegitter
A98: =MATCH(Location!E25,Ist_Schneegitter,0) -> 1 | B98: =ml("lst_JA","JA") -> YES
B99: =ml("lst_NEIN","NEIN") -> NO
B101: Deutschland
C102: Data_GK2 | E102: h (bzw. z)
B103: Ist_GK2 | C103: 10 | D103: 10-18 | E103: 18-25 | F103: >25
B104: 1 (Binnenland) | C104: 0.5 | D104: 0.65 | E104: 0.75 | F104: -
B105: 2 (Binnenland) | C105: 0.65 | D105: 0.8 | E105: 0.9 | F105: -
B106: 2 (Küste und Inseln der Ostsee) | C106: 0.85 | D106: 1 | E106: 1.1 | F106: -
B107: 3 (Binnenland) | C107: 0.8 | D107: 0.95 | E107: 1.1 | F107: -
B108: 3 (Küste und Inseln der Ostsee) | C108: 1.05 | D108: 1.2 | E108: 1.3 | F108: -
B109: 4 (Binnenland) | C109: 0.95 | D109: 1.15 | E109: 1.3 | F109: -
B110: 4 (Küste und Inseln der Ostsee) | C110: 1.25 | D110: 1.4 | E110: 1.55 | F110: -
B111: 4 (Inseln der Nordsee) | C111: 1.4 | D111: - | E111: - | F111: -
B113: =IF(z_wind<=10,1,IF(z_wind<=18,2,IF(z_wind<=25,3,4))) -> 1
B115: S_A | C115: =S_AEingabe -> 250 | D115: m
C116: Data_SZD
B117: lst_SZD
B118: Zone 1 | C118: =MAX(0.65,0.19+0.91*((S_A+140)/760)^2) -> 0.65
B119: Zone 1a | C119: =MAX(0.81,1.25*(0.19+0.91*((S_A+140)/760)^2)) -> 0.81
B120: Zone 2 | C120: =MAX(0.85,0.25+1.91*((S_A+140)/760)^2) -> 0.85
B121: Zone 2a | C121: =MAX(1.06,1.25*(0.25+1.91*((S_A+140)/760)^2)) -> 1.06
B122: Zone 3 | C122: =MAX(1.1,0.31+2.91*((S_A+140)/760)^2) -> 1.1
B124: =MATCH(S_Zone,lst_SZD,0) -> 3 | C124: =INDEX(Data_SZD,B124) -> 0.85

Sheet Lastkombinationen (hidden)
K2: lt. EN 1991-1-1:2011 3.3.2(1) müssen auf Dächern Nutzlasten nicht in Kombination mit Schneelasten und/oder Windeinwirkungen angesetzt werden
K3: lt EN 1991-1-1:2011 3.1.3(2) kmod mit kürzerster Lasteinwirkungsdauer
B6: Lastkombination - Lasten parallel zur Dachfläche | G6: Lasten parallel zum Bauteil lt. Ingenieurholzbau
C7: g | D7: n | E7: s | F7: w D | G7: k mod | H7: q d | I7: q d / kmod | L7: Umrechnungsfaktor Lasten parallel zur Dachfläche
A8: =MATCH(I12,I8:I11,0) -> 1 | B8: g | C8: 1.35 | G8: 0.6 | H8: =(C8*(gk+vba_g2k+vba_g3k)*gk_pa)*b_e -> 0.3108375 | I8: =H8/G8 -> 0.5180625 | L8: Eigengewicht | M8: gk | N8: =SIN(beta*PI()/180) -> 1
B9: g+n | C9: 1.35 | D9: 1.5 | G9: 0.9 | H9: =(C9*(gk+vba_g2k+vba_g3k)*gk_pa+D9*nk*nk_pa)*b_e -> 0.3108375 | I9: =H9/G9 -> 0.345375 | L9: Schnee | M9: sk | N9: =SIN(beta*PI()/180)*COS(beta*PI()/180) -> 6.125742275e-17
B10: g+s | C10: 1.35 | E10: 1.5 | G10: =IF(index_sHöhe=1,0.8,0.9) -> 0.9 | H10: =(C10*(gk+vba_g2k+vba_g3k)*gk_pa+E10*sk*sk_pa)*b_e -> 0.3108375 | I10: =H10/G10 -> 0.345375 | L10: Nutzlast | M10: nk | N10: =SIN(beta*PI()/180)*COS(beta*PI()/180) -> 6.125742275e-17
B11: g+s+(n) | C11: 1.35 | D11: =1.5*0 -> 0 | E11: 1.5 | G11: 0.9 | H11: =(C11*(gk+vba_g2k+vba_g3k)*gk_pa+D11*nk*nk_pa+E11*sk*sk_pa)*b_e -> 0.3108375 | I11: =H11/G11 -> 0.345375
I12: =MAX(I8:I11) -> 0.5180625 | J12: KN/m
B15: Lastkombination - Lasten normal zur Dachfläche (Winddruck) | G15: Lasten normal zum Bauteil lt. Ingenieurholzbau
C16: g | D16: n | E16: s | F16: w D | G16: k mod | H16: q d | I16: q d / kmod | L16: Umrechnungsfaktor Lasten normal zur Dachfläche
A17: =MATCH(I23,I17:I23,0) -> 5 | B17: g | C17: 1.35 | G17: 0.6 | H17: =(C17*(gk+vba_g2k+vba_g3k)*gk_no)*b_e -> 1.904110414e-17 | I17: =H17/G17 -> 3.173517357e-17 | L17: Eigengewicht | M17: gk | N17: =COS(beta*PI()/180) -> 6.125742275e-17
B18: g+n | C18: 1.35 | D18: 1.5 | G18: 0.9 | H18: =(C18*(gk+vba_g2k+vba_g3k)*gk_no+D18*nk*nk_no)*b_e -> 1.904110414e-17 | I18: 2.115678238e-17 | L18: Schnee | M18: sk | N18: =COS(beta*PI()/180)*COS(beta*PI()/180) -> 3.752471841e-33
B19: g+s | C19: 1.35 | E19: 1.5 | G19: =IF(index_sHöhe=1,0.8,0.9) -> 0.9 | H19: =(C19*(gk+vba_g2k+vba_g3k)*gk_no+E19*sk*sk_no)*b_e -> 1.904110414e-17 | I19: 2.115678238e-17 | L19: Nutzlast | M19: nk | N19: =COS(beta*PI()/180)*COS(beta*PI()/180) -> 3.752471841e-33
B20: g+s+(wD) | C20: 1.35 | E20: 1.5 | F20: =1.5*0.6 -> 0.9 | G20: 1 | H20: =(C20*(gk+vba_g2k+vba_g3k)*gk_no+E20*sk*sk_no+F20*wdk)*b_e -> 0.5313611668 | I20: 0.5313611668
B21: g+wD | C21: 1.35 | F21: 1.5 | G21: 1 | H21: =(C21*(gk+vba_g2k+vba_g3k)*gk_no+F21*wdk)*b_e -> 0.8856019447 | I21: 0.8856019447
B22: g+wD+(s) | C22: 1.35 | E22: =1.5*IF(index_sHöhe=1,0.7,0.5) -> 0.75 | F22: 1.5 | G22: 1 | H22: =(C22*(gk+vba_g2k+vba_g3k)*gk_no+E22*sk*sk_no+F22*wdk)*b_e -> 0.8856019447 | I22: 0.8856019447
I23: =MAX(I17:I22) -> 0.8856019447 | J23: KN/m
B26: Lastkombination - Lasten normal zur Dachfläche (Windsog) | G26: Lasten parallel zum Bauteil lt. Ingenieurholzbau | O26: Schraubenabstand Windsog - Druckfeste Dämmung
C27: g | D27: n | E27: s | F27: w S | G27: k mod | H27: q d | I27: q d / kmod
A28: =MATCH(I29,I28:I28,0) -> 1 | B28: g2+wS | C28: 0.9 | F28: 1.5 | G28: 1 | H28: =($C$28*(vba_g2k+vba_g3k)*gk_no+$F$28*wsk)*b_e -> -1.771203889 | I28: =H28/G28 -> -1.771203889 | L28: Eigengewicht ohne Dacheindeckung | Q28: H,I | R28: G | S28: =IF(index_Dachform=1,"J","F") -> F | T28: =IF(index_Dachform=1,"F","") -> 
I29: =MAX(I28:I28) -> -1.771203889 | J29: KN/m | O29: Windsog | Q29: =($C$28*(vba_g2k+vba_g3k)*gk_no+$F$28*H_Sog)*b_e -> -1.207639016 | R29: =($C$28*(vba_g2k+vba_g3k)*gk_no+$F$28*G_Sog)*b_e -> -1.771203889 | S29: =($C$28*(vba_g2k+vba_g3k)*gk_no+$F$28*J_Sog)*b_e -> -1.771203889 | T29: =($C$28*(vba_g2k+vba_g3k)*gk_no+$F$28*IF(index_Dachform=1,F_Sog,J_Sog))*b_e -> -1.771203889 | U29: kN/m
I31: =COS(RADIANS(beta)) -> 6.125742275e-17 | O31: Schraubenabstand | Q31: =ROUNDDOWN(R_ax_sog/Q29*-1*100,1) ->  | R31: =ROUNDDOWN(R_ax_sog/R29*-1*100,1) ->  | S31: =ROUNDDOWN(R_ax_sog/S29*-1*100,1) ->  | T31: =ROUNDDOWN(R_ax_sog/T29*-1*100,1) ->  | U31: cm
B32: Lastkombination - Lasten vertikal bezogen auf die schräge Länge
C33: g | D33: n | E33: s | F33: w D | G33: k mod | H33: q d | I33: q d / kmod
A34: =MATCH(I40,I34:I39,0) -> 1 | B34: g | C34: 1.35 | G34: 0.6 | H34: =(C34*(gk+vba_g2k+vba_g3k)*b_e) -> 0.3108375 | I34: =H34/G34 -> 0.5180625
B35: g+n | C35: 1.35 | D35: 1.5 | G35: 0.9 | H35: =(C35*(gk+vba_g2k+vba_g3k)+(D35*nk*COS(RADIANS(beta))))*b_e -> 0.3108375 | I35: 0.345375 | L35: s_schräge Länge | M35: = | N35: s * cos alpha
B36: g+s | C36: 1.35 | E36: 1.5 | G36: =IF(index_sHöhe=1,0.8,0.9) -> 0.9 | H36: =(C36*(gk+vba_g2k+vba_g3k)+(E36*sk)*COS(RADIANS(beta)))*b_e -> 0.3108375 | I36: 0.345375 | L36: n_schräge Länge | M36: = | N36: n*cos alpha
B37: g+s+(wD) | C37: 1.35 | E37: 1.5 | F37: =1.5*0.6 -> 0.9 | G37: 1 | H37: =((((C37*(gk+vba_g2k+vba_g3k)+(E37*sk)*COS(RADIANS(beta))))+IF(COS(RADIANS(beta))<10^-4,0,F37*wdk/COS(RADIANS(beta)))))*b_e -> 0.3108375 | I37: 0.3108375 | L37: w_schräge Länge | M37: = | N37: w/ cos alpha
B38: g+wD | C38: 1.35 | F38: 1.5 | G38: 1 | H38: =(C38*(gk+vba_g2k+vba_g3k)+IF(COS(RADIANS(beta))<10^-4,0,F37*wdk/COS(RADIANS(beta))))*b_e -> 0.3108375 | I38: 0.3108375 | L38: g_schräge Länge | M38: = | N38: g
B39: g+wD+(s) | C39: 1.35 | E39: =1.5*IF(index_sHöhe=1,0.7,0.5) -> 0.75 | F39: 1.5 | G39: 1 | H39: =((C39*(gk+vba_g2k+vba_g3k)+(E39*sk)*COS(RADIANS(beta))+IF(COS(RADIANS(beta))<10^-4,0,F37*wdk/COS(RADIANS(beta)))))*b_e -> 0.3108375 | I39: 0.3108375
I40: =MAX(I34:I39) -> 0.5180625 | J40: KN/m
B43: Lastkombination - Lasten vertikal bezogen auf die schräge Länge (Windsog)
C44: g | D44: n | E44: s | F44: w S | G44: k mod | H44: q d | I44: q d / kmod
A45: =MATCH(I46,I45,0) -> 1 | B45: g2+wS | C45: 0.9 | F45: 1.5 | G45: 1 | H45: =(C45*(vba_g2k+vba_g3k)*COS(RADIANS(beta))+F45*wsk)*b_e -> -1.771203889 | I45: =H45/G45 -> -1.771203889
I46: =I45 -> -1.771203889 | J46: KN/m

Sheet Schrauben_ESSVE_25 (hidden)
A1: Typen
A3: =MATCH(vba_screwType,slst_screwtypes,0) -> 5 | D3: sd | G3: ="sdat_"&index_variante&"_"&index_screwtype -> sdat_1_5 | I3: Stardrive
A4: =MATCH(vba_screwType_2,slst_screwtypes,0) -> 1 | D4: ra | I4: Rapid
A5: Typenliste | C5: slst_screwtypes_1 | D5: slst_screwtypes_1_keys | G5: slst_screwtypes_2 | H5: slst_screwtypes_2_keys | J5: Spalte AQ "42" = Einteilung geeignet für Dämmung: hart=fest (H) bzw. weich (W) bzw. beide (H+W) | AS5: Hilfsspalte - wieder löschen!
B6: 1 | C6: StarDrive GPR TG Senk | F6: 1 | G6: Essve CY-FT (fullthread, cylinder head) | H6: ad_type_C-FT | J6: statt 2x die gleichen Schrauben mit Aufteilung entspr. Spalte A | AS6: neue Schrauben
B7: 2 | C7: StarDrive GPR TG TK | F7: 2 | G7: Essve CY-FT (fullthread, cylinder head) | H7: ad_type_CY-FT
B8: 3 | C8: Essve C-PT (partial thread, countersunk head) | D8: ad_type_C-PT | F8: 3 | G8: Essve CY-DT (double thread, cylinder head - thermal) | H8: ad_type_CY-DT
B9: 4 | C9: Essve W-LF (partial thread, washer head) | D9: ad_type_W-LF | G9: StarDrive VG - ersetzt durch Rapid
B10: 5 | C10: Essve C-FH (partial thread, washer countersunk) | D10: ad_type_C-FH
B11: 6 | C11: Essve C-FT (fullthread, countersunk head) | D11: ad_type_C-FT
B12: 7 | C12: Essve CY-FT (fullthread, cylinder head) | D12: ad_type_CY-FT
B13: 8 | C13: Essve CY-DT (double thread, cylinder head - thermal) | D13: ad_type_CY-DT
A16: Schraube
B17: =vba_Screw -> ESSVE CY-FT 8,0 x 450/427 | M17: aktuell | AO17: neu | AP17: neu | AQ17: neu
A18: =MATCH(vba_Screw,lst_Schrauben,0) -> 15 | M18: =MIN(M22:M316) -> 10.7
A19: =MATCH(vba_Screw_2,lst_Schrauben_2,0) -> 14 | F19: nicht kontrolliert | G19: nicht kontrolliert | H19: nicht kontrolliert | I19: aktuell | J19: aktuell | K19: aktuell | L19: aktuell | M19: =MAX(M22:M316) -> 13.1 | N19: aktuell | O19: prüfen | P19: prüfen | Q19: aktuell | R19: aktuell | S19: prüfen! wie bisher? | T19: aktuell | U19: aktuell | V19: aktuell | W19: aktuell | X19: aktuell | Y19: aktuell | Z19: aktuell | AA19: aktuell | AB19: aktuell | AC19: aktuell | AD19: aktuell | AE19: aktuell | AF19: aktuell | AG19: ungültig | AH19: aktuell | AI19: aktuell | AJ19: aktuell | AK19: aktuell | AL19: nicht kontrolliert | AM19: nicht kontrolliert | AN19: nicht kontrolliert | AO19: aktuell | AP19: aktuell | AQ19: aktuell
B20: 1 | C20: 2 | D20: 3 | E20: 4 | F20: 5 | G20: 6 | H20: 7 | I20: 8 | J20: 9 | K20: 10 | L20: 11 | M20: 12 | N20: 13 | O20: 14 | P20: 15 | Q20: 16 | R20: 17 | S20: 18 | T20: 19 | U20: 20 | V20: 21 | W20: 22 | X20: 23 | Y20: 24 | Z20: 25 | AA20: 26 | AB20: 27 | AC20: 28 | AD20: 29 | AE20: 30 | AF20: 31 | AG20: 32 | AH20: 33 | AI20: 34 | AJ20: 35 | AK20: 36 | AL20: 37 | AM20: 38 | AN20: 39 | AO20: 40 | AP20: 41 | AQ20: 42
B21: TYP | C21: Kopf | D21: Gruppe | E21: Artikelnr | F21: ETA Code 1 | G21: ETA Code 2 | H21: ETA- Kennbuchstabe | I21: NAV-Bez1 | J21: NAV-Bez2 | K21: Zugtrag- fähigkeit [kN] (f-tens) | L21: Fließ- moment [Nm] (M y) | M21: Auszieh- parameter [N/mm2] | N21: Kopfdurchzieh-parameter [N/mm²] für 90 ° Sog Schrauben bei Scheibenkopf | O21: für 45° od. 60° Verschraubung mit 60% | P21: Kraft-vergleich [N] (f head) | Q21: Fließ- grenze [N/mm2] (f y) | R21: Torsions- festigkeit [Nm] (f tor) (Bruchdrehmoment) | S21: Einschraub drehmoment [Nm] | T21: Länge | U21: DM | V21: Dimension | W21: Gewindelänge | X21: Kopfdurch-messer | Y21: Kopf-Art [°] | Z21: Reibteil | AA21: Antrieb | AB21: Et Text 1 = Programm TEXT | AC21: Kopfgeo | AD21: Schaft | AE21: Gewinde | AF21: Oberfläche | AG21: Nummer Ü-Zeichen | AH21: ETA oder EN | AI21: ETA-Nummer | AJ21: ETA-Jahreszahl | AK21: ETA-LE-Nummer | AL21: ETA-Überwachungsstelle | AM21: Etikettengröße | AN21: Programm | AO21: Gewindekern DM di | AP21: Schaftdurchmesser ds | AQ21: Dämmung Hart/Weich (H/W/H+W)
A22: slst_1_1 | B22: Essve C-PT | C22: countersunk | D22: Essve part.thrd. | E22: 2339740601800001 | F22: 060x180/064 | G22: A1B 0C1 A1C | H22: C | I22: Essve C-PT 6,0 x 180/70 | J22: HILO/KR/FRT/T30/YellWin500+ (SSH+Bit) | K22: 13.1 | L22: 10.7 | M22: 13 | N22: 14.6 | O22: =IF(C22="Scheibe",N22*0.6,"") ->  | P22: =X22*X22*N22 -> 2102.4 | Q22: 900 | R22: 10.9 | S22: 5.4 | T22: 180 | U22: 6 | V22: 6,0 x 180 | W22: 70 | X22: 12 | Y22: 90 | Z22: +R | AA22: TX 30 | AB22: RAPID® | AC22: Senkkopf, Frästaschen | AD22: Reibteil | AE22: HiLo-Teilgewinde, Kernrippen | AF22: YellWin 500+ | AG22: Z-9.1-564, Z-9.1-509 | AH22: ETA | AI22: ETA 12/0373 | AJ22: 20 | AK22: LE003B | AL22: 1359-CPD-0519 | AM22: SSH_ETA.lab | AN22: C17 | AO22: 3.9 | AP22: 4.3 | AQ22: H | AR22: 3.9 | AS22: =AR22*1000 -> 3900
B23: Essve C-PT | C23: countersunk | D23: Essve part.thrd. | E23: 2339740602000001 | F23: 060x200/064 | G23: A1B 0C1 A1C | H23: C | I23: Essve C-PT 6,0 x 200/70 | J23: HILO/KR/FRT/T30/YellWin500+ (SSH+Bit) | K23: 13.1 | L23: 10.7 | M23: 13 | N23: 14.6 | P23: 2102.4 | Q23: 900 | R23: 10.9 | S23: 5.4 | T23: 200 | U23: 6 | V23: 6,0 x 200 | W23: 70 | X23: 12 | Y23: 90 | Z23: +R | AA23: TX 30 | AB23: RAPID® | AC23: Senkkopf, Frästaschen | AD23: Reibteil | AE23: HiLo-Teilgewinde, Kernrippen | AF23: YellWin 500+ | AG23: Z-9.1-564, Z-9.1-509 | AH23: ETA | AI23: ETA 12/0373 | AJ23: 20 | AK23: LE003B | AL23: 1359-CPD-0519 | AM23: SSH_ETA.lab | AN23: C18 | AO23: 3.9 | AP23: 4.3 | AQ23: H | AR23: 3.9 | AS23: 3900
B24: Essve C-PT | C24: countersunk | D24: Essve part.thrd. | E24: 2339740602200001 | F24: 060x220/064 | G24: A1B 0C1 A1C | H24: C | I24: Essve C-PT 6,0 x 220/70 | J24: HILO/KR/FRT/T30/YellWin500+ (SSH+Bit) | K24: 13.1 | L24: 10.7 | M24: 13 | N24: 14.6 | P24: 2102.4 | Q24: 900 | R24: 10.9 | S24: 5.4 | T24: 220 | U24: 6 | V24: 6,0 x 220 | W24: 70 | X24: 12 | Y24: 90 | Z24: +R | AA24: TX 30 | AB24: RAPID® | AC24: Senkkopf, Frästaschen | AD24: Reibteil | AE24: HiLo-Teilgewinde, Kernrippen | AF24: YellWin 500+ | AG24: Z-9.1-564, Z-9.1-509 | AH24: ETA | AI24: ETA 12/0373 | AJ24: 20 | AK24: LE003B | AL24: 1359-CPD-0519 | AM24: SSH_ETA.lab | AN24: C19 | AO24: 3.9 | AP24: 4.3 | AQ24: H | AR24: 3.9 | AS24: 3900
B25: Essve C-PT | C25: countersunk | D25: Essve part.thrd. | E25: 2339740602400001 | F25: 060x240/064 | G25: A1B 0C1 A1C | H25: C | I25: Essve C-PT 6,0 x 240/70 | J25: HILO/KR/FRT/T30/YellWin500+ (SSH+Bit) | K25: 13.1 | L25: 10.7 | M25: 13 | N25: 14.6 | P25: 2102.4 | Q25: 900 | R25: 10.9 | S25: 5.4 | T25: 240 | U25: 6 | V25: 6,0 x 240 | W25: 70 | X25: 12 | Y25: 90 | Z25: +R | AA25: TX 30 | AB25: RAPID® | AC25: Senkkopf, Frästaschen | AD25: Reibteil | AE25: HiLo-Teilgewinde, Kernrippen | AF25: YellWin 500+ | AG25: Z-9.1-564, Z-9.1-509 | AH25: ETA | AI25: ETA 12/0373 | AJ25: 20 | AK25: LE003B | AL25: 1359-CPD-0519 | AM25: SSH_ETA.lab | AN25: C20 | AO25: 3.9 | AP25: 4.3 | AQ25: H | AR25: 3.9 | AS25: 3900
B26: Essve C-PT | C26: countersunk | D26: Essve part.thrd. | E26: 2339740602600001 | F26: 060x260/064 | G26: A1B 0C1 A1C | H26: C | I26: Essve C-PT 6,0 x 260/70 | J26: HILO/KR/FRT/T30/YellWin500+ (SSH+Bit) | K26: 13.1 | L26: 10.7 | M26: 13 | N26: 14.6 | P26: 2102.4 | Q26: 900 | R26: 10.9 | S26: 5.4 | T26: 260 | U26: 6 | V26: 6,0 x 260 | W26: 70 | X26: 12 | Y26: 90 | Z26: +R | AA26: TX 30 | AB26: RAPID® | AC26: Senkkopf, Frästaschen | AD26: Reibteil | AE26: HiLo-Teilgewinde, Kernrippen | AF26: YellWin 500+ | AG26: Z-9.1-564, Z-9.1-509 | AH26: ETA | AI26: ETA 12/0373 | AJ26: 20 | AK26: LE003B | AL26: 1359-CPD-0519 | AM26: SSH_ETA.lab | AN26: C21 | AO26: 3.9 | AP26: 4.3 | AQ26: H | AR26: 3.9 | AS26: 3900
B27: Essve C-PT | C27: countersunk | D27: Essve part.thrd. | E27: 2339740602800001 | F27: 060x280/064 | G27: A1B 0C1 A1C | H27: C | I27: Essve C-PT 6,0 x 280/70 | J27: HILO/KR/FRT/T30/YellWin500+ (SSH+Bit) | K27: 13.1 | L27: 10.7 | M27: 13 | N27: 14.6 | P27: 2102.4 | Q27: 900 | R27: 10.9 | S27: 5.4 | T27: 280 | U27: 6 | V27: 6,0 x 280 | W27: 70 | X27: 12 | Y27: 90 | Z27: +R | AA27: TX 30 | AB27: RAPID® | AC27: Senkkopf, Frästaschen | AD27: Reibteil | AE27: HiLo-Teilgewinde, Kernrippen | AF27: YellWin 500+ | AG27: Z-9.1-564, Z-9.1-509 | AH27: ETA | AI27: ETA 12/0373 | AJ27: 20 | AK27: LE003B | AL27: 1359-CPD-0519 | AM27: SSH_ETA.lab | AN27: C22 | AO27: 3.9 | AP27: 4.3 | AQ27: H | AR27: 3.9 | AS27: 3900
B28: Essve C-PT | C28: countersunk | D28: Essve part.thrd. | E28: 2339740603000001 | F28: 060x300/064 | G28: A1B 0C1 A1C | H28: C | I28: Essve C-PT 6,0 x 300/70 | J28: HILO/KR/FRT/T30/YellWin500+ (SSH+Bit) | K28: 13.1 | L28: 10.7 | M28: 13 | N28: 14.6 | P28: 2102.4 | Q28: 900 | R28: 10.9 | S28: 5.4 | T28: 300 | U28: 6 | V28: 6,0 x 300 | W28: 70 | X28: 12 | Y28: 90 | Z28: +R | AA28: TX 30 | AB28: RAPID® | AC28: Senkkopf, Frästaschen | AD28: Reibteil | AE28: HiLo-Teilgewinde, Kernrippen | AF28: YellWin 500+ | AG28: Z-9.1-564, Z-9.1-509 | AH28: ETA | AI28: ETA 12/0373 | AJ28: 20 | AK28: LE003B | AL28: 1359-CPD-0519 | AM28: SSH_ETA.lab | AN28: C23 | AO28: 3.9 | AP28: 4.3 | AQ28: H | AR28: 3.9 | AS28: 3900
B29: Essve C-PT | C29: countersunk | D29: Essve part.thrd. | E29: 2339740801800001 | F29: 080x180/100 | G29: A1B 1D0 A1C | H29: C | I29: Essve C-PT 8,0 x 180/100 | J29: HILO/KR/FRT/T40/YellWin500+ (SSH+Bit) | K29: 23.3 | L29: 22.6 | M29: 10.9 | N29: 12.4 | P29: 2790 | Q29: 900 | R29: 28 | S29: 11.2 | T29: 180 | U29: 8 | V29: 8,0 x 180 | W29: 100 | X29: 15 | Y29: 90 | Z29: +R | AA29: TX 40 | AB29: RAPID® | AC29: Senkkopf, Frästaschen | AD29: Reibteil | AE29: HiLo-Teilgewinde, Kernrippen | AF29: YellWin 500+ | AG29: Z-9.1-564, Z-9.1-509 | AH29: ETA | AI29: ETA 12/0373 | AJ29: 20 | AK29: LE003B | AL29: 1359-CPD-0519 | AM29: SSH_ETA.lab | AN29: C24 | AO29: 5.3 | AP29: 5.9 | AQ29: H | AR29: 5.3 | AS29: 5300
B30: Essve C-PT | C30: countersunk | D30: Essve part.thrd. | E30: 2339740802000001 | F30: 080x200/100 | G30: A1B 1D0 A1C | H30: C | I30: Essve C-PT 8,0 x 200/100 | J30: HILO/KR/FRT/T40/YellWin500+ (SSH+Bit) | K30: 23.3 | L30: 22.6 | M30: 10.9 | N30: 12.4 | P30: 2790 | Q30: 900 | R30: 28 | S30: 11.2 | T30: 200 | U30: 8 | V30: 8,0 x 200 | W30: 100 | X30: 15 | Y30: 90 | Z30: +R | AA30: TX 40 | AB30: RAPID® | AC30: Senkkopf, Frästaschen | AD30: Reibteil | AE30: HiLo-Teilgewinde, Kernrippen | AF30: YellWin 500+ | AG30: Z-9.1-564, Z-9.1-509 | AH30: ETA | AI30: ETA 12/0373 | AJ30: 20 | AK30: LE003B | AL30: 1359-CPD-0519 | AM30: SSH_ETA.lab | AN30: C25 | AO30: 5.3 | AP30: 5.9 | AQ30: H | AR30: 5.3 | AS30: 5300
B31: Essve C-PT | C31: countersunk | D31: Essve part.thrd. | E31: 2339740802200001 | F31: 080x220/100 | G31: A1B 1D0 A1C | H31: C | I31: Essve C-PT 8,0 x 220/100 | J31: HILO/KR/FRT/T40/YellWin500+ (SSH+Bit) | K31: 23.3 | L31: 22.6 | M31: 10.9 | N31: 12.4 | P31: 2790 | Q31: 900 | R31: 28 | S31: 11.2 | T31: 220 | U31: 8 | V31: 8,0 x 220 | W31: 100 | X31: 15 | Y31: 90 | Z31: +R | AA31: TX 40 | AB31: RAPID® | AC31: Senkkopf, Frästaschen | AD31: Reibteil | AE31: HiLo-Teilgewinde, Kernrippen | AF31: YellWin 500+ | AG31: Z-9.1-564, Z-9.1-509 | AH31: ETA | AI31: ETA 12/0373 | AJ31: 20 | AK31: LE003B | AL31: 1359-CPD-0519 | AM31: SSH_ETA.lab | AN31: C26 | AO31: 5.3 | AP31: 5.9 | AQ31: H | AR31: 5.3 | AS31: 5300
B32: Essve C-PT | C32: countersunk | D32: Essve part.thrd. | E32: 2339740802400001 | F32: 080x240/100 | G32: A1B 1D0 A1C | H32: C | I32: Essve C-PT 8,0 x 240/100 | J32: HILO/KR/FRT/T40/YellWin500+ (SSH+Bit) | K32: 23.3 | L32: 22.6 | M32: 10.9 | N32: 12.4 | P32: 2790 | Q32: 900 | R32: 28 | S32: 11.2 | T32: 240 | U32: 8 | V32: 8,0 x 240 | W32: 100 | X32: 15 | Y32: 90 | Z32: +R | AA32: TX 40 | AB32: RAPID® | AC32: Senkkopf, Frästaschen | AD32: Reibteil | AE32: HiLo-Teilgewinde, Kernrippen | AF32: YellWin 500+ | AG32: Z-9.1-564, Z-9.1-509 | AH32: ETA | AI32: ETA 12/0373 | AJ32: 20 | AK32: LE003B | AL32: 1359-CPD-0519 | AM32: SSH_ETA.lab | AN32: C27 | AO32: 5.3 | AP32: 5.9 | AQ32: H | AR32: 5.3 | AS32: 5300
B33: Essve C-PT | C33: countersunk | D33: Essve part.thrd. | E33: 2339740802600001 | F33: 080x260/100 | G33: A1B 1D0 A1C | H33: C | I33: Essve C-PT 8,0 x 260/100 | J33: HILO/KR/FRT/T40/YellWin500+ (SSH+Bit) | K33: 23.3 | L33: 22.6 | M33: 10.9 | N33: 12.4 | P33: 2790 | Q33: 900 | R33: 28 | S33: 11.2 | T33: 260 | U33: 8 | V33: 8,0 x 260 | W33: 100 | X33: 15 | Y33: 90 | Z33: +R | AA33: TX 40 | AB33: RAPID® | AC33: Senkkopf, Frästaschen | AD33: Reibteil | AE33: HiLo-Teilgewinde, Kernrippen | AF33: YellWin 500+ | AG33: Z-9.1-564, Z-9.1-509 | AH33: ETA | AI33: ETA 12/0373 | AJ33: 20 | AK33: LE003B | AL33: 1359-CPD-0519 | AM33: SSH_ETA.lab | AN33: C28 | AO33: 5.3 | AP33: 5.9 | AQ33: H | AR33: 5.3 | AS33: 5300
B34: Essve C-PT | C34: countersunk | D34: Essve part.thrd. | E34: 2339740802800001 | F34: 080x280/100 | G34: A1B 1D0 A1C | H34: C | I34: Essve C-PT 8,0 x 280/100 | J34: HILO/KR/FRT/T40/YellWin500+ (SSH+Bit) | K34: 23.3 | L34: 22.6 | M34: 10.9 | N34: 12.4 | P34: 2790 | Q34: 900 | R34: 28 | S34: 11.2 | T34: 280 | U34: 8 | V34: 8,0 x 280 | W34: 100 | X34: 15 | Y34: 90 | Z34: +R | AA34: TX 40 | AB34: RAPID® | AC34: Senkkopf, Frästaschen | AD34: Reibteil | AE34: HiLo-Teilgewinde, Kernrippen | AF34: YellWin 500+ | AG34: Z-9.1-564, Z-9.1-509 | AH34: ETA | AI34: ETA 12/0373 | AJ34: 20 | AK34: LE003B | AL34: 1359-CPD-0519 | AM34: SSH_ETA.lab | AN34: C29 | AO34: 5.3 | AP34: 5.9 | AQ34: H | AR34: 5.3 | AS34: 5300
B35: Essve C-PT | C35: countersunk | D35: Essve part.thrd. | E35: 2339740803000001 | F35: 080x300/100 | G35: A1B 1D0 A1C | H35: C | I35: Essve C-PT 8,0 x 300/100 | J35: HILO/KR/FRT/T40/YellWin500+ (SSH+Bit) | K35: 23.3 | L35: 22.6 | M35: 10.9 | N35: 12.4 | P35: 2790 | Q35: 900 | R35: 28 | S35: 11.2 | T35: 300 | U35: 8 | V35: 8,0 x 300 | W35: 100 | X35: 15 | Y35: 90 | Z35: +R | AA35: TX 40 | AB35: RAPID® | AC35: Senkkopf, Frästaschen | AD35: Reibteil | AE35: HiLo-Teilgewinde, Kernrippen | AF35: YellWin 500+ | AG35: Z-9.1-564, Z-9.1-509 | AH35: ETA | AI35: ETA 12/0373 | AJ35: 20 | AK35: LE003B | AL35: 1359-CPD-0519 | AM35: SSH_ETA.lab | AN35: C30 | AO35: 5.3 | AP35: 5.9 | AQ35: H | AR35: 5.3 | AS35: 5300
B36: Essve C-PT | C36: countersunk | D36: Essve part.thrd. | E36: 2339740803200001 | F36: 080x320/100 | G36: A1B 1D0 A1C | H36: C | I36: Essve C-PT 8,0 x 320/100 | J36: HILO/KR/FRT/T40/YellWin500+ (SSH+Bit) | K36: 23.3 | L36: 22.6 | M36: 10.9 | N36: 12.4 | P36: 2790 | Q36: 900 | R36: 28 | S36: 11.2 | T36: 320 | U36: 8 | V36: 8,0 x 320 | W36: 100 | X36: 15 | Y36: 90 | Z36: +R | AA36: TX 40 | AB36: RAPID® | AC36: Senkkopf, Frästaschen | AD36: Reibteil | AE36: HiLo-Teilgewinde, Kernrippen | AF36: YellWin 500+ | AG36: Z-9.1-564, Z-9.1-509 | AH36: ETA | AI36: ETA 12/0373 | AJ36: 20 | AK36: LE003B | AL36: 1359-CPD-0519 | AM36: SSH_ETA.lab | AN36: C31 | AO36: 5.3 | AP36: 5.9 | AQ36: H | AR36: 5.3 | AS36: 5300
B37: Essve C-PT | C37: countersunk | D37: Essve part.thrd. | E37: 2339740803400001 | F37: 080x340/100 | G37: A1B 1D0 A1C | H37: C | I37: Essve C-PT 8,0 x 340/100 | J37: HILO/KR/FRT/T40/YellWin500+ (SSH+Bit) | K37: 23.3 | L37: 22.6 | M37: 10.9 | N37: 12.4 | P37: 2790 | Q37: 900 | R37: 28 | S37: 11.2 | T37: 340 | U37: 8 | V37: 8,0 x 340 | W37: 100 | X37: 15 | Y37: 90 | Z37: +R | AA37: TX 40 | AB37: RAPID® | AC37: Senkkopf, Frästaschen | AD37: Reibteil | AE37: HiLo-Teilgewinde, Kernrippen | AF37: YellWin 500+ | AG37: Z-9.1-564, Z-9.1-509 | AH37: ETA | AI37: ETA 12/0373 | AJ37: 20 | AK37: LE003B | AL37: 1359-CPD-0519 | AM37: SSH_ETA.lab | AN37: C32 | AO37: 5.3 | AP37: 5.9 | AQ37: H | AR37: 5.3 | AS37: 5300
B38: Essve C-PT | C38: countersunk | D38: Essve part.thrd. | E38: 2339740803600001 | F38: 080x360/100 | G38: A1B 1D0 A1C | H38: C | I38: Essve C-PT 8,0 x 360/100 | J38: HILO/KR/FRT/T40/YellWin500+ (SSH+Bit) | K38: 23.3 | L38: 22.6 | M38: 10.9 | N38: 12.4 | P38: 2790 | Q38: 900 | R38: 28 | S38: 11.2 | T38: 360 | U38: 8 | V38: 8,0 x 360 | W38: 100 | X38: 15 | Y38: 90 | Z38: +R | AA38: TX 40 | AB38: RAPID® | AC38: Senkkopf, Frästaschen | AD38: Reibteil | AE38: HiLo-Teilgewinde, Kernrippen | AF38: YellWin 500+ | AG38: Z-9.1-564, Z-9.1-509 | AH38: ETA | AI38: ETA 12/0373 | AJ38: 20 | AK38: LE003B | AL38: 1359-CPD-0519 | AM38: SSH_ETA.lab | AN38: C33 | AO38: 5.3 | AP38: 5.9 | AQ38: H | AR38: 5.3 | AS38: 5300
B39: Essve C-PT | C39: countersunk | D39: Essve part.thrd. | E39: 2339740803800001 | F39: 080x380/100 | G39: A1B 1D0 A1C | H39: C | I39: Essve C-PT 8,0 x 380/100 | J39: HILO/KR/FRT/T40/YellWin500+ (SSH+Bit) | K39: 23.3 | L39: 22.6 | M39: 10.9 | N39: 12.4 | P39: 2790 | Q39: 900 | R39: 28 | S39: 11.2 | T39: 380 | U39: 8 | V39: 8,0 x 380 | W39: 100 | X39: 15 | Y39: 90 | Z39: +R | AA39: TX 40 | AB39: RAPID® | AC39: Senkkopf, Frästaschen | AD39: Reibteil | AE39: HiLo-Teilgewinde, Kernrippen | AF39: YellWin 500+ | AG39: Z-9.1-564, Z-9.1-509 | AH39: ETA | AI39: ETA 12/0373 | AJ39: 20 | AK39: LE003B | AL39: 1359-CPD-0519 | AM39: SSH_ETA.lab | AN39: C34 | AO39: 5.3 | AP39: 5.9 | AQ39: H | AR39: 5.3 | AS39: 5300
B40: Essve C-PT | C40: countersunk | D40: Essve part.thrd. | E40: 2339740804000001 | F40: 080x400/100 | G40: A1B 1D0 A1C | H40: C | I40: Essve C-PT 8,0 x 400/100 | J40: HILO/KR/FRT/T40/YellWin500+ (SSH+Bit) | K40: 23.3 | L40: 22.6 | M40: 10.9 | N40: 12.4 | P40: 2790 | Q40: 900 | R40: 28 | S40: 11.2 | T40: 400 | U40: 8 | V40: 8,0 x 400 | W40: 100 | X40: 15 | Y40: 90 | Z40: +R | AA40: TX 40 | AB40: RAPID® | AC40: Senkkopf, Frästaschen | AD40: Reibteil | AE40: HiLo-Teilgewinde, Kernrippen | AF40: YellWin 500+ | AG40: Z-9.1-564, Z-9.1-509 | AH40: ETA | AI40: ETA 12/0373 | AJ40: 20 | AK40: LE003B | AL40: 1359-CPD-0519 | AM40: SSH_ETA.lab | AN40: C35 | AO40: 5.3 | AP40: 5.9 | AQ40: H | AR40: 5.3 | AS40: 5300
B41: Essve C-PT | C41: countersunk | D41: Essve part.thrd. | E41: 2339740804200001 | F41: 080x420/100 | G41: A1B 1D0 A1C | H41: C | I41: Essve C-PT 8,0 x 420/100 | J41: HILO/KR/FRT/T40/YellWin500+ (SSH+Bit) | K41: 23.3 | L41: 22.6 | M41: 10.9 | N41: 12.4 | P41: 2790 | Q41: 900 | R41: 28 | S41: 11.2 | T41: 420 | U41: 8 | V41: 8,0 x 420 | W41: 100 | X41: 15 | Y41: 90 | Z41: +R | AA41: TX 40 | AB41: RAPID® | AC41: Senkkopf, Frästaschen | AD41: Reibteil | AE41: HiLo-Teilgewinde, Kernrippen | AF41: YellWin 500+ | AG41: Z-9.1-564, Z-9.1-509 | AH41: ETA | AI41: ETA 12/0373 | AJ41: 20 | AK41: LE003B | AL41: 1359-CPD-0519 | AM41: SSH_ETA.lab | AN41: C36 | AO41: 5.3 | AP41: 5.9 | AQ41: H | AR41: 5.3 | AS41: 5300
B42: Essve C-PT | C42: countersunk | D42: Essve part.thrd. | E42: 2339740804400001 | F42: 080x440/100 | G42: A1B 1D0 A1C | H42: C | I42: Essve C-PT 8,0 x 440/100 | J42: HILO/KR/FRT/T40/YellWin500+ (SSH+Bit) | K42: 23.3 | L42: 22.6 | M42: 10.9 | N42: 12.4 | P42: 2790 | Q42: 900 | R42: 28 | S42: 11.2 | T42: 440 | U42: 8 | V42: 8,0 x 440 | W42: 100 | X42: 15 | Y42: 90 | Z42: +R | AA42: TX 40 | AB42: RAPID® | AC42: Senkkopf, Frästaschen | AD42: Reibteil | AE42: HiLo-Teilgewinde, Kernrippen | AF42: YellWin 500+ | AG42: Z-9.1-564, Z-9.1-509 | AH42: ETA | AI42: ETA 12/0373 | AJ42: 20 | AK42: LE003B | AL42: 1359-CPD-0519 | AM42: SSH_ETA.lab | AN42: C37 | AO42: 5.3 | AP42: 5.9 | AQ42: H | AR42: 5.3 | AS42: 5300
B43: Essve C-PT | C43: countersunk | D43: Essve part.thrd. | E43: 2339740804600001 | F43: 080x460/100 | G43: A1B 1D0 A1C | H43: C | I43: Essve C-PT 8,0 x 460/100 | J43: HILO/KR/FRT/T40/YellWin500+ (SSH+Bit) | K43: 23.3 | L43: 22.6 | M43: 10.9 | N43: 12.4 | P43: 2790 | Q43: 900 | R43: 28 | S43: 11.2 | T43: 460 | U43: 8 | V43: 8,0 x 460 | W43: 100 | X43: 15 | Y43: 90 | Z43: +R | AA43: TX 40 | AB43: RAPID® | AC43: Senkkopf, Frästaschen | AD43: Reibteil | AE43: HiLo-Teilgewinde, Kernrippen | AF43: YellWin 500+ | AG43: Z-9.1-564, Z-9.1-509 | AH43: ETA | AI43: ETA 12/0373 | AJ43: 20 | AK43: LE003B | AL43: 1359-CPD-0519 | AM43: SSH_ETA.lab | AN43: C38 | AO43: 5.3 | AP43: 5.9 | AQ43: H | AR43: 5.3 | AS43: 5300
B44: Essve C-PT | C44: countersunk | D44: Essve part.thrd. | E44: 2339740804800001 | F44: 080x480/100 | G44: A1B 1D0 A1C | H44: C | I44: Essve C-PT 8,0 x 480/100 | J44: HILO/KR/FRT/T40/YellWin500+ (SSH+Bit) | K44: 23.3 | L44: 22.6 | M44: 10.9 | N44: 12.4 | P44: 2790 | Q44: 900 | R44: 28 | S44: 11.2 | T44: 480 | U44: 8 | V44: 8,0 x 480 | W44: 100 | X44: 15 | Y44: 90 | Z44: +R | AA44: TX 40 | AB44: RAPID® | AC44: Senkkopf, Frästaschen | AD44: Reibteil | AE44: HiLo-Teilgewinde, Kernrippen | AF44: YellWin 500+ | AG44: Z-9.1-564, Z-9.1-509 | AH44: ETA | AI44: ETA 12/0373 | AJ44: 20 | AK44: LE003B | AL44: 1359-CPD-0519 | AM44: SSH_ETA.lab | AN44: C39 | AO44: 5.3 | AP44: 5.9 | AQ44: H | AR44: 5.3 | AS44: 5300
B45: Essve C-PT | C45: countersunk | D45: Essve part.thrd. | E45: 2339740805000001 | F45: 080x500/100 | G45: A1B 1D0 A1C | H45: C | I45: Essve C-PT 8,0 x 500/100 | J45: HILO/KR/FRT/T40/YellWin500+ (SSH+Bit) | K45: 23.3 | L45: 22.6 | M45: 10.9 | N45: 12.4 | P45: 2790 | Q45: 900 | R45: 28 | S45: 11.2 | T45: 500 | U45: 8 | V45: 8,0 x 500 | W45: 100 | X45: 15 | Y45: 90 | Z45: +R | AA45: TX 40 | AB45: RAPID® | AC45: Senkkopf, Frästaschen | AD45: Reibteil | AE45: HiLo-Teilgewinde, Kernrippen | AF45: YellWin 500+ | AG45: Z-9.1-564, Z-9.1-509 | AH45: ETA | AI45: ETA 12/0373 | AJ45: 20 | AK45: LE003B | AL45: 1359-CPD-0519 | AM45: SSH_ETA.lab | AN45: C40 | AO45: 5.3 | AP45: 5.9 | AQ45: H | AR45: 5.3 | AS45: 5300
B46: Essve C-PT | C46: countersunk | D46: Essve part.thrd. | E46: 2339741001800001 | F46: 100x180/100 | G46: A1B 1D0 A1C | H46: C | I46: Essve C-PT 10,0 x 180/100 | J46: HILO/KR/UKR/T50/YellWin500+ (SSH+Bit) | K46: 35 | L46: 33.6 | M46: 11 | N46: 12.2 | P46: 4175.45 | Q46: 900 | R46: 52.5 | S46: 17 | T46: 180 | U46: 10 | V46: 10,0 x 180 | W46: 100 | X46: 18.5 | Y46: 90 | Z46: +R | AA46: TX 50 | AB46: RAPID® | AC46: Senkkopf, Frästaschen | AD46: Reibteil | AE46: HiLo-Teilgewinde, Kernrippen | AF46: YellWin 500+ | AG46: Z-9.1-564, Z-9.1-509 | AH46: ETA | AI46: ETA 12/0373 | AJ46: 20 | AK46: LE003B | AL46: 1359-CPD-0519 | AM46: SSH_ETA.lab | AN46: C41 | AO46: 6.7 | AP46: 7.1 | AQ46: H | AR46: 6.7 | AS46: 6700
B47: Essve C-PT | C47: countersunk | D47: Essve part.thrd. | E47: 2339741002000001 | F47: 100x200/100 | G47: A1B 1D0 A1C | H47: C | I47: Essve C-PT 10,0 x 200/100 | J47: HILO/KR/UKR/T50/YellWin500+ (SSH+Bit) | K47: 35 | L47: 33.6 | M47: 11 | N47: 12.2 | P47: 4175.45 | Q47: 900 | R47: 52.5 | S47: 17 | T47: 200 | U47: 10 | V47: 10,0 x 200 | W47: 100 | X47: 18.5 | Y47: 90 | Z47: +R | AA47: TX 50 | AB47: RAPID® | AC47: Senkkopf, Frästaschen | AD47: Reibteil | AE47: HiLo-Teilgewinde, Kernrippen | AF47: YellWin 500+ | AG47: Z-9.1-564, Z-9.1-509 | AH47: ETA | AI47: ETA 12/0373 | AJ47: 20 | AK47: LE003B | AL47: 1359-CPD-0519 | AM47: SSH_ETA.lab | AN47: C42 | AO47: 6.7 | AP47: 7.1 | AQ47: H | AR47: 6.7 | AS47: 6700
B48: Essve C-PT | C48: countersunk | D48: Essve part.thrd. | E48: 2339741002200001 | F48: 100x220/100 | G48: A1B 1D0 A1C | H48: C | I48: Essve C-PT 10,0 x 220/100 | J48: HILO/KR/UKR/T50/YellWin500+ (SSH+Bit) | K48: 35 | L48: 33.6 | M48: 11 | N48: 12.2 | P48: 4175.45 | Q48: 900 | R48: 52.5 | S48: 17 | T48: 220 | U48: 10 | V48: 10,0 x 220 | W48: 100 | X48: 18.5 | Y48: 90 | Z48: +R | AA48: TX 50 | AB48: RAPID® | AC48: Senkkopf, Frästaschen | AD48: Reibteil | AE48: HiLo-Teilgewinde, Kernrippen | AF48: YellWin 500+ | AG48: Z-9.1-564, Z-9.1-509 | AH48: ETA | AI48: ETA 12/0373 | AJ48: 20 | AK48: LE003B | AL48: 1359-CPD-0519 | AM48: SSH_ETA.lab | AN48: C43 | AO48: 6.7 | AP48: 7.1 | AQ48: H | AR48: 6.7 | AS48: 6700
B49: Essve C-PT | C49: countersunk | D49: Essve part.thrd. | E49: 2339741002400001 | F49: 100x240/100 | G49: A1B 1D0 A1C | H49: C | I49: Essve C-PT 10,0 x 240/100 | J49: HILO/KR/UKR/T50/YellWin500+ (SSH+Bit) | K49: 35 | L49: 33.6 | M49: 11 | N49: 12.2 | P49: 4175.45 | Q49: 900 | R49: 52.5 | S49: 17 | T49: 240 | U49: 10 | V49: 10,0 x 240 | W49: 100 | X49: 18.5 | Y49: 90 | Z49: +R | AA49: TX 50 | AB49: RAPID® | AC49: Senkkopf, Frästaschen | AD49: Reibteil | AE49: HiLo-Teilgewinde, Kernrippen | AF49: YellWin 500+ | AG49: Z-9.1-564, Z-9.1-509 | AH49: ETA | AI49: ETA 12/0373 | AJ49: 20 | AK49: LE003B | AL49: 1359-CPD-0519 | AM49: SSH_ETA.lab | AN49: C44 | AO49: 6.7 | AP49: 7.1 | AQ49: H | AR49: 6.7 | AS49: 6700
B50: Essve C-PT | C50: countersunk | D50: Essve part.thrd. | E50: 2339741002600001 | F50: 100x260/100 | G50: A1B 1D0 A1C | H50: C | I50: Essve C-PT 10,0 x 260/100 | J50: HILO/KR/UKR/T50/YellWin500+ (SSH+Bit) | K50: 35 | L50: 33.6 | M50: 11 | N50: 12.2 | P50: 4175.45 | Q50: 900 | R50: 52.5 | S50: 17 | T50: 260 | U50: 10 | V50: 10,0 x 260 | W50: 100 | X50: 18.5 | Y50: 90 | Z50: +R | AA50: TX 50 | AB50: RAPID® | AC50: Senkkopf, Frästaschen | AD50: Reibteil | AE50: HiLo-Teilgewinde, Kernrippen | AF50: YellWin 500+ | AG50: Z-9.1-564, Z-9.1-509 | AH50: ETA | AI50: ETA 12/0373 | AJ50: 20 | AK50: LE003B | AL50: 1359-CPD-0519 | AM50: SSH_ETA.lab | AN50: C45 | AO50: 6.7 | AP50: 7.1 | AQ50: H | AR50: 6.7 | AS50: 6700
B51: Essve C-PT | C51: countersunk | D51: Essve part.thrd. | E51: 2339741002800001 | F51: 100x280/100 | G51: A1B 1D0 A1C | H51: C | I51: Essve C-PT 10,0 x 280/100 | J51: HILO/KR/UKR/T50/YellWin500+ (SSH+Bit) | K51: 35 | L51: 33.6 | M51: 11 | N51: 12.2 | P51: 4175.45 | Q51: 900 | R51: 52.5 | S51: 17 | T51: 280 | U51: 10 | V51: 10,0 x 280 | W51: 100 | X51: 18.5 | Y51: 90 | Z51: +R | AA51: TX 50 | AB51: RAPID® | AC51: Senkkopf, Frästaschen | AD51: Reibteil | AE51: HiLo-Teilgewinde, Kernrippen | AF51: YellWin 500+ | AG51: Z-9.1-564, Z-9.1-509 | AH51: ETA | AI51: ETA 12/0373 | AJ51: 20 | AK51: LE003B | AL51: 1359-CPD-0519 | AM51: SSH_ETA.lab | AN51: C46 | AO51: 6.7 | AP51: 7.1 | AQ51: H | AR51: 6.7 | AS51: 6700
B52: Essve C-PT | C52: countersunk | D52: Essve part.thrd. | E52: 2339741003000001 | F52: 100x300/100 | G52: A1B 1D0 A1C | H52: C | I52: Essve C-PT 10,0 x 300/100 | J52: HILO/KR/UKR/T50/YellWin500+ (SSH+Bit) | K52: 35 | L52: 33.6 | M52: 11 | N52: 12.2 | P52: 4175.45 | Q52: 900 | R52: 52.5 | S52: 17 | T52: 300 | U52: 10 | V52: 10,0 x 300 | W52: 100 | X52: 18.5 | Y52: 90 | Z52: +R | AA52: TX 50 | AB52: RAPID® | AC52: Senkkopf, Frästaschen | AD52: Reibteil | AE52: HiLo-Teilgewinde, Kernrippen | AF52: YellWin 500+ | AG52: Z-9.1-564, Z-9.1-509 | AH52: ETA | AI52: ETA 12/0373 | AJ52: 20 | AK52: LE003B | AL52: 1359-CPD-0519 | AM52: SSH_ETA.lab | AN52: C47 | AO52: 6.7 | AP52: 7.1 | AQ52: H | AR52: 6.7 | AS52: 6700
B53: Essve C-PT | C53: countersunk | D53: Essve part.thrd. | E53: 2339741003200001 | F53: 100x320/120 | G53: A1B 1D0 A1C | H53: C | I53: Essve C-PT 10,0 x 320/100 | J53: HILO/KR/UKR/T50/YellWin500+ (SSH+Bit) | K53: 35 | L53: 33.6 | M53: 11 | N53: 12.2 | P53: 4175.45 | Q53: 900 | R53: 52.5 | S53: 17 | T53: 320 | U53: 10 | V53: 10,0 x 320 | W53: 100 | X53: 18.5 | Y53: 90 | Z53: +R | AA53: TX 50 | AB53: RAPID® | AC53: Senkkopf, Frästaschen | AD53: Reibteil | AE53: HiLo-Teilgewinde, Kernrippen | AF53: YellWin 500+ | AG53: Z-9.1-564, Z-9.1-509 | AH53: ETA | AI53: ETA 12/0373 | AJ53: 20 | AK53: LE003B | AL53: 1359-CPD-0519 | AM53: SSH_ETA.lab | AN53: C48 | AO53: 6.7 | AP53: 7.1 | AQ53: H | AR53: 6.7 | AS53: 6700
B54: Essve C-PT | C54: countersunk | D54: Essve part.thrd. | E54: 2339741003400001 | F54: 100x340/120 | G54: A1B 1D0 A1C | H54: C | I54: Essve C-PT 10,0 x 340/100 | J54: HILO/KR/UKR/T50/YellWin500+ (SSH+Bit) | K54: 35 | L54: 33.6 | M54: 11 | N54: 12.2 | P54: 4175.45 | Q54: 900 | R54: 52.5 | S54: 17 | T54: 340 | U54: 10 | V54: 10,0 x 340 | W54: 100 | X54: 18.5 | Y54: 90 | Z54: +R | AA54: TX 50 | AB54: RAPID® | AC54: Senkkopf, Frästaschen | AD54: Reibteil | AE54: HiLo-Teilgewinde, Kernrippen | AF54: YellWin 500+ | AG54: Z-9.1-564, Z-9.1-509 | AH54: ETA | AI54: ETA 12/0373 | AJ54: 20 | AK54: LE003B | AL54: 1359-CPD-0519 | AM54: SSH_ETA.lab | AN54: C49 | AO54: 6.7 | AP54: 7.1 | AQ54: H | AR54: 6.7 | AS54: 6700
B55: Essve C-PT | C55: countersunk | D55: Essve part.thrd. | E55: 2339741003600001 | F55: 100x360/120 | G55: A1B 1D0 A1C | H55: C | I55: Essve C-PT 10,0 x 360/100 | J55: HILO/KR/UKR/T50/YellWin500+ (SSH+Bit) | K55: 35 | L55: 33.6 | M55: 11 | N55: 12.2 | P55: 4175.45 | Q55: 900 | R55: 52.5 | S55: 17 | T55: 360 | U55: 10 | V55: 10,0 x 360 | W55: 100 | X55: 18.5 | Y55: 90 | Z55: +R | AA55: TX 50 | AB55: RAPID® | AC55: Senkkopf, Frästaschen | AD55: Reibteil | AE55: HiLo-Teilgewinde, Kernrippen | AF55: YellWin 500+ | AG55: Z-9.1-564, Z-9.1-509 | AH55: ETA | AI55: ETA 12/0373 | AJ55: 20 | AK55: LE003B | AL55: 1359-CPD-0519 | AM55: SSH_ETA.lab | AN55: C50 | AO55: 6.7 | AP55: 7.1 | AQ55: H | AR55: 6.7 | AS55: 6700
B56: Essve C-PT | C56: countersunk | D56: Essve part.thrd. | E56: 2339741003800001 | F56: 100x380/120 | G56: A1B 1D0 A1C | H56: C | I56: Essve C-PT 10,0 x 380/100 | J56: HILO/KR/UKR/T50/YellWin500+ (SSH+Bit) | K56: 35 | L56: 33.6 | M56: 11 | N56: 12.2 | P56: 4175.45 | Q56: 900 | R56: 52.5 | S56: 17 | T56: 380 | U56: 10 | V56: 10,0 x 380 | W56: 100 | X56: 18.5 | Y56: 90 | Z56: +R | AA56: TX 50 | AB56: RAPID® | AC56: Senkkopf, Frästaschen | AD56: Reibteil | AE56: HiLo-Teilgewinde, Kernrippen | AF56: YellWin 500+ | AG56: Z-9.1-564, Z-9.1-509 | AH56: ETA | AI56: ETA 12/0373 | AJ56: 20 | AK56: LE003B | AL56: 1359-CPD-0519 | AM56: SSH_ETA.lab | AN56: C51 | AO56: 6.7 | AP56: 7.1 | AQ56: H | AR56: 6.7 | AS56: 6700
B57: Essve C-PT | C57: countersunk | D57: Essve part.thrd. | E57: 2339741004000001 | F57: 100x400/120 | G57: A1B 1D0 A1C | H57: C | I57: Essve C-PT 10,0 x 400/100 | J57: HILO/KR/UKR/T50/YellWin500+ (SSH+Bit) | K57: 35 | L57: 33.6 | M57: 11 | N57: 12.2 | P57: 4175.45 | Q57: 900 | R57: 52.5 | S57: 17 | T57: 400 | U57: 10 | V57: 10,0 x 400 | W57: 100 | X57: 18.5 | Y57: 90 | Z57: +R | AA57: TX 50 | AB57: RAPID® | AC57: Senkkopf, Frästaschen | AD57: Reibteil | AE57: HiLo-Teilgewinde, Kernrippen | AF57: YellWin 500+ | AG57: Z-9.1-564, Z-9.1-509 | AH57: ETA | AI57: ETA 12/0373 | AJ57: 20 | AK57: LE003B | AL57: 1359-CPD-0519 | AM57: SSH_ETA.lab | AN57: C52 | AO57: 6.7 | AP57: 7.1 | AQ57: H | AR57: 6.7 | AS57: 6700
B58: Essve C-PT | C58: countersunk | D58: Essve part.thrd. | E58: 2339741004200001 | F58: 100x420/120 | G58: A1B 1D0 A1C | H58: C | I58: Essve C-PT 10,0 x 420/100 | J58: HILO/KR/UKR/T50/YellWin500+ (SSH+Bit) | K58: 35 | L58: 33.6 | M58: 11 | N58: 12.2 | P58: 4175.45 | Q58: 900 | R58: 52.5 | S58: 17 | T58: 420 | U58: 10 | V58: 10,0 x 420 | W58: 100 | X58: 18.5 | Y58: 90 | Z58: +R | AA58: TX 50 | AB58: RAPID® | AC58: Senkkopf, Frästaschen | AD58: Reibteil | AE58: HiLo-Teilgewinde, Kernrippen | AF58: YellWin 500+ | AG58: Z-9.1-564, Z-9.1-509 | AH58: ETA | AI58: ETA 12/0373 | AJ58: 20 | AK58: LE003B | AL58: 1359-CPD-0519 | AM58: SSH_ETA.lab | AN58: C53 | AO58: 6.7 | AP58: 7.1 | AQ58: H | AR58: 6.7 | AS58: 6700
B59: Essve C-PT | C59: countersunk | D59: Essve part.thrd. | E59: 2339741004400001 | F59: 100x440/120 | G59: A1B 1D0 A1C | H59: C | I59: Essve C-PT 10,0 x 440/100 | J59: HILO/KR/UKR/T50/YellWin500+ (SSH+Bit) | K59: 35 | L59: 33.6 | M59: 11 | N59: 12.2 | P59: 4175.45 | Q59: 900 | R59: 52.5 | S59: 17 | T59: 440 | U59: 10 | V59: 10,0 x 440 | W59: 100 | X59: 18.5 | Y59: 90 | Z59: +R | AA59: TX 50 | AB59: RAPID® | AC59: Senkkopf, Frästaschen | AD59: Reibteil | AE59: HiLo-Teilgewinde, Kernrippen | AF59: YellWin 500+ | AG59: Z-9.1-564, Z-9.1-509 | AH59: ETA | AI59: ETA 12/0373 | AJ59: 20 | AK59: LE003B | AL59: 1359-CPD-0519 | AM59: SSH_ETA.lab | AN59: C54 | AO59: 6.7 | AP59: 7.1 | AQ59: H | AR59: 6.7 | AS59: 6700
B60: Essve C-PT | C60: countersunk | D60: Essve part.thrd. | E60: 2339741004600001 | F60: 100x460/120 | G60: A1B 1D0 A1C | H60: C | I60: Essve C-PT 10,0 x 460/100 | J60: HILO/KR/UKR/T50/YellWin500+ (SSH+Bit) | K60: 35 | L60: 33.6 | M60: 11 | N60: 12.2 | P60: 4175.45 | Q60: 900 | R60: 52.5 | S60: 17 | T60: 460 | U60: 10 | V60: 10,0 x 460 | W60: 100 | X60: 18.5 | Y60: 90 | Z60: +R | AA60: TX 50 | AB60: RAPID® | AC60: Senkkopf, Frästaschen | AD60: Reibteil | AE60: HiLo-Teilgewinde, Kernrippen | AF60: YellWin 500+ | AG60: Z-9.1-564, Z-9.1-509 | AH60: ETA | AI60: ETA 12/0373 | AJ60: 20 | AK60: LE003B | AL60: 1359-CPD-0519 | AM60: SSH_ETA.lab | AN60: C55 | AO60: 6.7 | AP60: 7.1 | AQ60: H | AR60: 6.7 | AS60: 6700
B61: Essve C-PT | C61: countersunk | D61: Essve part.thrd. | E61: 2339741004800001 | F61: 100x480/120 | G61: A1B 1D0 A1C | H61: C | I61: Essve C-PT 10,0 x 480/100 | J61: HILO/KR/UKR/T50/YellWin500+ (SSH+Bit) | K61: 35 | L61: 33.6 | M61: 11 | N61: 12.2 | P61: 4175.45 | Q61: 900 | R61: 52.5 | S61: 17 | T61: 480 | U61: 10 | V61: 10,0 x 480 | W61: 100 | X61: 18.5 | Y61: 90 | Z61: +R | AA61: TX 50 | AB61: RAPID® | AC61: Senkkopf, Frästaschen | AD61: Reibteil | AE61: HiLo-Teilgewinde, Kernrippen | AF61: YellWin 500+ | AG61: Z-9.1-564, Z-9.1-509 | AH61: ETA | AI61: ETA 12/0373 | AJ61: 20 | AK61: LE003B | AL61: 1359-CPD-0519 | AM61: SSH_ETA.lab | AN61: C56 | AO61: 6.7 | AP61: 7.1 | AQ61: H | AR61: 6.7 | AS61: 6700
B62: Essve C-PT | C62: countersunk | D62: Essve part.thrd. | E62: 2339741005000001 | F62: 100x500/120 | G62: A1B 1D0 A1C | H62: C | I62: Essve C-PT 10,0 x 500/100 | J62: HILO/KR/UKR/T50/YellWin500+ (SSH+Bit) | K62: 35 | L62: 33.6 | M62: 11 | N62: 12.2 | P62: 4175.45 | Q62: 900 | R62: 52.5 | S62: 17 | T62: 500 | U62: 10 | V62: 10,0 x 500 | W62: 100 | X62: 18.5 | Y62: 90 | Z62: +R | AA62: TX 50 | AB62: RAPID® | AC62: Senkkopf, Frästaschen | AD62: Reibteil | AE62: HiLo-Teilgewinde, Kernrippen | AF62: YellWin 500+ | AG62: Z-9.1-564, Z-9.1-509 | AH62: ETA | AI62: ETA 12/0373 | AJ62: 20 | AK62: LE003B | AL62: 1359-CPD-0519 | AM62: SSH_ETA.lab | AN62: C57 | AO62: 6.7 | AP62: 7.1 | AQ62: H | AR62: 6.7 | AS62: 6700
B63: Essve C-PT | C63: countersunk | D63: Essve part.thrd. | E63: 1339741201800001 | I63: Essve C-PT 12,0 x 180/100 | J63: EG/KR/UKR/T50/YellWin500+ (SSH+Bit) | K63: 42 | L63: 46.9 | M63: 11.2 | N63: 11 | P63: 4400 | Q63: 900 | R63: 59.6 | S63: 27.6 | T63: 180 | U63: 12 | V63: 12,0 x 180 | W63: 100 | X63: 20 | Y63: 90 | Z63: +R | AA63: TX 50 | AB63: RAPID® | AC63: Senkkopf, Frästaschen | AD63: Reibteil | AE63: EG-Teilgewinde, Kernrippen | AF63: YellWin 500+ | AH63: ETA | AI63: ETA 12/0373 | AJ63: 20 | AK63: LE003B | AL63: 1359-CPD-0519 | AO63: 7 | AP63: 8.2 | AQ63: H | AR63: 7 | AS63: 7000
B64: Essve C-PT | C64: countersunk | D64: Essve part.thrd. | E64: 1339741202000001 | I64: Essve C-PT 12,0 x 200/100 | J64: EG/KR/UKR/T50/YellWin500+ (SSH+Bit) | K64: 42 | L64: 46.9 | M64: 11.2 | N64: 11 | P64: 4400 | Q64: 900 | R64: 59.6 | S64: 27.6 | T64: 200 | U64: 12 | V64: 12,0 x 200 | W64: 100 | X64: 20 | Y64: 90 | Z64: +R | AA64: TX 50 | AB64: RAPID® | AC64: Senkkopf, Frästaschen | AD64: Reibteil | AE64: EG-Teilgewinde, Kernrippen | AF64: YellWin 500+ | AH64: ETA | AI64: ETA 12/0373 | AJ64: 20 | AK64: LE003B | AL64: 1359-CPD-0519 | AO64: 7 | AP64: 8.2 | AQ64: H | AR64: 7 | AS64: 7000
B65: Essve C-PT | C65: countersunk | D65: Essve part.thrd. | E65: 1339741202200001 | I65: Essve C-PT 12,0 x 220/100 | J65: EG/KR/UKR/T50/YellWin500+ (SSH+Bit) | K65: 42 | L65: 46.9 | M65: 11.2 | N65: 11 | P65: 4400 | Q65: 900 | R65: 59.6 | S65: 27.6 | T65: 220 | U65: 12 | V65: 12,0 x 220 | W65: 100 | X65: 20 | Y65: 90 | Z65: +R | AA65: TX 50 | AB65: RAPID® | AC65: Senkkopf, Frästaschen | AD65: Reibteil | AE65: EG-Teilgewinde, Kernrippen | AF65: YellWin 500+ | AH65: ETA | AI65: ETA 12/0373 | AJ65: 20 | AK65: LE003B | AL65: 1359-CPD-0519 | AO65: 7 | AP65: 8.2 | AQ65: H | AR65: 7 | AS65: 7000
B66: Essve C-PT | C66: countersunk | D66: Essve part.thrd. | E66: 1339741202400001 | I66: Essve C-PT 12,0 x 240/100 | J66: EG/KR/UKR/T50/YellWin500+ (SSH+Bit) | K66: 42 | L66: 46.9 | M66: 11.2 | N66: 11 | P66: 4400 | Q66: 900 | R66: 59.6 | S66: 27.6 | T66: 240 | U66: 12 | V66: 12,0 x 240 | W66: 100 | X66: 20 | Y66: 90 | Z66: +R | AA66: TX 50 | AB66: RAPID® | AC66: Senkkopf, Frästaschen | AD66: Reibteil | AE66: EG-Teilgewinde, Kernrippen | AF66: YellWin 500+ | AH66: ETA | AI66: ETA 12/0373 | AJ66: 20 | AK66: LE003B | AL66: 1359-CPD-0519 | AO66: 7 | AP66: 8.2 | AQ66: H | AR66: 7 | AS66: 7000
B67: Essve C-PT | C67: countersunk | D67: Essve part.thrd. | E67: 1339741202600001 | I67: Essve C-PT 12,0 x 260/100 | J67: EG/KR/UKR/T50/YellWin500+ (SSH+Bit) | K67: 42 | L67: 46.9 | M67: 11.2 | N67: 11 | P67: 4400 | Q67: 900 | R67: 59.6 | S67: 27.6 | T67: 260 | U67: 12 | V67: 12,0 x 260 | W67: 100 | X67: 20 | Y67: 90 | Z67: +R | AA67: TX 50 | AB67: RAPID® | AC67: Senkkopf, Frästaschen | AD67: Reibteil | AE67: EG-Teilgewinde, Kernrippen | AF67: YellWin 500+ | AH67: ETA | AI67: ETA 12/0373 | AJ67: 20 | AK67: LE003B | AL67: 1359-CPD-0519 | AO67: 7 | AP67: 8.2 | AQ67: H | AR67: 7 | AS67: 7000
B68: Essve C-PT | C68: countersunk | D68: Essve part.thrd. | E68: 1339741202800001 | I68: Essve C-PT 12,0 x 280/100 | J68: EG/KR/UKR/T50/YellWin500+ (SSH+Bit) | K68: 42 | L68: 46.9 | M68: 11.2 | N68: 11 | P68: 4400 | Q68: 900 | R68: 59.6 | S68: 27.6 | T68: 280 | U68: 12 | V68: 12,0 x 280 | W68: 100 | X68: 20 | Y68: 90 | Z68: +R | AA68: TX 50 | AB68: RAPID® | AC68: Senkkopf, Frästaschen | AD68: Reibteil | AE68: EG-Teilgewinde, Kernrippen | AF68: YellWin 500+ | AH68: ETA | AI68: ETA 12/0373 | AJ68: 20 | AK68: LE003B | AL68: 1359-CPD-0519 | AO68: 7 | AP68: 8.2 | AQ68: H | AR68: 7 | AS68: 7000
B69: Essve C-PT | C69: countersunk | D69: Essve part.thrd. | E69: 1339741203000001 | I69: Essve C-PT 12,0 x 300/120 | J69: EG/KR/UKR/T50/YellWin500+ (SSH+Bit) | K69: 42 | L69: 46.9 | M69: 11.2 | N69: 11 | P69: 4400 | Q69: 900 | R69: 59.6 | S69: 27.6 | T69: 300 | U69: 12 | V69: 12,0 x 300 | W69: 120 | X69: 20 | Y69: 90 | Z69: +R | AA69: TX 50 | AB69: RAPID® | AC69: Senkkopf, Frästaschen | AD69: Reibteil | AE69: EG-Teilgewinde, Kernrippen | AF69: YellWin 500+ | AH69: ETA | AI69: ETA 12/0373 | AJ69: 20 | AK69: LE003B | AL69: 1359-CPD-0519 | AO69: 7 | AP69: 8.2 | AQ69: H | AR69: 7 | AS69: 7000
B70: Essve C-PT | C70: countersunk | D70: Essve part.thrd. | E70: 1339741203200001 | I70: Essve C-PT 12,0 x 320/120 | J70: EG/KR/UKR/T50/YellWin500+ (SSH+Bit) | K70: 42 | L70: 46.9 | M70: 11.2 | N70: 11 | P70: 4400 | Q70: 900 | R70: 59.6 | S70: 27.6 | T70: 320 | U70: 12 | V70: 12,0 x 320 | W70: 120 | X70: 20 | Y70: 90 | Z70: +R | AA70: TX 50 | AB70: RAPID® | AC70: Senkkopf, Frästaschen | AD70: Reibteil | AE70: EG-Teilgewinde, Kernrippen | AF70: YellWin 500+ | AH70: ETA | AI70: ETA 12/0373 | AJ70: 20 | AK70: LE003B | AL70: 1359-CPD-0519 | AO70: 7 | AP70: 8.2 | AQ70: H | AR70: 7 | AS70: 7000
B71: Essve C-PT | C71: countersunk | D71: Essve part.thrd. | E71: 1339741203400001 | I71: Essve C-PT 12,0 x 340/120 | J71: EG/KR/UKR/T50/YellWin500+ (SSH+Bit) | K71: 42 | L71: 46.9 | M71: 11.2 | N71: 11 | P71: 4400 | Q71: 900 | R71: 59.6 | S71: 27.6 | T71: 340 | U71: 12 | V71: 12,0 x 340 | W71: 120 | X71: 20 | Y71: 90 | Z71: +R | AA71: TX 50 | AB71: RAPID® | AC71: Senkkopf, Frästaschen | AD71: Reibteil | AE71: EG-Teilgewinde, Kernrippen | AF71: YellWin 500+ | AH71: ETA | AI71: ETA 12/0373 | AJ71: 20 | AK71: LE003B | AL71: 1359-CPD-0519 | AO71: 7 | AP71: 8.2 | AQ71: H | AR71: 7 | AS71: 7000
B72: Essve C-PT | C72: countersunk | D72: Essve part.thrd. | E72: 1339741203600001 | I72: Essve C-PT 12,0 x 360/120 | J72: EG/KR/UKR/T50/YellWin500+ (SSH+Bit) | K72: 42 | L72: 46.9 | M72: 11.2 | N72: 11 | P72: 4400 | Q72: 900 | R72: 59.6 | S72: 27.6 | T72: 360 | U72: 12 | V72: 12,0 x 360 | W72: 120 | X72: 20 | Y72: 90 | Z72: +R | AA72: TX 50 | AB72: RAPID® | AC72: Senkkopf, Frästaschen | AD72: Reibteil | AE72: EG-Teilgewinde, Kernrippen | AF72: YellWin 500+ | AH72: ETA | AI72: ETA 12/0373 | AJ72: 20 | AK72: LE003B | AL72: 1359-CPD-0519 | AO72: 7 | AP72: 8.2 | AQ72: H | AR72: 7 | AS72: 7000
B73: Essve C-PT | C73: countersunk | D73: Essve part.thrd. | E73: 1339741203800001 | I73: Essve C-PT 12,0 x 380/120 | J73: EG/KR/UKR/T50/YellWin500+ (SSH+Bit) | K73: 42 | L73: 46.9 | M73: 11.2 | N73: 11 | P73: 4400 | Q73: 900 | R73: 59.6 | S73: 27.6 | T73: 380 | U73: 12 | V73: 12,0 x 380 | W73: 120 | X73: 20 | Y73: 90 | Z73: +R | AA73: TX 50 | AB73: RAPID® | AC73: Senkkopf, Frästaschen | AD73: Reibteil | AE73: EG-Teilgewinde, Kernrippen | AF73: YellWin 500+ | AH73: ETA | AI73: ETA 12/0373 | AJ73: 20 | AK73: LE003B | AL73: 1359-CPD-0519 | AO73: 7 | AP73: 8.2 | AQ73: H | AR73: 7 | AS73: 7000
B74: Essve C-PT | C74: countersunk | D74: Essve part.thrd. | E74: 1339741204000001 | I74: Essve C-PT 12,0 x 400/120 | J74: EG/KR/UKR/T50/YellWin500+ (SSH+Bit) | K74: 42 | L74: 46.9 | M74: 11.2 | N74: 11 | P74: 4400 | Q74: 900 | R74: 59.6 | S74: 27.6 | T74: 400 | U74: 12 | V74: 12,0 x 400 | W74: 120 | X74: 20 | Y74: 90 | Z74: +R | AA74: TX 50 | AB74: RAPID® | AC74: Senkkopf, Frästaschen | AD74: Reibteil | AE74: EG-Teilgewinde, Kernrippen | AF74: YellWin 500+ | AH74: ETA | AI74: ETA 12/0373 | AJ74: 20 | AK74: LE003B | AL74: 1359-CPD-0519 | AO74: 7 | AP74: 8.2 | AQ74: H | AR74: 7 | AS74: 7000
A75: slst_1_2 | B75: Essve WH | C75: Disc | D75: Essve part.thrd. washer | E75: 2333740601800001 | I75: Essve WH S-14, 6,0 x 180/70 | J75: HILO/KR/T30/YellWin500+ (SSH+Bit) | K75: 13.1 | L75: 10.7 | M75: 13 | N75: 16.7 | P75: 3273.2 | Q75: 900 | R75: 10.9 | S75: 5.4 | T75: 180 | U75: 6 | V75: 6,0 x 180 | W75: 70 | X75: 14 | Y75: 180 | Z75: +R | AA75: TX 30 | AB75: RAPID® S-14 | AC75: Scheibenkopf | AD75: Reibteil | AE75: HiLo-Teilgewinde, Kernrippen | AF75: YellWin 500+ | AH75: ETA | AI75: ETA 12/0373 | AJ75: 20 | AK75: LE003B | AL75: 1359-CPD-0519 | AO75: 3.9 | AP75: 4.3 | AQ75: H | AR75: 3.9 | AS75: 3900
B76: Essve WH | C76: Disc | D76: Essve part.thrd. washer | E76: 2333740602000001 | I76: Essve WH S-14, 6,0 x 200/70 | J76: HILO/KR/T30/YellWin500+ (SSH+Bit) | K76: 13.1 | L76: 10.7 | M76: 13 | N76: 16.7 | P76: 3273.2 | Q76: 900 | R76: 10.9 | S76: 5.4 | T76: 200 | U76: 6 | V76: 6,0 x 200 | W76: 70 | X76: 14 | Y76: 180 | Z76: +R | AA76: TX 30 | AB76: RAPID® S-14 | AC76: Scheibenkopf | AD76: Reibteil | AE76: HiLo-Teilgewinde, Kernrippen | AF76: YellWin 500+ | AH76: ETA | AI76: ETA 12/0373 | AJ76: 20 | AK76: LE003B | AL76: 1359-CPD-0519 | AO76: 3.9 | AP76: 4.3 | AQ76: H | AR76: 3.9 | AS76: 3900
B77: Essve WH | C77: Disc | D77: Essve part.thrd. washer | E77: 2333740602200001 | I77: Essve WH S-14, 6,0 x 220/70 | J77: HILO/KR/T30/YellWin500+ (SSH+Bit) | K77: 13.1 | L77: 10.7 | M77: 13 | N77: 16.7 | O77: =IF(C77="Scheibe",N77*0.6,"") ->  | P77: =X77*X77*N77 -> 3273.2 | Q77: 900 | R77: 10.9 | S77: 5.4 | T77: 220 | U77: 6 | V77: 6,0 x 220 | W77: 70 | X77: 14 | Y77: 180 | Z77: +R | AA77: TX 30 | AB77: RAPID® S-14 | AC77: Scheibenkopf | AD77: Reibteil | AE77: HiLo-Teilgewinde, Kernrippen | AF77: YellWin 500+ | AH77: ETA | AI77: ETA 12/0373 | AJ77: 20 | AK77: LE003B | AL77: 1359-CPD-0519 | AO77: 3.9 | AP77: 4.3 | AQ77: H | AR77: 3.9 | AS77: =AR77*1000 -> 3900
B78: Essve WH | C78: Disc | D78: Essve part.thrd. washer | E78: 2333740602400001 | I78: Essve WH S-14, 6,0 x 240/70 | J78: HILO/KR/T30/YellWin500+ (SSH+Bit) | K78: 13.1 | L78: 10.7 | M78: 13 | N78: 16.7 | P78: 3273.2 | Q78: 900 | R78: 10.9 | S78: 5.4 | T78: 240 | U78: 6 | V78: 6,0 x 240 | W78: 70 | X78: 14 | Y78: 180 | Z78: +R | AA78: TX 30 | AB78: RAPID® S-14 | AC78: Scheibenkopf | AD78: Reibteil | AE78: HiLo-Teilgewinde, Kernrippen | AF78: YellWin 500+ | AH78: ETA | AI78: ETA 12/0373 | AJ78: 20 | AK78: LE003B | AL78: 1359-CPD-0519 | AO78: 3.9 | AP78: 4.3 | AQ78: H | AR78: 3.9 | AS78: 3900
B79: Essve WH | C79: Disc | D79: Essve part.thrd. washer | E79: 2333740602600001 | I79: Essve WH S-14, 6,0 x 260/70 | J79: HILO/KR/T30/YellWin500+ (SSH+Bit) | K79: 13.1 | L79: 10.7 | M79: 13 | N79: 16.7 | P79: 3273.2 | Q79: 900 | R79: 10.9 | S79: 5.4 | T79: 260 | U79: 6 | V79: 6,0 x 260 | W79: 70 | X79: 14 | Y79: 180 | Z79: +R | AA79: TX 30 | AB79: RAPID® S-14 | AC79: Scheibenkopf | AD79: Reibteil | AE79: HiLo-Teilgewinde, Kernrippen | AF79: YellWin 500+ | AH79: ETA | AI79: ETA 12/0373 | AJ79: 20 | AK79: LE003B | AL79: 1359-CPD-0519 | AO79: 3.9 | AP79: 4.3 | AQ79: H | AR79: 3.9 | AS79: 3900
B80: Essve WH | C80: Disc | D80: Essve part.thrd. washer | E80: 2333740602800001 | I80: Essve WH S-14, 6,0 x 280/70 | J80: HILO/KR/T30/YellWin500+ (SSH+Bit) | K80: 13.1 | L80: 10.7 | M80: 13 | N80: 16.7 | P80: 3273.2 | Q80: 900 | R80: 10.9 | S80: 5.4 | T80: 280 | U80: 6 | V80: 6,0 x 280 | W80: 70 | X80: 14 | Y80: 180 | Z80: +R | AA80: TX 30 | AB80: RAPID® S-14 | AC80: Scheibenkopf | AD80: Reibteil | AE80: HiLo-Teilgewinde, Kernrippen | AF80: YellWin 500+ | AH80: ETA | AI80: ETA 12/0373 | AJ80: 20 | AK80: LE003B | AL80: 1359-CPD-0519 | AO80: 3.9 | AP80: 4.3 | AQ80: H | AR80: 3.9 | AS80: 3900
B81: Essve WH | C81: Disc | D81: Essve part.thrd. washer | E81: 2333740603000001 | I81: Essve WH S-14, 6,0 x 300/70 | J81: HILO/KR/T30/YellWin500+ (SSH+Bit) | K81: 13.1 | L81: 10.7 | M81: 13 | N81: 16.7 | P81: 3273.2 | Q81: 900 | R81: 10.9 | S81: 5.4 | T81: 300 | U81: 6 | V81: 6,0 x 300 | W81: 70 | X81: 14 | Y81: 180 | Z81: +R | AA81: TX 30 | AB81: RAPID® S-14 | AC81: Scheibenkopf | AD81: Reibteil | AE81: HiLo-Teilgewinde, Kernrippen | AF81: YellWin 500+ | AH81: ETA | AI81: ETA 12/0373 | AJ81: 20 | AK81: LE003B | AL81: 1359-CPD-0519 | AO81: 3.9 | AP81: 4.3 | AQ81: H | AR81: 3.9 | AS81: 3900
B82: Essve WH | C82: Disc | D82: Essve part.thrd. washer | E82: 2333740801800001 | F82: 080x180/100 | G82: F1F 1D0 A2C | H82: C | I82: Essve WH S-20, 8,0 x 180/100 | J82: HILO/KR/T40/YellWin500+ (SSH+Bit) | K82: 23.3 | L82: 22.6 | M82: 10.9 | N82: 17.6 | P82: 7040 | Q82: 900 | R82: 28 | S82: 11.2 | T82: 180 | U82: 8 | V82: 8,0 x 180 | W82: 100 | X82: 20 | Y82: 180 | Z82: +R | AA82: TX 40 | AB82: RAPID® S-20 | AC82: Scheibenkopf | AD82: Reibteil | AE82: HiLo-Teilgewinde, Kernrippen | AF82: YellWin 500+ | AG82: Z-9.1-564, Z-9.1-509 | AH82: ETA | AI82: ETA 12/0373 | AJ82: 20 | AK82: LE003B | AL82: 1359-CPD-0519 | AM82: SSH_ETA.lab | AN82: D4 | AO82: 5.3 | AP82: 5.9 | AQ82: H | AR82: 5.3 | AS82: 5300
B83: Essve WH | C83: Disc | D83: Essve part.thrd. washer | E83: 2333740802000001 | F83: 080x200/100 | G83: F1F 1D0 A2C | H83: C | I83: Essve WH S-20, 8,0 x 200/100 | J83: HILO/KR/T40/YellWin500+ (SSH+Bit) | K83: 23.3 | L83: 22.6 | M83: 10.9 | N83: 17.6 | P83: 7040 | Q83: 900 | R83: 28 | S83: 11.2 | T83: 200 | U83: 8 | V83: 8,0 x 200 | W83: 100 | X83: 20 | Y83: 180 | Z83: +R | AA83: TX 40 | AB83: RAPID® S-20 | AC83: Scheibenkopf | AD83: Reibteil | AE83: HiLo-Teilgewinde, Kernrippen | AF83: YellWin 500+ | AG83: Z-9.1-564, Z-9.1-509 | AH83: ETA | AI83: ETA 12/0373 | AJ83: 20 | AK83: LE003B | AL83: 1359-CPD-0519 | AM83: SSH_ETA.lab | AN83: D4 | AO83: 5.3 | AP83: 5.9 | AQ83: H | AR83: 5.3 | AS83: 5300
B84: Essve WH | C84: Disc | D84: Essve part.thrd. washer | E84: 2333740802200001 | F84: 080x220/100 | G84: F1F 1D0 A2C | H84: C | I84: Essve WH S-20, 8,0 x 220/100 | J84: HILO/KR/T40/YellWin500+ (SSH+Bit) | K84: 23.3 | L84: 22.6 | M84: 10.9 | N84: 17.6 | P84: 7040 | Q84: 900 | R84: 28 | S84: 11.2 | T84: 220 | U84: 8 | V84: 8,0 x 220 | W84: 100 | X84: 20 | Y84: 180 | Z84: +R | AA84: TX 40 | AB84: RAPID® S-20 | AC84: Scheibenkopf | AD84: Reibteil | AE84: HiLo-Teilgewinde, Kernrippen | AF84: YellWin 500+ | AG84: Z-9.1-564, Z-9.1-509 | AH84: ETA | AI84: ETA 12/0373 | AJ84: 20 | AK84: LE003B | AL84: 1359-CPD-0519 | AM84: SSH_ETA.lab | AN84: D4 | AO84: 5.3 | AP84: 5.9 | AQ84: H | AR84: 5.3 | AS84: 5300
B85: Essve WH | C85: Disc | D85: Essve part.thrd. washer | E85: 2333740802400001 | F85: 080x240/100 | G85: F1F 1D0 A2C | H85: C | I85: Essve WH S-20, 8,0 x 240/100 | J85: HILO/KR/T40/YellWin500+ (SSH+Bit) | K85: 23.3 | L85: 22.6 | M85: 10.9 | N85: 17.6 | P85: 7040 | Q85: 900 | R85: 28 | S85: 11.2 | T85: 240 | U85: 8 | V85: 8,0 x 240 | W85: 100 | X85: 20 | Y85: 180 | Z85: +R | AA85: TX 40 | AB85: RAPID® S-20 | AC85: Scheibenkopf | AD85: Reibteil | AE85: HiLo-Teilgewinde, Kernrippen | AF85: YellWin 500+ | AG85: Z-9.1-564, Z-9.1-509 | AH85: ETA | AI85: ETA 12/0373 | AJ85: 20 | AK85: LE003B | AL85: 1359-CPD-0519 | AM85: SSH_ETA.lab | AN85: D4 | AO85: 5.3 | AP85: 5.9 | AQ85: H | AR85: 5.3 | AS85: 5300
B86: Essve WH | C86: Disc | D86: Essve part.thrd. washer | E86: 2333740802600001 | F86: 080x260/100 | G86: F1F 1D0 A2C | H86: C | I86: Essve WH S-20, 8,0 x 260/100 | J86: HILO/KR/T40/YellWin500+ (SSH+Bit) | K86: 23.3 | L86: 22.6 | M86: 10.9 | N86: 17.6 | P86: 7040 | Q86: 900 | R86: 28 | S86: 11.2 | T86: 260 | U86: 8 | V86: 8,0 x 260 | W86: 100 | X86: 20 | Y86: 180 | Z86: +R | AA86: TX 40 | AB86: RAPID® S-20 | AC86: Scheibenkopf | AD86: Reibteil | AE86: HiLo-Teilgewinde, Kernrippen | AF86: YellWin 500+ | AG86: Z-9.1-564, Z-9.1-509 | AH86: ETA | AI86: ETA 12/0373 | AJ86: 20 | AK86: LE003B | AL86: 1359-CPD-0519 | AM86: SSH_ETA.lab | AN86: D4 | AO86: 5.3 | AP86: 5.9 | AQ86: H | AR86: 5.3 | AS86: 5300
B87: Essve WH | C87: Disc | D87: Essve part.thrd. washer | E87: 2333740802800001 | F87: 080x280/100 | G87: F1F 1D0 A2C | H87: C | I87: Essve WH S-20, 8,0 x 280/100 | J87: HILO/KR/T40/YellWin500+ (SSH+Bit) | K87: 23.3 | L87: 22.6 | M87: 10.9 | N87: 17.6 | P87: 7040 | Q87: 900 | R87: 28 | S87: 11.2 | T87: 280 | U87: 8 | V87: 8,0 x 280 | W87: 100 | X87: 20 | Y87: 180 | Z87: +R | AA87: TX 40 | AB87: RAPID® S-20 | AC87: Scheibenkopf | AD87: Reibteil | AE87: HiLo-Teilgewinde, Kernrippen | AF87: YellWin 500+ | AG87: Z-9.1-564, Z-9.1-509 | AH87: ETA | AI87: ETA 12/0373 | AJ87: 20 | AK87: LE003B | AL87: 1359-CPD-0519 | AM87: SSH_ETA.lab | AN87: D4 | AO87: 5.3 | AP87: 5.9 | AQ87: H | AR87: 5.3 | AS87: 5300
B88: Essve WH | C88: Disc | D88: Essve part.thrd. washer | E88: 2333740803000001 | F88: 080x300/100 | G88: F1F 1D0 A2C | H88: C | I88: Essve WH S-20, 8,0 x 300/100 | J88: HILO/KR/T40/YellWin500+ (SSH+Bit) | K88: 23.3 | L88: 22.6 | M88: 10.9 | N88: 17.6 | P88: 7040 | Q88: 900 | R88: 28 | S88: 11.2 | T88: 300 | U88: 8 | V88: 8,0 x 300 | W88: 100 | X88: 20 | Y88: 180 | Z88: +R | AA88: TX 40 | AB88: RAPID® S-20 | AC88: Scheibenkopf | AD88: Reibteil | AE88: HiLo-Teilgewinde, Kernrippen | AF88: YellWin 500+ | AG88: Z-9.1-564, Z-9.1-509 | AH88: ETA | AI88: ETA 12/0373 | AJ88: 20 | AK88: LE003B | AL88: 1359-CPD-0519 | AM88: SSH_ETA.lab | AN88: D4 | AO88: 5.3 | AP88: 5.9 | AQ88: H | AR88: 5.3 | AS88: 5300
B89: Essve WH | C89: Disc | D89: Essve part.thrd. washer | E89: 2333740803200001 | F89: 080x320/100 | G89: F1F 1D0 A2C | H89: C | I89: Essve WH S-20, 8,0 x 320/100 | J89: HILO/KR/T40/YellWin500+ (SSH+Bit) | K89: 23.3 | L89: 22.6 | M89: 10.9 | N89: 17.6 | P89: 7040 | Q89: 900 | R89: 28 | S89: 11.2 | T89: 320 | U89: 8 | V89: 8,0 x 320 | W89: 100 | X89: 20 | Y89: 180 | Z89: +R | AA89: TX 40 | AB89: RAPID® S-20 | AC89: Scheibenkopf | AD89: Reibteil | AE89: HiLo-Teilgewinde, Kernrippen | AF89: YellWin 500+ | AG89: Z-9.1-564, Z-9.1-509 | AH89: ETA | AI89: ETA 12/0373 | AJ89: 20 | AK89: LE003B | AL89: 1359-CPD-0519 | AM89: SSH_ETA.lab | AN89: D4 | AO89: 5.3 | AP89: 5.9 | AQ89: H | AR89: 5.3 | AS89: 5300
B90: Essve WH | C90: Disc | D90: Essve part.thrd. washer | E90: 2333740803400001 | F90: 080x340/100 | G90: F1F 1D0 A2C | H90: C | I90: Essve WH S-20, 8,0 x 340/100 | J90: HILO/KR/T40/YellWin500+ (SSH+Bit) | K90: 23.3 | L90: 22.6 | M90: 10.9 | N90: 17.6 | P90: 7040 | Q90: 900 | R90: 28 | S90: 11.2 | T90: 340 | U90: 8 | V90: 8,0 x 340 | W90: 100 | X90: 20 | Y90: 180 | Z90: +R | AA90: TX 40 | AB90: RAPID® S-20 | AC90: Scheibenkopf | AD90: Reibteil | AE90: HiLo-Teilgewinde, Kernrippen | AF90: YellWin 500+ | AG90: Z-9.1-564, Z-9.1-509 | AH90: ETA | AI90: ETA 12/0373 | AJ90: 20 | AK90: LE003B | AL90: 1359-CPD-0519 | AM90: SSH_ETA.lab | AN90: D4 | AO90: 5.3 | AP90: 5.9 | AQ90: H | AR90: 5.3 | AS90: 5300
B91: Essve WH | C91: Disc | D91: Essve part.thrd. washer | E91: 2333740803600001 | F91: 080x360/100 | G91: F1F 1D0 A2C | H91: C | I91: Essve WH S-20, 8,0 x 360/100 | J91: HILO/KR/T40/YellWin500+ (SSH+Bit) | K91: 23.3 | L91: 22.6 | M91: 10.9 | N91: 17.6 | P91: 7040 | Q91: 900 | R91: 28 | S91: 11.2 | T91: 360 | U91: 8 | V91: 8,0 x 360 | W91: 100 | X91: 20 | Y91: 180 | Z91: +R | AA91: TX 40 | AB91: RAPID® S-20 | AC91: Scheibenkopf | AD91: Reibteil | AE91: HiLo-Teilgewinde, Kernrippen | AF91: YellWin 500+ | AG91: Z-9.1-564, Z-9.1-509 | AH91: ETA | AI91: ETA 12/0373 | AJ91: 20 | AK91: LE003B | AL91: 1359-CPD-0519 | AM91: SSH_ETA.lab | AN91: D4 | AO91: 5.3 | AP91: 5.9 | AQ91: H | AR91: 5.3 | AS91: 5300
B92: Essve WH | C92: Disc | D92: Essve part.thrd. washer | E92: 2333740803800001 | F92: 080x380/100 | G92: F1F 1D0 A2C | H92: C | I92: Essve WH S-20, 8,0 x 380/100 | J92: HILO/KR/T40/YellWin500+ (SSH+Bit) | K92: 23.3 | L92: 22.6 | M92: 10.9 | N92: 17.6 | P92: 7040 | Q92: 900 | R92: 28 | S92: 11.2 | T92: 380 | U92: 8 | V92: 8,0 x 380 | W92: 100 | X92: 20 | Y92: 180 | Z92: +R | AA92: TX 40 | AB92: RAPID® S-20 | AC92: Scheibenkopf | AD92: Reibteil | AE92: HiLo-Teilgewinde, Kernrippen | AF92: YellWin 500+ | AG92: Z-9.1-564, Z-9.1-509 | AH92: ETA | AI92: ETA 12/0373 | AJ92: 20 | AK92: LE003B | AL92: 1359-CPD-0519 | AM92: SSH_ETA.lab | AN92: D4 | AO92: 5.3 | AP92: 5.9 | AQ92: H | AR92: 5.3 | AS92: 5300
B93: Essve WH | C93: Disc | D93: Essve part.thrd. washer | E93: 2333740804000001 | F93: 080x400/100 | G93: F1F 1D0 A2C | H93: C | I93: Essve WH S-20, 8,0 x 400/100 | J93: HILO/KR/T40/YellWin500+ (SSH+Bit) | K93: 23.3 | L93: 22.6 | M93: 10.9 | N93: 17.6 | P93: 7040 | Q93: 900 | R93: 28 | S93: 11.2 | T93: 400 | U93: 8 | V93: 8,0 x 400 | W93: 100 | X93: 20 | Y93: 180 | Z93: +R | AA93: TX 40 | AB93: RAPID® S-20 | AC93: Scheibenkopf | AD93: Reibteil | AE93: HiLo-Teilgewinde, Kernrippen | AF93: YellWin 500+ | AG93: Z-9.1-564, Z-9.1-509 | AH93: ETA | AI93: ETA 12/0373 | AJ93: 20 | AK93: LE003B | AL93: 1359-CPD-0519 | AM93: SSH_ETA.lab | AN93: D4 | AO93: 5.3 | AP93: 5.9 | AQ93: H | AR93: 5.3 | AS93: 5300
B94: Essve WH | C94: Disc | D94: Essve part.thrd. washer | E94: 2333740804500001 | F94: 080x450/100 | G94: F1F 1D0 A2C | H94: C | I94: Essve WH S-20, 8,0 x 450/100 | J94: HILO/KR/T40/YellWin500+ (SSH+Bit) | K94: 23.3 | L94: 22.6 | M94: 10.9 | N94: 17.6 | P94: 7040 | Q94: 900 | R94: 28 | S94: 11.2 | T94: 450 | U94: 8 | V94: 8,0 x 450 | W94: 100 | X94: 20 | Y94: 180 | Z94: +R | AA94: TX 40 | AB94: RAPID® S-20 | AC94: Scheibenkopf | AD94: Reibteil | AE94: HiLo-Teilgewinde, Kernrippen | AF94: YellWin 500+ | AG94: Z-9.1-564, Z-9.1-509 | AH94: ETA | AI94: ETA 12/0373 | AJ94: 20 | AK94: LE003B | AL94: 1359-CPD-0519 | AM94: SSH_ETA.lab | AN94: D4 | AO94: 5.3 | AP94: 5.9 | AQ94: H | AR94: 5.3 | AS94: 5300
B95: Essve WH | C95: Disc | D95: Essve part.thrd. washer | E95: 2333740805000001 | F95: 080x500/100 | G95: F1F 1D0 A2C | H95: C | I95: Essve WH S-20, 8,0 x 500/100 | J95: HILO/KR/T40/YellWin500+ (SSH+Bit) | K95: 23.3 | L95: 22.6 | M95: 10.9 | N95: 17.6 | P95: 7040 | Q95: 900 | R95: 28 | S95: 11.2 | T95: 500 | U95: 8 | V95: 8,0 x 500 | W95: 100 | X95: 20 | Y95: 180 | Z95: +R | AA95: TX 40 | AB95: RAPID® S-20 | AC95: Scheibenkopf | AD95: Reibteil | AE95: HiLo-Teilgewinde, Kernrippen | AF95: YellWin 500+ | AG95: Z-9.1-564, Z-9.1-509 | AH95: ETA | AI95: ETA 12/0373 | AJ95: 20 | AK95: LE003B | AL95: 1359-CPD-0519 | AM95: SSH_ETA.lab | AN95: D4 | AO95: 5.3 | AP95: 5.9 | AQ95: H | AR95: 5.3 | AS95: 5300
B96: Essve WH | C96: Disc | D96: Essve part.thrd. washer | E96: 2333741001800001 | F96: 100x180/100 | G96: F1F 1D0 A2C | H96: C | I96: Essve WH S-25, 10,0 x 180/100 | J96: HILO/KR/T50/YellWin500+ (SSH+Bit) | K96: 35 | L96: 33.6 | M96: 11 | N96: 15.2 | P96: 9500 | Q96: 900 | R96: 52.5 | S96: 17 | T96: 180 | U96: 10 | V96: 10,0 x 180 | W96: 100 | X96: 25 | Y96: 180 | Z96: +R | AA96: TX 50 | AB96: RAPID® S-25 | AC96: Scheibenkopf | AD96: Reibteil | AE96: HiLo-Teilgewinde, Kernrippen | AF96: YellWin 500+ | AG96: Z-9.1-564, Z-9.1-509 | AH96: ETA | AI96: ETA 12/0373 | AJ96: 20 | AK96: LE003B | AL96: 1359-CPD-0519 | AM96: SSH_ETA.lab | AN96: D4 | AO96: 6.7 | AP96: 7.1 | AQ96: H | AR96: 6.7 | AS96: 6700
B97: Essve WH | C97: Disc | D97: Essve part.thrd. washer | E97: 2333741002000001 | F97: 100x200/100 | G97: F1F 1D0 A2C | H97: C | I97: Essve WH S-25, 10,0 x 200/100 | J97: HILO/KR/T50/YellWin500+ (SSH+Bit) | K97: 35 | L97: 33.6 | M97: 11 | N97: 15.2 | P97: 9500 | Q97: 900 | R97: 52.5 | S97: 17 | T97: 200 | U97: 10 | V97: 10,0 x 200 | W97: 100 | X97: 25 | Y97: 180 | Z97: +R | AA97: TX 50 | AB97: RAPID® S-25 | AC97: Scheibenkopf | AD97: Reibteil | AE97: HiLo-Teilgewinde, Kernrippen | AF97: YellWin 500+ | AG97: Z-9.1-564, Z-9.1-509 | AH97: ETA | AI97: ETA 12/0373 | AJ97: 20 | AK97: LE003B | AL97: 1359-CPD-0519 | AM97: SSH_ETA.lab | AN97: D4 | AO97: 6.7 | AP97: 7.1 | AQ97: H | AR97: 6.7 | AS97: 6700
B98: Essve WH | C98: Disc | D98: Essve part.thrd. washer | E98: 2333741002200001 | F98: 100x220/100 | G98: F1F 1D0 A2C | H98: C | I98: Essve WH S-25, 10,0 x 220/100 | J98: HILO/KR/T50/YellWin500+ (SSH+Bit) | K98: 35 | L98: 33.6 | M98: 11 | N98: 15.2 | P98: 9500 | Q98: 900 | R98: 52.5 | S98: 17 | T98: 220 | U98: 10 | V98: 10,0 x 220 | W98: 100 | X98: 25 | Y98: 180 | Z98: +R | AA98: TX 50 | AB98: RAPID® S-25 | AC98: Scheibenkopf | AD98: Reibteil | AE98: HiLo-Teilgewinde, Kernrippen | AF98: YellWin 500+ | AG98: Z-9.1-564, Z-9.1-509 | AH98: ETA | AI98: ETA 12/0373 | AJ98: 20 | AK98: LE003B | AL98: 1359-CPD-0519 | AM98: SSH_ETA.lab | AN98: D4 | AO98: 6.7 | AP98: 7.1 | AQ98: H | AR98: 6.7 | AS98: 6700
B99: Essve WH | C99: Disc | D99: Essve part.thrd. washer | E99: 2333741002400001 | F99: 100x240/100 | G99: F1F 1D0 A2C | H99: C | I99: Essve WH S-25, 10,0 x 240/100 | J99: HILO/KR/T50/YellWin500+ (SSH+Bit) | K99: 35 | L99: 33.6 | M99: 11 | N99: 15.2 | P99: 9500 | Q99: 900 | R99: 52.5 | S99: 17 | T99: 240 | U99: 10 | V99: 10,0 x 240 | W99: 100 | X99: 25 | Y99: 180 | Z99: +R | AA99: TX 50 | AB99: RAPID® S-25 | AC99: Scheibenkopf | AD99: Reibteil | AE99: HiLo-Teilgewinde, Kernrippen | AF99: YellWin 500+ | AG99: Z-9.1-564, Z-9.1-509 | AH99: ETA | AI99: ETA 12/0373 | AJ99: 20 | AK99: LE003B | AL99: 1359-CPD-0519 | AM99: SSH_ETA.lab | AN99: D4 | AO99: 6.7 | AP99: 7.1 | AQ99: H | AR99: 6.7 | AS99: 6700
B100: Essve WH | C100: Disc | D100: Essve part.thrd. washer | E100: 2333741002600001 | F100: 100x260/100 | G100: F1F 1D0 A2C | H100: C | I100: Essve WH S-25, 10,0 x 260/100 | J100: HILO/KR/T50/YellWin500+ (SSH+Bit) | K100: 35 | L100: 33.6 | M100: 11 | N100: 15.2 | P100: 9500 | Q100: 900 | R100: 52.5 | S100: 17 | T100: 260 | U100: 10 | V100: 10,0 x 260 | W100: 100 | X100: 25 | Y100: 180 | Z100: +R | AA100: TX 50 | AB100: RAPID® S-25 | AC100: Scheibenkopf | AD100: Reibteil | AE100: HiLo-Teilgewinde, Kernrippen | AF100: YellWin 500+ | AG100: Z-9.1-564, Z-9.1-509 | AH100: ETA | AI100: ETA 12/0373 | AJ100: 20 | AK100: LE003B | AL100: 1359-CPD-0519 | AM100: SSH_ETA.lab | AN100: D4 | AO100: 6.7 | AP100: 7.1 | AQ100: H | AR100: 6.7 | AS100: 6700
B101: Essve WH | C101: Disc | D101: Essve part.thrd. washer | E101: 2333741002800001 | F101: 100x280/100 | G101: F1F 1D0 A2C | H101: C | I101: Essve WH S-25, 10,0 x 280/100 | J101: HILO/KR/T50/YellWin500+ (SSH+Bit) | K101: 35 | L101: 33.6 | M101: 11 | N101: 15.2 | P101: 9500 | Q101: 900 | R101: 52.5 | S101: 17 | T101: 280 | U101: 10 | V101: 10,0 x 280 | W101: 100 | X101: 25 | Y101: 180 | Z101: +R | AA101: TX 50 | AB101: RAPID® S-25 | AC101: Scheibenkopf | AD101: Reibteil | AE101: HiLo-Teilgewinde, Kernrippen | AF101: YellWin 500+ | AG101: Z-9.1-564, Z-9.1-509 | AH101: ETA | AI101: ETA 12/0373 | AJ101: 20 | AK101: LE003B | AL101: 1359-CPD-0519 | AM101: SSH_ETA.lab | AN101: D4 | AO101: 6.7 | AP101: 7.1 | AQ101: H | AR101: 6.7 | AS101: 6700
B102: Essve WH | C102: Disc | D102: Essve part.thrd. washer | E102: 2333741003000001 | F102: 100x300/100 | G102: F1F 1D0 A2C | H102: C | I102: Essve WH S-25, 10,0 x 300/100 | J102: HILO/KR/T50/YellWin500+ (SSH+Bit) | K102: 35 | L102: 33.6 | M102: 11 | N102: 15.2 | P102: 9500 | Q102: 900 | R102: 52.5 | S102: 17 | T102: 300 | U102: 10 | V102: 10,0 x 300 | W102: 100 | X102: 25 | Y102: 180 | Z102: +R | AA102: TX 50 | AB102: RAPID® S-25 | AC102: Scheibenkopf | AD102: Reibteil | AE102: HiLo-Teilgewinde, Kernrippen | AF102: YellWin 500+ | AG102: Z-9.1-564, Z-9.1-509 | AH102: ETA | AI102: ETA 12/0373 | AJ102: 20 | AK102: LE003B | AL102: 1359-CPD-0519 | AM102: SSH_ETA.lab | AN102: D4 | AO102: 6.7 | AP102: 7.1 | AQ102: H | AR102: 6.7 | AS102: 6700
B103: Essve WH | C103: Disc | D103: Essve part.thrd. washer | E103: 2333741003200001 | F103: 100x320/120 | G103: F1F 1D0 A2C | H103: C | I103: Essve WH S-25, 10,0 x 320/100 | J103: HILO/KR/T50/YellWin500+ (SSH+Bit) | K103: 35 | L103: 33.6 | M103: 11 | N103: 15.2 | P103: 9500 | Q103: 900 | R103: 52.5 | S103: 17 | T103: 320 | U103: 10 | V103: 10,0 x 320 | W103: 100 | X103: 25 | Y103: 180 | Z103: +R | AA103: TX 50 | AB103: RAPID® S-25 | AC103: Scheibenkopf | AD103: Reibteil | AE103: HiLo-Teilgewinde, Kernrippen | AF103: YellWin 500+ | AG103: Z-9.1-564, Z-9.1-509 | AH103: ETA | AI103: ETA 12/0373 | AJ103: 20 | AK103: LE003B | AL103: 1359-CPD-0519 | AM103: SSH_ETA.lab | AN103: D4 | AO103: 6.7 | AP103: 7.1 | AQ103: H | AR103: 6.7 | AS103: 6700
B104: Essve WH | C104: Disc | D104: Essve part.thrd. washer | E104: 2333741003400001 | F104: 100x340/120 | G104: F1F 1D0 A2C | H104: C | I104: Essve WH S-25, 10,0 x 340/100 | J104: HILO/KR/T50/YellWin500+ (SSH+Bit) | K104: 35 | L104: 33.6 | M104: 11 | N104: 15.2 | P104: 9500 | Q104: 900 | R104: 52.5 | S104: 17 | T104: 340 | U104: 10 | V104: 10,0 x 340 | W104: 100 | X104: 25 | Y104: 180 | Z104: +R | AA104: TX 50 | AB104: RAPID® S-25 | AC104: Scheibenkopf | AD104: Reibteil | AE104: HiLo-Teilgewinde, Kernrippen | AF104: YellWin 500+ | AG104: Z-9.1-564, Z-9.1-509 | AH104: ETA | AI104: ETA 12/0373 | AJ104: 20 | AK104: LE003B | AL104: 1359-CPD-0519 | AM104: SSH_ETA.lab | AN104: D4 | AO104: 6.7 | AP104: 7.1 | AQ104: H | AR104: 6.7 | AS104: 6700
B105: Essve WH | C105: Disc | D105: Essve part.thrd. washer | E105: 2333741003600001 | F105: 100x360/120 | G105: F1F 1D0 A2C | H105: C | I105: Essve WH S-25, 10,0 x 360/100 | J105: HILO/KR/T50/YellWin500+ (SSH+Bit) | K105: 35 | L105: 33.6 | M105: 11 | N105: 15.2 | P105: 9500 | Q105: 900 | R105: 52.5 | S105: 17 | T105: 360 | U105: 10 | V105: 10,0 x 360 | W105: 100 | X105: 25 | Y105: 180 | Z105: +R | AA105: TX 50 | AB105: RAPID® S-25 | AC105: Scheibenkopf | AD105: Reibteil | AE105: HiLo-Teilgewinde, Kernrippen | AF105: YellWin 500+ | AG105: Z-9.1-564, Z-9.1-509 | AH105: ETA | AI105: ETA 12/0373 | AJ105: 20 | AK105: LE003B | AL105: 1359-CPD-0519 | AM105: SSH_ETA.lab | AN105: D4 | AO105: 6.7 | AP105: 7.1 | AQ105: H | AR105: 6.7 | AS105: 6700
B106: Essve WH | C106: Disc | D106: Essve part.thrd. washer | E106: 2333741003800001 | F106: 100x380/120 | G106: F1F 1D0 A2C | H106: C | I106: Essve WH S-25, 10,0 x 380/100 | J106: HILO/KR/T50/YellWin500+ (SSH+Bit) | K106: 35 | L106: 33.6 | M106: 11 | N106: 15.2 | P106: 9500 | Q106: 900 | R106: 52.5 | S106: 17 | T106: 380 | U106: 10 | V106: 10,0 x 380 | W106: 100 | X106: 25 | Y106: 180 | Z106: +R | AA106: TX 50 | AB106: RAPID® S-25 | AC106: Scheibenkopf | AD106: Reibteil | AE106: HiLo-Teilgewinde, Kernrippen | AF106: YellWin 500+ | AG106: Z-9.1-564, Z-9.1-509 | AH106: ETA | AI106: ETA 12/0373 | AJ106: 20 | AK106: LE003B | AL106: 1359-CPD-0519 | AM106: SSH_ETA.lab | AN106: D4 | AO106: 6.7 | AP106: 7.1 | AQ106: H | AR106: 6.7 | AS106: 6700
B107: Essve WH | C107: Disc | D107: Essve part.thrd. washer | E107: 2333741004000001 | F107: 100x400/120 | G107: F1F 1D0 A2C | H107: C | I107: Essve WH S-25, 10,0 x 400/100 | J107: HILO/KR/T50/YellWin500+ (SSH+Bit) | K107: 35 | L107: 33.6 | M107: 11 | N107: 15.2 | P107: 9500 | Q107: 900 | R107: 52.5 | S107: 17 | T107: 400 | U107: 10 | V107: 10,0 x 400 | W107: 100 | X107: 25 | Y107: 180 | Z107: +R | AA107: TX 50 | AB107: RAPID® S-25 | AC107: Scheibenkopf | AD107: Reibteil | AE107: HiLo-Teilgewinde, Kernrippen | AF107: YellWin 500+ | AG107: Z-9.1-564, Z-9.1-509 | AH107: ETA | AI107: ETA 12/0373 | AJ107: 20 | AK107: LE003B | AL107: 1359-CPD-0519 | AM107: SSH_ETA.lab | AN107: D4 | AO107: 6.7 | AP107: 7.1 | AQ107: H | AR107: 6.7 | AS107: 6700
B108: Essve WH | C108: Disc | D108: Essve part.thrd. washer | E108: 2333741004500001 | F108: 100x450/120 | G108: F1F 1D0 A2C | H108: C | I108: Essve WH S-25, 10,0 x 450/100 | J108: HILO/KR/T50/YellWin500+ (SSH+Bit) | K108: 35 | L108: 33.6 | M108: 11 | N108: 15.2 | P108: 9500 | Q108: 900 | R108: 52.5 | S108: 17 | T108: 450 | U108: 10 | V108: 10,0 x 450 | W108: 100 | X108: 25 | Y108: 180 | Z108: +R | AA108: TX 50 | AB108: RAPID® S-25 | AC108: Scheibenkopf | AD108: Reibteil | AE108: HiLo-Teilgewinde, Kernrippen | AF108: YellWin 500+ | AG108: Z-9.1-564, Z-9.1-509 | AH108: ETA | AI108: ETA 12/0373 | AJ108: 20 | AK108: LE003B | AL108: 1359-CPD-0519 | AM108: SSH_ETA.lab | AN108: D4 | AO108: 6.7 | AP108: 7.1 | AQ108: H | AR108: 6.7 | AS108: 6700
B109: Essve WH | C109: Disc | D109: Essve part.thrd. washer | E109: 2333741005000001 | F109: 100x500/120 | G109: F1F 1D0 A2C | H109: C | I109: Essve WH S-25, 10,0 x 500/100 | J109: HILO/KR/T50/YellWin500+ (SSH+Bit) | K109: 35 | L109: 33.6 | M109: 11 | N109: 15.2 | P109: 9500 | Q109: 900 | R109: 52.5 | S109: 17 | T109: 500 | U109: 10 | V109: 10,0 x 500 | W109: 100 | X109: 25 | Y109: 180 | Z109: +R | AA109: TX 50 | AB109: RAPID® S-25 | AC109: Scheibenkopf | AD109: Reibteil | AE109: HiLo-Teilgewinde, Kernrippen | AF109: YellWin 500+ | AG109: Z-9.1-564, Z-9.1-509 | AH109: ETA | AI109: ETA 12/0373 | AJ109: 20 | AK109: LE003B | AL109: 1359-CPD-0519 | AM109: SSH_ETA.lab | AN109: D4 | AO109: 6.7 | AP109: 7.1 | AQ109: H | AR109: 6.7 | AS109: 6700
A110: slst_1_3 | B110: Essve C-FH | C110: Disc | D110: Essve part.thrd C-FH | E110: 2331710601800001 | F110: 060x180/070 | G110: G1C 1B1 A2B | H110: B | I110: Essve C-FH 6,0 x 180/70 | J110: HILO/KR/T30/BlueWin700+ (SSH+Bit) | K110: 13.1 | L110: 10.7 | M110: 13 | N110: 19.7 | P110: 3329.3 | Q110: 900 | R110: 10.9 | S110: 5.4 | T110: 180 | U110: 6 | V110: 6,0 x 180 | W110: 70 | X110: 13 | Y110: 180 | Z110: +R | AA110: TX 30 | AB110: Essve C-FH | AC110: Kombi-Kopf | AD110: Reibteil | AE110: HiLo-Teilgewinde, Kernrippen | AF110: BlueWin 700+ | AH110: ETA | AI110: ETA 12/0373 | AJ110: 20 | AK110: LE003B | AL110: 1359-CPD-0519 | AM110: SSH_ETA_neueSchriftart.lab | AN110: D1neu | AO110: 3.9 | AP110: 4.3 | AQ110: H | AR110: 3.9 | AS110: 3900
B111: Essve C-FH | C111: Disc | D111: Essve part.thrd C-FH | E111: 2331710602000001 | F111: 060x200/070 | G111: G1C 1B1 A2B | H111: B | I111: Essve C-FH 6,0 x 200/70 | J111: HILO/KR/T30/BlueWin700+ (SSH+Bit) | K111: 13.1 | L111: 10.7 | M111: 13 | N111: 19.7 | P111: 3329.3 | Q111: 900 | R111: 10.9 | S111: 5.4 | T111: 200 | U111: 6 | V111: 6,0 x 200 | W111: 70 | X111: 13 | Y111: 180 | Z111: +R | AA111: TX 30 | AB111: Essve C-FH | AC111: Kombi-Kopf | AD111: Reibteil | AE111: HiLo-Teilgewinde, Kernrippen | AF111: BlueWin 700+ | AH111: ETA | AI111: ETA 12/0373 | AJ111: 20 | AK111: LE003B | AL111: 1359-CPD-0519 | AM111: SSH_ETA_neueSchriftart.lab | AN111: D1neu | AO111: 3.9 | AP111: 4.3 | AQ111: H | AR111: 3.9 | AS111: 3900
B112: Essve C-FH | C112: Disc | D112: Essve part.thrd C-FH | E112: 2331710801800001 | F112: 080x180/100 | G112: G1C 1B1 A2B | H112: B | I112: Essve C-FH 8,0 x 180/100 | J112: HILO/KR/T40/BlueWin700+ (SSH+Bit) | K112: 23.3 | L112: 22.6 | M112: 10.9 | N112: 22.9 | P112: 8266.9 | Q112: 900 | R112: 28 | S112: 11.2 | T112: 180 | U112: 8 | V112: 8,0 x 180 | W112: 100 | X112: 19 | Y112: 180 | Z112: +R | AA112: TX 40 | AB112: Essve C-FH | AC112: Kombi-Kopf | AD112: Reibteil | AE112: HiLo-Teilgewinde, Kernrippen | AF112: BlueWin 700+ | AH112: ETA | AI112: ETA 12/0373 | AJ112: 20 | AK112: LE003B | AL112: 1359-CPD-0519 | AM112: SSH_ETA_neueSchriftart.lab | AN112: D1neu | AO112: 5.3 | AP112: 5.9 | AQ112: H | AR112: 5.3 | AS112: 5300
B113: Essve C-FH | C113: Disc | D113: Essve part.thrd C-FH | E113: 2331710802000001 | F113: 080x200/100 | G113: G1C 1B1 A2B | H113: B | I113: Essve C-FH 8,0 x 200/100 | J113: HILO/KR/T40/BlueWin700+ (SSH+Bit) | K113: 23.3 | L113: 22.6 | M113: 10.9 | N113: 22.9 | P113: 8266.9 | Q113: 900 | R113: 28 | S113: 11.2 | T113: 200 | U113: 8 | V113: 8,0 x 200 | W113: 100 | X113: 19 | Y113: 180 | Z113: +R | AA113: TX 40 | AB113: Essve C-FH | AC113: Kombi-Kopf | AD113: Reibteil | AE113: HiLo-Teilgewinde, Kernrippen | AF113: BlueWin 700+ | AH113: ETA | AI113: ETA 12/0373 | AJ113: 20 | AK113: LE003B | AL113: 1359-CPD-0519 | AM113: SSH_ETA_neueSchriftart.lab | AN113: D1neu | AO113: 5.3 | AP113: 5.9 | AQ113: H | AR113: 5.3 | AS113: 5300
B114: Essve C-FH | C114: Disc | D114: Essve part.thrd C-FH | E114: 2331710802200001 | F114: 080x220/100 | G114: G1C 1B1 A2B | H114: B | I114: Essve C-FH 8,0 x 220/100 | J114: HILO/KR/T40/BlueWin700+ (SSH+Bit) | K114: 23.3 | L114: 22.6 | M114: 10.9 | N114: 22.9 | P114: 8266.9 | Q114: 900 | R114: 28 | S114: 11.2 | T114: 220 | U114: 8 | V114: 8,0 x 220 | W114: 100 | X114: 19 | Y114: 180 | Z114: +R | AA114: TX 40 | AB114: Essve C-FH | AC114: Kombi-Kopf | AD114: Reibteil | AE114: HiLo-Teilgewinde, Kernrippen | AF114: BlueWin 700+ | AH114: ETA | AI114: ETA 12/0373 | AJ114: 20 | AK114: LE003B | AL114: 1359-CPD-0519 | AM114: SSH_ETA_neueSchriftart.lab | AN114: D1neu | AO114: 5.3 | AP114: 5.9 | AQ114: H | AR114: 5.3 | AS114: 5300
B115: Essve C-FH | C115: Disc | D115: Essve part.thrd C-FH | E115: 2331710802400001 | F115: 080x240/100 | G115: G1C 1B1 A2B | H115: B | I115: Essve C-FH 8,0 x 240/100 | J115: HILO/KR/T40/BlueWin700+ (SSH+Bit) | K115: 23.3 | L115: 22.6 | M115: 10.9 | N115: 22.9 | P115: 8266.9 | Q115: 900 | R115: 28 | S115: 11.2 | T115: 240 | U115: 8 | V115: 8,0 x 240 | W115: 100 | X115: 19 | Y115: 180 | Z115: +R | AA115: TX 40 | AB115: Essve C-FH | AC115: Kombi-Kopf | AD115: Reibteil | AE115: HiLo-Teilgewinde, Kernrippen | AF115: BlueWin 700+ | AH115: ETA | AI115: ETA 12/0373 | AJ115: 20 | AK115: LE003B | AL115: 1359-CPD-0519 | AM115: SSH_ETA_neueSchriftart.lab | AN115: D1neu | AO115: 5.3 | AP115: 5.9 | AQ115: H | AR115: 5.3 | AS115: 5300
B116: Essve C-FH | C116: Disc | D116: Essve part.thrd C-FH | E116: 2331710802600001 | F116: 080x260/100 | G116: G1C 1B1 A2B | H116: B | I116: Essve C-FH 8,0 x 260/100 | J116: HILO/KR/T40/BlueWin700+ (SSH+Bit) | K116: 23.3 | L116: 22.6 | M116: 10.9 | N116: 22.9 | P116: 8266.9 | Q116: 900 | R116: 28 | S116: 11.2 | T116: 260 | U116: 8 | V116: 8,0 x 260 | W116: 100 | X116: 19 | Y116: 180 | Z116: +R | AA116: TX 40 | AB116: Essve C-FH | AC116: Kombi-Kopf | AD116: Reibteil | AE116: HiLo-Teilgewinde, Kernrippen | AF116: BlueWin 700+ | AH116: ETA | AI116: ETA 12/0373 | AJ116: 20 | AK116: LE003B | AL116: 1359-CPD-0519 | AM116: SSH_ETA_neueSchriftart.lab | AN116: D1neu | AO116: 5.3 | AP116: 5.9 | AQ116: H | AR116: 5.3 | AS116: 5300
B117: Essve C-FH | C117: Disc | D117: Essve part.thrd C-FH | E117: 2331710802800001 | F117: 080x280/100 | G117: G1C 1B1 A2B | H117: B | I117: Essve C-FH 8,0 x 280/100 | J117: HILO/KR/T40/BlueWin700+ (SSH+Bit) | K117: 23.3 | L117: 22.6 | M117: 10.9 | N117: 22.9 | P117: 8266.9 | Q117: 900 | R117: 28 | S117: 11.2 | T117: 280 | U117: 8 | V117: 8,0 x 280 | W117: 100 | X117: 19 | Y117: 180 | Z117: +R | AA117: TX 40 | AB117: Essve C-FH | AC117: Kombi-Kopf | AD117: Reibteil | AE117: HiLo-Teilgewinde, Kernrippen | AF117: BlueWin 700+ | AH117: ETA | AI117: ETA 12/0373 | AJ117: 20 | AK117: LE003B | AL117: 1359-CPD-0519 | AM117: SSH_ETA_neueSchriftart.lab | AN117: D1neu | AO117: 5.3 | AP117: 5.9 | AQ117: H | AR117: 5.3 | AS117: 5300
B118: Essve C-FH | C118: Disc | D118: Essve part.thrd C-FH | E118: 2331710803000001 | F118: 080x300/100 | G118: G1C 1B1 A2B | H118: B | I118: Essve C-FH 8,0 x 300/100 | J118: HILO/KR/T40/BlueWin700+ (SSH+Bit) | K118: 23.3 | L118: 22.6 | M118: 10.9 | N118: 22.9 | P118: 8266.9 | Q118: 900 | R118: 28 | S118: 11.2 | T118: 300 | U118: 8 | V118: 8,0 x 300 | W118: 100 | X118: 19 | Y118: 180 | Z118: +R | AA118: TX 40 | AB118: Essve C-FH | AC118: Kombi-Kopf | AD118: Reibteil | AE118: HiLo-Teilgewinde, Kernrippen | AF118: BlueWin 700+ | AH118: ETA | AI118: ETA 12/0373 | AJ118: 20 | AK118: LE003B | AL118: 1359-CPD-0519 | AM118: SSH_ETA_neueSchriftart.lab | AN118: D1neu | AO118: 5.3 | AP118: 5.9 | AQ118: H | AR118: 5.3 | AS118: 5300
B119: Essve C-FH | C119: Disc | D119: Essve part.thrd C-FH | E119: 2331710803200001 | F119: 080x320/100 | G119: G1C 1B1 A2B | H119: B | I119: Essve C-FH 8,0 x 320/100 | J119: HILO/KR/T40/BlueWin700+ (SSH+Bit) | K119: 23.3 | L119: 22.6 | M119: 10.9 | N119: 22.9 | P119: 8266.9 | Q119: 900 | R119: 28 | S119: 11.2 | T119: 320 | U119: 8 | V119: 8,0 x 320 | W119: 100 | X119: 19 | Y119: 180 | Z119: +R | AA119: TX 40 | AB119: Essve C-FH | AC119: Kombi-Kopf | AD119: Reibteil | AE119: HiLo-Teilgewinde, Kernrippen | AF119: BlueWin 700+ | AH119: ETA | AI119: ETA 12/0373 | AJ119: 20 | AK119: LE003B | AL119: 1359-CPD-0519 | AM119: SSH_ETA_neueSchriftart.lab | AN119: D1neu | AO119: 5.3 | AP119: 5.9 | AQ119: H | AR119: 5.3 | AS119: 5300
B120: Essve C-FH | C120: Disc | D120: Essve part.thrd C-FH | E120: 2331710803400001 | F120: 080x340/100 | G120: G1C 1B1 A2B | H120: B | I120: Essve C-FH 8,0 x 340/100 | J120: HILO/KR/T40/BlueWin700+ (SSH+Bit) | K120: 23.3 | L120: 22.6 | M120: 10.9 | N120: 22.9 | P120: 8266.9 | Q120: 900 | R120: 28 | S120: 11.2 | T120: 340 | U120: 8 | V120: 8,0 x 340 | W120: 100 | X120: 19 | Y120: 180 | Z120: +R | AA120: TX 40 | AB120: Essve C-FH | AC120: Kombi-Kopf | AD120: Reibteil | AE120: HiLo-Teilgewinde, Kernrippen | AF120: BlueWin 700+ | AH120: ETA | AI120: ETA 12/0373 | AJ120: 20 | AK120: LE003B | AL120: 1359-CPD-0519 | AM120: SSH_ETA_neueSchriftart.lab | AN120: D1neu | AO120: 5.3 | AP120: 5.9 | AQ120: H | AR120: 5.3 | AS120: 5300
B121: Essve C-FH | C121: Disc | D121: Essve part.thrd C-FH | E121: 2331710803600001 | F121: 080x360/100 | G121: G1C 1B1 A2B | H121: B | I121: Essve C-FH 8,0 x 360/100 | J121: HILO/KR/T40/BlueWin700+ (SSH+Bit) | K121: 23.3 | L121: 22.6 | M121: 10.9 | N121: 22.9 | P121: 8266.9 | Q121: 900 | R121: 28 | S121: 11.2 | T121: 360 | U121: 8 | V121: 8,0 x 360 | W121: 100 | X121: 19 | Y121: 180 | Z121: +R | AA121: TX 40 | AB121: Essve C-FH | AC121: Kombi-Kopf | AD121: Reibteil | AE121: HiLo-Teilgewinde, Kernrippen | AF121: BlueWin 700+ | AH121: ETA | AI121: ETA 12/0373 | AJ121: 20 | AK121: LE003B | AL121: 1359-CPD-0519 | AM121: SSH_ETA_neueSchriftart.lab | AN121: D1neu | AO121: 5.3 | AP121: 5.9 | AQ121: H | AR121: 5.3 | AS121: 5300
B122: Essve C-FH | C122: Disc | D122: Essve part.thrd C-FH | E122: 2331710803800001 | F122: 080x380/100 | G122: G1C 1B1 A2B | H122: B | I122: Essve C-FH 8,0 x 380/100 | J122: HILO/KR/T40/BlueWin700+ (SSH+Bit) | K122: 23.3 | L122: 22.6 | M122: 10.9 | N122: 22.9 | P122: 8266.9 | Q122: 900 | R122: 28 | S122: 11.2 | T122: 380 | U122: 8 | V122: 8,0 x 380 | W122: 100 | X122: 19 | Y122: 180 | Z122: +R | AA122: TX 40 | AB122: Essve C-FH | AC122: Kombi-Kopf | AD122: Reibteil | AE122: HiLo-Teilgewinde, Kernrippen | AF122: BlueWin 700+ | AH122: ETA | AI122: ETA 12/0373 | AJ122: 20 | AK122: LE003B | AL122: 1359-CPD-0519 | AM122: SSH_ETA_neueSchriftart.lab | AN122: D1neu | AO122: 5.3 | AP122: 5.9 | AQ122: H | AR122: 5.3 | AS122: 5300
B123: Essve C-FH | C123: Disc | D123: Essve part.thrd C-FH | E123: 2331710804000001 | F123: 080x400/100 | G123: G1C 1B1 A2B | H123: B | I123: Essve C-FH 8,0 x 400/100 | J123: HILO/KR/T40/BlueWin700+ (SSH+Bit) | K123: 23.3 | L123: 22.6 | M123: 10.9 | N123: 22.9 | P123: 8266.9 | Q123: 900 | R123: 28 | S123: 11.2 | T123: 400 | U123: 8 | V123: 8,0 x 400 | W123: 100 | X123: 19 | Y123: 180 | Z123: +R | AA123: TX 40 | AB123: Essve C-FH | AC123: Kombi-Kopf | AD123: Reibteil | AE123: HiLo-Teilgewinde, Kernrippen | AF123: BlueWin 700+ | AH123: ETA | AI123: ETA 12/0373 | AJ123: 20 | AK123: LE003B | AL123: 1359-CPD-0519 | AM123: SSH_ETA_neueSchriftart.lab | AN123: D1neu | AO123: 5.3 | AP123: 5.9 | AQ123: H | AR123: 5.3 | AS123: 5300
B124: Essve C-FH | C124: Disc | D124: Essve part.thrd C-FH | E124: 2331711001800001 | F124: 100x180/100 | G124: G1C 1B1 A2B | H124: B | I124: Essve C-FH 10,0 x 180/100 | J124: HILO/KR/T50/BlueWin700+ (SSH+Bit) | K124: 35 | L124: 33.6 | M124: 11 | N124: 12.3 | P124: 7084.8 | Q124: 900 | R124: 52.5 | S124: 14.2 | T124: 180 | U124: 10 | V124: 10,0 x 180 | W124: 100 | X124: 24 | Y124: 180 | Z124: +R | AA124: TX 50 | AB124: Essve C-FH | AC124: Kombi-Kopf | AD124: Reibteil | AE124: HiLo-Teilgewinde, Kernrippen | AF124: BlueWin 700+ | AH124: ETA | AI124: ETA 12/0373 | AJ124: 20 | AK124: LE003B | AL124: 1359-CPD-0519 | AM124: SSH_ETA_neueSchriftart.lab | AN124: D1neu | AO124: 6.7 | AP124: 7.1 | AQ124: H | AR124: 6.7 | AS124: 6700
B125: Essve C-FH | C125: Disc | D125: Essve part.thrd C-FH | E125: 2331711002000001 | F125: 100x200/100 | G125: G1C 1B1 A2B | H125: B | I125: Essve C-FH 10,0 x 200/100 | J125: HILO/KR/T50/BlueWin700+ (SSH+Bit) | K125: 35 | L125: 33.6 | M125: 11 | N125: 12.3 | P125: 7084.8 | Q125: 900 | R125: 52.5 | S125: 14.2 | T125: 200 | U125: 10 | V125: 10,0 x 200 | W125: 100 | X125: 24 | Y125: 180 | Z125: +R | AA125: TX 50 | AB125: Essve C-FH | AC125: Kombi-Kopf | AD125: Reibteil | AE125: HiLo-Teilgewinde, Kernrippen | AF125: BlueWin 700+ | AH125: ETA | AI125: ETA 12/0373 | AJ125: 20 | AK125: LE003B | AL125: 1359-CPD-0519 | AM125: SSH_ETA_neueSchriftart.lab | AN125: D1neu | AO125: 6.7 | AP125: 7.1 | AQ125: H | AR125: 6.7 | AS125: 6700
B126: Essve C-FH | C126: Disc | D126: Essve part.thrd C-FH | E126: 2331711002200001 | F126: 100x220/100 | G126: G1C 1B1 A2B | H126: B | I126: Essve C-FH 10,0 x 220/100 | J126: HILO/KR/T50/BlueWin700+ (SSH+Bit) | K126: 35 | L126: 33.6 | M126: 11 | N126: 12.3 | P126: 7084.8 | Q126: 900 | R126: 52.5 | S126: 14.2 | T126: 220 | U126: 10 | V126: 10,0 x 220 | W126: 100 | X126: 24 | Y126: 180 | Z126: +R | AA126: TX 50 | AB126: Essve C-FH | AC126: Kombi-Kopf | AD126: Reibteil | AE126: HiLo-Teilgewinde, Kernrippen | AF126: BlueWin 700+ | AH126: ETA | AI126: ETA 12/0373 | AJ126: 20 | AK126: LE003B | AL126: 1359-CPD-0519 | AM126: SSH_ETA_neueSchriftart.lab | AN126: D1neu | AO126: 6.7 | AP126: 7.1 | AQ126: H | AR126: 6.7 | AS126: 6700
B127: Essve C-FH | C127: Disc | D127: Essve part.thrd C-FH | E127: 2331711002400001 | F127: 100x240/100 | G127: G1C 1B1 A2B | H127: B | I127: Essve C-FH 10,0 x 240/100 | J127: HILO/KR/T50/BlueWin700+ (SSH+Bit) | K127: 35 | L127: 33.6 | M127: 11 | N127: 12.3 | P127: 7084.8 | Q127: 900 | R127: 52.5 | S127: 14.2 | T127: 240 | U127: 10 | V127: 10,0 x 240 | W127: 100 | X127: 24 | Y127: 180 | Z127: +R | AA127: TX 50 | AB127: Essve C-FH | AC127: Kombi-Kopf | AD127: Reibteil | AE127: HiLo-Teilgewinde, Kernrippen | AF127: BlueWin 700+ | AH127: ETA | AI127: ETA 12/0373 | AJ127: 20 | AK127: LE003B | AL127: 1359-CPD-0519 | AM127: SSH_ETA_neueSchriftart.lab | AN127: D1neu | AO127: 6.7 | AP127: 7.1 | AQ127: H | AR127: 6.7 | AS127: 6700
B128: Essve C-FH | C128: Disc | D128: Essve part.thrd C-FH | E128: 2331711002600001 | F128: 100x260/100 | G128: G1C 1B1 A2B | H128: B | I128: Essve C-FH 10,0 x 260/100 | J128: HILO/KR/T50/BlueWin700+ (SSH+Bit) | K128: 35 | L128: 33.6 | M128: 11 | N128: 12.3 | P128: 7084.8 | Q128: 900 | R128: 52.5 | S128: 14.2 | T128: 260 | U128: 10 | V128: 10,0 x 260 | W128: 100 | X128: 24 | Y128: 180 | Z128: +R | AA128: TX 50 | AB128: Essve C-FH | AC128: Kombi-Kopf | AD128: Reibteil | AE128: HiLo-Teilgewinde, Kernrippen | AF128: BlueWin 700+ | AH128: ETA | AI128: ETA 12/0373 | AJ128: 20 | AK128: LE003B | AL128: 1359-CPD-0519 | AM128: SSH_ETA_neueSchriftart.lab | AN128: D1neu | AO128: 6.7 | AP128: 7.1 | AQ128: H | AR128: 6.7 | AS128: 6700
B129: Essve C-FH | C129: Disc | D129: Essve part.thrd C-FH | E129: 2331711002800001 | F129: 100x280/100 | G129: G1C 1B1 A2B | H129: B | I129: Essve C-FH 10,0 x 280/100 | J129: HILO/KR/T50/BlueWin700+ (SSH+Bit) | K129: 35 | L129: 33.6 | M129: 11 | N129: 12.3 | P129: 7084.8 | Q129: 900 | R129: 52.5 | S129: 14.2 | T129: 280 | U129: 10 | V129: 10,0 x 280 | W129: 100 | X129: 24 | Y129: 180 | Z129: +R | AA129: TX 50 | AB129: Essve C-FH | AC129: Kombi-Kopf | AD129: Reibteil | AE129: HiLo-Teilgewinde, Kernrippen | AF129: BlueWin 700+ | AH129: ETA | AI129: ETA 12/0373 | AJ129: 20 | AK129: LE003B | AL129: 1359-CPD-0519 | AM129: SSH_ETA_neueSchriftart.lab | AN129: D1neu | AO129: 6.7 | AP129: 7.1 | AQ129: H | AR129: 6.7 | AS129: 6700
B130: Essve C-FH | C130: Disc | D130: Essve part.thrd C-FH | E130: 2331711003000001 | F130: 100x300/120 | G130: G1C 1B1 A2B | H130: B | I130: Essve C-FH 10,0 x 300/100 | J130: HILO/KR/T50/BlueWin700+ (SSH+Bit) | K130: 35 | L130: 33.6 | M130: 11 | N130: 12.3 | P130: 7084.8 | Q130: 900 | R130: 52.5 | S130: 14.2 | T130: 300 | U130: 10 | V130: 10,0 x 300 | W130: 100 | X130: 24 | Y130: 180 | Z130: +R | AA130: TX 50 | AB130: Essve C-FH | AC130: Kombi-Kopf | AD130: Reibteil | AE130: HiLo-Teilgewinde, Kernrippen | AF130: BlueWin 700+ | AH130: ETA | AI130: ETA 12/0373 | AJ130: 20 | AK130: LE003B | AL130: 1359-CPD-0519 | AM130: SSH_ETA_neueSchriftart.lab | AN130: D1neu | AO130: 6.7 | AP130: 7.1 | AQ130: H | AR130: 6.7 | AS130: 6700
B131: Essve C-FH | C131: Disc | D131: Essve part.thrd C-FH | E131: 2331711003500001 | F131: 100x350/120 | G131: G1C 1B1 A2B | H131: B | I131: Essve C-FH 10,0 x 350/100 | J131: HILO/KR/T50/BlueWin700+ (SSH+Bit) | K131: 35 | L131: 33.6 | M131: 11 | N131: 12.3 | P131: 7084.8 | Q131: 900 | R131: 52.5 | S131: 14.2 | T131: 350 | U131: 10 | V131: 10,0 x 350 | W131: 100 | X131: 24 | Y131: 180 | Z131: +R | AA131: TX 50 | AB131: Essve C-FH | AC131: Kombi-Kopf | AD131: Reibteil | AE131: HiLo-Teilgewinde, Kernrippen | AF131: BlueWin 700+ | AH131: ETA | AI131: ETA 12/0373 | AJ131: 20 | AK131: LE003B | AL131: 1359-CPD-0519 | AM131: SSH_ETA_neueSchriftart.lab | AN131: D1neu | AO131: 6.7 | AP131: 7.1 | AQ131: H | AR131: 6.7 | AS131: 6700
B132: Essve C-FH | C132: Disc | D132: Essve part.thrd C-FH | E132: 2331711004000001 | F132: 100x400/120 | G132: G1C 1B1 A2B | H132: B | I132: Essve C-FH 10,0 x 400/100 | J132: HILO/KR/T50/BlueWin700+ (SSH+Bit) | K132: 35 | L132: 33.6 | M132: 11 | N132: 12.3 | P132: 7084.8 | Q132: 900 | R132: 52.5 | S132: 14.2 | T132: 400 | U132: 10 | V132: 10,0 x 400 | W132: 100 | X132: 24 | Y132: 180 | Z132: +R | AA132: TX 50 | AB132: Essve C-FH | AC132: Kombi-Kopf | AD132: Reibteil | AE132: HiLo-Teilgewinde, Kernrippen | AF132: BlueWin 700+ | AH132: ETA | AI132: ETA 12/0373 | AJ132: 20 | AK132: LE003B | AL132: 1359-CPD-0519 | AM132: SSH_ETA_neueSchriftart.lab | AN132: D1neu | AO132: 6.7 | AP132: 7.1 | AQ132: H | AR132: 6.7 | AS132: 6700
A133: slst_1_4 | B133: Essve C-FT | C133: countersunk | D133: Essve Fullthread | E133: 1335740801200001 | F133: 080x120/110 | G133: A0C 1A1 C1E | H133: E | I133: ESSVE C-FT 8,0 x 120/110 | J133: EG/KR+HSP/T40/YellWin500+ (SSH+Bit) | K133: 24.1 | L133: 20.3 | M133: 13.1 | N133: 12.4 | P133: 2790 | Q133: 950 | R133: 25.8 | S133: 8.7 | T133: 120 | U133: 8 | V133: 8,0 x 120 | W133: 110 | X133: 15 | Y133: 90 | AA133: TX 40 | AB133: RAPID® VOLLGEWINDE | AC133: Senkkopf, Unterkopfrippen | AE133: EG-Vollgewinde, Halbspitze + Kernrippen | AF133: YellWin 500+ | AG133: Z-9.1-656 | AH133: ETA | AI133: ETA 12/0373 | AJ133: 20 | AK133: LE005B | AL133: 1359-CPD-0519 | AM133: SSH_ETA.lab | AN133: D8 | AO133: 5.1 | AP133: not relevant | AQ133: H+W | AR133: 5.1 | AS133: 5100
B134: Essve C-FT | C134: countersunk | D134: Essve Fullthread | E134: 1335740801400001 | F134: 080x140/130 | G134: A0C 1A1 C1E | H134: E | I134: ESSVE C-FT 8,0 x 140/130 | J134: EG/KR+HSP/T40/YellWin500+ (SSH+Bit) | K134: 24.1 | L134: 20.3 | M134: 13.1 | N134: 12.4 | P134: 2790 | Q134: 950 | R134: 25.8 | S134: 8.7 | T134: 140 | U134: 8 | V134: 8,0 x 140 | W134: 130 | X134: 15 | Y134: 90 | AA134: TX 40 | AB134: RAPID® VOLLGEWINDE | AC134: Senkkopf, Unterkopfrippen | AE134: EG-Vollgewinde, Halbspitze + Kernrippen | AF134: YellWin 500+ | AG134: Z-9.1-656 | AH134: ETA | AI134: ETA 12/0373 | AJ134: 20 | AK134: LE005B | AL134: 1359-CPD-0519 | AM134: SSH_ETA.lab | AN134: D8 | AO134: 5.1 | AP134: not relevant | AQ134: H+W | AR134: 5.1 | AS134: 5100
B135: Essve C-FT | C135: countersunk | D135: Essve Fullthread | E135: 1335740801600001 | F135: 080x160/150 | G135: A0C 1A1 C1E | H135: E | I135: ESSVE C-FT 8,0 x 160/150 | J135: EG/KR+HSP/T40/YellWin500+ (SSH+Bit) | K135: 24.1 | L135: 20.3 | M135: 13.1 | N135: 12.4 | P135: 2790 | Q135: 950 | R135: 25.8 | S135: 8.7 | T135: 160 | U135: 8 | V135: 8,0 x 160 | W135: 150 | X135: 15 | Y135: 90 | AA135: TX 40 | AB135: RAPID® VOLLGEWINDE | AC135: Senkkopf, Unterkopfrippen | AE135: EG-Vollgewinde, Halbspitze + Kernrippen | AF135: YellWin 500+ | AG135: Z-9.1-656 | AH135: ETA | AI135: ETA 12/0373 | AJ135: 20 | AK135: LE005B | AL135: 1359-CPD-0519 | AM135: SSH_ETA.lab | AN135: D8 | AO135: 5.1 | AP135: not relevant | AQ135: H+W | AR135: 5.1 | AS135: 5100
B136: Essve C-FT | C136: countersunk | D136: Essve Fullthread | E136: 1335740801800001 | F136: 080x180/170 | G136: A0C 1A1 C1E | H136: E | I136: ESSVE C-FT 8,0 x 180/170 | J136: EG/KR+HSP/T40/YellWin500+ (SSH+Bit) | K136: 24.1 | L136: 20.3 | M136: 13.1 | N136: 12.4 | P136: 2790 | Q136: 950 | R136: 25.8 | S136: 8.7 | T136: 180 | U136: 8 | V136: 8,0 x 180 | W136: 170 | X136: 15 | Y136: 90 | AA136: TX 40 | AB136: RAPID® VOLLGEWINDE | AC136: Senkkopf, Unterkopfrippen | AE136: EG-Vollgewinde, Halbspitze + Kernrippen | AF136: YellWin 500+ | AG136: Z-9.1-656, Z-9.1-509 | AH136: ETA | AI136: ETA 12/0373 | AJ136: 20 | AK136: LE005B | AL136: 1359-CPD-0519 | AM136: SSH_ETA.lab | AN136: D8 | AO136: 5.1 | AP136: not relevant | AQ136: H+W | AR136: 5.1 | AS136: 5100
B137: Essve C-FT | C137: countersunk | D137: Essve Fullthread | E137: 1335740802000001 | F137: 080x200/190 | G137: A0C 1A1 C1E | H137: E | I137: ESSVE C-FT 8,0 x 200/190 | J137: EG/KR+HSP/T40/YellWin500+ (SSH+Bit) | K137: 24.1 | L137: 20.3 | M137: 13.1 | N137: 12.4 | P137: 2790 | Q137: 950 | R137: 25.8 | S137: 8.7 | T137: 200 | U137: 8 | V137: 8,0 x 200 | W137: 190 | X137: 15 | Y137: 90 | AA137: TX 40 | AB137: RAPID® VOLLGEWINDE | AC137: Senkkopf, Unterkopfrippen | AE137: EG-Vollgewinde, Halbspitze + Kernrippen | AF137: YellWin 500+ | AG137: Z-9.1-656, Z-9.1-509 | AH137: ETA | AI137: ETA 12/0373 | AJ137: 20 | AK137: LE005B | AL137: 1359-CPD-0519 | AM137: SSH_ETA.lab | AN137: D8 | AO137: 5.1 | AP137: not relevant | AQ137: H+W | AR137: 5.1 | AS137: 5100
B138: Essve C-FT | C138: countersunk | D138: Essve Fullthread | E138: 1335740802200001 | F138: 080x220/210 | G138: A0C 1A1 C1E | H138: E | I138: ESSVE C-FT 8,0 x 220/210 | J138: EG/KR+HSP/T40/YellWin500+ (SSH+Bit) | K138: 24.1 | L138: 20.3 | M138: 13.1 | N138: 12.4 | P138: 2790 | Q138: 950 | R138: 25.8 | S138: 8.7 | T138: 220 | U138: 8 | V138: 8,0 x 220 | W138: 210 | X138: 15 | Y138: 90 | AA138: TX 40 | AB138: RAPID® VOLLGEWINDE | AC138: Senkkopf, Unterkopfrippen | AE138: EG-Vollgewinde, Halbspitze + Kernrippen | AF138: YellWin 500+ | AG138: Z-9.1-656, Z-9.1-509 | AH138: ETA | AI138: ETA 12/0373 | AJ138: 20 | AK138: LE005B | AL138: 1359-CPD-0519 | AM138: SSH_ETA.lab | AN138: D8 | AO138: 5.1 | AP138: not relevant | AQ138: H+W | AR138: 5.1 | AS138: 5100
B139: Essve C-FT | C139: countersunk | D139: Essve Fullthread | E139: 1335740802400001 | F139: 080x240/230 | G139: A0C 1A1 C1E | H139: E | I139: ESSVE C-FT 8,0 x 240/230 | J139: EG/KR+HSP/T40/YellWin500+ (SSH+Bit) | K139: 24.1 | L139: 20.3 | M139: 13.1 | N139: 12.4 | P139: 2790 | Q139: 950 | R139: 25.8 | S139: 8.7 | T139: 240 | U139: 8 | V139: 8,0 x 240 | W139: 230 | X139: 15 | Y139: 90 | AA139: TX 40 | AB139: RAPID® VOLLGEWINDE | AC139: Senkkopf, Unterkopfrippen | AE139: EG-Vollgewinde, Halbspitze + Kernrippen | AF139: YellWin 500+ | AG139: Z-9.1-656, Z-9.1-509 | AH139: ETA | AI139: ETA 12/0373 | AJ139: 20 | AK139: LE005B | AL139: 1359-CPD-0519 | AM139: SSH_ETA.lab | AN139: D8 | AO139: 5.1 | AP139: not relevant | AQ139: H+W | AR139: 5.1 | AS139: 5100
B140: Essve C-FT | C140: countersunk | D140: Essve Fullthread | E140: 1335740802600001 | F140: 080x260/250 | G140: A0C 1A1 C1E | H140: E | I140: ESSVE C-FT 8,0 x 260/250 | J140: EG/KR+HSP/T40/YellWin500+ (SSH+Bit) | K140: 24.1 | L140: 20.3 | M140: 13.1 | N140: 12.4 | P140: 2790 | Q140: 950 | R140: 25.8 | S140: 8.7 | T140: 260 | U140: 8 | V140: 8,0 x 260 | W140: 250 | X140: 15 | Y140: 90 | AA140: TX 40 | AB140: RAPID® VOLLGEWINDE | AC140: Senkkopf, Unterkopfrippen | AE140: EG-Vollgewinde, Halbspitze + Kernrippen | AF140: YellWin 500+ | AG140: Z-9.1-656, Z-9.1-509 | AH140: ETA | AI140: ETA 12/0373 | AJ140: 20 | AK140: LE005B | AL140: 1359-CPD-0519 | AM140: SSH_ETA.lab | AN140: D8 | AO140: 5.1 | AP140: not relevant | AQ140: H+W | AR140: 5.1 | AS140: 5100
B141: Essve C-FT | C141: countersunk | D141: Essve Fullthread | E141: 1335740802800001 | F141: 080x280/270 | G141: A0C 1A1 C1E | H141: E | I141: ESSVE C-FT 8,0 x 280/270 | J141: EG/KR+HSP/T40/YellWin500+ (SSH+Bit) | K141: 24.1 | L141: 20.3 | M141: 13.1 | N141: 12.4 | O141: =IF(C141="Scheibe",N141*0.6,"") ->  | P141: =X141*X141*N141 -> 2790 | Q141: 950 | R141: 25.8 | S141: 8.7 | T141: 280 | U141: 8 | V141: 8,0 x 280 | W141: 270 | X141: 15 | Y141: 90 | AA141: TX 40 | AB141: RAPID® VOLLGEWINDE | AC141: Senkkopf, Unterkopfrippen | AE141: EG-Vollgewinde, Halbspitze + Kernrippen | AF141: YellWin 500+ | AG141: Z-9.1-656, Z-9.1-509 | AH141: ETA | AI141: ETA 12/0373 | AJ141: 20 | AK141: LE005B | AL141: 1359-CPD-0519 | AM141: SSH_ETA.lab | AN141: D8 | AO141: 5.1 | AP141: not relevant | AQ141: H+W | AR141: 5.1 | AS141: =AR141*1000 -> 5100
B142: Essve C-FT | C142: countersunk | D142: Essve Fullthread | E142: 1335740803000001 | F142: 080x300/290 | G142: A0C 1A1 C1E | H142: E | I142: ESSVE C-FT 8,0 x 300/290 | J142: EG/KR+HSP/T40/YellWin500+ (SSH+Bit) | K142: 24.1 | L142: 20.3 | M142: 13.1 | N142: 12.4 | P142: 2790 | Q142: 950 | R142: 25.8 | S142: 8.7 | T142: 300 | U142: 8 | V142: 8,0 x 300 | W142: 290 | X142: 15 | Y142: 90 | AA142: TX 40 | AB142: RAPID® VOLLGEWINDE | AC142: Senkkopf, Unterkopfrippen | AE142: EG-Vollgewinde, Halbspitze + Kernrippen | AF142: YellWin 500+ | AG142: Z-9.1-656, Z-9.1-509 | AH142: ETA | AI142: ETA 12/0373 | AJ142: 20 | AK142: LE005B | AL142: 1359-CPD-0519 | AM142: SSH_ETA.lab | AN142: D8 | AO142: 5.1 | AP142: not relevant | AQ142: H+W | AR142: 5.1 | AS142: 5100
B143: Essve C-FT | C143: countersunk | D143: Essve Fullthread | E143: 1335740803250001 | I143: ESSVE C-FT 8,0 x 325/315 | J143: EG/KR+HSP/T40/YellWin500+ (SSH+Bit) | K143: 24.1 | L143: 20.3 | M143: 13.1 | N143: 12.4 | P143: 2790 | Q143: 950 | R143: 25.8 | S143: 8.7 | T143: 325 | U143: 8 | V143: 8,0 x 325 | W143: 315 | X143: 15 | Y143: 90 | AA143: TX 40 | AB143: RAPID® VOLLGEWINDE | AC143: Senkkopf, Unterkopfrippen | AE143: EG-Vollgewinde, Halbspitze + Kernrippen | AF143: YellWin 500+ | AH143: ETA | AI143: ETA 12/0373 | AJ143: 20 | AK143: LE005B | AL143: 1359-CPD-0519 | AO143: 5.1 | AP143: not relevant | AQ143: H+W | AR143: 5.1 | AS143: 5100
B144: Essve C-FT | C144: countersunk | D144: Essve Fullthread | E144: 1335740803500001 | F144: 080x350/340 | G144: A0C 1A1 C1E | H144: E | I144: ESSVE C-FT 8,0 x 350/340 | J144: EG/KR+HSP/T40/YellWin500+ (SSH+Bit) | K144: 24.1 | L144: 20.3 | M144: 13.1 | N144: 12.4 | P144: 2790 | Q144: 950 | R144: 25.8 | S144: 8.7 | T144: 350 | U144: 8 | V144: 8,0 x 350 | W144: 340 | X144: 15 | Y144: 90 | AA144: TX 40 | AB144: RAPID® VOLLGEWINDE | AC144: Senkkopf, Unterkopfrippen | AE144: EG-Vollgewinde, Halbspitze + Kernrippen | AF144: YellWin 500+ | AG144: Z-9.1-656, Z-9.1-509 | AH144: ETA | AI144: ETA 12/0373 | AJ144: 20 | AK144: LE005B | AL144: 1359-CPD-0519 | AM144: SSH_ETA.lab | AN144: D8 | AO144: 5.1 | AP144: not relevant | AQ144: H+W | AR144: 5.1 | AS144: 5100
B145: Essve C-FT | C145: countersunk | D145: Essve Fullthread | E145: 1335740803750001 | I145: ESSVE C-FT 8,0 x 375/365 | J145: EG/KR+HSP/T40/YellWin500+ (SSH+Bit) | K145: 24.1 | L145: 20.3 | M145: 13.1 | N145: 12.4 | P145: 2790 | Q145: 950 | R145: 25.8 | S145: 8.7 | T145: 375 | U145: 8 | V145: 8,0 x 375 | W145: 365 | X145: 15 | Y145: 90 | AA145: TX 40 | AB145: RAPID® VOLLGEWINDE | AC145: Senkkopf, Unterkopfrippen | AE145: EG-Vollgewinde, Halbspitze + Kernrippen | AF145: YellWin 500+ | AH145: ETA | AI145: ETA 12/0373 | AJ145: 20 | AK145: LE005B | AL145: 1359-CPD-0519 | AO145: 5.1 | AP145: not relevant | AQ145: H+W | AR145: 5.1 | AS145: 5100
B146: Essve C-FT | C146: countersunk | D146: Essve Fullthread | E146: 1335740804000001 | F146: 080x400/390 | G146: A0C 1A1 C1E | H146: E | I146: ESSVE C-FT 8,0 x 400/390 | J146: EG/KR+HSP/T40/YellWin500+ (SSH+Bit) | K146: 24.1 | L146: 20.3 | M146: 13.1 | N146: 12.4 | P146: 2790 | Q146: 950 | R146: 25.8 | S146: 8.7 | T146: 400 | U146: 8 | V146: 8,0 x 400 | W146: 390 | X146: 15 | Y146: 90 | AA146: TX 40 | AB146: RAPID® VOLLGEWINDE | AC146: Senkkopf, Unterkopfrippen | AE146: EG-Vollgewinde, Halbspitze + Kernrippen | AF146: YellWin 500+ | AG146: Z-9.1-656, Z-9.1-509 | AH146: ETA | AI146: ETA 12/0373 | AJ146: 20 | AK146: LE005B | AL146: 1359-CPD-0519 | AM146: SSH_ETA.lab | AN146: D8 | AO146: 5.1 | AP146: not relevant | AQ146: H+W | AR146: 5.1 | AS146: 5100
B147: Essve C-FT | C147: countersunk | D147: Essve Fullthread | E147: 1335740804500001 | F147: 080x450/427 | G147: A0C 1A1 C1E | H147: E | I147: ESSVE C-FT 8,0 x 450/427 | J147: EG/KR+HSP/T40/YellWin500+ (SSH+Bit) | K147: 24.1 | L147: 20.3 | M147: 13.1 | N147: 12.4 | P147: 2790 | Q147: 950 | R147: 25.8 | S147: 8.7 | T147: 450 | U147: 8 | V147: 8,0 x 450 | W147: 427 | X147: 15 | Y147: 90 | AA147: TX 40 | AB147: RAPID® VOLLGEWINDE | AC147: Senkkopf, Unterkopfrippen | AE147: EG-Vollgewinde, Halbspitze + Kernrippen | AF147: YellWin 500+ | AG147: Z-9.1-656, Z-9.1-509 | AH147: ETA | AI147: ETA 12/0373 | AJ147: 20 | AK147: LE005B | AL147: 1359-CPD-0519 | AM147: SSH_ETA.lab | AN147: D9 | AO147: 5.1 | AP147: not relevant | AQ147: H+W | AR147: 5.1 | AS147: 5100
B148: Essve C-FT | C148: countersunk | D148: Essve Fullthread | E148: 1335740805000001 | F148: 080x500/477 | G148: A0C 1A1 C1E | H148: E | I148: ESSVE C-FT 8,0 x 500/477 | J148: EG/KR+HSP/T40/YellWin500+ (SSH+Bit) | K148: 24.1 | L148: 20.3 | M148: 13.1 | N148: 12.4 | P148: 2790 | Q148: 950 | R148: 25.8 | S148: 8.7 | T148: 500 | U148: 8 | V148: 8,0 x 500 | W148: 477 | X148: 15 | Y148: 90 | AA148: TX 40 | AB148: RAPID® VOLLGEWINDE | AC148: Senkkopf, Unterkopfrippen | AE148: EG-Vollgewinde, Halbspitze + Kernrippen | AF148: YellWin 500+ | AH148: ETA | AI148: ETA 12/0373 | AJ148: 20 | AK148: LE005B | AL148: 1359-CPD-0519 | AM148: SSH_ETA.lab | AN148: D9 | AO148: 5.1 | AP148: not relevant | AQ148: H+W | AR148: 5.1 | AS148: 5100
B149: Essve C-FT | C149: countersunk | D149: Essve Fullthread | E149: 1335740806000001 | F149: 080x600/577 | G149: A0C 1A1 C1E | H149: E | I149: ESSVE C-FT 8,0 x 600/577 | J149: EG/KR+HSP/T40/YellWin500+ (SSH+Bit) | K149: 24.1 | L149: 20.3 | M149: 13.1 | N149: 12.4 | P149: 2790 | Q149: 950 | R149: 25.8 | S149: 8.7 | T149: 600 | U149: 8 | V149: 8,0 x 600 | W149: 577 | X149: 15 | Y149: 90 | AA149: TX 40 | AB149: RAPID® VOLLGEWINDE | AC149: Senkkopf, Unterkopfrippen | AE149: EG-Vollgewinde, Halbspitze + Kernrippen | AF149: YellWin 500+ | AH149: ETA | AI149: ETA 12/0373 | AJ149: 20 | AK149: LE005B | AL149: 1359-CPD-0519 | AM149: SSH_ETA.lab | AN149: D9 | AO149: 5.1 | AP149: not relevant | AQ149: H+W | AR149: 5.1 | AS149: 5100
B150: Essve C-FT | C150: countersunk | D150: Essve Fullthread | E150: 1335741001200001 | F150: 100x120/108 | G150: A0C 1A1 C1E | H150: E | I150: ESSVE C-FT 10,0 x 120/108 | J150: EG/KR+HSP/T50/YellWin500+ (SSH+Bit) | K150: 40 | L150: 36.7 | M150: 12.5 | N150: 12.2 | P150: 4175.45 | Q150: 950 | R150: 55 | S150: 15.6 | T150: 120 | U150: 10 | V150: 10,0 x 120 | W150: 108 | X150: 18.5 | Y150: 90 | AA150: TX 50 | AB150: RAPID® VOLLGEWINDE | AC150: Senkkopf, Unterkopfrippen | AE150: EG-Vollgewinde, Halbspitze + Kernrippen | AF150: YellWin 500+ | AG150: Z-9.1-656 | AH150: ETA | AI150: ETA 12/0373 | AJ150: 20 | AK150: LE005B | AL150: 1359-CPD-0519 | AM150: SSH_ETA.lab | AN150: D8 | AO150: 6.2 | AP150: not relevant | AQ150: H+W | AR150: 6.2 | AS150: 6200
B151: Essve C-FT | C151: countersunk | D151: Essve Fullthread | E151: 1335741001600001 | F151: 100x160/148 | G151: A0C 1A1 C1E | H151: E | I151: ESSVE C-FT 10,0 x 160/148 | J151: EG/KR+HSP/T50/YellWin500+ (SSH+Bit) | K151: 40 | L151: 36.7 | M151: 12.5 | N151: 12.2 | P151: 4175.45 | Q151: 950 | R151: 55 | S151: 15.6 | T151: 160 | U151: 10 | V151: 10,0 x 160 | W151: 148 | X151: 18.5 | Y151: 90 | AA151: TX 50 | AB151: RAPID® VOLLGEWINDE | AC151: Senkkopf, Unterkopfrippen | AE151: EG-Vollgewinde, Halbspitze + Kernrippen | AF151: YellWin 500+ | AG151: Z-9.1-656 | AH151: ETA | AI151: ETA 12/0373 | AJ151: 20 | AK151: LE005B | AL151: 1359-CPD-0519 | AM151: SSH_ETA.lab | AN151: D8 | AO151: 6.2 | AP151: not relevant | AQ151: H+W | AR151: 6.2 | AS151: 6200
B152: Essve C-FT | C152: countersunk | D152: Essve Fullthread | E152: 1335741001800001 | F152: 100x180/168 | G152: A0C 1A1 C1E | H152: E | I152: ESSVE C-FT 10,0 x 180/168 | J152: EG/KR+HSP/T50/YellWin500+ (SSH+Bit) | K152: 40 | L152: 36.7 | M152: 12.5 | N152: 12.2 | P152: 4175.45 | Q152: 950 | R152: 55 | S152: 15.6 | T152: 180 | U152: 10 | V152: 10,0 x 180 | W152: 168 | X152: 18.5 | Y152: 90 | AA152: TX 50 | AB152: RAPID® VOLLGEWINDE | AC152: Senkkopf, Unterkopfrippen | AE152: EG-Vollgewinde, Halbspitze + Kernrippen | AF152: YellWin 500+ | AG152: Z-9.1-656, Z-9.1-509 | AH152: ETA | AI152: ETA 12/0373 | AJ152: 20 | AK152: LE005B | AL152: 1359-CPD-0519 | AM152: SSH_ETA.lab | AN152: D8 | AO152: 6.2 | AP152: not relevant | AQ152: H+W | AR152: 6.2 | AS152: 6200
B153: Essve C-FT | C153: countersunk | D153: Essve Fullthread | E153: 1335741002000001 | F153: 100x200/188 | G153: A0C 1A1 C1E | H153: E | I153: ESSVE C-FT 10,0 x 200/188 | J153: EG/KR+HSP/T50/YellWin500+ (SSH+Bit) | K153: 40 | L153: 36.7 | M153: 12.5 | N153: 12.2 | P153: 4175.45 | Q153: 950 | R153: 55 | S153: 15.6 | T153: 200 | U153: 10 | V153: 10,0 x 200 | W153: 188 | X153: 18.5 | Y153: 90 | AA153: TX 50 | AB153: RAPID® VOLLGEWINDE | AC153: Senkkopf, Unterkopfrippen | AE153: EG-Vollgewinde, Halbspitze + Kernrippen | AF153: YellWin 500+ | AG153: Z-9.1-656, Z-9.1-509 | AH153: ETA | AI153: ETA 12/0373 | AJ153: 20 | AK153: LE005B | AL153: 1359-CPD-0519 | AM153: SSH_ETA.lab | AN153: D8 | AO153: 6.2 | AP153: not relevant | AQ153: H+W | AR153: 6.2 | AS153: 6200
B154: Essve C-FT | C154: countersunk | D154: Essve Fullthread | E154: 1335741002200001 | F154: 100x220/208 | G154: A0C 1A1 C1E | H154: E | I154: ESSVE C-FT 10,0 x 220/208 | J154: EG/KR+HSP/T50/YellWin500+ (SSH+Bit) | K154: 40 | L154: 36.7 | M154: 12.5 | N154: 12.2 | P154: 4175.45 | Q154: 950 | R154: 55 | S154: 15.6 | T154: 220 | U154: 10 | V154: 10,0 x 220 | W154: 208 | X154: 18.5 | Y154: 90 | AA154: TX 50 | AB154: RAPID® VOLLGEWINDE | AC154: Senkkopf, Unterkopfrippen | AE154: EG-Vollgewinde, Halbspitze + Kernrippen | AF154: YellWin 500+ | AG154: Z-9.1-656, Z-9.1-509 | AH154: ETA | AI154: ETA 12/0373 | AJ154: 20 | AK154: LE005B | AL154: 1359-CPD-0519 | AM154: SSH_ETA.lab | AN154: D8 | AO154: 6.2 | AP154: not relevant | AQ154: H+W | AR154: 6.2 | AS154: 6200
B155: Essve C-FT | C155: countersunk | D155: Essve Fullthread | E155: 1335741002400001 | F155: 100x240/228 | G155: A0C 1A1 C1E | H155: E | I155: ESSVE C-FT 10,0 x 240/228 | J155: EG/KR+HSP/T50/YellWin500+ (SSH+Bit) | K155: 40 | L155: 36.7 | M155: 12.5 | N155: 12.2 | P155: 4175.45 | Q155: 950 | R155: 55 | S155: 15.6 | T155: 240 | U155: 10 | V155: 10,0 x 240 | W155: 228 | X155: 18.5 | Y155: 90 | AA155: TX 50 | AB155: RAPID® VOLLGEWINDE | AC155: Senkkopf, Unterkopfrippen | AE155: EG-Vollgewinde, Halbspitze + Kernrippen | AF155: YellWin 500+ | AG155: Z-9.1-656, Z-9.1-509 | AH155: ETA | AI155: ETA 12/0373 | AJ155: 20 | AK155: LE005B | AL155: 1359-CPD-0519 | AM155: SSH_ETA.lab | AN155: D8 | AO155: 6.2 | AP155: not relevant | AQ155: H+W | AR155: 6.2 | AS155: 6200
B156: Essve C-FT | C156: countersunk | D156: Essve Fullthread | E156: 1335741002600001 | F156: 100x260/248 | G156: A0C 1A1 C1E | H156: E | I156: ESSVE C-FT 10,0 x 260/248 | J156: EG/KR+HSP/T50/YellWin500+ (SSH+Bit) | K156: 40 | L156: 36.7 | M156: 12.5 | N156: 12.2 | P156: 4175.45 | Q156: 950 | R156: 55 | S156: 15.6 | T156: 260 | U156: 10 | V156: 10,0 x 260 | W156: 248 | X156: 18.5 | Y156: 90 | AA156: TX 50 | AB156: RAPID® VOLLGEWINDE | AC156: Senkkopf, Unterkopfrippen | AE156: EG-Vollgewinde, Halbspitze + Kernrippen | AF156: YellWin 500+ | AG156: Z-9.1-656, Z-9.1-509 | AH156: ETA | AI156: ETA 12/0373 | AJ156: 20 | AK156: LE005B | AL156: 1359-CPD-0519 | AM156: SSH_ETA.lab | AN156: D8 | AO156: 6.2 | AP156: not relevant | AQ156: H+W | AR156: 6.2 | AS156: 6200
B157: Essve C-FT | C157: countersunk | D157: Essve Fullthread | E157: 1335741002800001 | F157: 100x280/268 | G157: A0C 1A1 C1E | H157: E | I157: ESSVE C-FT 10,0 x 280/268 | J157: EG/KR+HSP/T50/YellWin500+ (SSH+Bit) | K157: 40 | L157: 36.7 | M157: 12.5 | N157: 12.2 | P157: 4175.45 | Q157: 950 | R157: 55 | S157: 15.6 | T157: 280 | U157: 10 | V157: 10,0 x 280 | W157: 268 | X157: 18.5 | Y157: 90 | AA157: TX 50 | AB157: RAPID® VOLLGEWINDE | AC157: Senkkopf, Unterkopfrippen | AE157: EG-Vollgewinde, Halbspitze + Kernrippen | AF157: YellWin 500+ | AG157: Z-9.1-656, Z-9.1-509 | AH157: ETA | AI157: ETA 12/0373 | AJ157: 20 | AK157: LE005B | AL157: 1359-CPD-0519 | AM157: SSH_ETA.lab | AN157: D8 | AO157: 6.2 | AP157: not relevant | AQ157: H+W | AR157: 6.2 | AS157: 6200
B158: Essve C-FT | C158: countersunk | D158: Essve Fullthread | E158: 1335741003000001 | F158: 100x300/288 | G158: A0C 1A1 C1E | H158: E | I158: ESSVE C-FT 10,0 x 300/288 | J158: EG/KR+HSP/T50/YellWin500+ (SSH+Bit) | K158: 40 | L158: 36.7 | M158: 12.5 | N158: 12.2 | P158: 4175.45 | Q158: 950 | R158: 55 | S158: 15.6 | T158: 300 | U158: 10 | V158: 10,0 x 300 | W158: 288 | X158: 18.5 | Y158: 90 | AA158: TX 50 | AB158: RAPID® VOLLGEWINDE | AC158: Senkkopf, Unterkopfrippen | AE158: EG-Vollgewinde, Halbspitze + Kernrippen | AF158: YellWin 500+ | AG158: Z-9.1-656, Z-9.1-509 | AH158: ETA | AI158: ETA 12/0373 | AJ158: 20 | AK158: LE005B | AL158: 1359-CPD-0519 | AM158: SSH_ETA.lab | AN158: D8 | AO158: 6.2 | AP158: not relevant | AQ158: H+W | AR158: 6.2 | AS158: 6200
B159: Essve C-FT | C159: countersunk | D159: Essve Fullthread | E159: 1335741003250001 | I159: ESSVE C-FT 10,0 x 325/301 | J159: EG/KR+HSP/T50/YellWin500+ (SSH+Bit) | K159: 40 | L159: 36.7 | M159: 12.5 | N159: 12.2 | P159: 4175.45 | Q159: 950 | R159: 55 | S159: 15.6 | T159: 325 | U159: 10 | V159: 10,0 x 325 | W159: 301 | X159: 18.5 | Y159: 90 | AA159: TX 50 | AB159: RAPID® VOLLGEWINDE | AC159: Senkkopf, Unterkopfrippen | AE159: EG-Vollgewinde, Halbspitze + Kernrippen | AF159: YellWin 500+ | AH159: ETA | AI159: ETA 12/0373 | AJ159: 20 | AK159: LE005B | AL159: 1359-CPD-0519 | AO159: 6.2 | AP159: not relevant | AQ159: H+W | AR159: 6.2 | AS159: 6200
B160: Essve C-FT | C160: countersunk | D160: Essve Fullthread | E160: 1335741003500001 | F160: 100x350/338 | G160: A0C 1A1 C1E | H160: E | I160: ESSVE C-FT 10,0 x 350/326 | J160: EG/KR+HSP/T50/YellWin500+ (SSH+Bit) | K160: 40 | L160: 36.7 | M160: 12.5 | N160: 12.2 | P160: 4175.45 | Q160: 950 | R160: 55 | S160: 15.6 | T160: 350 | U160: 10 | V160: 10,0 x 350 | W160: 326 | X160: 18.5 | Y160: 90 | AA160: TX 50 | AB160: RAPID® VOLLGEWINDE | AC160: Senkkopf, Unterkopfrippen | AE160: EG-Vollgewinde, Halbspitze + Kernrippen | AF160: YellWin 500+ | AG160: Z-9.1-656, Z-9.1-509 | AH160: ETA | AI160: ETA 12/0373 | AJ160: 20 | AK160: LE005B | AL160: 1359-CPD-0519 | AM160: SSH_ETA.lab | AN160: D8 | AO160: 6.2 | AP160: not relevant | AQ160: H+W | AR160: 6.2 | AS160: 6200
B161: Essve C-FT | C161: countersunk | D161: Essve Fullthread | E161: 1335741003750001 | I161: ESSVE C-FT 10,0 x 375/351 | J161: EG/KR+HSP/T50/YellWin500+ (SSH+Bit) | K161: 40 | L161: 36.7 | M161: 12.5 | N161: 12.2 | P161: 4175.45 | Q161: 950 | R161: 55 | S161: 15.6 | T161: 375 | U161: 10 | V161: 10,0 x 375 | W161: 351 | X161: 18.5 | Y161: 90 | AA161: TX 50 | AB161: RAPID® VOLLGEWINDE | AC161: Senkkopf, Unterkopfrippen | AE161: EG-Vollgewinde, Halbspitze + Kernrippen | AF161: YellWin 500+ | AH161: ETA | AI161: ETA 12/0373 | AJ161: 20 | AK161: LE005B | AL161: 1359-CPD-0519 | AO161: 6.2 | AP161: not relevant | AQ161: H+W | AR161: 6.2 | AS161: 6200
B162: Essve C-FT | C162: countersunk | D162: Essve Fullthread | E162: 1335741004000001 | F162: 100x400/376 | G162: A0C 1A1 C1E | H162: E | I162: ESSVE C-FT 10,0 x 400/376 | J162: EG/KR+HSP/T50/YellWin500+ (SSH+Bit) | K162: 40 | L162: 36.7 | M162: 12.5 | N162: 12.2 | P162: 4175.45 | Q162: 950 | R162: 55 | S162: 15.6 | T162: 400 | U162: 10 | V162: 10,0 x 400 | W162: 376 | X162: 18.5 | Y162: 90 | AA162: TX 50 | AB162: RAPID® VOLLGEWINDE | AC162: Senkkopf, Unterkopfrippen | AE162: EG-Vollgewinde, Halbspitze + Kernrippen | AF162: YellWin 500+ | AG162: Z-9.1-656, Z-9.1-509 | AH162: ETA | AI162: ETA 12/0373 | AJ162: 20 | AK162: LE005B | AL162: 1359-CPD-0519 | AM162: SSH_ETA.lab | AN162: D8 | AO162: 6.2 | AP162: not relevant | AQ162: H+W | AR162: 6.2 | AS162: 6200
B163: Essve C-FT | C163: countersunk | D163: Essve Fullthread | E163: 1335741004500001 | F163: 100x450/426 | G163: A0C 1A1 C1E | H163: E | I163: ESSVE C-FT 10,0 x 450/426 | J163: EG/KR+HSP/T50/YellWin500+ (SSH+Bit) | K163: 40 | L163: 36.7 | M163: 12.5 | N163: 12.2 | P163: 4175.45 | Q163: 950 | R163: 55 | S163: 15.6 | T163: 450 | U163: 10 | V163: 10,0 x 450 | W163: 426 | X163: 18.5 | Y163: 90 | AA163: TX 50 | AB163: RAPID® VOLLGEWINDE | AC163: Senkkopf, Unterkopfrippen | AE163: EG-Vollgewinde, Halbspitze + Kernrippen | AF163: YellWin 500+ | AG163: Z-9.1-656, Z-9.1-509 | AH163: ETA | AI163: ETA 12/0373 | AJ163: 20 | AK163: LE005B | AL163: 1359-CPD-0519 | AM163: SSH_ETA.lab | AN163: D9 | AO163: 6.2 | AP163: not relevant | AQ163: H+W | AR163: 6.2 | AS163: 6200
B164: Essve C-FT | C164: countersunk | D164: Essve Fullthread | E164: 1335741005000001 | F164: 100x500/476 | G164: A0C 1A1 C1E | H164: E | I164: ESSVE C-FT 10,0 x 500/476 | J164: EG/KR+HSP/T50/YellWin500+ (SSH+Bit) | K164: 40 | L164: 36.7 | M164: 12.5 | N164: 12.2 | P164: 4175.45 | Q164: 950 | R164: 55 | S164: 15.6 | T164: 500 | U164: 10 | V164: 10,0 x 500 | W164: 476 | X164: 18.5 | Y164: 90 | AA164: TX 50 | AB164: RAPID® VOLLGEWINDE | AC164: Senkkopf, Unterkopfrippen | AE164: EG-Vollgewinde, Halbspitze + Kernrippen | AF164: YellWin 500+ | AH164: ETA | AI164: ETA 12/0373 | AJ164: 20 | AK164: LE005B | AL164: 1359-CPD-0519 | AM164: SSH_ETA.lab | AN164: D9 | AO164: 6.2 | AP164: not relevant | AQ164: H+W | AR164: 6.2 | AS164: 6200
B165: Essve C-FT | C165: countersunk | D165: Essve Fullthread | E165: 1335741006000001 | F165: 100x600/576 | G165: A0C 1A1 C1E | H165: E | I165: ESSVE C-FT 10,0 x 600/576 | J165: EG/KR+HSP/T50/YellWin500+ (SSH+Bit) | K165: 40 | L165: 36.7 | M165: 12.5 | N165: 12.2 | P165: 4175.45 | Q165: 950 | R165: 55 | S165: 15.6 | T165: 600 | U165: 10 | V165: 10,0 x 600 | W165: 576 | X165: 18.5 | Y165: 90 | AA165: TX 50 | AB165: RAPID® VOLLGEWINDE | AC165: Senkkopf, Unterkopfrippen | AE165: EG-Vollgewinde, Halbspitze + Kernrippen | AF165: YellWin 500+ | AH165: ETA | AI165: ETA 12/0373 | AJ165: 20 | AK165: LE005B | AL165: 1359-CPD-0519 | AM165: SSH_ETA.lab | AN165: D9 | AO165: 6.2 | AP165: not relevant | AQ165: H+W | AR165: 6.2 | AS165: 6200
B166: Essve C-FT | C166: countersunk | D166: Essve Fullthread | E166: 1335741007000001 | I166: ESSVE C-FT 10,0 x 700/676 | J166: EG/KR+HSP/T50/YellWin500+ (SSH+Bit) | K166: 40 | L166: 36.7 | M166: 12.5 | N166: 12.2 | P166: 4175.45 | Q166: 950 | R166: 55 | S166: 15.6 | T166: 700 | U166: 10 | V166: 10,0 x 700 | W166: 676 | X166: 18.5 | Y166: 90 | AA166: TX 50 | AB166: RAPID® VOLLGEWINDE | AC166: Senkkopf, Unterkopfrippen | AE166: EG-Vollgewinde, Halbspitze + Kernrippen | AF166: YellWin 500+ | AH166: ETA | AI166: ETA 12/0373 | AJ166: 20 | AK166: LE005B | AL166: 1359-CPD-0519 | AO166: 6.2 | AP166: not relevant | AQ166: H+W | AR166: 6.2 | AS166: 6200
B167: Essve C-FT | C167: countersunk | D167: Essve Fullthread | E167: 1335741008000001 | I167: ESSVE C-FT 10,0 x 800/776 | J167: EG/KR+HSP/T50/YellWin500+ (SSH+Bit) | K167: 40 | L167: 36.7 | M167: 12.5 | N167: 12.2 | P167: 4175.45 | Q167: 950 | R167: 55 | S167: 15.6 | T167: 800 | U167: 10 | V167: 10,0 x 800 | W167: 776 | X167: 18.5 | Y167: 90 | AA167: TX 50 | AB167: RAPID® VOLLGEWINDE | AC167: Senkkopf, Unterkopfrippen | AE167: EG-Vollgewinde, Halbspitze + Kernrippen | AF167: YellWin 500+ | AH167: ETA | AI167: ETA 12/0373 | AJ167: 20 | AK167: LE005B | AL167: 1359-CPD-0519 | AO167: 6.2 | AP167: not relevant | AQ167: H+W | AR167: 6.2 | AS167: 6200
B168: Essve C-FT | C168: countersunk | D168: Essve Fullthread | E168: 1335741009990001 | I168: ESSVE C-FT 10,0 x 1000/976 | J168: EG/KR+HSP/T50/YellWin500+ (SSH+Bit) | K168: 40 | L168: 36.7 | M168: 12.5 | N168: 12.2 | P168: 4175.45 | Q168: 950 | R168: 55 | S168: 15.6 | T168: 1000 | U168: 10 | V168: 10,0 x 1000 | W168: 976 | X168: 18.5 | Y168: 90 | AA168: TX 50 | AB168: RAPID® VOLLGEWINDE | AC168: Senkkopf, Unterkopfrippen | AE168: EG-Vollgewinde, Halbspitze + Kernrippen | AF168: YellWin 500+ | AH168: ETA | AI168: ETA 12/0373 | AJ168: 20 | AK168: LE005B | AL168: 1359-CPD-0519 | AO168: 6.2 | AP168: not relevant | AQ168: H+W | AR168: 6.2 | AS168: 6200
B169: Essve C-FT | C169: countersunk | D169: Essve Fullthread | E169: 1335741202000001 | F169: 120x200/180 | G169: C0C 1A1 C1E | H169: E | I169: ESSVE C-FT 12,0 x 200/180 | J169: EG/KR+HSP/T50/YellWin500+ (SSH+Bit) | K169: 46.7 | L169: 48.5 | M169: 11.2 | N169: 11 | P169: 4400 | Q169: 950 | R169: 73 | S169: 27.6 | T169: 200 | U169: 12 | V169: 12,0 x 200 | W169: 180 | X169: 20 | Y169: 90 | AA169: TX 50 | AB169: RAPID® VOLLGEWINDE | AC169: Senkkopf, Unterkopfrippen | AE169: EG-Vollgewinde, Halbspitze + Kernrippen | AF169: YellWin 500+ | AH169: ETA | AI169: ETA 12/0373 | AJ169: 20 | AK169: LE005B | AL169: 1359-CPD-0519 | AM169: SSH_ETA.lab | AN169: D8 | AO169: 7 | AP169: not relevant | AQ169: H+W | AR169: 7 | AS169: 7000
B170: Essve C-FT | C170: countersunk | D170: Essve Fullthread | E170: 1335741202200001 | F170: 120x220/200 | G170: C0C 1A1 C1E | H170: E | I170: ESSVE C-FT 12,0 x 220/200 | J170: EG/KR+HSP/T50/YellWin500+ (SSH+Bit) | K170: 46.7 | L170: 48.5 | M170: 11.2 | N170: 11 | P170: 4400 | Q170: 950 | R170: 73 | S170: 27.6 | T170: 220 | U170: 12 | V170: 12,0 x 220 | W170: 200 | X170: 20 | Y170: 90 | AA170: TX 50 | AB170: RAPID® VOLLGEWINDE | AC170: Senkkopf, Unterkopfrippen | AE170: EG-Vollgewinde, Halbspitze + Kernrippen | AF170: YellWin 500+ | AH170: ETA | AI170: ETA 12/0373 | AJ170: 20 | AK170: LE005B | AL170: 1359-CPD-0519 | AM170: SSH_ETA.lab | AN170: D8 | AO170: 7 | AP170: not relevant | AQ170: H+W | AR170: 7 | AS170: 7000
B171: Essve C-FT | C171: countersunk | D171: Essve Fullthread | E171: 1335741202400001 | F171: 120x240/220 | G171: C0C 1A1 C1E | H171: E | I171: ESSVE C-FT 12,0 x 240/220 | J171: EG/KR+HSP/T50/YellWin500+ (SSH+Bit) | K171: 46.7 | L171: 48.5 | M171: 11.2 | N171: 11 | P171: 4400 | Q171: 950 | R171: 73 | S171: 27.6 | T171: 240 | U171: 12 | V171: 12,0 x 240 | W171: 220 | X171: 20 | Y171: 90 | AA171: TX 50 | AB171: RAPID® VOLLGEWINDE | AC171: Senkkopf, Unterkopfrippen | AE171: EG-Vollgewinde, Halbspitze + Kernrippen | AF171: YellWin 500+ | AH171: ETA | AI171: ETA 12/0373 | AJ171: 20 | AK171: LE005B | AL171: 1359-CPD-0519 | AM171: SSH_ETA.lab | AN171: D8 | AO171: 7 | AP171: not relevant | AQ171: H+W | AR171: 7 | AS171: 7000
B172: Essve C-FT | C172: countersunk | D172: Essve Fullthread | E172: 1335741202600001 | F172: 120x260/240 | G172: C0C 1A1 C1E | H172: E | I172: ESSVE C-FT 12,0 x 260/240 | J172: EG/KR+HSP/T50/YellWin500+ (SSH+Bit) | K172: 46.7 | L172: 48.5 | M172: 11.2 | N172: 11 | P172: 4400 | Q172: 950 | R172: 73 | S172: 27.6 | T172: 260 | U172: 12 | V172: 12,0 x 260 | W172: 240 | X172: 20 | Y172: 90 | AA172: TX 50 | AB172: RAPID® VOLLGEWINDE | AC172: Senkkopf, Unterkopfrippen | AE172: EG-Vollgewinde, Halbspitze + Kernrippen | AF172: YellWin 500+ | AH172: ETA | AI172: ETA 12/0373 | AJ172: 20 | AK172: LE005B | AL172: 1359-CPD-0519 | AM172: SSH_ETA.lab | AN172: D8 | AO172: 7 | AP172: not relevant | AQ172: H+W | AR172: 7 | AS172: 7000
B173: Essve C-FT | C173: countersunk | D173: Essve Fullthread | E173: 1335741202800001 | F173: 120x280/260 | G173: C0C 1A1 C1E | H173: E | I173: ESSVE C-FT 12,0 x 280/260 | J173: EG/KR+HSP/T50/YellWin500+ (SSH+Bit) | K173: 46.7 | L173: 48.5 | M173: 11.2 | N173: 11 | P173: 4400 | Q173: 950 | R173: 73 | S173: 27.6 | T173: 280 | U173: 12 | V173: 12,0 x 280 | W173: 260 | X173: 20 | Y173: 90 | AA173: TX 50 | AB173: RAPID® VOLLGEWINDE | AC173: Senkkopf, Unterkopfrippen | AE173: EG-Vollgewinde, Halbspitze + Kernrippen | AF173: YellWin 500+ | AH173: ETA | AI173: ETA 12/0373 | AJ173: 20 | AK173: LE005B | AL173: 1359-CPD-0519 | AM173: SSH_ETA.lab | AN173: D8 | AO173: 7 | AP173: not relevant | AQ173: H+W | AR173: 7 | AS173: 7000
B174: Essve C-FT | C174: countersunk | D174: Essve Fullthread | E174: 1335741203000001 | F174: 120x300/280 | G174: C0C 1A1 C1E | H174: E | I174: ESSVE C-FT 12,0 x 300/280 | J174: EG/KR+HSP/T50/YellWin500+ (SSH+Bit) | K174: 46.7 | L174: 48.5 | M174: 11.2 | N174: 11 | P174: 4400 | Q174: 950 | R174: 73 | S174: 27.6 | T174: 300 | U174: 12 | V174: 12,0 x 300 | W174: 280 | X174: 20 | Y174: 90 | AA174: TX 50 | AB174: RAPID® VOLLGEWINDE | AC174: Senkkopf, Unterkopfrippen | AE174: EG-Vollgewinde, Halbspitze + Kernrippen | AF174: YellWin 500+ | AH174: ETA | AI174: ETA 12/0373 | AJ174: 20 | AK174: LE005B | AL174: 1359-CPD-0519 | AM174: SSH_ETA.lab | AN174: D8 | AO174: 7 | AP174: not relevant | AQ174: H+W | AR174: 7 | AS174: 7000
B175: Essve C-FT | C175: countersunk | D175: Essve Fullthread | E175: 1335741203500001 | F175: 120x350/330 | G175: C0C 1A1 C1E | H175: E | I175: ESSVE C-FT 12,0 x 350/330 | J175: EG/KR+HSP/T50/YellWin500+ (SSH+Bit) | K175: 46.7 | L175: 48.5 | M175: 11.2 | N175: 11 | P175: 4400 | Q175: 950 | R175: 73 | S175: 27.6 | T175: 350 | U175: 12 | V175: 12,0 x 350 | W175: 330 | X175: 20 | Y175: 90 | AA175: TX 50 | AB175: RAPID® VOLLGEWINDE | AC175: Senkkopf, Unterkopfrippen | AE175: EG-Vollgewinde, Halbspitze + Kernrippen | AF175: YellWin 500+ | AH175: ETA | AI175: ETA 12/0373 | AJ175: 20 | AK175: LE005B | AL175: 1359-CPD-0519 | AM175: SSH_ETA.lab | AN175: D8 | AO175: 7 | AP175: not relevant | AQ175: H+W | AR175: 7 | AS175: 7000
B176: Essve C-FT | C176: countersunk | D176: Essve Fullthread | E176: 1335741204000001 | F176: 120x400/380 | G176: C0C 1A1 C1E | H176: E | I176: ESSVE C-FT 12,0 x 400/380 | J176: EG/KR+HSP/T50/YellWin500+ (SSH+Bit) | K176: 46.7 | L176: 48.5 | M176: 11.2 | N176: 11 | P176: 4400 | Q176: 950 | R176: 73 | S176: 27.6 | T176: 400 | U176: 12 | V176: 12,0 x 400 | W176: 380 | X176: 20 | Y176: 90 | AA176: TX 50 | AB176: RAPID® VOLLGEWINDE | AC176: Senkkopf, Unterkopfrippen | AE176: EG-Vollgewinde, Halbspitze + Kernrippen | AF176: YellWin 500+ | AH176: ETA | AI176: ETA 12/0373 | AJ176: 20 | AK176: LE005B | AL176: 1359-CPD-0519 | AM176: SSH_ETA.lab | AN176: D8 | AO176: 7 | AP176: not relevant | AQ176: H+W | AR176: 7 | AS176: 7000
B177: Essve C-FT | C177: countersunk | D177: Essve Fullthread | E177: 1335741205000001 | F177: 120x500/480 | G177: C0C 1A1 C1E | H177: E | I177: ESSVE C-FT 12,0 x 500/480 | J177: EG/KR+HSP/T50/YellWin500+ (SSH+Bit) | K177: 46.7 | L177: 48.5 | M177: 11.2 | N177: 11 | P177: 4400 | Q177: 950 | R177: 73 | S177: 27.6 | T177: 500 | U177: 12 | V177: 12,0 x 500 | W177: 480 | X177: 20 | Y177: 90 | AA177: TX 50 | AB177: RAPID® VOLLGEWINDE | AC177: Senkkopf, Unterkopfrippen | AE177: EG-Vollgewinde, Halbspitze + Kernrippen | AF177: YellWin 500+ | AH177: ETA | AI177: ETA 12/0373 | AJ177: 20 | AK177: LE005B | AL177: 1359-CPD-0519 | AM177: SSH_ETA.lab | AN177: D8 | AO177: 7 | AP177: not relevant | AQ177: H+W | AR177: 7 | AS177: 7000
B178: Essve C-FT | C178: countersunk | D178: Essve Fullthread | E178: 1335741206000001 | F178: 120x600/580 | G178: C0C 1A1 C1E | H178: E | I178: ESSVE C-FT 12,0 x 600/580 | J178: EG/KR+HSP/T50/YellWin500+ (SSH+Bit) | K178: 46.7 | L178: 48.5 | M178: 11.2 | N178: 11 | P178: 4400 | Q178: 950 | R178: 73 | S178: 27.6 | T178: 600 | U178: 12 | V178: 12,0 x 600 | W178: 580 | X178: 20 | Y178: 90 | AA178: TX 50 | AB178: RAPID® VOLLGEWINDE | AC178: Senkkopf, Unterkopfrippen | AE178: EG-Vollgewinde, Halbspitze + Kernrippen | AF178: YellWin 500+ | AH178: ETA | AI178: ETA 12/0373 | AJ178: 20 | AK178: LE005B | AL178: 1359-CPD-0519 | AM178: SSH_ETA.lab | AN178: D8 | AO178: 7 | AP178: not relevant | AQ178: H+W | AR178: 7 | AS178: 7000
B179: Essve C-FT | C179: countersunk | D179: Essve Fullthread | E179: 1335741207000001 | I179: ESSVE C-FT 12,0 x 700/680 | J179: EG/KR+HSP/T50/YellWin500+ (SSH+Bit) | K179: 46.7 | L179: 48.5 | M179: 11.2 | N179: 11 | P179: 4400 | Q179: 950 | R179: 73 | S179: 27.6 | T179: 700 | U179: 12 | V179: 12,0 x 700 | W179: 680 | X179: 20 | Y179: 90 | AA179: TX 50 | AB179: RAPID® VOLLGEWINDE | AC179: Senkkopf, Unterkopfrippen | AE179: EG-Vollgewinde, Halbspitze + Kernrippen | AF179: YellWin 500+ | AH179: ETA | AI179: ETA 12/0373 | AJ179: 20 | AK179: LE005B | AL179: 1359-CPD-0519 | AO179: 7 | AP179: not relevant | AQ179: H+W | AR179: 7 | AS179: 7000
B180: Essve C-FT | C180: countersunk | D180: Essve Fullthread | E180: 1335741208000001 | I180: ESSVE C-FT 12,0 x 800/780 | J180: EG/KR+HSP/T50/YellWin500+ (SSH+Bit) | K180: 46.7 | L180: 48.5 | M180: 11.2 | N180: 11 | P180: 4400 | Q180: 950 | R180: 73 | S180: 27.6 | T180: 800 | U180: 12 | V180: 12,0 x 800 | W180: 780 | X180: 20 | Y180: 90 | AA180: TX 50 | AB180: RAPID® VOLLGEWINDE | AC180: Senkkopf, Unterkopfrippen | AE180: EG-Vollgewinde, Halbspitze + Kernrippen | AF180: YellWin 500+ | AH180: ETA | AI180: ETA 12/0373 | AJ180: 20 | AK180: LE005B | AL180: 1359-CPD-0519 | AO180: 7 | AP180: not relevant | AQ180: H+W | AR180: 7 | AS180: 7000
B181: Essve C-FT | C181: countersunk | D181: Essve Fullthread | E181: 1335741209990001 | I181: ESSVE C-FT 12,0 x 1000/980 | J181: EG/KR+HSP/T50/YellWin500+ (SSH+Bit) | K181: 46.7 | L181: 48.5 | M181: 11.2 | N181: 11 | P181: 4400 | Q181: 950 | R181: 73 | S181: 27.6 | T181: 1000 | U181: 12 | V181: 12,0 x 1000 | W181: 980 | X181: 20 | Y181: 90 | AA181: TX 50 | AB181: RAPID® VOLLGEWINDE | AC181: Senkkopf, Unterkopfrippen | AE181: EG-Vollgewinde, Halbspitze + Kernrippen | AF181: YellWin 500+ | AH181: ETA | AI181: ETA 12/0373 | AJ181: 20 | AK181: LE005B | AL181: 1359-CPD-0519 | AO181: 7 | AP181: not relevant | AQ181: H+W | AR181: 7 | AS181: 7000
A182: slst_1_5 | B182: Essve CY-FT | C182: cylinder | D182: Essve Fullthread | E182: 1331740801200001 | F182: 080x120/110 | G182: L0L 1A1 A0E | H182: E | I182: ESSVE CY-FT 8,0X120/110 | J182: EG/KR/T40/YellWin500+ (SSH+Bit) | K182: 24.1 | L182: 20.3 | M182: 13.1 | N182: 0 (kein Kopfdurchzug) | P182: 0 | Q182: 950 | R182: 25.8 | S182: 8.7 | T182: 120 | U182: 8 | V182: 8,0 x 120 | W182: 110 | X182: 10.2 | Y182: kein kopfdurchzug | AA182: TX 40 | AB182: RAPID® VOLLGEWINDE | AC182: cylinderkopf | AE182: EG-Vollgewinde + Kernrippen | AF182: YellWin 500+ | AH182: ETA | AI182: ETA 12/0373 | AJ182: 20 | AK182: LE005B | AL182: 1359-CPD-0519 | AM182: SSH_ETA.lab | AN182: D10 | AO182: 5.1 | AP182: not relevant | AQ182: H+W | AR182: 5.1 | AS182: 5100
B183: Essve CY-FT | C183: cylinder | D183: Essve Fullthread | E183: 1331740801400001 | F183: 080x140/130 | G183: L0L 1A1 A0E | H183: E | I183: ESSVE CY-FT 8,0X140/130 | J183: EG/KR/T40/YellWin500+ (SSH+Bit) | K183: 24.1 | L183: 20.3 | M183: 13.1 | N183: 1 (kein Kopfdurchzug) | P183: 0 | Q183: 950 | R183: 25.8 | S183: 8.7 | T183: 140 | U183: 8 | V183: 8,0 x 140 | W183: 130 | X183: 10.2 | Y183: kein kopfdurchzug | AA183: TX 40 | AB183: RAPID® VOLLGEWINDE | AC183: cylinderkopf | AE183: EG-Vollgewinde + Kernrippen | AF183: YellWin 500+ | AH183: ETA | AI183: ETA 12/0373 | AJ183: 20 | AK183: LE005B | AL183: 1359-CPD-0519 | AM183: SSH_ETA.lab | AN183: D10 | AO183: 5.1 | AP183: not relevant | AQ183: H+W | AR183: 5.1 | AS183: 5100
B184: Essve CY-FT | C184: cylinder | D184: Essve Fullthread | E184: 1331740801600001 | F184: 080x160/150 | G184: L0L 1A1 A0E | H184: E | I184: ESSVE CY-FT 8,0X160/150 | J184: EG/KR/T40/YellWin500+ (SSH+Bit) | K184: 24.1 | L184: 20.3 | M184: 13.1 | N184: 2 (kein Kopfdurchzug) | P184: 0 | Q184: 950 | R184: 25.8 | S184: 8.7 | T184: 160 | U184: 8 | V184: 8,0 x 160 | W184: 150 | X184: 10.2 | Y184: kein kopfdurchzug | AA184: TX 40 | AB184: RAPID® VOLLGEWINDE | AC184: cylinderkopf | AE184: EG-Vollgewinde + Kernrippen | AF184: YellWin 500+ | AH184: ETA | AI184: ETA 12/0373 | AJ184: 20 | AK184: LE005B | AL184: 1359-CPD-0519 | AM184: SSH_ETA.lab | AN184: D10 | AO184: 5.1 | AP184: not relevant | AQ184: H+W | AR184: 5.1 | AS184: 5100
B185: Essve CY-FT | C185: cylinder | D185: Essve Fullthread | E185: 1331740801800001 | F185: 080x180/170 | G185: L0L 1A1 A0E | H185: E | I185: ESSVE CY-FT 8,0X180/170 | J185: EG/KR/T40/YellWin500+ (SSH+Bit) | K185: 24.1 | L185: 20.3 | M185: 13.1 | N185: 3 (kein Kopfdurchzug) | P185: 0 | Q185: 950 | R185: 25.8 | S185: 8.7 | T185: 180 | U185: 8 | V185: 8,0 x 180 | W185: 170 | X185: 10.2 | Y185: kein kopfdurchzug | AA185: TX 40 | AB185: RAPID® VOLLGEWINDE | AC185: cylinderkopf | AE185: EG-Vollgewinde + Kernrippen | AF185: YellWin 500+ | AH185: ETA | AI185: ETA 12/0373 | AJ185: 20 | AK185: LE005B | AL185: 1359-CPD-0519 | AM185: SSH_ETA.lab | AN185: D10 | AO185: 5.1 | AP185: not relevant | AQ185: H+W | AR185: 5.1 | AS185: 5100
B186: Essve CY-FT | C186: cylinder | D186: Essve Fullthread | E186: 1331740802000001 | F186: 080x200/190 | G186: L0L 1A1 A0E | H186: E | I186: ESSVE CY-FT 8,0X200/190 | J186: EG/KR/T40/YellWin500+ (SSH+Bit) | K186: 24.1 | L186: 20.3 | M186: 13.1 | N186: 4 (kein Kopfdurchzug) | P186: 0 | Q186: 950 | R186: 25.8 | S186: 8.7 | T186: 200 | U186: 8 | V186: 8,0 x 200 | W186: 190 | X186: 10.2 | Y186: kein kopfdurchzug | AA186: TX 40 | AB186: RAPID® VOLLGEWINDE | AC186: cylinderkopf | AE186: EG-Vollgewinde + Kernrippen | AF186: YellWin 500+ | AH186: ETA | AI186: ETA 12/0373 | AJ186: 20 | AK186: LE005B | AL186: 1359-CPD-0519 | AM186: SSH_ETA.lab | AN186: D10 | AO186: 5.1 | AP186: not relevant | AQ186: H+W | AR186: 5.1 | AS186: 5100
B187: Essve CY-FT | C187: cylinder | D187: Essve Fullthread | E187: 1331740802200001 | F187: 080x220/210 | G187: L0L 1A1 A0E | H187: E | I187: ESSVE CY-FT 8,0X220/210 | J187: EG/KR/T40/YellWin500+ (SSH+Bit) | K187: 24.1 | L187: 20.3 | M187: 13.1 | N187: 5 (kein Kopfdurchzug) | P187: 0 | Q187: 950 | R187: 25.8 | S187: 8.7 | T187: 220 | U187: 8 | V187: 8,0 x 220 | W187: 210 | X187: 10.2 | Y187: kein kopfdurchzug | AA187: TX 40 | AB187: RAPID® VOLLGEWINDE | AC187: cylinderkopf | AE187: EG-Vollgewinde + Kernrippen | AF187: YellWin 500+ | AH187: ETA | AI187: ETA 12/0373 | AJ187: 20 | AK187: LE005B | AL187: 1359-CPD-0519 | AM187: SSH_ETA.lab | AN187: D10 | AO187: 5.1 | AP187: not relevant | AQ187: H+W | AR187: 5.1 | AS187: 5100
B188: Essve CY-FT | C188: cylinder | D188: Essve Fullthread | E188: 1331740802400001 | F188: 080x240/230 | G188: L0L 1A1 A0E | H188: E | I188: ESSVE CY-FT 8,0X240/230 | J188: EG/KR/T40/YellWin500+ (SSH+Bit) | K188: 24.1 | L188: 20.3 | M188: 13.1 | N188: 6 (kein Kopfdurchzug) | P188: 0 | Q188: 950 | R188: 25.8 | S188: 8.7 | T188: 240 | U188: 8 | V188: 8,0 x 240 | W188: 230 | X188: 10.2 | Y188: kein kopfdurchzug | AA188: TX 40 | AB188: RAPID® VOLLGEWINDE | AC188: cylinderkopf | AE188: EG-Vollgewinde + Kernrippen | AF188: YellWin 500+ | AH188: ETA | AI188: ETA 12/0373 | AJ188: 20 | AK188: LE005B | AL188: 1359-CPD-0519 | AM188: SSH_ETA.lab | AN188: D10 | AO188: 5.1 | AP188: not relevant | AQ188: H+W | AR188: 5.1 | AS188: 5100
B189: Essve CY-FT | C189: cylinder | D189: Essve Fullthread | E189: 1331740802600001 | F189: 080x260/250 | G189: L0L 1A1 A0E | H189: E | I189: ESSVE CY-FT 8,0X260/250 | J189: EG/KR/T40/YellWin500+ (SSH+Bit) | K189: 24.1 | L189: 20.3 | M189: 13.1 | N189: 7 (kein Kopfdurchzug) | P189: 0 | Q189: 950 | R189: 25.8 | S189: 8.7 | T189: 260 | U189: 8 | V189: 8,0 x 260 | W189: 250 | X189: 10.2 | Y189: kein kopfdurchzug | AA189: TX 40 | AB189: RAPID® VOLLGEWINDE | AC189: cylinderkopf | AE189: EG-Vollgewinde + Kernrippen | AF189: YellWin 500+ | AH189: ETA | AI189: ETA 12/0373 | AJ189: 20 | AK189: LE005B | AL189: 1359-CPD-0519 | AM189: SSH_ETA.lab | AN189: D10 | AO189: 5.1 | AP189: not relevant | AQ189: H+W | AR189: 5.1 | AS189: 5100
B190: Essve CY-FT | C190: cylinder | D190: Essve Fullthread | E190: 1331740802800001 | F190: 080x280/270 | G190: L0L 1A1 A0E | H190: E | I190: ESSVE CY-FT 8,0X280/270 | J190: EG/KR/T40/YellWin500+ (SSH+Bit) | K190: 24.1 | L190: 20.3 | M190: 13.1 | N190: 8 (kein Kopfdurchzug) | P190: 0 | Q190: 950 | R190: 25.8 | S190: 8.7 | T190: 280 | U190: 8 | V190: 8,0 x 280 | W190: 270 | X190: 10.2 | Y190: kein kopfdurchzug | AA190: TX 40 | AB190: RAPID® VOLLGEWINDE | AC190: cylinderkopf | AE190: EG-Vollgewinde + Kernrippen | AF190: YellWin 500+ | AH190: ETA | AI190: ETA 12/0373 | AJ190: 20 | AK190: LE005B | AL190: 1359-CPD-0519 | AM190: SSH_ETA.lab | AN190: D10 | AO190: 5.1 | AP190: not relevant | AQ190: H+W | AR190: 5.1 | AS190: 5100
B191: Essve CY-FT | C191: cylinder | D191: Essve Fullthread | E191: 1331740803000001 | F191: 080x300/290 | G191: L0L 1A1 A0E | H191: E | I191: ESSVE CY-FT 8,0X300/290 | J191: EG/KR/T40/YellWin500+ (SSH+Bit) | K191: 24.1 | L191: 20.3 | M191: 13.1 | N191: 9 (kein Kopfdurchzug) | P191: 0 | Q191: 950 | R191: 25.8 | S191: 8.7 | T191: 300 | U191: 8 | V191: 8,0 x 300 | W191: 290 | X191: 10.2 | Y191: kein kopfdurchzug | AA191: TX 40 | AB191: RAPID® VOLLGEWINDE | AC191: cylinderkopf | AE191: EG-Vollgewinde + Kernrippen | AF191: YellWin 500+ | AH191: ETA | AI191: ETA 12/0373 | AJ191: 20 | AK191: LE005B | AL191: 1359-CPD-0519 | AM191: SSH_ETA.lab | AN191: D10 | AO191: 5.1 | AP191: not relevant | AQ191: H+W | AR191: 5.1 | AS191: 5100
B192: Essve CY-FT | C192: cylinder | D192: Essve Fullthread | E192: 1331740803250001 | I192: ESSVE CY-FT 8,0X325/315 | J192: EG/KR/T40/YellWin500+ (SSH+Bit) | K192: 24.1 | L192: 20.3 | M192: 13.1 | N192: 10 (kein Kopfdurchzug) | P192: 0 | Q192: 950 | R192: 25.8 | S192: 8.7 | T192: 325 | U192: 8 | V192: 8,0 x 325 | W192: 315 | X192: 10.2 | Y192: kein kopfdurchzug | AA192: TX 40 | AB192: RAPID® VOLLGEWINDE | AC192: cylinderkopf | AE192: EG-Vollgewinde + Kernrippen | AF192: YellWin 500+ | AH192: ETA | AI192: ETA 12/0373 | AJ192: 20 | AK192: LE005B | AL192: 1359-CPD-0519 | AO192: 5.1 | AP192: not relevant | AQ192: H+W | AR192: 5.1 | AS192: 5100
B193: Essve CY-FT | C193: cylinder | D193: Essve Fullthread | E193: 1331740803500001 | F193: 080x350/340 | G193: L0L 1A1 A0E | H193: E | I193: ESSVE CY-FT 8,0X350/340 | J193: EG/KR/T40/YellWin500+ (SSH+Bit) | K193: 24.1 | L193: 20.3 | M193: 13.1 | N193: 11 (kein Kopfdurchzug) | P193: 0 | Q193: 950 | R193: 25.8 | S193: 8.7 | T193: 350 | U193: 8 | V193: 8,0 x 350 | W193: 340 | X193: 10.2 | Y193: kein kopfdurchzug | AA193: TX 40 | AB193: RAPID® VOLLGEWINDE | AC193: cylinderkopf | AE193: EG-Vollgewinde + Kernrippen | AF193: YellWin 500+ | AH193: ETA | AI193: ETA 12/0373 | AJ193: 20 | AK193: LE005B | AL193: 1359-CPD-0519 | AM193: SSH_ETA.lab | AN193: D10 | AO193: 5.1 | AP193: not relevant | AQ193: H+W | AR193: 5.1 | AS193: 5100
B194: Essve CY-FT | C194: cylinder | D194: Essve Fullthread | E194: 1331740803750001 | I194: ESSVE CY-FT 8,0X375/365 | J194: EG/KR/T40/YellWin500+ (SSH+Bit) | K194: 24.1 | L194: 20.3 | M194: 13.1 | N194: 12 (kein Kopfdurchzug) | P194: 0 | Q194: 950 | R194: 25.8 | S194: 8.7 | T194: 375 | U194: 8 | V194: 8,0 x 375 | W194: 365 | X194: 10.2 | Y194: kein kopfdurchzug | AA194: TX 40 | AB194: RAPID® VOLLGEWINDE | AC194: cylinderkopf | AE194: EG-Vollgewinde + Kernrippen | AF194: YellWin 500+ | AH194: ETA | AI194: ETA 12/0373 | AJ194: 20 | AK194: LE005B | AL194: 1359-CPD-0519 | AO194: 5.1 | AP194: not relevant | AQ194: H+W | AR194: 5.1 | AS194: 5100
B195: Essve CY-FT | C195: cylinder | D195: Essve Fullthread | E195: 1331740804000001 | F195: 080x400/390 | G195: L0L 1A1 A0E | H195: E | I195: ESSVE CY-FT 8,0X400/390 | J195: EG/KR/T40/YellWin500+ (SSH+Bit) | K195: 24.1 | L195: 20.3 | M195: 13.1 | N195: 13 (kein Kopfdurchzug) | P195: 0 | Q195: 950 | R195: 25.8 | S195: 8.7 | T195: 400 | U195: 8 | V195: 8,0 x 400 | W195: 390 | X195: 10.2 | Y195: kein kopfdurchzug | AA195: TX 40 | AB195: RAPID® VOLLGEWINDE | AC195: cylinderkopf | AE195: EG-Vollgewinde + Kernrippen | AF195: YellWin 500+ | AH195: ETA | AI195: ETA 12/0373 | AJ195: 20 | AK195: LE005B | AL195: 1359-CPD-0519 | AM195: SSH_ETA.lab | AN195: D10 | AO195: 5.1 | AP195: not relevant | AQ195: H+W | AR195: 5.1 | AS195: 5100
B196: Essve CY-FT | C196: cylinder | D196: Essve Fullthread | E196: 1331740804500001 | F196: 080x450/428 | G196: L0L 1A1 C0E | H196: E | I196: ESSVE CY-FT 8,0 x 450/427 | J196: EG/KR+HSP/T40/YellWin500+ (SSH+Bit) | K196: 24.1 | L196: 20.3 | M196: 13.1 | N196: 14 (kein Kopfdurchzug) | P196: 0 | Q196: 950 | R196: 25.8 | S196: 8.7 | T196: 450 | U196: 8 | V196: 8,0 x 450 | W196: 427 | X196: 10.2 | Y196: kein kopfdurchzug | AA196: TX 40 | AB196: RAPID® VOLLGEWINDE | AC196: cylinderkopf | AE196: EG-Vollgewinde, Halbspitze + Kernrippen | AF196: YellWin 500+ | AH196: ETA | AI196: ETA 12/0373 | AJ196: 20 | AK196: LE005B | AL196: 1359-CPD-0519 | AM196: SSH_ETA.lab | AN196: D9 | AO196: 5.1 | AP196: not relevant | AQ196: H+W | AR196: 5.1 | AS196: 5100
B197: Essve CY-FT | C197: cylinder | D197: Essve Fullthread | E197: 1331740805000001 | F197: 080x500/478 | G197: L0L 1A1 C0E | H197: E | I197: ESSVE CY-FT 8,0 x 500/477 | J197: EG/KR+HSP/T40/YellWin500+ (SSH+Bit) | K197: 24.1 | L197: 20.3 | M197: 13.1 | N197: 15 (kein Kopfdurchzug) | P197: 0 | Q197: 950 | R197: 25.8 | S197: 8.7 | T197: 500 | U197: 8 | V197: 8,0 x 500 | W197: 477 | X197: 10.2 | Y197: kein kopfdurchzug | AA197: TX 40 | AB197: RAPID® VOLLGEWINDE | AC197: cylinderkopf | AE197: EG-Vollgewinde, Halbspitze + Kernrippen | AF197: YellWin 500+ | AH197: ETA | AI197: ETA 12/0373 | AJ197: 20 | AK197: LE005B | AL197: 1359-CPD-0519 | AM197: SSH_ETA.lab | AN197: D9 | AO197: 5.1 | AP197: not relevant | AQ197: H+W | AR197: 5.1 | AS197: 5100
B198: Essve CY-FT | C198: cylinder | D198: Essve Fullthread | E198: 1331740806000001 | F198: 080x600/578 | G198: L0L 1A1 C0E | H198: E | I198: ESSVE CY-FT 8,0 x 600/577 | J198: EG/KR+HSP/T40/YellWin500+ (SSH+Bit) | K198: 24.1 | L198: 20.3 | M198: 13.1 | N198: 16 (kein Kopfdurchzug) | P198: 0 | Q198: 950 | R198: 25.8 | S198: 8.7 | T198: 600 | U198: 8 | V198: 8,0 x 600 | W198: 577 | X198: 10.2 | Y198: kein kopfdurchzug | AA198: TX 40 | AB198: RAPID® VOLLGEWINDE | AC198: cylinderkopf | AE198: EG-Vollgewinde, Halbspitze + Kernrippen | AF198: YellWin 500+ | AH198: ETA | AI198: ETA 12/0373 | AJ198: 20 | AK198: LE005B | AL198: 1359-CPD-0519 | AM198: SSH_ETA.lab | AN198: D9 | AO198: 5.1 | AP198: not relevant | AQ198: H+W | AR198: 5.1 | AS198: 5100
B199: Essve CY-FT | C199: cylinder | D199: Essve Fullthread | E199: 1331741002000001 | I199: ESSVE CY-FT 10,0 x 200/188 | J199: EG/KR+HSP/T50/YellWin500+ (SSH+Bit) | K199: 40 | L199: 36.7 | M199: 12.5 | N199: 17 (kein Kopfdurchzug) | P199: 0 | Q199: 950 | R199: 55 | S199: 15.6 | T199: 200 | U199: 10 | V199: 10,0 x 200 | W199: 188 | X199: 13.4 | Y199: kein kopfdurchzug | AA199: TX 50 | AB199: RAPID® VOLLGEWINDE | AC199: cylinderkopf | AE199: EG-Vollgewinde, Halbspitze + Kernrippen | AF199: YellWin 500+ | AH199: ETA | AI199: ETA 12/0373 | AJ199: 20 | AK199: LE005B | AL199: 1359-CPD-0519 | AO199: 6.2 | AP199: not relevant | AQ199: H+W | AR199: 6.2 | AS199: 6200
B200: Essve CY-FT | C200: cylinder | D200: Essve Fullthread | E200: 1331741002400001 | I200: ESSVE CY-FT 10,0 x 240/228 | J200: EG/KR+HSP/T50/YellWin500+ (SSH+Bit) | K200: 40 | L200: 36.7 | M200: 12.5 | N200: 18 (kein Kopfdurchzug) | P200: 0 | Q200: 950 | R200: 55 | S200: 15.6 | T200: 240 | U200: 10 | V200: 10,0 x 240 | W200: 228 | X200: 13.4 | Y200: kein kopfdurchzug | AA200: TX 50 | AB200: RAPID® VOLLGEWINDE | AC200: cylinderkopf | AE200: EG-Vollgewinde, Halbspitze + Kernrippen | AF200: YellWin 500+ | AH200: ETA | AI200: ETA 12/0373 | AJ200: 20 | AK200: LE005B | AL200: 1359-CPD-0519 | AO200: 6.2 | AP200: not relevant | AQ200: H+W | AR200: 6.2 | AS200: 6200
B201: Essve CY-FT | C201: cylinder | D201: Essve Fullthread | E201: 1331741002600001 | I201: ESSVE CY-FT 10,0 x 260/248 | J201: EG/KR+HSP/T50/YellWin500+ (SSH+Bit) | K201: 40 | L201: 36.7 | M201: 12.5 | N201: 19 (kein Kopfdurchzug) | P201: 0 | Q201: 950 | R201: 55 | S201: 15.6 | T201: 260 | U201: 10 | V201: 10,0 x 260 | W201: 248 | X201: 13.4 | Y201: kein kopfdurchzug | AA201: TX 50 | AB201: RAPID® VOLLGEWINDE | AC201: cylinderkopf | AE201: EG-Vollgewinde, Halbspitze + Kernrippen | AF201: YellWin 500+ | AH201: ETA | AI201: ETA 12/0373 | AJ201: 20 | AK201: LE005B | AL201: 1359-CPD-0519 | AO201: 6.2 | AP201: not relevant | AQ201: H+W | AR201: 6.2 | AS201: 6200
B202: Essve CY-FT | C202: cylinder | D202: Essve Fullthread | E202: 1331741002800001 | I202: ESSVE CY-FT 10,0 x 280/268 | J202: EG/KR+HSP/T50/YellWin500+ (SSH+Bit) | K202: 40 | L202: 36.7 | M202: 12.5 | N202: 20 (kein Kopfdurchzug) | P202: 0 | Q202: 950 | R202: 55 | S202: 15.6 | T202: 280 | U202: 10 | V202: 10,0 x 280 | W202: 268 | X202: 13.4 | Y202: kein kopfdurchzug | AA202: TX 50 | AB202: RAPID® VOLLGEWINDE | AC202: cylinderkopf | AE202: EG-Vollgewinde, Halbspitze + Kernrippen | AF202: YellWin 500+ | AH202: ETA | AI202: ETA 12/0373 | AJ202: 20 | AK202: LE005B | AL202: 1359-CPD-0519 | AO202: 6.2 | AP202: not relevant | AQ202: H+W | AR202: 6.2 | AS202: 6200
B203: Essve CY-FT | C203: cylinder | D203: Essve Fullthread | E203: 1331741003000001 | I203: ESSVE CY-FT 10,0 x 300/288 | J203: EG/KR+HSP/T50/YellWin500+ (SSH+Bit) | K203: 40 | L203: 36.7 | M203: 12.5 | N203: 21 (kein Kopfdurchzug) | P203: 0 | Q203: 950 | R203: 55 | S203: 15.6 | T203: 300 | U203: 10 | V203: 10,0 x 300 | W203: 288 | X203: 13.4 | Y203: kein kopfdurchzug | AA203: TX 50 | AB203: RAPID® VOLLGEWINDE | AC203: cylinderkopf | AE203: EG-Vollgewinde, Halbspitze + Kernrippen | AF203: YellWin 500+ | AH203: ETA | AI203: ETA 12/0373 | AJ203: 20 | AK203: LE005B | AL203: 1359-CPD-0519 | AO203: 6.2 | AP203: not relevant | AQ203: H+W | AR203: 6.2 | AS203: 6200
... 111 more rows

Sheet Materialdaten_Holz (hidden)
B2: Baustoff Holz | E2: NADELHOLZ | Q2: BRETTSCHICHTHOLZ homogen | X2: BRETTSCHICHTHOLZ kombiniert
E3: C14 | F3: C16 | G3: C18 | H3: C20 | I3: C22 | J3: C24 | K3: C27 | L3: C30 | M3: C35 | N3: C40 | O3: C45 | P3: C50 | Q3: GL20h | R3: GL22h | S3: GL24h | T3: GL26h | U3: GL28h | V3: GL30h | W3: GL32h | X3: GL20c | Y3: GL22c | Z3: GL24c | AA3: GL26c | AB3: GL28c | AC3: GL30c | AD3: GL32c
B4: Biegefestigkeit | C4: f m,k | D4: N/mm² | E4: 14 | F4: 16 | G4: 18 | H4: 20 | I4: 22 | J4: 24 | K4: 27 | L4: 30 | M4: 35 | N4: 40 | O4: 45 | P4: 50 | Q4: 20 | R4: 22 | S4: 24 | T4: 26 | U4: 28 | V4: 30 | W4: 32 | X4: 20 | Y4: 22 | Z4: 24 | AA4: 26 | AB4: 28 | AC4: 30 | AD4: 32
B5: Zugfestigkeit | C5: f t,0,k | E5: 8 | F5: 10 | G5: 11 | H5: 12 | I5: 13 | J5: 14 | K5: 16 | L5: 18 | M5: 21 | N5: 24 | O5: 27 | P5: 30 | Q5: 16 | R5: 17.6 | S5: 19.2 | T5: 20.8 | U5: 22.3 | V5: 24 | W5: 25.6 | X5: 15 | Y5: 16 | Z5: 17 | AA5: 19 | AB5: 19.5 | AC5: 19.5 | AD5: 19.5
C6: f t,90,k | E6: 0.4 | F6: 0.4 | G6: 0.4 | H6: 0.4 | I6: 0.4 | J6: 0.4 | K6: 0.4 | L6: 0.4 | M6: 0.4 | N6: 0.4 | O6: 0.4 | P6: 0.4 | Q6: 0.5 | R6: 0.5 | S6: 0.5 | T6: 0.5 | U6: 0.5 | V6: 0.5 | W6: 0.5 | X6: 0.5 | Y6: 0.5 | Z6: 0.5 | AA6: 0.5 | AB6: 0.5 | AC6: 0.5 | AD6: 0.5
B7: Druckfestigkeit | C7: f c,0,k | E7: 16 | F7: 17 | G7: 18 | H7: 19 | I7: 20 | J7: 21 | K7: 22 | L7: 23 | M7: 25 | N7: 26 | O7: 27 | P7: 29 | Q7: 20 | R7: 22 | S7: 24 | T7: 26 | U7: 28 | V7: 30 | W7: 32 | X7: 18.5 | Y7: 20 | Z7: 21.5 | AA7: 23.5 | AB7: 24 | AC7: 24.5 | AD7: 24.5
C8: f c,90,k | E8: 2 | F8: 2.2 | G8: 2.2 | H8: 2.3 | I8: 2.4 | J8: 2.5 | K8: 2.6 | L8: 2.7 | M8: 2.8 | N8: 2.9 | O8: 3.1 | P8: 3.2 | Q8: 2.5 | R8: 2.5 | S8: 2.5 | T8: 2.5 | U8: 2.5 | V8: 2.5 | W8: 2.5 | X8: 2.5 | Y8: 2.5 | Z8: 2.5 | AA8: 2.5 | AB8: 2.5 | AC8: 2.5 | AD8: 2.5
B9: Schubfestigkeit | C9: f v,k | E9: 2.3 | F9: 2.3 | G9: 2.3 | H9: 2.3 | I9: 2.3 | J9: 2.3 | K9: 2.3 | L9: 2.3 | M9: 2.3 | N9: 2.3 | O9: 2.3 | P9: 2.3 | Q9: 2.5 | R9: 2.5 | S9: 2.5 | T9: 2.5 | U9: 2.5 | V9: 2.5 | W9: 2.5 | X9: 2.5 | Y9: 2.5 | Z9: 2.5 | AA9: 2.5 | AB9: 2.5 | AC9: 2.5 | AD9: 2.5
B10: Rollschubfestigkeit | C10: f r,k | Q10: 1.2 | R10: 1.2 | S10: 1.2 | T10: 1.2 | U10: 1.2 | V10: 1.2 | W10: 1.2 | X10: 1.2 | Y10: 1.2 | Z10: 1.2 | AA10: 1.2 | AB10: 1.2 | AC10: 1.2 | AD10: 1.2
B11: Elastizitätsmodul | C11: E 0,mean | E11: 7000 | F11: 8000 | G11: 9000 | H11: 9500 | I11: 10000 | J11: 11000 | K11: 11500 | L11: 12000 | M11: 13000 | N11: 14000 | O11: 15000 | P11: 16000 | Q11: 8400 | R11: 10500 | S11: 11500 | T11: 12100 | U11: 12600 | V11: 13600 | W11: 14200 | X11: 10400 | Y11: 10400 | Z11: 11000 | AA11: 12000 | AB11: 12500 | AC11: 13000 | AD11: 13500
C12: E 0.05 | E12: 4700 | F12: 5400 | G12: 6000 | H12: 6400 | I12: 6700 | J12: 7400 | K12: 7700 | L12: 8000 | M12: 8700 | N12: 9400 | O12: 10000 | P12: 10700 | Q12: 7000 | R12: 8800 | S12: 9600 | T12: 10100 | U12: 10500 | V12: 11300 | W12: 11800 | X12: 8600 | Y12: 8600 | Z12: 9100 | AA12: 10000 | AB12: 10400 | AC12: 10800 | AD12: 11200
C13: E 90,mean | E13: 230 | F13: 270 | G13: 300 | H13: 320 | I13: 330 | J13: 370 | K13: 380 | L13: 400 | M13: 430 | N13: 470 | O13: 500 | P13: 530 | Q13: 300 | R13: 300 | S13: 300 | T13: 300 | U13: 300 | V13: 300 | W13: 300 | X13: 300 | Y13: 300 | Z13: 300 | AA13: 300 | AB13: 300 | AC13: 300 | AD13: 300
C14: E 90,.05 | Q14: 250 | R14: 250 | S14: 250 | T14: 250 | U14: 250 | V14: 250 | W14: 250 | X14: 250 | Y14: 250 | Z14: 250 | AA14: 250 | AB14: 250 | AC14: 250 | AD14: 250
B15: Schubmodul | C15: G mean | E15: 440 | F15: 500 | G15: 560 | H15: 590 | I15: 630 | J15: 690 | K15: 720 | L15: 750 | M15: 810 | N15: 880 | O15: 940 | P15: 1000 | Q15: 650 | R15: 650 | S15: 650 | T15: 650 | U15: 650 | V15: 650 | W15: 650 | X15: 650 | Y15: 650 | Z15: 650 | AA15: 650 | AB15: 650 | AC15: 650 | AD15: 650
C16: G 05 | Q16: 540 | R16: 540 | S16: 540 | T16: 540 | U16: 540 | V16: 540 | W16: 540 | X16: 540 | Y16: 540 | Z16: 540 | AA16: 540 | AB16: 540 | AC16: 540 | AD16: 540
B17: Rollschubmodul | C17: G r,mean | Q17: 65 | R17: 65 | S17: 65 | T17: 65 | U17: 65 | V17: 65 | W17: 65 | X17: 65 | Y17: 65 | Z17: 65 | AA17: 65 | AB17: 65 | AC17: 65 | AD17: 65
C18: G r,05 | Q18: 54 | R18: 54 | S18: 54 | T18: 54 | U18: 54 | V18: 54 | W18: 54 | X18: 54 | Y18: 54 | Z18: 54 | AA18: 54 | AB18: 54 | AC18: 54 | AD18: 54
B19: Rohdichte | C19: r k | D19: kg/m³ | E19: 290 | F19: 310 | G19: 320 | H19: 330 | I19: 340 | J19: 350 | K19: 370 | L19: 380 | M19: 400 | N19: 420 | O19: 440 | P19: 460 | Q19: 340 | R19: 370 | S19: 385 | T19: 405 | U19: 425 | V19: 430 | W19: 440 | X19: 355 | Y19: 355 | Z19: 365 | AA19: 385 | AB19: 390 | AC19: 390 | AD19: 400
C20: r mean | E20: 350 | F20: 370 | G20: 380 | H20: 390 | I20: 410 | J20: 420 | K20: 450 | L20: 460 | M20: 480 | N20: 500 | O20: 520 | P20: 550 | Q20: 370 | R20: 410 | S20: 420 | T20: 445 | U20: 460 | V20: 480 | W20: 490 | X20: 390 | Y20: 390 | Z20: 400 | AA20: 420 | AB20: 420 | AC20: 430 | AD20: 440
B21: Abbrandrate | C21: β 0 | E21: 0.65 | F21: 0.65 | G21: 0.65 | H21: 0.65 | I21: 0.65 | J21: 0.65 | K21: 0.65 | L21: 0.65 | M21: 0.65 | N21: 0.65 | O21: 0.65 | P21: 0.65 | Q21: 0.65 | R21: 0.65 | S21: 0.65 | T21: 0.65 | U21: 0.65 | V21: 0.65 | W21: 0.65 | X21: 0.65 | Y21: 0.65 | Z21: 0.65 | AA21: 0.65 | AB21: 0.65 | AC21: 0.65 | AD21: 0.65
C22: β n | E22: 0.8 | F22: 0.8 | G22: 0.8 | H22: 0.8 | I22: 0.8 | J22: 0.8 | K22: 0.8 | L22: 0.8 | M22: 0.8 | N22: 0.8 | O22: 0.8 | P22: 0.8 | Q22: 0.7 | R22: 0.7 | S22: 0.7 | T22: 0.7 | U22: 0.7 | V22: 0.7 | W22: 0.7 | X22: 0.7 | Y22: 0.7 | Z22: 0.7 | AA22: 0.7 | AB22: 0.7 | AC22: 0.7 | AD22: 0.7
C23: k fi | E23: 1.25 | F23: 1.25 | G23: 1.25 | H23: 1.25 | I23: 1.25 | J23: 1.25 | K23: 1.25 | L23: 1.25 | M23: 1.25 | N23: 1.25 | O23: 1.25 | P23: 1.25 | Q23: 1.15 | R23: 1.15 | S23: 1.15 | T23: 1.15 | U23: 1.15 | V23: 1.15 | W23: 1.15 | X23: 1.15 | Y23: 1.15 | Z23: 1.15 | AA23: 1.15 | AB23: 1.15 | AC23: 1.15 | AD23: 1.15
B28: Frei Schraubenlänge
